{"text_format":"1","workbook":"xlsx","n_sheets":14,"sheets":["Hoofdmenu","Toelichting","Voorblad","Mededelingen","NAW_gegevens","Kostenverzamelstaat","Catastr kostenverzamelst","Specifieke informatie A","Specifieke informatie C","Contractinformatie","Wanbetalers","Controleoverzicht","Parameters","Blad1"],"not_rendered":{"charts":0,"images":1,"macros":1,"external_links":0,"defined_names":1044,"comments":0,"pivot_tables":0},"unopened":[],"bounds":{"document_bytes":16777216,"sheet_cells":100000,"rows_first":2000,"rows_last":500,"rows_between":2000,"halvings":0,"cell_chars":16384,"cell_head_chars":4096},"cells_cut":0,"cells_raw":0,"read":"whole","date_system":"1900"}

{"sheet":"Hoofdmenu","index":0,"n_rows":3,"n_cols":2,"rows_kept":3,"cut":false,"hidden":false,"merged":[[0,0,0,1],[1,0,1,1]]}
[" "]
[{"$f":"CONCATENATE(\"KWARTAALSTAAT ZVW \", jaar_id,\" \",kwartaal_id,\"E KWARTAAL\")","v":"KWARTAALSTAAT ZVW 2022 4E KWARTAAL"}]
["Navigatie","Afdrukken"]

{"sheet":"Toelichting","index":1,"n_rows":4,"n_cols":2,"rows_kept":4,"cut":false,"hidden":false,"merged":[]}
[]
[]
[]
[null,{"$f":"CONCATENATE(\" KWARTAALSTAAT ZVW \",jaar_id,\" \",kwartaal_id,\"E KWARTAAL (VERSIE: \",revisie_id,\")\")","v":" KWARTAALSTAAT ZVW 2022 4E KWARTAAL (VERSIE: A)"}]

{"sheet":"Voorblad","index":2,"n_rows":38,"n_cols":4,"rows_kept":38,"cut":false,"hidden":false,"merged":[[15,3,16,11],[13,3,14,11],[17,3,18,11]]}
[null,null,"VOORBLAD"]
[]
[]
[]
[]
["Pagina 1",null,null," "]
[]
[]
[]
[]
[]
[]
[]
[null,null,null,{"$f":"CONCATENATE(\"KWARTAALSTAAT ZVW \",jaar_id)","v":"KWARTAALSTAAT ZVW 2022"}]
[]
[null,null,null,{"$f":"CONCATENATE(kwartaal_id,\"E KWARTAAL\")","v":"4E KWARTAAL"}]
[]
[null,null,null,"SPECIFIEKE INFORMATIE"]
[]
[]
[]
[null,null,null,"    KOSTENVERZAMELSTAAT (SPECIFIEKE INFORMATIE A)"]
[null,null,null,"     ● Informatie risicoverevening (pagina 1 t/m 4)"]
[]
[null,null,null,"    CATASTROFE KOSTENVERZAMELSTAAT (SPECIFIEKE INFORMATIE A)"]
[null,null,null,"     ● Informatie risicoverevening (pagina 1 t/m 4)"]
[]
[null,null,null,"    SPECIFIEKE INFORMATIE A"]
[null,null,null,"     ● Informatie risicoverevening (pagina 1 t/m 2)"]
[]
[null,null,null,"    SPECIFIEKE INFORMATIE C"]
[null,null,null,"     ● Specificaties van kosten en productie (pagina 1 t/m 3)"]
[]
[null,null,null,"    CONTRACTINFORMATIE (SPECIFIEKE INFORMATIE C)"]
[null,null,null,"     ● Specificaties van kosten en productie (pagina 1 & 2)"]
[]
[null,null,null,"    WANBETALERS (SPECIFIEKE INFORMATIE C)"]
[null,null,null,"     ● Specificaties van aantallen (pagina 1)"]

{"sheet":"Mededelingen","index":3,"n_rows":49,"n_cols":12,"rows_kept":49,"cut":false,"hidden":false,"merged":[[48,3,48,4]]}
[]
[]
[]
[]
[]
["Pagina 1",null,null,{"$f":"CONCATENATE(\"KWARTAALSTAAT ZVW \", jaar_id,\" \",kwartaal_id,\"E KWARTAAL\")","v":"KWARTAALSTAAT ZVW 2022 4E KWARTAAL"}]
[null,null,null,{"$f":"IF(naw_uzovi_zorgverzekeraar<>\"0000\",CONCATENATE(UPPER(naw_naam_zorgverzekeraar),\", \",UPPER(naw_plaats_zorgverzekeraar)),\"\")","v":""},null,null,null,null,null,null,null,{"$f":"CONCATENATE(\"UZOVI: \",naw_uzovi_zorgverzekeraar)","v":"UZOVI: 0000"}]
[null,null,null,"MEDEDELINGEN :"]
[]
[]
[]
[]
[]
[]
[]
[]
[]
[]
[]
[]
[]
[]
[]
[]
[]
[]
[]
[]
[]
[]
[]
[]
[]
[]
[]
[]
[]
[]
[]
[]
[]
[]
[]
[]
[]
[]
[]
[]
[null,null,null,{"$f":"NOW()","v":"2022-12-12T15:17:44.580"},null,null,null,null,null,null,null,{"$f":"CONCATENATE(\"Mededelingen \",LOWER(A6))","v":"Mededelingen pagina 1"}]

{"sheet":"NAW_gegevens","index":4,"n_rows":36,"n_cols":6,"rows_kept":36,"cut":false,"hidden":false,"merged":[[2,1,2,2],[3,1,3,2]]}
[]
[]
[null,"NAW-GEGEVENS"]
[null,{"$f":"CONCATENATE(\"KWARTAALSTAAT ZVW \", jaar_id,\" \",kwartaal_id,\"E KWARTAAL\")","v":"KWARTAALSTAAT ZVW 2022 4E KWARTAAL"}]
[null," Selecteer uw nummer:","0000 KIES UW UZOVI-NUMMER"]
[null," Uzovi-nummer:",{"$f":"MID(keuze_uzovi_nummer,1,4)","v":"0000"}]
[null," Zorgverzekeraar:"]
[null," Plaats:"]
[null," Contactpersoon:"]
[null," Telefoonnummer:"]
[null," E-mail:"]
[]
[null,"Let op dat u het goede UZOVI-nummer invult, zie onderstaand overzicht:"]
[]
[null,"UZOVI","NAAM",null,null,"PLAATS"]
[null,"0101","N.V. UNIVÉ ZORG",null,null,"ARNHEM"]
[null,"0104","CENTRALE ZORGVERZEKERINGEN NZV N.V.",null,null,"TILBURG"]
[null,"0201","OHRA ZORGVERZEKERINGEN N.V.",null,null,"TILBURG"]
[null,"0403","ASR BASIS ZIEKTENKOSTENVERZEKERINGEN N.V. ",null,null,"UTRECHT"]
[null,"0699","IZA ZORGVERZEKERAAR N.V.",null,null,"ARNHEM"]
[null,"0736","N.V. ZORGVERZEKERAAR UMC",null,null,"ARNHEM"]
[null,"3311","ZILVEREN KRUIS ACHMEA ZORGVERZEKERINGEN N.V.",null,null,"UTRECHT"]
[null,"3313","INTERPOLIS ZORGVERZEKERINGEN N.V.",null,null,"UTRECHT"]
[null,3332,"MENZIS ZORGVERZEKERAAR NV",null,null,"WAGENINGEN"]
[null,3333,"ANDERZORG NV",null,null,"WAGENINGEN"]
[null,3343,"ONVZ ZIEKTEKOSTENVERZEKERAAR N.V.",null,null,"HOUTEN"]
[null,3347,"ENO ZORGVERZEKERAAR N.V.",null,null,"DEVENTER"]
[null,3351,"FBTO ZORGVERZEKERINGEN N.V.",null,null,"LEEUWARDEN"]
[null,3352,"IPTIQ LIFE S.A.",null,null,"AMSTELVEEN"]
[null,3358,"DE FRIESLAND ZORGVERZEKERAAR N.V.",null,null,"LEEUWARDEN"]
[null,3359,"EUCARE INSURANCE PCC LTD",null,null,"TA' XBIEX"]
[null,"7029","OWM ZORGVERZEKERAAR 'DSW' U.A.",null,null,"SCHIEDAM"]
[null,"7037","STAD HOLLAND ZORGVERZEKERAAR OWM U.A.",null,null,"SCHIEDAM"]
[null,"7085","OWM ZORGVERZEKERAAR ZORG EN ZEKERHEID U.A.",null,null,"LEIDEN"]
[null,"7095","VGZ ZORGVERZEKERAAR N.V.",null,null,"ARNHEM"]
[null,"7119","CZ ZORGVERZEKERINGEN N.V.",null,null,"TILBURG"]

{"sheet":"Kostenverzamelstaat","index":5,"n_rows":212,"n_cols":17,"rows_kept":212,"cut":false,"hidden":false,"merged":[[76,3,76,6],[105,3,105,6],[11,8,11,9],[11,10,11,11],[67,8,67,9],[67,10,67,11],[12,12,13,12],[119,8,119,9],[119,10,119,11],[119,12,119,13],[120,8,121,8],[120,9,121,9],[120,10,121,10],[120,11,121,11],[120,12,121,12],[120,13,121,13],[146,3,146,6],[0,2,0,14],[11,3,11,7],[12,13,13,13],[11,12,11,13],[68,8,69,8],[68,9,69,9],[68,10,69,10],[68,11,69,11],[68,12,69,12],[68,13,69,13],[67,12,67,13],[12,8,13,8],[12,9,13,9],[12,10,13,10],[12,11,13,11]]}
[null,null,"INVULSPECIFICATIES SPECIFIEKE INFORMATIE A"]
[]
[]
[]
[]
[]
["Pagina 1",null,null,{"$f":"CONCATENATE(\"KWARTAALSTAAT ZVW \", jaar_id,\" \",kwartaal_id,\"E KWARTAAL\")","v":"KWARTAALSTAAT ZVW 2022 4E KWARTAAL"}]
[null,null,null,"KOSTENVERZAMELSTAAT (SPECIFIEKE INFORMATIE A)"]
[null,null,null,{"$f":"IF(naw_uzovi_zorgverzekeraar<>\"0000\",CONCATENATE(UPPER(naw_naam_zorgverzekeraar),\", \",UPPER(naw_plaats_zorgverzekeraar)),\"\")","v":""},null,null,null,null,null,null,null,null,null,{"$f":"CONCATENATE(\"UZOVI: \",naw_uzovi_zorgverzekeraar)","v":"UZOVI: 0000"}]
[null,null,null,"SPECIFICATIES INFORMATIE RISICOVEREVENING"]
[null,null,null,"KOSTENVERZAMELSTAAT"]
[null,null,null,null,null,null,null,null,"LASTEN 2022",null,"LASTEN 2021",null,"LASTEN 2020 EN OUDER"]
[null,null,null,null,null,null,null,null,"LASTEN 2022 inclusief balanspost ","Ontvangen en geaccepteerde declaraties t/m 4e kwartaal 2022","LASTEN 2021 inclusief balanspost","Ontvangen en geaccepteerde declaraties m.b.t. 2021","LASTEN 2020 EN OUDER inclusief balanspost","Ontvangen en geaccepteerde declaraties m.b.t. 2020 en ouder"]
[null,null,null," KOSTENRUBRIEK",null,null,null,"code"]
[null,null,null," 01  HUISARTSENZORG en MDZ"]
[null,null,null," Bijzondere betalingen",null,null,null,"503   ",null,null,null,null,null,null,null,null,{"$f":"IF(OR((I16-J16)/IF(I16=0,1,I16)<-10%,(K16-L16)/IF(K16=0,1,K16)<-10%,(M16-N16)/IF(M16=0,1,M16)<-10%),\"De balans is < -10%, als dit plausibel is dan vragen wij u dit nader toe te lichten bij de opmerkingen, zo niet dan dient u uw raming aan te scherpen.\",\"\")","v":""}]
[null,null,null," Avond-, nacht- en weekenddiensten",null,null,null,"504   ",null,null,null,null,null,null,null,null,{"$f":"IF(OR((I17-J17)/IF(I17=0,1,I17)<-10%,(K17-L17)/IF(K17=0,1,K17)<-10%,(M17-N17)/IF(M17=0,1,M17)<-10%),\"De balans is < -10%, als dit plausibel is dan vragen wij u dit nader toe te lichten bij de opmerkingen, zo niet dan dient u uw raming aan te scherpen.\",\"\")","v":""}]
[null,null,null," Inschrijftarieven",null,null,null,"505   ",null,null,null,null,null,null,null,null,""]
[null,null,null," Consulttarieven",null,null,null,"506   ",null,null,null,null,null,null,null,null,""]
[null,null,null," Overige tarieven",null,null,null,"507   ",null,null,null,null,null,null,null,null,""]
[null,null,null," Multidisciplinaire zorg",null,null,null,"510   ",null,null,null,null,null,null,null,null,""]
[null,null,null," Resultaatbeloning en zorgvernieuwing huisartsen",null,null,null,"515   ",null,null,null,null,null,null,null,null,""]
[null,null,null," Resultaatbeloning en zorgvernieuwing MDZ",null,null,null,"516   ",null,null,null,null,null,null,null,null,""]
[null,null,null," Meerkosten Corona, indirect en toeslagen",null,null,null,"801   ",null,null,null,null,null,null,null,null,""]
[null,null,null," Meerkosten Corona, indirect",null,null,null,"801.1   ",null,null,null,null,{"$f":"'Catastr kostenverzamelst'!K24","v":0},{"$f":"'Catastr kostenverzamelst'!L24","v":0},null,null,""]
[null,null,null," Meerkosten Corona, toeslagen",null,null,null,"801.2   ",null,null,null,null,{"$f":"'Catastr kostenverzamelst'!K25","v":0},{"$f":"'Catastr kostenverzamelst'!L25","v":0},null,null,""]
[null,null,null," Netto continuïteitsbijdrage Corona (basisverzekering)",null,null,null,"821   ",null,null,null,null,null,null,null,null,""]
[null,null,null," TOTAAL RUBRIEK 01",null,null,null,null,{"$f":"SUM(I16:I27)","v":0},{"$f":"SUM(J16:J27)","v":0},0,0,0,{"$f":"SUM(N16:N27)","v":0}]
[null,null,null," 02 FARMACEUTISCHE ZORG"]
[null,null,null," Farmaceutische zorg",null,null,null,"520   ",null,null,null,null,null,null,null,null,{"$f":"IF(OR((I30-J30)/IF(I30=0,1,I30)<-10%,(K30-L30)/IF(K30=0,1,K30)<-10%,(M30-N30)/IF(M30=0,1,M30)<-10%),\"De balans is < -10%, als dit plausibel is dan vragen wij u dit nader toe te lichten bij de opmerkingen, zo niet dan dient u uw raming aan te scherpen.\",\"\")","v":""}]
[null,null,null," Meerkosten Corona, indirect en toeslagen",null,null,null,"802   ",null,null,null,null,null,null,null,null,{"$f":"IF(OR((I31-J31)/IF(I31=0,1,I31)<-10%,(K31-L31)/IF(K31=0,1,K31)<-10%,(M31-N31)/IF(M31=0,1,M31)<-10%),\"De balans is < -10%, als dit plausibel is dan vragen wij u dit nader toe te lichten bij de opmerkingen, zo niet dan dient u uw raming aan te scherpen.\",\"\")","v":""}]
[null,null,null," Meerkosten Corona, indirect",null,null,null,"802.1   ",null,null,null,null,{"$f":"'Catastr kostenverzamelst'!K30","v":0},{"$f":"'Catastr kostenverzamelst'!L30","v":0},null,null,{"$f":"IF(OR((I32-J32)/IF(I32=0,1,I32)<-10%,(K32-L32)/IF(K32=0,1,K32)<-10%,(M32-N32)/IF(M32=0,1,M32)<-10%),\"De balans is < -10%, als dit plausibel is dan vragen wij u dit nader toe te lichten bij de opmerkingen, zo niet dan dient u uw raming aan te scherpen.\",\"\")","v":""}]
[null,null,null," Meerkosten Corona, toeslagen",null,null,null,"802.2   ",null,null,null,null,{"$f":"'Catastr kostenverzamelst'!K31","v":0},{"$f":"'Catastr kostenverzamelst'!L31","v":0},null,null,""]
[null,null,null," Netto continuïteitsbijdrage Corona (basisverzekering)",null,null,null,"822   ",null,null,null,null,null,null,null,null,""]
[null,null,null," TOTAAL RUBRIEK 02",null,null,null,null,{"$f":"SUM(I30:I34)","v":0},{"$f":"SUM(J30:J34)","v":0},0,0,0,0]
[null,null,null," 03 VERPLEGING EN VERZORGING ",null,null,null,null,null,null,null,null,null,null,null,null,""]
[null,null,null," Kosten van verpleging en verzorging ",null,null,null,"530   ",null,null,null,null,null,null,null,null,""]
[null,null,null," Meerkosten Corona, indirect en toeslagen",null,null,null,"803   ",null,null,null,null,null,null,null,null,""]
[null,null,null," Meerkosten Corona, indirect",null,null,null,"803.1   ",null,null,null,null,{"$f":"'Catastr kostenverzamelst'!K36","v":0},{"$f":"'Catastr kostenverzamelst'!L36","v":0},null,null,""]
[null,null,null," Meerkosten Corona, toeslagen",null,null,null,"803.2   ",null,null,null,null,{"$f":"'Catastr kostenverzamelst'!K37","v":0},{"$f":"'Catastr kostenverzamelst'!L37","v":0},null,null,""]
[null,null,null," Netto continuïteitsbijdrage Corona (basisverzekering)",null,null,null,"823   ",null,null,null,null,null,null,null,null,""]
[null,null,null," TOTAAL RUBRIEK 03",null,null,null,null,{"$f":"SUM(I37:I41)","v":0},{"$f":"SUM(J37:J41)","v":0},0,0,0,0]
[null,null,null," 04  MONDZORG"]
[null,null,null," Kosten mondzorg volwassen verzekerden",null,null,null,"560.1",null,null,null,null,null,null,null,null,{"$f":"IF(OR((I44-J44)/IF(I44=0,1,I44)<-10%,(K44-L44)/IF(K44=0,1,K44)<-10%,(M44-N44)/IF(M44=0,1,M44)<-10%),\"De balans is < -10%, als dit plausibel is dan vragen wij u dit nader toe te lichten bij de opmerkingen, zo niet dan dient u uw raming aan te scherpen.\",\"\")","v":""}]
[null,null,null," Kosten mondzorg jeugdige verzekerden",null,null,null,"560.2",null,null,null,null,null,null,null,null,""]
[null,null,null," Kosten gebitsprothesen",null,null,null,"561   ",null,null,null,null,null,null,null,null,""]
[null,null,null," Meerkosten Corona, indirect en toeslagen",null,null,null,"804   ",null,null,null,null,null,null,null,null,""]
[null,null,null," Meerkosten Corona, indirect",null,null,null,"804.1   ",null,null,null,null,{"$f":"'Catastr kostenverzamelst'!K44","v":0},{"$f":"'Catastr kostenverzamelst'!L44","v":0},null,null,""]
[null,null,null," Meerkosten Corona, toeslagen",null,null,null,"804.2   ",null,null,null,null,{"$f":"'Catastr kostenverzamelst'!K45","v":0},{"$f":"'Catastr kostenverzamelst'!L45","v":0},null,null,""]
[null,null,null," Netto continuïteitsbijdrage Corona (basisverzekering)",null,null,null,"824   ",null,null,null,null,null,null,null,null,""]
[null,null,null," TOTAAL RUBRIEK 04",null,null,null,null,{"$f":"SUM(I44:I50)","v":0},{"$f":"SUM(J44:J50)","v":0},0,0,0,{"$f":"SUM(N44:N50)","v":0}]
[null,null,null," 05  VERLOSKUNDIGE ZORG"]
[null,null,null," Kosten verloskundige zorg door verloskundigen",null,null,null,"580   ",null,null,null,null,null,null,null,null,{"$f":"IF(OR((I53-J53)/IF(I53=0,1,I53)<-10%,(K53-L53)/IF(K53=0,1,K53)<-10%,(M53-N53)/IF(M53=0,1,M53)<-10%),\"De balans is < -10%, als dit plausibel is dan vragen wij u dit nader toe te lichten bij de opmerkingen, zo niet dan dient u uw raming aan te scherpen.\",\"\")","v":""}]
[null,null,null," Kosten Integrale geboortezorg ",null,null,null,"582   ",null,null,null,null,null,null,null,null,""]
[null,null,null," Meerkosten Corona, indirect en toeslagen",null,null,null,"805   ",null,null,null,null,null,null,null,null,""]
[null,null,null," Meerkosten Corona, indirect",null,null,null,"805.1   ",null,null,null,null,{"$f":"'Catastr kostenverzamelst'!K51","v":0},{"$f":"'Catastr kostenverzamelst'!L51","v":0},null,null,""]
[null,null,null," Meerkosten Corona, toeslagen",null,null,null,"805.2   ",null,null,null,null,{"$f":"'Catastr kostenverzamelst'!K52","v":0},{"$f":"'Catastr kostenverzamelst'!L52","v":0},null,null,""]
[null,null,null," Netto continuïteitsbijdrage Corona (basisverzekering)",null,null,null,"825   ",null,null,null,null,null,null,null,null,""]
[null,null,null," TOTAAL RUBRIEK 05",null,null,null,null,{"$f":"SUM(I53:I58)","v":0},0,0,0,0,0]
[]
[null,null,null,{"$f":"NOW()","v":"2022-12-12T15:17:44.580"},null,null,null,null,null,null,null,null,null,{"$f":"CONCATENATE(\"Specifieke informatie A, \",LOWER(A7))","v":"Specifieke informatie A, pagina 1"}]
[]
["Pagina 2",null,null,{"$f":"CONCATENATE(\"KWARTAALSTAAT ZVW \", jaar_id,\" \",kwartaal_id,\"E KWARTAAL\")","v":"KWARTAALSTAAT ZVW 2022 4E KWARTAAL"}]
[null,null,null,"KOSTENVERZAMELSTAAT (SPECIFIEKE INFORMATIE A)"]
[null,null,null,{"$f":"IF(naw_uzovi_zorgverzekeraar<>\"0000\",CONCATENATE(UPPER(naw_naam_zorgverzekeraar),\", \",UPPER(naw_plaats_zorgverzekeraar)),\"\")","v":""},null,null,null,null,null,null,null,null,null,{"$f":"CONCATENATE(\"UZOVI: \",naw_uzovi_zorgverzekeraar)","v":"UZOVI: 0000"}]
[null,null,null,"SPECIFICATIES INFORMATIE RISICOVEREVENING"]
[null,null,null,"KOSTENVERZAMELSTAAT - vervolg"]
[null,null,null,null,null,null,null,null,"LASTEN 2022",null,"LASTEN 2021",null,"LASTEN 2020 EN OUDER"]
[null,null,null,null,null,null,null,null,"LASTEN 2022 inclusief balanspost ",{"$f":"J13","v":"Ontvangen en geaccepteerde declaraties t/m 4e kwartaal 2022"},"LASTEN 2021 inclusief balanspost","Ontvangen en geaccepteerde declaraties m.b.t. 2021","LASTEN 2020 EN OUDER inclusief balanspost","Ontvangen en geaccepteerde declaraties m.b.t. 2020 en ouder"]
[null,null,null," KOSTENRUBRIEK",null,null,null,"code"]
[null,null,null," 06  MEDISCH SPECIALISTISCHE ZORG",null,null,null,null,null,null,null,null,null,null,null,null,{"$f":"IF(OR((I71-J71)/IF(I71=0,1,I71)<-10%,(K71-L71)/IF(K71=0,1,K71)<-10%,(M71-N71)/IF(M71=0,1,M71)<-10%),\"De balans is < -10%, als dit plausibel is dan vragen wij u dit nader toe te lichten bij de opmerkingen, zo niet dan dient u uw raming aan te scherpen.\",\"\")","v":""}]
[null,null,null," Kosten specialisten mondziekten en kaakchirurgie",null,null,null,"545   ",null,null,null,null,null,null,null,null,""]
[null,null,null," Overige kosten ziekenhuiszorg en curatieve zorg",null,null,null,"610   ",null,null,null,null,null,null,null,null,""]
[null,null,null," Overige zorgproducten",null,null,null,"611   ",null,null,null,null,null,null,null,null,""]
[null,null,null," Kosten add-ons - Dure geneesmiddelen",null,null,null,"612.1",null,null,null,null,null,null,null,null,""]
[null,null,null," Kosten add-ons - IC",null,null,null,"612.2",null,null,null,null,null,null,null,null,""]
[null,null,null," Integrale kosten van DBC-zorgproduct \n gereguleerde segment  ",null,null,null,"613.1",null,null,null,null,null,null,null,null,""]
[null,null,null," Integrale kosten DBC-zorgproduct vrije segment",null,null,null,"615.1",null,null,null,null,null,null,null,null,""]
[null,null,null," Integrale kosten extramuraal werkende \n specialisten",null,null,null,"619   ",null,null,null,null,null,null,null,null,""]
[null,null,null," Meerkosten Corona, indirect en toeslagen",null,null,null,"806   ",null,null,null,null,null,null,null,null,""]
[null,null,null," Meerkosten Corona, indirect",null,null,null,"806.1   ",null,null,null,null,{"$f":"'Catastr kostenverzamelst'!K75","v":0},{"$f":"'Catastr kostenverzamelst'!L75","v":0},null,null,""]
[null,null,null," Meerkosten Corona, toeslagen",null,null,null,"806.2   ",null,null,null,null,{"$f":"'Catastr kostenverzamelst'!K76","v":0},{"$f":"'Catastr kostenverzamelst'!L76","v":0},null,null,""]
[null,null,null," Netto continuïteitsbijdrage Corona (basisverzekering)",null,null,null,"826   ",null,null,null,null,null,null,null,null,""]
[null,null,null," TOTAAL RUBRIEK 06",null,null,null,null,{"$f":"SUM(I72:I83)","v":0},0,0,0,0,0]
[null,null,null," 07  PARAMEDISCHE ZORG"]
[null,null,null," Kosten fysiotherapie",null,null,null,"620   ",null,null,null,null,null,null,null,null,{"$f":"IF(OR((I86-J86)/IF(I86=0,1,I86)<-10%,(K86-L86)/IF(K86=0,1,K86)<-10%,(M86-N86)/IF(M86=0,1,M86)<-10%),\"De balans is < -10%, als dit plausibel is dan vragen wij u dit nader toe te lichten bij de opmerkingen, zo niet dan dient u uw raming aan te scherpen.\",\"\")","v":""}]
[null,null,null," Kosten oefentherapie Mensendieck/Cesar",null,null,null,"621   ",null,null,null,null,null,null,null,null,""]
[null,null,null," Kosten logopedie",null,null,null,"623   ",null,null,null,null,null,null,null,null,""]
[null,null,null," Kosten ergotherapie",null,null,null,"624   ",null,null,null,null,null,null,null,null,""]
[null,null,null," Kosten dieetadvisering",null,null,null,"625   ",null,null,null,null,null,null,null,null,""]
[null,null,null," Gecombineerde Leefstijl Interventie (GLI)",null,null,null,"626   ",null,null,null,null,null,null,null,null,""]
[null,null,null," Meerkosten Corona, indirect en toeslagen",null,null,null,"807   ",null,null,null,null,null,null,null,null,""]
[null,null,null," Meerkosten Corona, indirect",null,null,null,"807.1   ",null,null,null,null,{"$f":"'Catastr kostenverzamelst'!K86","v":0},{"$f":"'Catastr kostenverzamelst'!L86","v":0},null,null,""]
[null,null,null," Meerkosten Corona, toeslagen",null,null,null,"807.2   ",null,null,null,null,{"$f":"'Catastr kostenverzamelst'!K87","v":0},{"$f":"'Catastr kostenverzamelst'!L87","v":0},null,null,""]
[null,null,null," Netto continuïteitsbijdrage Corona (basisverzekering)",null,null,null,"827   ",null,null,null,null,null,null,null,null,""]
[null,null,null," TOTAAL RUBRIEK 07",null,null,null,null,{"$f":"SUM(I86:I95)","v":0},{"$f":"SUM(J86:J95)","v":0},0,0,0,{"$f":"SUM(N86:N95)","v":0}]
[null,null,null," 08  HULPMIDDELENZORG"]
[null,null,null," Hulpmiddelenzorg ",null,null,null,"640   ",null,null,null,null,null,null,null,null,{"$f":"IF(OR((I98-J98)/IF(I98=0,1,I98)<-10%,(K98-L98)/IF(K98=0,1,K98)<-10%,(M98-N98)/IF(M98=0,1,M98)<-10%),\"De balans is < -10%, als dit plausibel is dan vragen wij u dit nader toe te lichten bij de opmerkingen, zo niet dan dient u uw raming aan te scherpen.\",\"\")","v":""}]
[null,null,null," Meerkosten Corona, indirect en toeslagen",null,null,null,"808   ",null,null,null,null,null,null,null,null,""]
[null,null,null," Meerkosten Corona, indirect",null,null,null,"808.1   ",null,null,null,null,{"$f":"'Catastr kostenverzamelst'!K92","v":0},{"$f":"'Catastr kostenverzamelst'!L92","v":0},null,null,""]
[null,null,null," Meerkosten Corona, toeslagen",null,null,null,"808.2   ",null,null,null,null,{"$f":"'Catastr kostenverzamelst'!K93","v":0},{"$f":"'Catastr kostenverzamelst'!L93","v":0},null,null,""]
[null,null,null," Netto continuïteitsbijdrage Corona (basisverzekering)",null,null,null,"828   ",null,null,null,null,null,null,null,null,""]
[null,null,null," TOTAAL RUBRIEK 08",null,null,null,null,{"$f":"SUM(I98:I102)","v":0},{"$f":"SUM(J98:J102)","v":0},0,0,0,{"$f":"SUM(N98:N102)","v":0}]
[null,null,null," 09  ZIEKENVERVOER"]
[null,null,null," Kosten vervoer per ambulance/helikopter",null,null,null,"650   ",null,null,null,null,null,null,null,null,{"$f":"IF(OR((I105-J105)/IF(I105=0,1,I105)<-10%,(K105-L105)/IF(K105=0,1,K105)<-10%,(M105-N105)/IF(M105=0,1,M105)<-10%),\"De balans is < -10%, als dit plausibel is dan vragen wij u dit nader toe te lichten bij de opmerkingen, zo niet dan dient u uw raming aan te scherpen.\",\"\")","v":""}]
[null,null,null," Opbrengstenverrekeningen regionale ambulance-\n voorzieningen",null,null,null,"650.1",null,null,null,null,null,null,null,null,""]
[null,null,null," Kosten vervoer per openbaar vervoer, taxi \n en eigen auto",null,null,null,"651   ",null,null,null,null,null,null,null,null,""]
[null,null,null," Meerkosten Corona, indirect en toeslagen",null,null,null,"809   ",null,null,null,null,null,null,null,null,""]
[null,null,null," Meerkosten Corona, indirect",null,null,null,"809.1   ",null,null,null,null,{"$f":"'Catastr kostenverzamelst'!K100","v":0},{"$f":"'Catastr kostenverzamelst'!L100","v":0},null,null,""]
[null,null,null," Meerkosten Corona, toeslagen",null,null,null,"809.2   ",null,null,null,null,{"$f":"'Catastr kostenverzamelst'!K101","v":0},{"$f":"'Catastr kostenverzamelst'!L101","v":0},null,null,""]
[null,null,null," Netto continuïteitsbijdrage Corona (basisverzekering)",null,null,null,"829   ",null,null,null,null,null,null,null,null,""]
[null,null,null," TOTAAL RUBRIEK 09",null,null,null,null,{"$f":"SUM(I105:I111)","v":0},{"$f":"SUM(J105:J111)","v":0},0,0,0,0]
[null,null,null,{"$f":"NOW()","v":"2022-12-12T15:17:44.580"},null,null,null,null,null,null,null,null,null,{"$f":"CONCATENATE(\"Specifieke informatie A, \",LOWER(A63))","v":"Specifieke informatie A, pagina 2"}]
[]
["Pagina 3",null,null,{"$f":"CONCATENATE(\"KWARTAALSTAAT ZVW \", jaar_id,\" \",kwartaal_id,\"E KWARTAAL\")","v":"KWARTAALSTAAT ZVW 2022 4E KWARTAAL"}]
[null,null,null,"KOSTENVERZAMELSTAAT (SPECIFIEKE INFORMATIE A)"]
[null,null,null,{"$f":"IF(naw_uzovi_zorgverzekeraar<>\"0000\",CONCATENATE(UPPER(naw_naam_zorgverzekeraar),\", \",UPPER(naw_plaats_zorgverzekeraar)),\"\")","v":""},null,null,null,null,null,null,null,null,null,{"$f":"CONCATENATE(\"UZOVI: \",naw_uzovi_zorgverzekeraar)","v":"UZOVI: 0000"}]
[null,null,null,"SPECIFICATIES INFORMATIE RISICOVEREVENING"]
[null,null,null,"KOSTENVERZAMELSTAAT - vervolg"]
[null,null,null,null,null,null,null,null,"LASTEN 2022",null,"LASTEN 2021",null,"LASTEN 2020 EN OUDER"]
[null,null,null,null,null,null,null,null,"LASTEN 2022 inclusief balanspost ",{"$f":"J13","v":"Ontvangen en geaccepteerde declaraties t/m 4e kwartaal 2022"},"LASTEN 2021 inclusief balanspost","Ontvangen en geaccepteerde declaraties m.b.t. 2021","LASTEN 2020 EN OUDER inclusief balanspost","Ontvangen en geaccepteerde declaraties m.b.t. 2020 en ouder"]
[null,null,null," KOSTENRUBRIEK",null,null,null,"code"]
[null,null,null," 10 GENEESKUNDIGE GEESTELIJKE GEZONDHEIDSZORG"]
[null,null,null," Kosten specialistische GGZ met verblijf",null,null,null,"661   ",null,null,null,null,null,null,null,null,{"$f":"IF(OR((I124-J124)/IF(I124=0,1,I124)<-10%,(K124-L124)/IF(K124=0,1,K124)<-10%,(M124-N124)/IF(M124=0,1,M124)<-10%),\"De balans is < -10%, als dit plausibel is dan vragen wij u dit nader toe te lichten bij de opmerkingen, zo niet dan dient u uw raming aan te scherpen.\",\"\")","v":""}]
[null,null,null," Kosten LGGZ (langdurige GGZ, jaar 2 en 3)",null,null,null,"661.1",null,null,null,null,null,null,null,null,""]
[null,null,null," Kosten specialistische GGZ zonder verblijf",null,null,null,"662   ",null,null,null,null,null,null,null,null,""]
[null,null,null," Generalistische basis GGZ",null,null,null,"665   ",null,null,null,null,null,null,null,null,""]
[null,null,null," Kosten consulten GGZ",null,null,null,"666   "]
[null,null,null," Kosten intramuraal verblijf GGZ",null,null,null,"667   "]
[null,null,null," Kosten overige prestaties GGZ",null,null,null,"668   "]
[null,null,null," Meerkosten Corona, indirect en toeslagen",null,null,null,"810   ",null,null,null,null,null,null,null,null,""]
[null,null,null," Meerkosten Corona, indirect",null,null,null,"810.1   ",null,null,null,null,{"$f":"'Catastr kostenverzamelst'!K119","v":0},{"$f":"'Catastr kostenverzamelst'!L119","v":0},null,null,""]
[null,null,null," Meerkosten Corona, toeslagen",null,null,null,"810.2   ",null,null,null,null,{"$f":"'Catastr kostenverzamelst'!K120","v":0},{"$f":"'Catastr kostenverzamelst'!L120","v":0},null,null,""]
[null,null,null," Netto continuïteitsbijdrage Corona (basisverzekering)",null,null,null,"830   ",null,null,null,null,null,null,null,null,""]
[null,null,null," TOTAAL RUBRIEK 10",null,null,null,null,{"$f":"SUM(I124:I134)","v":0},{"$f":"SUM(J124:J134)","v":0},0,0,0,{"$f":"SUM(N124:N134)","v":0}]
[null,null,null," 11  GRZ, ELV EN GZSP"]
[null,null,null," Geriatrische Revalidatiezorg (GRZ)",null,null,null,"670   "]
[null,null,null," Meerkosten Corona, indirect en toeslagen",null,null,null,"811.1",null,null,null,null,null,null,null,null,{"$f":"IF(OR((I138-J138)/IF(I138=0,1,I138)<-10%,(K138-L138)/IF(K138=0,1,K138)<-10%,(M138-N138)/IF(M138=0,1,M138)<-10%),\"De balans is < -10%, als dit plausibel is dan vragen wij u dit nader toe te lichten bij de opmerkingen, zo niet dan dient u uw raming aan te scherpen.\",\"\")","v":""}]
[null,null,null," Meerkosten Corona, indirect",null,null,null,"811.1.1",null,null,null,null,{"$f":"'Catastr kostenverzamelst'!K125","v":0},{"$f":"'Catastr kostenverzamelst'!L125","v":0},null,null,""]
[null,null,null," Meerkosten Corona, toeslagen",null,null,null,"811.1.2",null,null,null,null,{"$f":"'Catastr kostenverzamelst'!K126","v":0},{"$f":"'Catastr kostenverzamelst'!L126","v":0},null,null,""]
[null,null,null," Netto continuïteitsbijdrage Corona (basisverzekering)",null,null,null,"831.1",null,null,null,null,null,null,null,null,""]
[null,null,null," Eerstelijnsverblijf (ELV)",null,null,null,"671   ",null,null,null,null,null,null,null,null,""]
[null,null,null," Meerkosten Corona, indirect en toeslagen",null,null,null,"811.2",null,null,null,null,null,null,null,null,""]
[null,null,null," Meerkosten Corona, indirect",null,null,null,"811.2.1",null,null,null,null,{"$f":"'Catastr kostenverzamelst'!K129","v":0},{"$f":"'Catastr kostenverzamelst'!L129","v":0},null,null,""]
[null,null,null," Meerkosten Corona, toeslagen",null,null,null,"811.2.2",null,null,null,null,{"$f":"'Catastr kostenverzamelst'!K130","v":0},{"$f":"'Catastr kostenverzamelst'!L130","v":0},null,null,""]
[null,null,null," Netto continuïteitsbijdrage Corona (basisverzekering)",null,null,null,"831.2",null,null,null,null,null,null,null,null,""]
[null,null,null," Generalistische Geneeskundige  Zorg Specifieke Patiëntgroepen (GZSP)",null,null,null,"672   ",null,null,null,null,null,null,null,null,""]
[null,null,null," Meerkosten Corona, indirect en toeslagen",null,null,null,"811.3",null,null,null,null,null,null,null,null,""]
[null,null,null," Meerkosten Corona, indirect",null,null,null,"811.3.1",null,null,null,null,{"$f":"'Catastr kostenverzamelst'!K133","v":0},{"$f":"'Catastr kostenverzamelst'!L133","v":0},null,null,""]
[null,null,null," Meerkosten Corona, toeslagen",null,null,null,"811.3.2",null,null,null,null,{"$f":"'Catastr kostenverzamelst'!K134","v":0},{"$f":"'Catastr kostenverzamelst'!L134","v":0},null,null,""]
[null,null,null," Netto continuïteitsbijdrage Corona (basisverzekering)",null,null,null,"831.3",null,null,null,null,null,null,null,null,""]
[null,null,null," TOTAAL RUBRIEK 11",null,null,null,null,{"$f":"SUM(I137:I151)","v":0},{"$f":"SUM(J137:J151)","v":0},0,0,0,{"$f":"SUM(N137:N151)","v":0}]
[null,null,null," 12  KRAAMZORG"]
[null,null,null," Kraamzorg",null,null,null,"680   ",null,null,null,null,null,null,null,null,{"$f":"IF(OR((I154-J154)/IF(I154=0,1,I154)<-10%,(K154-L154)/IF(K154=0,1,K154)<-10%,(M154-N154)/IF(M154=0,1,M154)<-10%),\"De balans is < -10%, als dit plausibel is dan vragen wij u dit nader toe te lichten bij de opmerkingen, zo niet dan dient u uw raming aan te scherpen.\",\"\")","v":""}]
[null,null,null," Meerkosten Corona, indirect en toeslagen",null,null,null,"812   ",null,null,null,null,null,null,null,null,""]
[null,null,null," Meerkosten Corona, indirect",null,null,null,"812.1   ",null,null,null,null,{"$f":"'Catastr kostenverzamelst'!K139","v":0},{"$f":"'Catastr kostenverzamelst'!L139","v":0},null,null,""]
[null,null,null," Meerkosten Corona, toeslagen",null,null,null,"812.2   ",null,null,null,null,{"$f":"'Catastr kostenverzamelst'!K140","v":0},{"$f":"'Catastr kostenverzamelst'!L140","v":0},null,null,""]
[null,null,null," Netto continuïteitsbijdrage Corona (basisverzekering)",null,null,null,"832   ",null,null,null,null,null,null,null,null,""]
[null,null,null," TOTAAL RUBRIEK 12",null,null,null,null,{"$f":"SUM(I154:I158)","v":0},{"$f":"SUM(J154:J158)","v":0},0,0,0,0]
[null,null,null," 13  DIVERSE OVERIGE KOSTEN"]
[null,null,null," Overige kosten",null,null,null,"700   ",null,null,null,null,null,null,null,null,{"$f":"IF(OR((I161-J161)/IF(I161=0,1,I161)<-10%,(K161-L161)/IF(K161=0,1,K161)<-10%,(M161-N161)/IF(M161=0,1,M161)<-10%),\"De balans is < -10%, als dit plausibel is dan vragen wij u dit nader toe te lichten bij de opmerkingen, zo niet dan dient u uw raming aan te scherpen.\",\"\")","v":""}]
[null,null,null," Overige geneeskundige zorg",null,null,null,"701   ",null,null,null,null,null,null,null,null,""]
[null,null,null," Kosten van zorg zintuiglijk gehandicapten ",null,null,null,"702   ",null,null,null,null,null,null,null,null,""]
[null,null,null," Meerkosten Corona, indirect en toeslagen",null,null,null,"813   ",null,null,null,null,null,null,null,null,""]
[null,null,null," Meerkosten Corona, indirect",null,null,null,"813.1   ",null,null,null,null,{"$f":"'Catastr kostenverzamelst'!K147","v":0},{"$f":"'Catastr kostenverzamelst'!L147","v":0},null,null,""]
[null,null,null," Meerkosten Corona, toeslagen",null,null,null,"813.2   ",null,null,null,null,{"$f":"'Catastr kostenverzamelst'!K148","v":0},{"$f":"'Catastr kostenverzamelst'!L148","v":0},null,null,""]
[null,null,null," Netto continuïteitsbijdrage Corona (basisverzekering)",null,null,null,"833   ",null,null,null,null,null,null,null,null,""]
[null,null,null," TOTAAL RUBRIEK 13",null,null,null,null,{"$f":"SUM(I161:I167)","v":0},{"$f":"SUM(J161:J167)","v":0},0,0,0,{"$f":"SUM(N161:N167)","v":0}]
[null,null,null," 15  GRENSOVERSCHRIJDENDE ZORG"]
[null,null,null," Kosten via verzekeraar",null,null,null,"720   ",null,null,null,null,null,null,null,null,{"$f":"IF(OR((I170-J170)/IF(I170=0,1,I170)<-10%,(K170-L170)/IF(K170=0,1,K170)<-10%,(M170-N170)/IF(M170=0,1,M170)<-10%),\"De balans is < -10%, als dit plausibel is dan vragen wij u dit nader toe te lichten bij de opmerkingen, zo niet dan dient u uw raming aan te scherpen.\",\"\")","v":""}]
[null,null,null," Kosten via verbindingsorgaan",null,null,null,"721   ",null,null,null,null,null,null,null,null,""]
[null,null,null," TOTAAL RUBRIEK 15",null,null,null,null,{"$f":"SUM(I170:I171)","v":0},0,0,0,0,0]
[null,null,null," 16  KWALITEITSGELDEN"]
[null,null,null," Kwaliteitsgelden",null,null,null,"730   ",null,null,null,null,null,null,null,null,{"$f":"IF(OR((I174-J174)/IF(I174=0,1,I174)<-10%,(K174-L174)/IF(K174=0,1,K174)<-10%,(M174-N174)/IF(M174=0,1,M174)<-10%),\"De balans is < -10%, als dit plausibel is dan vragen wij u dit nader toe te lichten bij de opmerkingen, zo niet dan dient u uw raming aan te scherpen.\",\"\")","v":""}]
[null,null,null," TOTAAL RUBRIEK 16",null,null,null,null,{"$f":"SUM(I174:I174)","v":0},{"$f":"SUM(J174:J174)","v":0},0,0,0,0]
[null,null,null," TOTAAL LASTEN   (bruto-schade, definitie ZIN)",null,null,null,null,{"$f":"SUM(I28,I35,I42,I51,I59,I84,I96,I103,I112,I135,I152,I159,I168,I172,I175)","v":0},0,0,0,0,0]
[null,null,null,{"$f":"NOW()","v":"2022-12-12T15:17:44.580"},null,null,null,null,null,null,null,null,null,{"$f":"CONCATENATE(\"Specifieke informatie A, \",LOWER(A115))","v":"Specifieke informatie A, pagina 3"}]
[]
["Pagina 4",null,null,{"$f":"CONCATENATE(\"KWARTAALSTAAT ZVW \", jaar_id,\" \",kwartaal_id,\"E KWARTAAL\")","v":"KWARTAALSTAAT ZVW 2022 4E KWARTAAL"}]
[null,null,null,"KOSTENVERZAMELSTAAT (SPECIFIEKE INFORMATIE A)"]
[null,null,null,{"$f":"IF(naw_uzovi_zorgverzekeraar<>\"0000\",CONCATENATE(UPPER(naw_naam_zorgverzekeraar),\", \",UPPER(naw_plaats_zorgverzekeraar)),\"\")","v":""},null,null,null,null,null,null,null,null,null,{"$f":"CONCATENATE(\"UZOVI: \",naw_uzovi_zorgverzekeraar)","v":"UZOVI: 0000"}]
[null,null,null,"SPECIFICATIES INFORMATIE RISICOVEREVENING"]
[null,null,null,"KOSTENVERZAMELSTAAT - vervolg"]
[null,null,null,null,null,null,null,null,"Totale baten 2022 inclusief balanspost ","waarvan ontvangen  m.b.t. 2022","Totale baten 2021 inclusief balanspost ","waarvan ontvangen m.b.t. 2021","Totale baten 2020 inclusief balanspost ","waarvan ontvangen m.b.t. 2020 en ouder"]
[null,null,null," BATEN ZVW",null,null,null,"code"]
[null,null,null," OPBRENGSTEN VERHAAL",null,null,null,"890.1",null,null,null,null,null,null,null,null,{"$f":"IF(OR((I186-J186)/IF(I186=0,1,I186)<-10%,(K186-L186)/IF(K186=0,1,K186)<-10%,(M186-N186)/IF(M186=0,1,M186)<-10%),\"De balans is < -10%, als dit plausibel is dan vragen wij u dit nader toe te lichten bij de opmerkingen, zo niet dan dient u uw raming aan te scherpen.\",\"\")","v":""}]
[null,null,null," SCHADE T.L.V. HET VRIJWILLIG EIGEN RISICO",null,null,null,"910   ",null,null,null,null,null,null,null,null,""]
[null,null,null," SCHADE T.L.V. HET VERPLICHT EIGEN RISICO",null,null,null,"915   ",null,null,null,null,null,null,null,null,""]
[null,null,null," GEBOEKTE NETTO PREMIES",null,null,null,"940   ",null,null,null,null,null,null,null,null,""]
[]
[]
[]
[]
[]
[]
[]
[]
[]
[]
[]
[]
[]
[]
[]
[]
[]
[]
[]
[]
[]
[]
[null,null,null,{"$f":"NOW()","v":"2022-12-12T15:17:44.580"},null,null,null,null,null,null,null,null,null,{"$f":"CONCATENATE(\"Specifieke informatie A, \",LOWER(A179))","v":"Specifieke informatie A, pagina 4"}]

{"sheet":"Catastr kostenverzamelst","index":6,"n_rows":193,"n_cols":15,"rows_kept":193,"cut":false,"hidden":false,"merged":[[169,3,169,6],[170,3,170,6],[192,3,192,4],[61,8,61,11],[62,7,63,7],[62,8,63,8],[62,9,63,9],[62,10,63,10],[62,11,63,11],[109,8,109,11],[110,7,111,7],[157,3,157,4],[165,3,165,7],[165,8,166,8],[165,9,166,9],[165,10,166,10],[165,11,166,11],[166,3,166,6],[167,3,167,6],[168,3,168,6],[147,3,147,6],[149,3,149,7],[150,3,150,6],[151,3,151,6],[152,3,152,6],[153,3,153,7],[154,3,154,6],[156,3,156,7],[136,3,136,6],[137,3,137,6],[138,3,138,6],[139,3,139,6],[140,3,140,7],[141,3,141,7],[144,3,144,6],[145,3,145,6],[146,3,146,6],[148,3,148,7],[127,3,127,6],[128,3,128,6],[129,3,129,6],[130,3,130,6],[131,3,131,6],[132,3,132,6],[133,3,133,6],[134,3,134,7],[135,3,135,7],[110,11,111,11],[74,3,74,6],[75,3,75,6],[78,3,78,6],[79,3,79,6],[80,3,80,6],[81,3,81,6],[82,3,82,6],[83,3,83,6],[87,3,87,7],[88,3,88,7],[89,3,89,6],[90,3,90,6],[96,3,96,6],[101,3,101,6],[102,3,102,4],[110,8,111,8],[110,9,111,9],[110,10,111,10],[99,3,99,6],[11,10,12,10],[33,3,33,6],[30,3,30,6],[32,3,32,7],[24,3,24,6],[25,3,25,7],[35,3,35,6],[11,7,12,7],[18,3,18,6],[11,9,12,9],[11,8,12,8],[16,3,16,6],[19,3,19,6],[20,3,20,6],[15,3,15,6],[17,3,17,6],[34,3,34,6],[22,3,22,6],[21,3,21,6],[28,3,28,6],[29,3,29,6],[13,3,13,7],[10,8,10,11],[84,3,84,6],[67,3,67,6],[70,3,70,6],[48,3,48,6],[49,3,49,6],[86,3,86,6],[45,3,45,7],[46,3,46,7],[47,3,47,6],[52,3,52,7],[54,3,54,4],[68,3,68,6],[73,3,73,6],[72,3,72,6],[23,3,23,6],[26,3,26,7],[27,3,27,6],[31,3,31,6],[36,3,36,6],[37,3,37,7],[38,3,38,7],[39,3,39,6],[11,11,12,11],[120,3,120,7],[121,3,121,7],[122,3,122,6],[123,3,123,6],[124,3,124,6],[41,3,41,6],[42,3,42,6],[43,3,43,6],[44,3,44,6],[112,3,112,7],[113,3,113,6],[114,3,114,6],[115,3,115,6],[94,3,94,7],[164,8,164,11],[40,3,40,6],[14,3,14,6],[64,3,64,7],[65,3,65,6],[66,3,66,6],[50,3,50,6],[125,3,125,6],[126,3,126,6],[93,3,93,7],[51,3,51,6],[85,3,85,6],[116,3,116,6],[97,3,97,6],[98,3,98,6],[100,3,100,6],[69,3,69,6],[71,3,71,6],[117,3,117,6],[118,3,118,6],[119,3,119,6],[91,3,91,6],[92,3,92,6],[95,3,95,6]]}
[null,null,"INVULSPECIFICATIES SPECIFIEKE INFORMATIE A"]
[]
[]
[]
[]
["Pagina 1",null,null,{"$f":"CONCATENATE(\"KWARTAALSTAAT ZVW \", jaar_id,\" \",kwartaal_id,\"E KWARTAAL\")","v":"KWARTAALSTAAT ZVW 2022 4E KWARTAAL"}]
[null,null,null,"KOSTENVERZAMELSTAAT CATASTROFEREGELING (SPECIFIEKE INFORMATIE A)"]
[null,null,null,{"$f":"IF(naw_uzovi_zorgverzekeraar<>\"0000\",CONCATENATE(UPPER(naw_naam_zorgverzekeraar),\", \",UPPER(naw_plaats_zorgverzekeraar)),\"\")","v":""},null,null,null,null,null,null,null,{"$f":"CONCATENATE(\"UZOVI: \",naw_uzovi_zorgverzekeraar)","v":"UZOVI: 0000"}]
[null,null,null,"SPECIFICATIES INFORMATIE RISICOVEREVENING"]
[null,null,null,"KOSTENVERZAMELSTAAT CATASTROFEREGELING"]
[null,null,null,null,null,null,null,null,"COVID-kosten voor verzekerde zorg "]
[null,null,null,null,null,null,null,"\ncode","LASTEN 2021 inclusief balanspost ","Ontvangen en geaccepteerde declaraties m.b.t. 2021","LASTEN 2020 inclusief balanspost","Ontvangen en geaccepteerde declaraties m.b.t. 2020"]
[null,null,null," KOSTENRUBRIEK"]
[null,null,null," 01  HUISARTSENZORG en MDZ"]
[null,null,null," Bijzondere betalingen",null,null,null,"503   "]
[null,null,null," Avond-, nacht- en weekenddiensten",null,null,null,"504   ",null,null,null,null,null,null,{"$f":"IF(OR((I16-J16)/IF(I16=0,1,I16)<-10%,(K16-L16)/IF(K16=0,1,K16)<-10%),\"De balans is < -10%, als dit plausibel is dan vragen wij u dit nader toe te lichten bij de opmerkingen, zo niet dan dient u uw raming aan te scherpen.\",\"\")","v":""}]
[null,null,null," Inschrijftarieven",null,null,null,"505   ",null,null,null,null,null,null,{"$f":"IF(OR((I17-J17)/IF(I17=0,1,I17)<-10%,(K17-L17)/IF(K17=0,1,K17)<-10%),\"De balans is < -10%, als dit plausibel is dan vragen wij u dit nader toe te lichten bij de opmerkingen, zo niet dan dient u uw raming aan te scherpen.\",\"\")","v":""}]
[null,null,null," Consulttarieven",null,null,null,"506   ",null,null,null,null,null,null,{"$f":"IF(OR((I18-J18)/IF(I18=0,1,I18)<-10%,(K18-L18)/IF(K18=0,1,K18)<-10%),\"De balans is < -10%, als dit plausibel is dan vragen wij u dit nader toe te lichten bij de opmerkingen, zo niet dan dient u uw raming aan te scherpen.\",\"\")","v":""}]
[null,null,null," Overige tarieven",null,null,null,"507   ",null,null,null,null,null,null,""]
[null,null,null," Multidisciplinaire zorg",null,null,null,"510   ",null,null,null,null,null,null,""]
[null,null,null," Resultaatbeloning en zorgvernieuwing huisartsen",null,null,null,"515   ",null,null,null,null,null,null,""]
[null,null,null," Resultaatbeloning en zorgvernieuwing MDZ",null,null,null,"516   ",null,null,null,null,null,null,""]
[null,null,null," Meerkosten Corona, indirect en toeslagen",null,null,null,"801   ",null,null,null,null,null,null,""]
[null,null,null," Meerkosten Corona, indirect",null,null,null,"801.1   ",null,null,null,null,null,null,""]
[null,null,null," Meerkosten Corona, toeslagen",null,null,null,"801.2   ",null,null,null,null,null,null,""]
[null,null,null," TOTAAL RUBRIEK 01",null,null,null,null,{"$f":"SUM(I15:I25)","v":0},{"$f":"SUM(J15:J25)","v":0},0,0]
[null,null,null," 02 FARMACEUTISCHE ZORG",null,null,null,null,null,null,null,null,null,null,""]
[null,null,null," Farmaceutische zorg",null,null,null,"520   ",null,null,null,null,null,null,""]
[null,null,null," Meerkosten Corona, indirect en toeslagen",null,null,null,"802   ",null,null,null,null,null,null,""]
[null,null,null," Meerkosten Corona, indirect",null,null,null,"802.1   ",null,null,null,null,null,null,""]
[null,null,null," Meerkosten Corona, toeslagen",null,null,null,"802.2   ",null,null,null,null,null,null,""]
[null,null,null," TOTAAL RUBRIEK 02",null,null,null,null,{"$f":"SUM(I27:I31)","v":0},{"$f":"SUM(J27:J31)","v":0},0,0]
[null,null,null," 03 VERPLEGING EN VERZORGING ",null,null,null,null,null,null,null,null,null,null,""]
[null,null,null," Kosten van verpleging en verzorging ",null,null,null,"530   ",null,null,null,null,null,null,""]
[null,null,null," Meerkosten Corona, indirect en toeslagen",null,null,null,"803   ",null,null,null,null,null,null,""]
[null,null,null," Meerkosten Corona, indirect",null,null,null,"803.1   ",null,null,null,null,null,null,""]
[null,null,null," Meerkosten Corona, toeslagen",null,null,null,"803.2   ",null,null,null,null,null,null,""]
[null,null,null," TOTAAL RUBRIEK 03",null,null,null,null,{"$f":"SUM(I33:I37)","v":0},{"$f":"SUM(J33:J37)","v":0},0,0]
[null,null,null," 04  MONDZORG",null,null,null,null,null,null,null,null,null,null,""]
[null,null,null," Kosten mondzorg volwassen verzekerden",null,null,null,"560.1",null,null,null,null,null,null,""]
[null,null,null," Kosten mondzorg jeugdige verzekerden",null,null,null,"560.2",null,null,null,null,null,null,""]
[null,null,null," Kosten gebitsprothesen",null,null,null,"561   ",null,null,null,null,null,null,""]
[null,null,null," Meerkosten Corona, indirect en toeslagen",null,null,null,"804   ",null,null,null,null,null,null,""]
[null,null,null," Meerkosten Corona, indirect",null,null,null,"804.1   ",null,null,null,null,null,null,""]
[null,null,null," Meerkosten Corona, toeslagen",null,null,null,"804.2   ",null,null,null,null,null,null,""]
[null,null,null," TOTAAL RUBRIEK 04",null,null,null,null,{"$f":"SUM(I40:I45)","v":0},{"$f":"SUM(J40:J45)","v":0},0,0]
[null,null,null," 05  VERLOSKUNDIGE ZORG",null,null,null,null,null,null,null,null,null,null,""]
[null,null,null," Kosten verloskundige zorg door verloskundigen",null,null,null,"580   ",null,null,null,null,null,null,""]
[null,null,null," Kosten Integrale geboortezorg ",null,null,null,"582   ",null,null,null,null,null,null,""]
[null,null,null," Meerkosten Corona, indirect en toeslagen",null,null,null,"805   ",null,null,null,null,null,null,""]
[null,null,null," Meerkosten Corona, indirect",null,null,null,"805.1   ",null,null,null,null,null,null,""]
[null,null,null," Meerkosten Corona, toeslagen",null,null,null,"805.2   ",null,null,null,null,null,null,""]
[null,null,null," TOTAAL RUBRIEK 05",null,null,null,null,{"$f":"SUM(I48:I52)","v":0},{"$f":"SUM(J48:J52)","v":0},0,0]
[]
[null,null,null,{"$f":"NOW()","v":"2022-12-12T15:17:44.580"},null,null,null,null,null,null,null,{"$f":"CONCATENATE(\"Specifieke informatie A, \",LOWER(A6))","v":"Specifieke informatie A, pagina 1"}]
[]
["Pagina 2",null,null,{"$f":"CONCATENATE(\"KWARTAALSTAAT ZVW \", jaar_id,\" \",kwartaal_id,\"E KWARTAAL\")","v":"KWARTAALSTAAT ZVW 2022 4E KWARTAAL"}]
[null,null,null,"KOSTENVERZAMELSTAAT CATASTROFEREGELING (SPECIFIEKE INFORMATIE A)"]
[null,null,null,{"$f":"IF(naw_uzovi_zorgverzekeraar<>\"0000\",CONCATENATE(UPPER(naw_naam_zorgverzekeraar),\", \",UPPER(naw_plaats_zorgverzekeraar)),\"\")","v":""},null,null,null,null,null,null,null,{"$f":"CONCATENATE(\"UZOVI: \",naw_uzovi_zorgverzekeraar)","v":"UZOVI: 0000"}]
[null,null,null,"SPECIFICATIES INFORMATIE RISICOVEREVENING"]
[null,null,null,"KOSTENVERZAMELSTAAT CATASTROFEREGELING - vervolg"]
[null,null,null,null,null,null,null,null,"COVID-kosten voor verzekerde zorg "]
[null,null,null,null,null,null,null,"\ncode","LASTEN 2021 inclusief balanspost ","Ontvangen en geaccepteerde declaraties m.b.t. 2021","LASTEN 2020 inclusief balanspost","Ontvangen en geaccepteerde declaraties m.b.t. 2020"]
[null,null,null," KOSTENRUBRIEK"]
[null,null,null," 06  MEDISCH SPECIALISTISCHE ZORG"]
[null,null,null," Kosten specialisten mondziekten en kaakchirurgie",null,null,null,"545   ",null,null,null,null,null,null,{"$f":"IF(OR((I66-J66)/IF(I66=0,1,I66)<-10%,(K66-L66)/IF(K66=0,1,K66)<-10%),\"De balans is < -10%, als dit plausibel is dan vragen wij u dit nader toe te lichten bij de opmerkingen, zo niet dan dient u uw raming aan te scherpen.\",\"\")","v":""}]
[null,null,null," Overige kosten ziekenhuiszorg en curatieve zorg",null,null,null,"610   ",null,null,null,null,null,null,""]
[null,null,null," Overige zorgproducten",null,null,null,"611   ",null,null,null,null,null,null,""]
[null,null,null," Kosten add-ons - Dure geneesmiddelen",null,null,null,"612.1",null,null,null,null,null,null,""]
[null,null,null," Kosten add-ons - IC",null,null,null,"612.2",null,null,null,null,null,null,""]
[null,null,null," Integrale kosten van DBC-zorgproduct \n gereguleerde segment  ",null,null,null,"613.1",null,null,null,null,null,null,""]
[null,null,null," Integrale kosten DBC-zorgproduct vrije segment",null,null,null,"615.1",null,null,null,null,null,null,""]
[null,null,null," Integrale kosten extramuraal werkende \n specialisten",null,null,null,"619   ",null,null,null,null,null,null,""]
[null,null,null," Meerkosten Corona, indirect en toeslagen",null,null,null,"806   ",null,null,null,null,null,null,""]
[null,null,null," Meerkosten Corona, indirect",null,null,null,"806.1   ",null,null,null,null,null,null,""]
[null,null,null," Meerkosten Corona, toeslagen",null,null,null,"806.2   ",null,null,null,null,null,null,""]
[null,null,null," TOTAAL RUBRIEK 06",null,null,null,null,{"$f":"SUM(I66:I76)","v":0},{"$f":"SUM(J66:J76)","v":0},0,0]
[null,null,null," 07  PARAMEDISCHE ZORG",null,null,null,null,null,null,null,null,null,null,""]
[null,null,null," Kosten fysiotherapie",null,null,null,"620   ",null,null,null,null,null,null,""]
[null,null,null," Kosten oefentherapie Mensendieck/Cesar",null,null,null,"621   ",null,null,null,null,null,null,""]
[null,null,null," Kosten logopedie",null,null,null,"623   ",null,null,null,null,null,null,""]
[null,null,null," Kosten ergotherapie",null,null,null,"624   ",null,null,null,null,null,null,""]
[null,null,null," Kosten dieetadvisering",null,null,null,"625   ",null,null,null,null,null,null,""]
[null,null,null," Gecombineerde Leefstijl Interventie (GLI)",null,null,null,"626   ",null,null,null,null,null,null,""]
[null,null,null," Meerkosten Corona, indirect en toeslagen",null,null,null,"807   ",null,null,null,null,null,null,""]
[null,null,null," Meerkosten Corona, indirect",null,null,null,"807.1   ",null,null,null,null,null,null,""]
[null,null,null," Meerkosten Corona, toeslagen",null,null,null,"807.2   ",null,null,null,null,null,null,""]
[null,null,null," TOTAAL RUBRIEK 07",null,null,null,null,{"$f":"SUM(I79:I87)","v":0},{"$f":"SUM(J79:J87)","v":0},0,0]
[null,null,null," 08  HULPMIDDELENZORG",null,null,null,null,null,null,null,null,null,null,""]
[null,null,null," Hulpmiddelenzorg ",null,null,null,"640   ",null,null,null,null,null,null,""]
[null,null,null," Meerkosten Corona, indirect en toeslagen",null,null,null,"808   ",null,null,null,null,null,null,""]
[null,null,null," Meerkosten Corona, indirect",null,null,null,"808.1   ",null,null,null,null,null,null,""]
[null,null,null," Meerkosten Corona, toeslagen",null,null,null,"808.2   ",null,null,null,null,null,null,""]
[null,null,null," TOTAAL RUBRIEK 08",null,null,null,null,{"$f":"SUM(I90:I93)","v":0},{"$f":"SUM(J90:J93)","v":0},0,0]
[null,null,null," 09  ZIEKENVERVOER",null,null,null,null,null,null,null,null,null,null,""]
[null,null,null," Kosten vervoer per ambulance/helikopter",null,null,null,"650   ",null,null,null,null,null,null,""]
[null,null,null," Opbrengstenverrekeningen regionale ambulance-\n voorzieningen",null,null,null,"650.1",null,null,null,null,null,null,""]
[null,null,null," Kosten vervoer per openbaar vervoer, taxi \n en eigen auto",null,null,null,"651   ",null,null,null,null,null,null,""]
[null,null,null," Meerkosten Corona, indirect en toeslagen",null,null,null,"809   ",null,null,null,null,null,null,""]
[null,null,null," Meerkosten Corona, indirect",null,null,null,"809.1   ",null,null,null,null,null,null,""]
[null,null,null," Meerkosten Corona, toeslagen",null,null,null,"809.2   ",null,null,null,null,null,null,""]
[null,null,null," TOTAAL RUBRIEK 09",null,null,null,null,{"$f":"SUM(I96:I101)","v":0},{"$f":"SUM(J96:J101)","v":0},0,0]
[null,null,null,{"$f":"NOW()","v":"2022-12-12T15:17:44.580"},null,null,null,null,null,null,null,{"$f":"CONCATENATE(\"Specifieke informatie A, \",LOWER(A57))","v":"Specifieke informatie A, pagina 2"}]
[]
["Pagina 3",null,null,{"$f":"CONCATENATE(\"KWARTAALSTAAT ZVW \", jaar_id,\" \",kwartaal_id,\"E KWARTAAL\")","v":"KWARTAALSTAAT ZVW 2022 4E KWARTAAL"}]
[null,null,null,"KOSTENVERZAMELSTAAT CATASTROFEREGELING (SPECIFIEKE INFORMATIE A)"]
[null,null,null,{"$f":"IF(naw_uzovi_zorgverzekeraar<>\"0000\",CONCATENATE(UPPER(naw_naam_zorgverzekeraar),\", \",UPPER(naw_plaats_zorgverzekeraar)),\"\")","v":""},null,null,null,null,null,null,null,{"$f":"CONCATENATE(\"UZOVI: \",naw_uzovi_zorgverzekeraar)","v":"UZOVI: 0000"}]
[null,null,null,"SPECIFICATIES INFORMATIE RISICOVEREVENING"]
[null,null,null,"KOSTENVERZAMELSTAAT CATASTROFEREGELING - vervolg"]
[null,null,null,null,null,null,null,null,"COVID-kosten voor verzekerde zorg "]
[null,null,null,null,null,null,null,"\ncode","LASTEN 2021 inclusief balanspost ","Ontvangen en geaccepteerde declaraties m.b.t. 2021","LASTEN 2020 inclusief balanspost","Ontvangen en geaccepteerde declaraties m.b.t. 2020"]
[null,null,null," KOSTENRUBRIEK"]
[null,null,null," 10 GENEESKUNDIGE GEESTELIJKE GEZONDHEIDSZORG"]
[null,null,null," Kosten specialistische GGZ met verblijf",null,null,null,"661   ",null,null,null,null,null,null,{"$f":"IF(OR((I114-J114)/IF(I114=0,1,I114)<-10%,(K114-L114)/IF(K114=0,1,K114)<-10%),\"De balans is < -10%, als dit plausibel is dan vragen wij u dit nader toe te lichten bij de opmerkingen, zo niet dan dient u uw raming aan te scherpen.\",\"\")","v":""}]
[null,null,null," Kosten LGGZ (langdurige GGZ, jaar 2 en 3)",null,null,null,"661.1",null,null,null,null,null,null,""]
[null,null,null," Kosten specialistische GGZ zonder verblijf",null,null,null,"662   ",null,null,null,null,null,null,""]
[null,null,null," Generalistische basis GGZ",null,null,null,"665   ",null,null,null,null,null,null,""]
[null,null,null," Meerkosten Corona, indirect en toeslagen",null,null,null,"810   ",null,null,null,null,null,null,""]
[null,null,null," Meerkosten Corona, indirect",null,null,null,"810.1   ",null,null,null,null,null,null,""]
[null,null,null," Meerkosten Corona, toeslagen",null,null,null,"810.2   ",null,null,null,null,null,null,""]
[null,null,null," TOTAAL RUBRIEK 10",null,null,null,null,{"$f":"SUM(I114:I120)","v":0},{"$f":"SUM(J114:J120)","v":0},0,0]
[null,null,null," 11  GRZ, ELV EN GZSP",null,null,null,null,null,null,null,null,null,null,""]
[null,null,null," Geriatrische Revalidatiezorg (GRZ)",null,null,null,"670   ",null,null,null,null,null,null,""]
[null,null,null," Meerkosten Corona, indirect en toeslagen",null,null,null,"811.1",null,null,null,null,null,null,""]
[null,null,null," Meerkosten Corona, indirect",null,null,null,"811.1.1",null,null,null,null,null,null,""]
[null,null,null," Meerkosten Corona, toeslagen",null,null,null,"811.1.2",null,null,null,null,null,null,""]
[null,null,null," Eerstelijnsverblijf (ELV)",null,null,null,"671   ",null,null,null,null,null,null,""]
[null,null,null," Meerkosten Corona, indirect en toeslagen",null,null,null,"811.2",null,null,null,null,null,null,""]
[null,null,null," Meerkosten Corona, indirect",null,null,null,"811.2.1",null,null,null,null,null,null,""]
[null,null,null," Meerkosten Corona, toeslagen",null,null,null,"811.2.2",null,null,null,null,null,null,""]
[null,null,null," Generalistische Geneeskundige  Zorg Specifieke Patiëntgroepen (GZSP)",null,null,null,"672   ",null,null,null,null,null,null,""]
[null,null,null," Meerkosten Corona, indirect en toeslagen",null,null,null,"811.3",null,null,null,null,null,null,""]
[null,null,null," Meerkosten Corona, indirect",null,null,null,"811.3.1",null,null,null,null,null,null,""]
[null,null,null," Meerkosten Corona, toeslagen",null,null,null,"811.3.2",null,null,null,null,null,null,""]
[null,null,null," TOTAAL RUBRIEK 11",null,null,null,null,{"$f":"SUM(I123:I134)","v":0},{"$f":"SUM(J123:J134)","v":0},0,0]
[null,null,null," 12  KRAAMZORG",null,null,null,null,null,null,null,null,null,null,""]
[null,null,null," Kraamzorg",null,null,null,"680   ",null,null,null,null,null,null,""]
[null,null,null," Meerkosten Corona, indirect en toeslagen",null,null,null,"812   ",null,null,null,null,null,null,""]
[null,null,null," Meerkosten Corona, indirect",null,null,null,"812.1   ",null,null,null,null,null,null,""]
[null,null,null," Meerkosten Corona, toeslagen",null,null,null,"812.2   ",null,null,null,null,null,null,""]
[null,null,null," TOTAAL RUBRIEK 12",null,null,null,null,{"$f":"SUM(I136:I140)","v":0},{"$f":"SUM(J136:J140)","v":0},0,0]
[null,null,null," 13  DIVERSE OVERIGE KOSTEN",null,null,null,null,null,null,null,null,null,null,""]
[null,null,null," Overige kosten",null,null,null,"700   ",null,null,null,null,null,null,""]
[null,null,null," Overige geneeskundige zorg",null,null,null,"701   ",null,null,null,null,null,null,""]
[null,null,null," Kosten van zorg zintuiglijk gehandicapten ",null,null,null,"702   ",null,null,null,null,null,null,""]
[null,null,null," Meerkosten Corona, indirect en toeslagen",null,null,null,"813   ",null,null,null,null,null,null,""]
[null,null,null," Meerkosten Corona, indirect",null,null,null,"813.1   ",null,null,null,null,null,null,""]
[null,null,null," Meerkosten Corona, toeslagen",null,null,null,"813.2   ",null,null,null,null,null,null,""]
[null,null,null," TOTAAL RUBRIEK 13",null,null,null,null,{"$f":"SUM(I143:I148)","v":0},{"$f":"SUM(J143:J148)","v":0},0,0]
[null,null,null," 15  GRENSOVERSCHRIJDENDE ZORG",null,null,null,null,null,null,null,null,null,null,""]
[null,null,null," Kosten via verzekeraar",null,null,null,"720   ",null,null,null,null,null,null,""]
[null,null,null," Kosten via verbindingsorgaan",null,null,null,"721   ",null,null,null,null,null,null,""]
[null,null,null," TOTAAL RUBRIEK 15",null,null,null,null,{"$f":"SUM(I151:I152)","v":0},{"$f":"SUM(J151:J152)","v":0},{"$f":"SUM(K151:K152)","v":0},{"$f":"SUM(L151:L152)","v":0}]
[null,null,null," 16  KWALITEITSGELDEN",null,null,null,null,null,null,null,null,null,null,""]
[null,null,null," Kwaliteitsgelden",null,null,null,"730   ",null,null,null,null,null,null,""]
[null,null,null," TOTAAL RUBRIEK 16",null,null,null,null,{"$f":"SUM(I154:I155)","v":0},{"$f":"SUM(J154:J155)","v":0},0,0]
[null,null,null," TOTAAL LASTEN   (bruto-schade, definitie ZIN)",null,null,null,null,{"$f":"SUM(I26,I32,I38,I46,I53,I77,I88,I94,I102,I121,I135,I141,I149,I153,I156)","v":0},{"$f":"SUM(J26,J32,J38,J46,J53,J77,J88,J94,J102,J121,J135,J141,J149,J153,J156)","v":0},{"$f":"SUM(K26,K32,K38,K46,K53,K77,K88,K94,K102,K121,K135,K141,K149,K153,K156)","v":0},{"$f":"SUM(L26,L32,L38,L46,L53,L77,L88,L94,L102,L121,L135,L141,L149,L153,L156)","v":0}]
[null,null,null,{"$f":"NOW()","v":"2022-12-12T15:17:44.580"},null,null,null,null,null,null,null,{"$f":"CONCATENATE(\"Specifieke informatie A, \",LOWER(A105))","v":"Specifieke informatie A, pagina 3"}]
[]
["Pagina 4",null,null,{"$f":"CONCATENATE(\"KWARTAALSTAAT ZVW \", jaar_id,\" \",kwartaal_id,\"E KWARTAAL\")","v":"KWARTAALSTAAT ZVW 2022 4E KWARTAAL"}]
[null,null,null,"KOSTENVERZAMELSTAAT CATASTROFEREGELING (SPECIFIEKE INFORMATIE A)"]
[null,null,null,{"$f":"IF(naw_uzovi_zorgverzekeraar<>\"0000\",CONCATENATE(UPPER(naw_naam_zorgverzekeraar),\", \",UPPER(naw_plaats_zorgverzekeraar)),\"\")","v":""},null,null,null,null,null,null,null,{"$f":"CONCATENATE(\"UZOVI: \",naw_uzovi_zorgverzekeraar)","v":"UZOVI: 0000"}]
[null,null,null,"SPECIFICATIES INFORMATIE RISICOVEREVENING"]
[null,null,null,"KOSTENVERZAMELSTAAT CATASTROFEREGELING - vervolg"]
[null,null,null,null,null,null,null,null,"COVID-baten voor verzekerde zorg "]
[null,null,null,null,null,null,null,null,"Totale baten 2021 inclusief balanspost ","waarvan ontvangen  m.b.t. 2021","Totale baten 2020 inclusief balanspost ","waarvan ontvangen m.b.t. 2020"]
[null,null,null," BATEN ZVW",null,null,null,"code"]
[null,null,null," OPBRENGSTEN VERHAAL",null,null,null,"890.1"]
[null,null,null," SCHADE T.L.V. HET VRIJWILLIG EIGEN RISICO",null,null,null,"910   "]
[null,null,null," SCHADE T.L.V. HET VERPLICHT EIGEN RISICO",null,null,null,"915   ",null,null,null,null,null,null,{"$f":"IF(OR((I170-J170)/IF(I170=0,1,I170)<-10%,(K170-L170)/IF(K170=0,1,K170)<-10%),\"De balans is < -10%, als dit plausibel is dan vragen wij u dit nader toe te lichten bij de opmerkingen, zo niet dan dient u uw raming aan te scherpen.\",\"\")","v":""}]
[null,null,null," GEBOEKTE NETTO PREMIES",null,null,null,"940   "]
[]
[]
[]
[]
[]
[]
[]
[]
[]
[]
[]
[]
[]
[]
[]
[]
[]
[]
[]
[]
[]
[null,null,null,{"$f":"NOW()","v":"2022-12-12T15:17:44.580"},null,null,null,null,null,null,null,{"$f":"CONCATENATE(\"Specifieke informatie A, \",LOWER(A160))","v":"Specifieke informatie A, pagina 4"}]

{"sheet":"Specifieke informatie A","index":7,"n_rows":138,"n_cols":12,"rows_kept":138,"cut":false,"hidden":false,"merged":[[11,10,12,10],[11,3,12,9],[13,3,13,9],[14,3,14,9],[92,3,92,4],[86,9,88,11],[47,3,47,4],[56,11,57,11],[56,8,56,10],[56,4,57,4],[101,4,102,4],[101,8,101,10],[101,11,102,11],[131,9,133,11],[137,3,137,4]]}
[null,null,"INVULSPECIFICATIES SPECIFIEKE INFORMATIE A"]
[]
[]
[]
[]
["Pagina 1",null,null,{"$f":"CONCATENATE(\"KWARTAALSTAAT ZVW \", jaar_id,\" \",kwartaal_id,\"E KWARTAAL\")","v":"KWARTAALSTAAT ZVW 2022 4E KWARTAAL"}]
[null,null,null,"SPECIFIEKE INFORMATIE A"]
[null,null,null,{"$f":"IF(naw_uzovi_zorgverzekeraar<>\"0000\",CONCATENATE(UPPER(naw_naam_zorgverzekeraar),\", \",UPPER(naw_plaats_zorgverzekeraar)),\"\")","v":""},null,null,null,null,null,null,null,{"$f":"CONCATENATE(\"UZOVI: \",naw_uzovi_zorgverzekeraar)","v":"UZOVI: 0000"}]
[]
[null,null,null,"SPECIFICATIES INFORMATIE RISICOVEREVENING"]
[null,null,null,"KOSTEN NAAR DEELBIJDRAGE"]
[null,null,null," KOSTEN NAAR DEELBIJDRAGE",null,null,null,null,null,null,"Lasten 2022 inclusief balanspost "]
[]
[null,null,null," Variabele zorgkosten "]
[null,null,null," Vaste zorgkosten"]
[null,null,null," Kosten geneeskundige geestelijke gezondheidszorg "]
[null,null,null," TOTAAL lasten (bruto-schade, definitie ZIN)",null,null,null,null,null,null,{"$f":"SUM(K14:K16)","v":0}]
[]
[]
[]
[]
[]
[]
[]
[]
[]
[]
[]
[]
[]
[]
[]
[]
[]
[]
[]
[]
[]
[]
[]
[]
[]
[]
[]
[]
[]
[]
[null,null,null,{"$f":"NOW()","v":"2022-12-12T15:17:44.580"},null,null,null,null,null,null,null,{"$f":"CONCATENATE(\"Specifieke informatie A, \",LOWER(A6))","v":"Specifieke informatie A, pagina 1"}]
[]
["Pagina 2",null,null,{"$f":"CONCATENATE(\"KWARTAALSTAAT ZVW \", jaar_id,\" \",kwartaal_id,\"E KWARTAAL\")","v":"KWARTAALSTAAT ZVW 2022 4E KWARTAAL"}]
[null,null,null,"SPECIFIEKE INFORMATIE A"]
[null,null,null,{"$f":"IF(naw_uzovi_zorgverzekeraar<>\"0000\",CONCATENATE(UPPER(naw_naam_zorgverzekeraar),\", \",UPPER(naw_plaats_zorgverzekeraar)),\"\")","v":""},null,null,null,null,null,null,null,{"$f":"CONCATENATE(\"UZOVI: \",naw_uzovi_zorgverzekeraar)","v":"UZOVI: 0000"}]
[]
[null,null,null,"SPECIFICATIES INFORMATIE RISICOVEREVENING"]
[null,null,null,"VERZEKERDENSTAND NAAR RISICOKLASSE",null,null,null,null,null,null,null,"Peildatum: datum van nominale premieprolongatie"]
[null,null,null,null,null,null,null,null,null,null,null,"voor de maand NOVEMBER 2022"]
[null,null,null,null,"LEEFTIJD",null,null,null,"AANTAL NAAR GESLACHT",null,null,"TOTAAL \nAANTAL"]
[null,null,null,null,null,null,null,null,"MAN","VROUW","ONBEPAALD"]
[null,null,null,"  1a.   0  t/m   1",null,null,null,null,null,null,null,{"$f":"SUM(I59:K59)","v":0}]
[null,null,null,"  1b.   2  t/m   4",null,null,null,null,null,null,null,{"$f":"SUM(I60:K60)","v":0}]
[null,null,null,"  2.     5  t/m   9",null,null,null,null,null,null,null,0]
[null,null,null,"  3.   10  t/m 14",null,null,null,null,null,null,null,0]
[null,null,null,"  4.   15  t/m 19",null,null,null,null,null,null,null,0]
[null,null,null,"  5.   20  t/m 24",null,null,null,null,null,null,null,0]
[null,null,null,"  6.   25  t/m 29",null,null,null,null,null,null,null,0]
[null,null,null,"  7.   30  t/m 34",null,null,null,null,null,null,null,0]
[null,null,null,"  8.   35  t/m 39",null,null,null,null,null,null,null,0]
[null,null,null,"  9.   40  t/m 44",null,null,null,null,null,null,null,0]
[null,null,null," 10.  45  t/m 49",null,null,null,null,null,null,null,0]
[null,null,null," 11.  50  t/m 54",null,null,null,null,null,null,null,0]
[null,null,null," 12.  55  t/m 59",null,null,null,null,null,null,null,0]
[null,null,null," 13.  60  t/m 64",null,null,null,null,null,null,null,0]
[null,null,null," 14.  65  t/m 69",null,null,null,null,null,null,null,0]
[null,null,null," 15.  70  t/m 74",null,null,null,null,null,null,null,0]
[null,null,null," 16.  75  t/m 79",null,null,null,null,null,null,null,0]
[null,null,null," 17.  80  t/m 84",null,null,null,null,null,null,null,0]
[null,null,null," 18.  85  t/m 89",null,null,null,null,null,null,null,0]
[null,null,null," 19.  90 en ouder",null,null,null,null,null,null,null,0]
[null,null,null," TOTAAL",null,null,null,null,{"$f":"SUM(I59:I78)","v":0},{"$f":"SUM(J59:J78)","v":0},{"$f":"SUM(K59:K78)","v":0},0]
[]
[null,null,null,"VERZEKERDENSTAND NAAR NOMINALE PREMIE",null,null,null,null,null,null,null,"Peildatum: datum van nominale premieprolongatie"]
[null,null,null,null,null,null,null,null,null,null,null,"voor de maand NOVEMBER 2022"]
[null,null,null,null,null,null,null,null,null,null,null,"AANTAL"]
[null,null,null," Verzekerden met nominale premie Zvw"]
[null,null,null," Verzekerden zonder nominale premie Zvw"]
[null,null,null," TOTAAL",null,null,null,null,null,null,null,{"$f":"SUM(L84:L85)","v":0}]
[null,null,null,null,null,null,null,null,null,{"$f":"IF(AND(ISBLANK(K78)=FALSE,ISBLANK(L84)=FALSE),IF(L84<SUM(L64:L78),\"ATTENTIE: is het juist dat het aantal verzekerden \nmet nominale premie kleiner is dan het totaal\naantal verzekerden van 20 jaar en ouder?\",\"\"),\"\")","v":""}]
[]
[]
[]
[]
[]
[null,null,null,{"$f":"NOW()","v":"2022-12-12T15:17:44.580"},null,null,null,null,null,null,null,{"$f":"CONCATENATE(\"Specifieke informatie A, \",LOWER(A50))","v":"Specifieke informatie A, pagina 2"}]
[]
["Pagina 3",null,null,{"$f":"CONCATENATE(\"KWARTAALSTAAT ZVW \", jaar_id,\" \",kwartaal_id,\"E KWARTAAL\")","v":"KWARTAALSTAAT ZVW 2022 4E KWARTAAL"}]
[null,null,null,"SPECIFIEKE INFORMATIE A"]
[null,null,null,{"$f":"IF(naw_uzovi_zorgverzekeraar<>\"0000\",CONCATENATE(UPPER(naw_naam_zorgverzekeraar),\", \",UPPER(naw_plaats_zorgverzekeraar)),\"\")","v":""},null,null,null,null,null,null,null,{"$f":"CONCATENATE(\"UZOVI: \",naw_uzovi_zorgverzekeraar)","v":"UZOVI: 0000"}]
[]
[null,null,null,"SPECIFICATIES INFORMATIE RISICOVEREVENING"]
[null,null,null,"VERZEKERDENSTAND NAAR RISICOKLASSE",null,null,null,null,null,null,null,"Peildatum: datum van nominale premieprolongatie"]
[null,null,null,null,null,null,null,null,null,null,null,"voor de maand DECEMBER 2022"]
[null,null,null,null,"LEEFTIJD",null,null,null,"AANTAL NAAR GESLACHT",null,null,"TOTAAL \nAANTAL"]
[null,null,null,null,null,null,null,null,"MAN","VROUW","ONBEPAALD"]
[null,null,null,"  1a.   0  t/m   1",null,null,null,null,null,null,null,{"$f":"SUM(I104:K104)","v":0}]
[null,null,null,"  1b.   2  t/m   4",null,null,null,null,null,null,null,{"$f":"SUM(I105:K105)","v":0}]
[null,null,null,"  2.     5  t/m   9",null,null,null,null,null,null,null,0]
[null,null,null,"  3.   10  t/m 14",null,null,null,null,null,null,null,0]
[null,null,null,"  4.   15  t/m 19",null,null,null,null,null,null,null,0]
[null,null,null,"  5.   20  t/m 24",null,null,null,null,null,null,null,0]
[null,null,null,"  6.   25  t/m 29",null,null,null,null,null,null,null,0]
[null,null,null,"  7.   30  t/m 34",null,null,null,null,null,null,null,0]
[null,null,null,"  8.   35  t/m 39",null,null,null,null,null,null,null,0]
[null,null,null,"  9.   40  t/m 44",null,null,null,null,null,null,null,0]
[null,null,null," 10.  45  t/m 49",null,null,null,null,null,null,null,0]
[null,null,null," 11.  50  t/m 54",null,null,null,null,null,null,null,0]
[null,null,null," 12.  55  t/m 59",null,null,null,null,null,null,null,0]
[null,null,null," 13.  60  t/m 64",null,null,null,null,null,null,null,0]
[null,null,null," 14.  65  t/m 69",null,null,null,null,null,null,null,0]
[null,null,null," 15.  70  t/m 74",null,null,null,null,null,null,null,0]
[null,null,null," 16.  75  t/m 79",null,null,null,null,null,null,null,0]
[null,null,null," 17.  80  t/m 84",null,null,null,null,null,null,null,0]
[null,null,null," 18.  85  t/m 89",null,null,null,null,null,null,null,0]
[null,null,null," 19.  90 en ouder",null,null,null,null,null,null,null,0]
[null,null,null," TOTAAL",null,null,null,null,{"$f":"SUM(I104:I123)","v":0},{"$f":"SUM(J104:J123)","v":0},{"$f":"SUM(K104:K123)","v":0},0]
[]
[null,null,null,"VERZEKERDENSTAND NAAR NOMINALE PREMIE",null,null,null,null,null,null,null,"Peildatum: datum van nominale premieprolongatie"]
[null,null,null,null,null,null,null,null,null,null,null,"voor de maand DECEMBER 2022"]
[null,null,null,null,null,null,null,null,null,null,null,"AANTAL"]
[null,null,null," Verzekerden met nominale premie Zvw"]
[null,null,null," Verzekerden zonder nominale premie Zvw"]
[null,null,null," TOTAAL",null,null,null,null,null,null,null,{"$f":"SUM(L129:L130)","v":0}]
[null,null,null,null,null,null,null,null,null,{"$f":"IF(AND(ISBLANK(K123)=FALSE,ISBLANK(L129)=FALSE),IF(L129<SUM(L109:L123),\"ATTENTIE: is het juist dat het aantal verzekerden \nmet nominale premie kleiner is dan het totaal\naantal verzekerden van 20 jaar en ouder?\",\"\"),\"\")","v":""}]
[]
[]
[]
[]
[]
[null,null,null,{"$f":"NOW()","v":"2022-12-12T15:17:44.580"},null,null,null,null,null,null,null,{"$f":"CONCATENATE(\"Specifieke informatie A, \",LOWER(A95))","v":"Specifieke informatie A, pagina 3"}]

{"sheet":"Specifieke informatie C","index":8,"n_rows":124,"n_cols":12,"rows_kept":124,"cut":false,"hidden":false,"merged":[[58,3,58,5],[37,3,39,5],[96,3,97,10],[107,11,108,11],[96,11,97,11],[89,3,89,4],[59,3,59,5],[63,9,64,9],[62,10,62,11],[63,11,64,11],[67,3,67,5],[68,3,68,5],[69,3,69,5],[62,6,62,7],[62,3,64,5],[65,3,65,5],[66,3,66,5],[60,3,60,5],[63,10,64,10],[63,6,64,6],[63,8,64,8],[62,8,62,9],[63,7,64,7],[38,11,39,11],[123,3,123,4],[103,3,103,10],[104,3,104,10],[105,3,105,10],[107,3,108,10],[100,3,100,10],[98,3,98,10],[99,3,99,10],[109,3,109,10],[110,3,110,10],[111,3,111,10],[101,3,101,10],[102,3,102,10],[38,6,39,6],[38,7,39,7],[38,8,39,8],[38,9,39,9],[38,10,39,10],[20,8,21,8],[29,11,30,11],[54,11,55,11],[46,3,46,4],[53,3,55,5],[53,6,53,7],[53,8,53,9],[53,10,53,11],[54,6,55,6],[54,7,55,7],[54,8,55,8],[54,9,55,9],[54,10,55,10],[22,3,22,5],[23,3,23,5],[24,3,24,5],[25,3,25,5],[20,10,21,10],[37,6,37,7],[37,8,37,9],[37,10,37,11],[31,3,31,5],[35,3,35,5],[28,3,30,5],[28,6,28,7],[28,8,28,9],[28,10,28,11],[29,6,30,6],[29,7,30,7],[29,8,30,8],[29,9,30,9],[29,10,30,10],[56,3,56,5],[57,3,57,5],[26,3,26,5],[32,3,32,5],[33,3,33,5],[34,3,34,5],[41,3,41,5],[42,3,42,5],[43,3,43,5],[44,3,44,5],[40,3,40,5],[11,8,11,9],[12,6,13,6],[12,9,13,9],[11,10,11,11],[12,10,13,10],[12,8,13,8],[19,8,19,9],[19,3,21,5],[19,6,19,7],[20,9,21,9],[11,3,13,5],[15,3,15,5],[14,3,14,5],[11,6,11,7],[17,3,17,5],[12,11,13,11],[20,11,21,11],[20,7,21,7],[20,6,21,6],[16,3,16,5],[12,7,13,7],[19,10,19,11]]}
[" ",null,"INVULSPECIFICATIES SPECIFIEKE INFORMATIE C"]
[]
[]
[]
[]
["Pagina 1",null,null,{"$f":"CONCATENATE(\"KWARTAALSTAAT ZVW \", jaar_id,\" \",kwartaal_id,\"E KWARTAAL\")","v":"KWARTAALSTAAT ZVW 2022 4E KWARTAAL"}]
[null,null,null,"SPECIFIEKE INFORMATIE C "]
[null,null,null,{"$f":"IF(naw_uzovi_zorgverzekeraar<>\"0000\",CONCATENATE(UPPER(naw_naam_zorgverzekeraar),\", \",UPPER(naw_plaats_zorgverzekeraar)),\"\")","v":""},null,null,null,null,null,null,null,{"$f":"CONCATENATE(\"UZOVI: \",naw_uzovi_zorgverzekeraar)","v":"UZOVI: 0000"}]
[null,null,null,"SPECIFICATIES VAN KOSTEN EN PRODUCTIE"]
[]
[null,null,null,"RUBRIEK 06 MEDISCH SPECIALISTISCHE ZORG"]
[null,null,null," CODE 610 - OVERIGE KOSTEN \n ZIEKENHUISZORG EN CURATIEVE ZORG",null,null,"Lasten 2022",null,"Lasten 2021 ",null,"Lasten 2020 en ouder"]
[null,null,null,null,null,null,"Lasten 2022 inclusief balanspost","Ontvangen en geaccepteerde declaraties m.b.t. 2022","Lasten 2021 inclusief balanspost","Ontvangen en geaccepteerde declaraties m.b.t. 2021","Lasten 2020 en ouder inclusief balanspost ","Ontvangen en geaccepteerde declaraties m.b.t. 2020 en ouder"]
[null,null,null,null,null,null,null,null,"Ontvangen en geaccepteerde declaraties mbt jaar T","Ontvangen en geaccepteerde declaraties mbt jaar T","Ontvangen en geaccepteerde declaraties mbt jaar T","Ontvangen en geaccepteerde declaraties mbt jaar T"]
[null,null,null," Kosten van eerstelijnsdiagnostiek \n aangevraagd door eerstelijnszorg-\n aanbieders geleverd door \n huisartsenlaboratoria "]
[null,null,null," Trombosediensten "]
[null,null,null," SKION en NTS"]
[null,null,null," TOTAAL code 610",null,null,{"$f":"SUM(G15:G17)","v":0},0,0,0,0,0]
[]
[null,null,null," CODE 611 - OVERIGE ZORGPRODUCTEN NAAR INSTELLING",null,null,"Lasten 2022 ",null,"Lasten 2021",null,"Lasten 2020 en ouder"]
[null,null,null,null,null,null,"Lasten 2022 inclusief balanspost","Ontvangen en geaccepteerde declaraties m.b.t. 2022","Lasten 2021 inclusief balanspost","Ontvangen en geaccepteerde declaraties m.b.t. 2021","Lasten 2020 en ouder inclusief balanspost ","Ontvangen en geaccepteerde declaraties m.b.t. 2020 en ouder"]
[null,null,null,null,null,null,null,null,"Ontvangen en geaccepteerde declaraties mbt jaar T","Ontvangen en geaccepteerde declaraties mbt jaar T","Ontvangen en geaccepteerde declaraties mbt jaar T","Ontvangen en geaccepteerde declaraties mbt jaar T"]
[null,null,null," Academische ziekenhuizen"]
[null,null,null," Algemene ziekenhuizen"]
[null,null,null," Zelfstandige behandelcentra"]
[null,null,null," Overige zorgaanbieders"]
[null,null,null," TOTAAL code 611",null,null,{"$f":"SUM(G23:G26)","v":0},0,0,0,0,0]
[]
[null,null,null," CODE 612.1 - KOSTEN ADD-ONS DURE \n GENEESMIDDELEN NAAR INSTELLING",null,null,{"$f":"G12","v":"Lasten 2022"},null,"Lasten 2021 ",null,"Lasten 2020 en ouder"]
[null,null,null,null,null,null,"Lasten 2022 inclusief balanspost","Ontvangen en geaccepteerde declaraties m.b.t. 2022","Lasten 2021 inclusief balanspost","Ontvangen en geaccepteerde declaraties m.b.t. 2021","Lasten 2020 en ouder inclusief balanspost ","Ontvangen en geaccepteerde declaraties m.b.t. 2020 en ouder"]
[null,null,null,null,null,null,null,null,"Ontvangen en geaccepteerde declaraties mbt jaar T","Ontvangen en geaccepteerde declaraties mbt jaar T","Ontvangen en geaccepteerde declaraties mbt jaar T","Ontvangen en geaccepteerde declaraties mbt jaar T"]
[null,null,null," Academische ziekenhuizen"]
[null,null,null," Algemene ziekenhuizen"]
[null,null,null," Zelfstandige behandelcentra"]
[null,null,null," Overige zorgaanbieders"]
[null,null,null," TOTAAL code 612.1",null,null,{"$f":"SUM(G32:G35)","v":0},{"$f":"SUM(H32:H35)","v":0},0,0,0,0]
[]
[null,null,null," CODE 612.2 - KOSTEN ADD-ONS IC  \n NAAR INSTELLING",null,null,{"$f":"G12","v":"Lasten 2022"},null,"Lasten 2021",null,"Lasten 2020 en ouder"]
[null,null,null,null,null,null,"Lasten 2022 inclusief balanspost","Ontvangen en geaccepteerde declaraties m.b.t. 2022","Lasten 2021 inclusief balanspost","Ontvangen en geaccepteerde declaraties m.b.t. 2021","Lasten 2020 en ouder inclusief balanspost ","Ontvangen en geaccepteerde declaraties m.b.t. 2020 en ouder"]
[null,null,null,null,null,null,null,null,"Ontvangen en geaccepteerde declaraties mbt jaar T","Ontvangen en geaccepteerde declaraties mbt jaar T","Ontvangen en geaccepteerde declaraties mbt jaar T","Ontvangen en geaccepteerde declaraties mbt jaar T"]
[null,null,null," Academische ziekenhuizen"]
[null,null,null," Algemene ziekenhuizen"]
[null,null,null," Zelfstandige behandelcentra"]
[null,null,null," Overige zorgaanbieders"]
[null,null,null," TOTAAL code 612.2",null,null,{"$f":"SUM(G41:G44)","v":0},{"$f":"SUM(H41:H44)","v":0},0,0,0,0]
[]
[null,null,null,{"$f":"NOW()","v":"2022-12-12T15:17:44.580"},null,null,null,null,null,null,null,{"$f":"CONCATENATE(\"Specifieke informatie C, \",LOWER(A6))","v":"Specifieke informatie C, pagina 1"}]
[]
["Pagina 2",null,null,{"$f":"CONCATENATE(\"KWARTAALSTAAT ZVW \", jaar_id,\" \",kwartaal_id,\"E KWARTAAL\")","v":"KWARTAALSTAAT ZVW 2022 4E KWARTAAL"}]
[null,null,null,"SPECIFIEKE INFORMATIE C "]
[null,null,null,{"$f":"IF(naw_uzovi_zorgverzekeraar<>\"0000\",CONCATENATE(UPPER(naw_naam_zorgverzekeraar),\", \",UPPER(naw_plaats_zorgverzekeraar)),\"\")","v":""},null,null,null,null,null,null,null,{"$f":"CONCATENATE(\"UZOVI: \",naw_uzovi_zorgverzekeraar)","v":"UZOVI: 0000"}]
[null,null,null,"SPECIFICATIES VAN KOSTEN EN PRODUCTIE"]
[null,null,null,"RUBRIEK 06 MEDISCH SPECIALISTISCHE ZORG - vervolg"]
[null,null,null,"  CODE 613.1 - INTEGRALE KOSTEN VAN \n  DBC-ZORGPRODUCTEN GEREGULEERDE \n  SEGMENT NAAR \n  INSTELLING",null,null,{"$f":"G12","v":"Lasten 2022"},null,"Lasten 2021 ",null,"Lasten 2020 en ouder"]
[null,null,null,null,null,null,"Lasten 2022 inclusief balanspost","Ontvangen en geaccepteerde declaraties m.b.t. 2022","Lasten 2021 inclusief balanspost","Ontvangen en geaccepteerde declaraties m.b.t. 2021","Lasten 2020 en ouder inclusief balanspost ","Ontvangen en geaccepteerde declaraties m.b.t. 2020 en ouder"]
[null,null,null,null,null,"code",null,null,"Ontvangen en geaccepteerde declaraties mbt jaar T","Ontvangen en geaccepteerde declaraties mbt jaar T","Ontvangen en geaccepteerde declaraties mbt jaar T","Ontvangen en geaccepteerde declaraties mbt jaar T"]
[null,null,null," Academische ziekenhuizen"]
[null,null,null," Algemene ziekenhuizen"]
[null,null,null," Zelfstandige behandelcentra"]
[null,null,null," Overige zorgaanbieders"]
[null,null,null," TOTAAL code 613.1",null,null,{"$f":"SUM(G57:G60)","v":0},{"$f":"SUM(H57:H60)","v":0},{"$f":"SUM(I57:I60)","v":0},0,0,0]
[]
[null,null,null,"  CODE 615.1 - INTEGRALE KOSTEN VAN\n  DBC-ZORGPRODUCTEN VRIJE SEGMENT\n  NAAR INSTELLING",null,null,{"$f":"G12","v":"Lasten 2022"},null,"Lasten 2021 ",null,"Lasten 2020 en ouder"]
[null,null,null,null,null,null,"Lasten 2022 inclusief balanspost","Ontvangen en geaccepteerde declaraties m.b.t. 2022","Lasten 2021 inclusief balanspost","Ontvangen en geaccepteerde declaraties m.b.t. 2021","Lasten 2020 en ouder inclusief balanspost ","Ontvangen en geaccepteerde declaraties m.b.t. 2020 en ouder"]
[null,null,null,null,null,"code",null,null,"Ontvangen en geaccepteerde declaraties mbt jaar T","Ontvangen en geaccepteerde declaraties mbt jaar T","Ontvangen en geaccepteerde declaraties mbt jaar T","Ontvangen en geaccepteerde declaraties mbt jaar T"]
[null,null,null," Academische ziekenhuizen"]
[null,null,null," Algemene ziekenhuizen"]
[null,null,null," Zelfstandige behandelcentra"]
[null,null,null," Overige zorgaanbieders"]
[null,null,null," TOTAAL code 615.1",null,null,{"$f":"SUM(G66:G69)","v":0},0,0,0,0,0]
[]
[]
[]
[]
[]
[]
[]
[]
[]
[]
[]
[]
[]
[]
[]
[]
[]
[]
[]
[null,null,null,{"$f":"NOW()","v":"2022-12-12T15:17:44.580"},null,null,null,null,null,null,null,{"$f":"CONCATENATE(\"Specifieke informatie C, \",LOWER(A49))","v":"Specifieke informatie C, pagina 2"}]
[]
["Pagina 3",null,null,{"$f":"CONCATENATE(\"KWARTAALSTAAT ZVW \", jaar_id,\" \",kwartaal_id,\"E KWARTAAL\")","v":"KWARTAALSTAAT ZVW 2022 4E KWARTAAL"}]
[null,null,null,"SPECIFIEKE INFORMATIE C "]
[null,null,null,{"$f":"IF(naw_uzovi_zorgverzekeraar<>\"0000\",CONCATENATE(UPPER(naw_naam_zorgverzekeraar),\", \",UPPER(naw_plaats_zorgverzekeraar)),\"\")","v":""},null,null,null,null,null,null,null,{"$f":"CONCATENATE(\"UZOVI: \",naw_uzovi_zorgverzekeraar)","v":"UZOVI: 0000"}]
[null,null,null,"SPECIFICATIES VAN KOSTEN EN PRODUCTIE"]
[]
[null,null,null," CODE 701 - OVERIGE GENEESKUNDIGE ZORG",null,null,null,null,null,null,null,"Ontvangen en geaccepteerde declaraties m.b.t. 2022 en ouder"]
[null,null,null,null,null,null,null,null,null,null,null,"Ontvangen en geaccepteerde declaraties mbt jaar T"]
[null,null,null," Geneeskundige individuele zorg bij tuberculose en infectieziekten door GGD'en"]
[null,null,null," Huidtherapie"]
[null,null,null," Orthoptie"]
[null,null,null," Optometrie"]
[null,null,null," Kosten voetzorg bij Diabetes Mellitus type 2"]
[null,null,null," Koemelkallergietest (niet horend bij Multidisciplinaire Zorg) "]
[null,null,null," Regiefunctie complexe wondzorg"]
[null,null,null," TOTAAL code 701",null,null,null,null,null,null,null,{"$f":"SUM(L99:L105)","v":0}]
[]
[null,null,null," CODE 702 - ZINTUIGLIJK GEHANDICAPTEN",null,null,null,null,null,null,null,"Ontvangen en geaccepteerde declaraties m.b.t. 2022 en ouder"]
[null,null,null,null,null,null,null,null,null,null,null,"Ontvangen en geaccepteerde declaraties mbt jaar T"]
[null,null,null," Kosten van zorg ivm visuele beperking"]
[null,null,null," Kosten van zorg ivm auditieve en communicatieve beperking"]
[null,null,null," TOTAAL code 702",null,null,null,null,null,null,null,{"$f":"SUM(L110:L111)","v":0}]
[]
[]
[]
[]
[]
[]
[]
[]
[]
[]
[]
[null,null,null,{"$f":"NOW()","v":"2022-12-12T15:17:44.580"},null,null,null,null,null,null,null,{"$f":"CONCATENATE(\"Specifieke informatie C, \",LOWER(A92))","v":"Specifieke informatie C, pagina 3"}]

{"sheet":"Contractinformatie","index":9,"n_rows":99,"n_cols":11,"rows_kept":99,"cut":false,"hidden":false,"merged":[[64,3,64,9],[42,3,42,9],[73,3,73,9],[72,3,72,9],[74,3,74,9],[71,3,71,9],[57,3,57,9],[76,3,76,9],[79,3,79,9],[75,3,75,9],[78,3,78,10],[96,3,96,9],[81,3,81,9],[82,3,82,9],[83,3,83,9],[84,3,84,9],[86,3,86,9],[90,3,90,10],[85,3,85,10],[87,3,87,9],[88,3,88,9],[89,3,89,9],[95,3,95,9],[94,3,94,9],[98,3,98,4],[50,3,50,4],[80,3,80,10],[91,3,91,9],[92,3,92,9],[93,3,93,9],[58,3,58,9],[59,3,59,9],[60,3,60,9],[61,3,61,9],[62,3,62,9],[63,3,63,9],[65,3,65,9],[67,3,67,9],[68,3,68,9],[10,3,10,10],[9,3,9,9],[11,3,11,9],[12,3,12,9],[13,3,13,9],[14,3,14,9],[16,3,16,9],[17,3,17,9],[18,3,18,9],[15,3,15,10],[19,3,19,9],[22,3,22,9],[25,3,25,9],[26,3,26,9],[27,3,27,9],[20,3,20,10],[21,3,21,9],[28,3,28,9],[30,3,30,9],[31,3,31,9],[34,3,34,9],[56,3,56,9],[35,3,35,9],[29,3,29,9],[36,3,36,9],[37,3,37,9],[38,3,38,9],[39,3,39,9],[40,3,40,9],[41,3,41,9],[43,3,43,9],[45,3,45,9],[46,3,46,9]]}
[null,null,"INVULSPECIFICATIES SPECIFIEKE INFORMATIE C"]
[]
[]
[]
[]
["Pagina 1",null,null,{"$f":"CONCATENATE(\"KWARTAALSTAAT ZVW \", jaar_id,\" \",kwartaal_id,\"E KWARTAAL\")","v":"KWARTAALSTAAT ZVW 2022 4E KWARTAAL"}]
[null,null,null,"SPECIFIEKE INFORMATIE C - CONTRACTINFORMATIE"]
[null,null,null,{"$f":"IF(naw_uzovi_zorgverzekeraar<>\"0000\",CONCATENATE(UPPER(naw_naam_zorgverzekeraar),\", \",UPPER(naw_plaats_zorgverzekeraar)),\"\")","v":""},null,null,null,null,null,null,{"$f":"CONCATENATE(\"UZOVI: \",naw_uzovi_zorgverzekeraar)","v":"UZOVI: 0000"}]
[null,null,null," CONTRACTINFORMATIE HUISARTSENZORG EN MULTIDISCIPLINAIRE ZORG, rubriek 01"]
[null,null,null,null,null,null,null,null,null,null,"Lasten inclusief \nbalanspost \n2023"]
[null,null,null," Huisartsenzorg, codes 503, 504, 505, 506, 507, 515"]
[null,null,null," Gecontracteerde zorg"]
[null,null,null," Lopende onderhandelingen"]
[null,null,null," Niet gecontracteerde zorg"]
[null,null,null," Subtotaal huisartsenzorg",null,null,null,null,null,{"$f":"SUM(J12:J14)","v":0},{"$f":"SUM(K12:K14)","v":0}]
[null,null,null," Multidisciplinaire zorg, codes 510 en 516"]
[null,null,null," Gecontracteerde zorg"]
[null,null,null," Lopende onderhandelingen"]
[null,null,null," Niet gecontracteerde zorg"]
[null,null,null," Subtotaal multidisciplinaire zorg",null,null,null,null,null,{"$f":"SUM(J17:J19)","v":0},{"$f":"SUM(K17:K19)","v":0}]
[null,null,null," Huisartsenzorg en multidisciplinaire zorg"]
[null,null,null," Meerkosten (indirect en toeslagen), gecontracteerd en niet gecontracteerd"]
[null,null,null," TOTAAL RUBRIEK 01 ",null,null,null,null,null,null,{"$f":"SUM(K15+K20+K22)","v":0}]
[]
[null,null,null," CONTRACTINFORMATIE VERPLEGING EN VERZORGING, rubriek 03"]
[null,null,null,null,null,null,null,null,null,null,{"$f":"K$10","v":"Lasten inclusief \nbalanspost \n2023"}]
[null,null,null," Gecontracteerde zorg"]
[null,null,null," Lopende onderhandelingen"]
[null,null,null," Niet gecontracteerde zorg"]
[null,null,null," Meerkosten (indirect en toeslagen), gecontracteerd en niet gecontracteerd"]
[null,null,null," PGB"]
[null,null,null," TOTAAL RUBRIEK 03",null,null,null,null,null,{"$f":"SUM(J27:J29)","v":0},{"$f":"SUM(K27:K31)","v":0}]
[]
[null,null,null," CONTRACTINFORMATIE MEDISCH SPECIALISTISCHE ZORG, rubriek 06"]
[null,null,null,null,null,null,null,null,null,null,{"$f":"K$10","v":"Lasten inclusief \nbalanspost \n2023"}]
[null,null,null," Gecontracteerde zorg: aanneemsom"]
[null,null,null," Gecontracteerde zorg: plafond"]
[null,null,null," Gecontracteerde zorg: nacalculatie bij aanneemsommen en plafondcontracten"]
[null,null,null," Gecontracteerde zorg: open einde contract"]
[null,null,null," Subtotaal gecontracteerde zorg",null,null,null,null,null,{"$f":"SUM(J36:J39)","v":0},{"$f":"SUM(K36:K39)","v":0}]
[null,null,null," Lopende onderhandelingen"]
[null,null,null," Niet gecontracteerde zorg"]
[null,null,null," Meerkosten (indirect en toeslagen), gecontracteerd en niet gecontracteerd"]
[null,null,null," TOTAAL RUBRIEK 06 ",null,null,null,null,null,{"$f":"SUM(J40:J42)","v":0},{"$f":"SUM(K40:K43)","v":0}]
[]
[null,null,null,null,null,null,null,null,null,2020,2023]
[null,null,null," Totaal afgesproken maximumomzet plafondcontracten"]
[]
[]
[]
[null,null,null,{"$f":"NOW()","v":"2022-12-12T15:17:44.580"},null,null,null,null,null,null,{"$f":"CONCATENATE(\"Specifieke informatie C - Contractinformatie, \",LOWER(A6))","v":"Specifieke informatie C - Contractinformatie, pagina 1"}]
[]
["Pagina 2",null,null,{"$f":"CONCATENATE(\"KWARTAALSTAAT ZVW \", jaar_id,\" \",kwartaal_id,\"E KWARTAAL\")","v":"KWARTAALSTAAT ZVW 2022 4E KWARTAAL"}]
[null,null,null,"SPECIFIEKE INFORMATIE C - CONTRACTINFORMATIE"]
[null,null,null,{"$f":"IF(naw_uzovi_zorgverzekeraar<>\"0000\",CONCATENATE(UPPER(naw_naam_zorgverzekeraar),\", \",UPPER(naw_plaats_zorgverzekeraar)),\"\")","v":""},null,null,null,null,null,null,{"$f":"CONCATENATE(\"UZOVI: \",naw_uzovi_zorgverzekeraar)","v":"UZOVI: 0000"}]
[null,null,null," CONTRACTINFORMATIE GENEESKUNDIGE GEESTELIJKE GEZONDHEIDSZORG, rubriek 10"]
[null,null,null,null,null,null,null,null,null,"Lasten inclusief \nbalanspost \n2020",{"$f":"K$10","v":"Lasten inclusief \nbalanspost \n2023"}]
[null,null,null," Gecontracteerde zorg: aanneemsom"]
[null,null,null," Gecontracteerde zorg: plafond"]
[null,null,null," Gecontracteerde zorg: nacalculatie bij aanneemsommen en plafondcontracten"]
[null,null,null," Gecontracteerde zorg: open einde contract"]
[null,null,null," Subtotaal gecontracteerde zorg",null,null,null,null,null,{"$f":"SUM(J58:J61)","v":0},{"$f":"SUM(K58:K61)","v":0}]
[null,null,null," Lopende onderhandelingen"]
[null,null,null," Niet gecontracteerde zorg"]
[null,null,null," Meerkosten (indirect en toeslagen), gecontracteerd en niet gecontracteerd"]
[null,null,null," TOTAAL RUBRIEK 10 ",null,null,null,null,null,{"$f":"SUM(J62:J64)","v":0},{"$f":"SUM(K62:K65)","v":0}]
[]
[null,null,null,null,null,null,null,null,null,2020,2023]
[null,null,null," Totaal afgesproken maximumomzet plafondcontracten"]
[]
[null,null,null," CONTRACTINFORMATIE ZINTUIGLIJK GEHANDICAPTEN, code 702 "]
[null,null,null,null,null,null,null,null,null,"Lasten inclusief \nbalanspost \n2020",{"$f":"K$10","v":"Lasten inclusief \nbalanspost \n2023"}]
[null,null,null," Gecontracteerde zorg"]
[null,null,null," Lopende onderhandelingen"]
[null,null,null," Niet gecontracteerde zorg"]
[null,null,null," Meerkosten (indirect en toeslagen), gecontracteerd en niet gecontracteerd"]
[null,null,null," TOTAAL CODE 702",null,null,null,null,null,{"$f":"SUM(J73:J75)","v":0},{"$f":"SUM(K73:K76)","v":0}]
[]
[null,null,null," CONTRACTINFORMATIE GERIATRISCHE REVALIDATIE, EERSTELIJNSVERBLIJF EN GENEESKUNDIGE ZORG       SPECIFIEKE PATIENTGROEPEN, rubriek 11"]
[null,null,null,null,null,null,null,null,null,"Lasten inclusief \nbalanspost \n2020",{"$f":"K$10","v":"Lasten inclusief \nbalanspost \n2023"}]
[null,null,null," Geriatrische Revalidatie, code 670"]
[null,null,null," Gecontracteerde zorg"]
[null,null,null," Lopende onderhandelingen"]
[null,null,null," Niet gecontracteerde zorg"]
[null,null,null," Subtotaal Geriatrische Revalidatie zorg",null,null,null,null,null,{"$f":"SUM(J82:J84)","v":0},{"$f":"SUM(K82:K84)","v":0}]
[null,null,null," Eerstelijnsverblijf, code 671"]
[null,null,null," Gecontracteerde zorg"]
[null,null,null," Lopende onderhandelingen"]
[null,null,null," Niet gecontracteerde zorg"]
[null,null,null," Subtotaal Eerstelijnsverblijf ",null,null,null,null,null,{"$f":"SUM(J87:J89)","v":0},{"$f":"SUM(K87:K89)","v":0}]
[null,null,null," Geneeskundige Zorg Specifieke Patiëntgroepen, code 672"]
[null,null,null," Gecontracteerde zorg"]
[null,null,null," Lopende onderhandelingen"]
[null,null,null," Niet gecontracteerde zorg"]
[null,null,null," Subtotaal Geneeskundige Zorg Specifieke Patiëntgroepen",null,null,null,null,null,null,{"$f":"SUM(K92:K94)","v":0}]
[null,null,null," Meerkosten (indirect en toeslagen), gecontracteerd en niet gecontracteerd"]
[null,null,null," TOTAAL RUBRIEK 11 ",null,null,null,null,null,{"$f":"SUM(J85+J90+#REF!)","v":{"$error":"#REF!"}},{"$f":"SUM(K85+K90+K95)+SUM(K96:K96)","v":0}]
[]
[null,null,null,{"$f":"NOW()","v":"2022-12-12T15:17:44.580"},null,null,null,null,null,null,{"$f":"CONCATENATE(\"Specifieke informatie C - Contractinformatie, \",LOWER(A53))","v":"Specifieke informatie C - Contractinformatie, pagina 2"}]

{"sheet":"Wanbetalers","index":10,"n_rows":48,"n_cols":11,"rows_kept":48,"cut":false,"hidden":false,"merged":[[26,3,26,7],[47,3,47,4],[27,3,27,7],[17,3,17,7],[19,3,19,7],[20,3,20,7],[21,3,21,7],[22,3,22,7],[24,3,24,7],[25,3,25,7],[15,3,15,7],[16,3,16,7],[10,3,10,7],[11,3,11,7],[12,3,12,7],[13,3,13,7]]}
[null,null,"INVULSPECIFICATIES SPECIFIEKE INFORMATIE C"]
[]
[]
[]
[]
["Pagina 1",null,null,{"$f":"CONCATENATE(\"KWARTAALSTAAT ZVW \", jaar_id,\" \",kwartaal_id,\"E KWARTAAL\")","v":"KWARTAALSTAAT ZVW 2022 4E KWARTAAL"}]
[null,null,null,"SPECIFIEKE INFORMATIE C - WANBETALERS"]
[null,null,null,{"$f":"IF(naw_uzovi_zorgverzekeraar<>\"0000\",CONCATENATE(UPPER(naw_naam_zorgverzekeraar),\", \",UPPER(naw_plaats_zorgverzekeraar)),\"\")","v":""},null,null,null,null,null,null,{"$f":"CONCATENATE(\"UZOVI: \",naw_uzovi_zorgverzekeraar)","v":"UZOVI: 0000"}]
[]
[null,null,null,"SPECIFICATIES VAN WANBETALERS"]
[null,null,null,null,null,null,null,null,"AANTAL \noktober","AANTAL \nnovember","AANTAL \ndecember"]
[null,null,null," Verzekeringnemers die een achterstand in de premiebetaling hebben van \n twee of meer, maar minder dan vier volle maandpremies."]
[null,null,null," Verzekeringnemers die een achterstand in de premiebetaling hebben van \n vier of meer, maar minder dan zes volle maandpremies."]
[null,null,null," Verzekeringnemers die een achterstand in de premiebetaling hebben van \n zes of meer volle maandpremies."]
[]
[null,null,null,null,null,null,null,null,"AANTAL \noktober","AANTAL \nnovember","AANTAL \ndecember"]
[null,null,null," Verstuurde tweedemaandsbrieven"]
[null,null,null," Verstuurde vierdemaandsbrieven"]
[]
[null,null,null,null,null,null,null,null,"AANTAL \noktober","AANTAL \nnovember","AANTAL \ndecember"]
[null,null,null," Debiteuren met een interne betalingsregeling, al dan niet uitsluitend \n voor premiebetaling."]
[null,null,null," Debiteuren met een externe betalingsregeling, al dan niet uitsluitend \n voor premiebetaling."]
[null,null,null," Actieve stabilisatieovereenkomsten voor premiebetaling."]
[]
[null,null,null,null,null,null,null,null,"AANTAL \noktober","AANTAL \nnovember","AANTAL \ndecember"]
[null,null,null," Wanbetalers bij CAK aangemeld met een betalingsachterstand van minder \n dan € 250."]
[null,null,null," Wanbetalers bij CAK aangemeld met een betalingsachterstand van \n meer dan € 250, maar minder dan € 750."]
[null,null,null," Wanbetalers bij CAK aangemeld met een betalingsachterstand van meer \n dan € 750."]
[]
[]
[]
[]
[]
[]
[]
[]
[]
[]
[]
[]
[]
[]
[]
[]
[]
[]
[]
[null,null,null,{"$f":"NOW()","v":"2022-12-12T15:17:44.580"},null,null,null,null,null,null,{"$f":"CONCATENATE(\"Specifieke informatie C - Wanbetalers, \",LOWER(A6))","v":"Specifieke informatie C - Wanbetalers, pagina 1"}]

{"sheet":"Controleoverzicht","index":11,"n_rows":206,"n_cols":12,"rows_kept":206,"cut":false,"hidden":false,"merged":[[90,3,90,8],[88,3,88,8],[160,11,161,11],[158,3,158,8],[146,11,147,11],[149,3,149,8],[148,3,148,8],[130,11,131,11],[146,9,147,9],[155,3,155,8],[153,3,153,8],[130,9,131,9],[116,3,116,8],[117,3,117,8],[137,3,137,8],[130,10,131,10],[146,3,147,8],[146,10,147,10],[89,3,89,8],[104,3,104,8],[106,3,106,8],[122,3,122,8],[134,3,134,8],[125,3,125,8],[186,9,187,9],[196,3,196,10],[186,3,187,8],[195,3,195,10],[200,11,201,11],[186,11,187,11],[186,10,187,10],[179,3,179,8],[160,10,161,10],[166,3,166,8],[163,3,163,8],[162,3,162,8],[200,9,201,9],[200,10,201,10],[164,3,164,8],[165,3,165,8],[197,3,197,11],[191,3,191,8],[9,10,10,10],[177,11,178,11],[177,10,178,10],[177,9,178,9],[112,3,112,8],[113,3,113,8],[180,3,180,8],[15,11,16,11],[15,9,16,9],[15,10,16,10],[52,3,52,8],[54,3,54,8],[157,3,157,8],[160,9,161,9],[151,9,152,9],[103,3,103,8],[130,3,131,8],[151,11,152,11],[151,10,152,10],[160,3,161,8],[156,3,156,8],[83,3,83,8],[85,3,85,8],[86,3,86,8],[81,3,81,8],[82,3,82,8],[84,3,84,8],[9,9,10,9],[9,3,10,8],[11,3,11,8],[15,3,16,8],[12,3,12,8],[13,3,13,8],[32,3,32,8],[36,3,36,8],[28,3,28,8],[24,3,24,8],[26,3,26,8],[23,3,23,8],[25,3,25,8],[17,3,17,8],[19,3,20,8],[27,3,27,8],[22,3,22,8],[109,3,109,8],[110,3,110,8],[19,11,20,11],[19,9,20,9],[19,10,20,10],[21,3,21,8],[75,10,76,10],[75,9,76,9],[42,3,42,8],[53,3,53,8],[87,3,87,8],[43,3,43,8],[78,3,78,8],[47,3,47,8],[40,3,40,8],[41,3,41,8],[56,3,56,8],[57,3,57,8],[48,3,48,8],[30,3,30,8],[33,3,33,8],[75,11,76,11],[58,3,58,8],[77,3,77,8],[204,3,204,8],[126,3,126,8],[177,3,178,8],[200,3,201,8],[183,3,183,8],[190,3,190,8],[193,3,193,8],[192,3,192,8],[189,3,189,8],[188,3,188,8],[184,3,184,8],[181,3,181,8],[203,3,203,8],[127,3,127,8],[136,3,136,8],[202,3,202,8],[182,3,182,8],[167,3,167,8],[135,3,135,8],[151,3,152,8],[154,3,154,8],[132,3,132,8],[133,3,133,8],[34,3,34,8],[35,3,35,8],[37,3,37,8],[38,3,38,8],[39,3,39,8],[49,3,49,8],[29,3,29,8],[31,3,31,8],[50,3,50,8],[51,3,51,8],[44,3,44,8],[45,3,45,8],[46,3,46,8],[59,3,59,8],[60,3,60,8],[61,3,61,8],[80,3,80,8],[75,3,76,8],[55,3,55,8],[63,3,63,8],[64,3,64,8],[62,3,62,8],[79,3,79,8],[123,3,123,8],[124,3,124,8],[91,3,91,8],[92,3,92,8],[96,3,96,8],[97,3,97,8],[98,3,98,8],[100,3,100,8],[101,3,101,8],[102,3,102,8],[105,3,105,8],[120,3,120,8],[99,3,99,8],[115,3,115,8],[118,3,118,8],[114,3,114,8],[111,3,111,8],[95,3,95,8],[93,3,93,8],[107,3,107,8],[94,3,94,8],[119,3,119,8],[121,3,121,8],[108,3,108,8]]}
[null,null,"CONTROLEOVERZICHT"]
[]
[]
[]
[]
["Pagina 1",null,null,{"$f":"CONCATENATE(\"KWARTAALSTAAT ZVW \", jaar_id,\" \",kwartaal_id,\"E KWARTAAL\")","v":"KWARTAALSTAAT ZVW 2022 4E KWARTAAL"}]
[null,null,null,"CONTROLEOVERZICHT"]
[null,null,null,{"$f":"IF(naw_uzovi_zorgverzekeraar<>\"0000\",CONCATENATE(UPPER(naw_naam_zorgverzekeraar),\", \",UPPER(naw_plaats_zorgverzekeraar)),\"\")","v":""},null,null,null,null,null,null,null,{"$f":"CONCATENATE(\"UZOVI: \",naw_uzovi_zorgverzekeraar)","v":"UZOVI: 0000"}]
[null,null,null,"SPECIFIEKE INFORMATIE A"]
[null,null,null," VERZEKERDENSTANDEN",null,null,null,null,null,"NOVEMBER","DECEMBER"]
[]
[null,null,null," Verzekerdenstand naar risicoklasse",null,null,null,null,null,{"$f":"'Specifieke informatie A'!L79","v":0},{"$f":"'Specifieke informatie A'!L124","v":0}]
[null,null,null," Verzekerdenstand naar nominale premie",null,null,null,null,null,{"$f":"'Specifieke informatie A'!L86","v":0},{"$f":"'Specifieke informatie A'!L131","v":0}]
[null,null,null," Verschil",null,null,null,null,null,{"$f":"IF(J12<>J13,J12-J13,\"\")","v":""},{"$f":"IF(K12<>K13,K12-K13,\"\")","v":""}]
[]
[null,null,null," KOSTENSPECIFICATIES",null,null,null,null,null,"VOLGENS\nKOSTENVER- \nZAMELSTAAT","VOLGENS\nDETAIL- \nSPECIFICATIE ","VERSCHIL"]
[]
[null,null,null," Totaal kosten t.l.v. deelbijdragen (totaal lasten t/m rubriek 16)\n - inclusief balanspost",null,null,null,null,null,{"$f":"Kostenverzamelstaat!I176","v":0},{"$f":"'Specifieke informatie A'!K17","v":0},{"$f":"IF(J18<>K18,J18-K18,\"\")","v":""}]
[]
[null,null,null," KOSTENVERZAMELSTAAT",null,null,null,null,null,"Kosten balanspost 2020","Kosten balanspost 2021","Kosten balanspost 2022"]
[]
[null,null,null," 503 Bijzondere betalingen",null,null,null,null,null,{"$f":"Kostenverzamelstaat!M16-Kostenverzamelstaat!N16","v":0},{"$f":"Kostenverzamelstaat!K16-Kostenverzamelstaat!L16","v":0},{"$f":"Kostenverzamelstaat!I16-Kostenverzamelstaat!J16","v":0}]
[null,null,null," 504 Avond-, nacht- en weekenddiensten",null,null,null,null,null,{"$f":"Kostenverzamelstaat!M17-Kostenverzamelstaat!N17","v":0},{"$f":"Kostenverzamelstaat!K17-Kostenverzamelstaat!L17","v":0},{"$f":"Kostenverzamelstaat!I17-Kostenverzamelstaat!J17","v":0}]
[null,null,null," 505 Inschrijftarieven",null,null,null,null,null,{"$f":"Kostenverzamelstaat!M18-Kostenverzamelstaat!N18","v":0},{"$f":"Kostenverzamelstaat!K18-Kostenverzamelstaat!L18","v":0},{"$f":"Kostenverzamelstaat!I18-Kostenverzamelstaat!J18","v":0}]
[null,null,null," 506 Consulttarieven",null,null,null,null,null,{"$f":"Kostenverzamelstaat!M19-Kostenverzamelstaat!N19","v":0},{"$f":"Kostenverzamelstaat!K19-Kostenverzamelstaat!L19","v":0},{"$f":"Kostenverzamelstaat!I19-Kostenverzamelstaat!J19","v":0}]
[null,null,null," 507 Overige tarieven",null,null,null,null,null,{"$f":"Kostenverzamelstaat!M20-Kostenverzamelstaat!N20","v":0},{"$f":"Kostenverzamelstaat!K20-Kostenverzamelstaat!L20","v":0},{"$f":"Kostenverzamelstaat!I20-Kostenverzamelstaat!J20","v":0}]
[null,null,null," 510 Multidisciplinaire zorg",null,null,null,null,null,{"$f":"Kostenverzamelstaat!M21-Kostenverzamelstaat!N21","v":0},{"$f":"Kostenverzamelstaat!K21-Kostenverzamelstaat!L21","v":0},{"$f":"Kostenverzamelstaat!I21-Kostenverzamelstaat!J21","v":0}]
[null,null,null," 515 Resultaatbeloning en zorgvernieuwing huisartsen",null,null,null,null,null,{"$f":"Kostenverzamelstaat!M22-Kostenverzamelstaat!N22","v":0},{"$f":"Kostenverzamelstaat!K22-Kostenverzamelstaat!L22","v":0},{"$f":"Kostenverzamelstaat!I22-Kostenverzamelstaat!J22","v":0}]
[null,null,null," 516 Resultaatbeloning en zorgvernieuwing MDZ",null,null,null,null,null,{"$f":"Kostenverzamelstaat!M23-Kostenverzamelstaat!N23","v":0},{"$f":"Kostenverzamelstaat!K23-Kostenverzamelstaat!L23","v":0},{"$f":"Kostenverzamelstaat!I23-Kostenverzamelstaat!J23","v":0}]
[null,null,null," 801.1 Meerkosten Corona, indirect",null,null,null,null,null,{"$f":"Kostenverzamelstaat!M25-Kostenverzamelstaat!N25","v":0},null,{"$f":"Kostenverzamelstaat!I25-Kostenverzamelstaat!J25","v":0}]
[null,null,null," 801.2 Meerkosten Corona, toeslagen",null,null,null,null,null,{"$f":"Kostenverzamelstaat!M26-Kostenverzamelstaat!N26","v":0},null,{"$f":"Kostenverzamelstaat!I26-Kostenverzamelstaat!J26","v":0}]
[null,null,null," 821 Netto continuïteitsbijdrage Corona (basisverzekering)",null,null,null,null,null,{"$f":"Kostenverzamelstaat!M27-Kostenverzamelstaat!N27","v":0},{"$f":"Kostenverzamelstaat!K27-Kostenverzamelstaat!L27","v":0}]
[null,null,null," 520 Farmaceutische zorg",null,null,null,null,null,{"$f":"Kostenverzamelstaat!M30-Kostenverzamelstaat!N30","v":0},{"$f":"Kostenverzamelstaat!K30-Kostenverzamelstaat!L30","v":0},{"$f":"Kostenverzamelstaat!I30-Kostenverzamelstaat!J30","v":0}]
[null,null,null," 802.1 Meerkosten Corona, indirect",null,null,null,null,null,{"$f":"Kostenverzamelstaat!M32-Kostenverzamelstaat!N32","v":0},null,{"$f":"Kostenverzamelstaat!I32-Kostenverzamelstaat!J32","v":0}]
[null,null,null," 802.2 Meerkosten Corona, toeslagen",null,null,null,null,null,{"$f":"Kostenverzamelstaat!M33-Kostenverzamelstaat!N33","v":0},null,{"$f":"Kostenverzamelstaat!I33-Kostenverzamelstaat!J33","v":0}]
[null,null,null," 822 Netto continuïteitsbijdrage Corona (basisverzekering)",null,null,null,null,null,{"$f":"Kostenverzamelstaat!M34-Kostenverzamelstaat!N34","v":0},{"$f":"Kostenverzamelstaat!K34-Kostenverzamelstaat!L34","v":0}]
[null,null,null," 530 Kosten van verpleging en verzorging",null,null,null,null,null,{"$f":"Kostenverzamelstaat!M37-Kostenverzamelstaat!N37","v":0},{"$f":"Kostenverzamelstaat!K37-Kostenverzamelstaat!L37","v":0},{"$f":"Kostenverzamelstaat!I37-Kostenverzamelstaat!J37","v":0}]
[null,null,null," 803.1 Meerkosten Corona, indirect",null,null,null,null,null,{"$f":"Kostenverzamelstaat!M39-Kostenverzamelstaat!N39","v":0},null,{"$f":"Kostenverzamelstaat!I39-Kostenverzamelstaat!J39","v":0}]
[null,null,null," 803.2 Meerkosten Corona, toeslagen",null,null,null,null,null,{"$f":"Kostenverzamelstaat!M40-Kostenverzamelstaat!N40","v":0},null,{"$f":"Kostenverzamelstaat!I40-Kostenverzamelstaat!J40","v":0}]
[null,null,null," 823 Netto continuïteitsbijdrage Corona (basisverzekering)",null,null,null,null,null,{"$f":"Kostenverzamelstaat!M41-Kostenverzamelstaat!N41","v":0},{"$f":"Kostenverzamelstaat!K41-Kostenverzamelstaat!L41","v":0}]
[null,null,null," 545 Kosten specialisten mondziekten en kaakchirurgie",null,null,null,null,null,{"$f":"Kostenverzamelstaat!M72-Kostenverzamelstaat!N72","v":0},{"$f":"Kostenverzamelstaat!K72-Kostenverzamelstaat!L72","v":0},{"$f":"Kostenverzamelstaat!I72-Kostenverzamelstaat!J72","v":0}]
[null,null,null," 560.1 Kosten mondzorg volwassen verzekerden",null,null,null,null,null,{"$f":"Kostenverzamelstaat!M44-Kostenverzamelstaat!N44","v":0},{"$f":"Kostenverzamelstaat!K44-Kostenverzamelstaat!L44","v":0},{"$f":"Kostenverzamelstaat!I44-Kostenverzamelstaat!J44","v":0}]
[null,null,null," 560.2 Kosten mondzorg jeugdige verzekerden",null,null,null,null,null,{"$f":"Kostenverzamelstaat!M45-Kostenverzamelstaat!N45","v":0},{"$f":"Kostenverzamelstaat!K45-Kostenverzamelstaat!L45","v":0},{"$f":"Kostenverzamelstaat!I45-Kostenverzamelstaat!J45","v":0}]
[null,null,null," 561 Kosten gebitsprothesen",null,null,null,null,null,{"$f":"Kostenverzamelstaat!M46-Kostenverzamelstaat!N46","v":0},{"$f":"Kostenverzamelstaat!K46-Kostenverzamelstaat!L46","v":0},{"$f":"Kostenverzamelstaat!I46-Kostenverzamelstaat!J46","v":0}]
[null,null,null," 804.1 Meerkosten Corona, indirect",null,null,null,null,null,{"$f":"Kostenverzamelstaat!M48-Kostenverzamelstaat!N48","v":0},null,{"$f":"Kostenverzamelstaat!I48-Kostenverzamelstaat!J48","v":0}]
[null,null,null," 804.2 Meerkosten Corona, toeslagen",null,null,null,null,null,{"$f":"Kostenverzamelstaat!M49-Kostenverzamelstaat!N49","v":0},null,{"$f":"Kostenverzamelstaat!I49-Kostenverzamelstaat!J49","v":0}]
[null,null,null," 824 Netto continuïteitsbijdrage Corona (basisverzekering)",null,null,null,null,null,{"$f":"Kostenverzamelstaat!M50-Kostenverzamelstaat!N50","v":0},{"$f":"Kostenverzamelstaat!K50-Kostenverzamelstaat!L50","v":0}]
[null,null,null," 580 Kosten verloskundige zorg door verloskundigen",null,null,null,null,null,{"$f":"Kostenverzamelstaat!M53-Kostenverzamelstaat!N53","v":0},{"$f":"Kostenverzamelstaat!K53-Kostenverzamelstaat!L53","v":0},{"$f":"Kostenverzamelstaat!I53-Kostenverzamelstaat!J53","v":0}]
[null,null,null," 582 Kosten Integrale geboortezorg ",null,null,null,null,null,{"$f":"Kostenverzamelstaat!M54-Kostenverzamelstaat!N54","v":0},{"$f":"Kostenverzamelstaat!K54-Kostenverzamelstaat!L54","v":0},{"$f":"Kostenverzamelstaat!I54-Kostenverzamelstaat!J54","v":0}]
[null,null,null," 805.1 Meerkosten Corona, indirect",null,null,null,null,null,{"$f":"Kostenverzamelstaat!M56-Kostenverzamelstaat!N56","v":0},null,{"$f":"Kostenverzamelstaat!I56-Kostenverzamelstaat!J56","v":0}]
[null,null,null," 805.2 Meerkosten Corona, toeslagen",null,null,null,null,null,{"$f":"Kostenverzamelstaat!M57-Kostenverzamelstaat!N57","v":0},null,{"$f":"Kostenverzamelstaat!I57-Kostenverzamelstaat!J57","v":0}]
[null,null,null," 825 Netto continuïteitsbijdrage Corona (basisverzekering)",null,null,null,null,null,{"$f":"Kostenverzamelstaat!M58-Kostenverzamelstaat!N58","v":0},{"$f":"Kostenverzamelstaat!K58-Kostenverzamelstaat!L58","v":0}]
[null,null,null," 610 Overige kosten ziekenhuiszorg en curatieve zorg",null,null,null,null,null,{"$f":"Kostenverzamelstaat!M73-Kostenverzamelstaat!N73","v":0},{"$f":"Kostenverzamelstaat!K73-Kostenverzamelstaat!L73","v":0},{"$f":"Kostenverzamelstaat!I73-Kostenverzamelstaat!J73","v":0}]
[null,null,null," 611 Overige zorgproducten",null,null,null,null,null,{"$f":"Kostenverzamelstaat!M74-Kostenverzamelstaat!N74","v":0},{"$f":"Kostenverzamelstaat!K74-Kostenverzamelstaat!L74","v":0},{"$f":"Kostenverzamelstaat!I74-Kostenverzamelstaat!J74","v":0}]
[null,null,null," 612.1 Kosten add-ons - Dure geneesmiddelen",null,null,null,null,null,{"$f":"Kostenverzamelstaat!M75-Kostenverzamelstaat!N75","v":0},{"$f":"Kostenverzamelstaat!K75-Kostenverzamelstaat!L75","v":0},{"$f":"Kostenverzamelstaat!I75-Kostenverzamelstaat!J75","v":0}]
[null,null,null," 612.2 Kosten add-ons - IC",null,null,null,null,null,{"$f":"Kostenverzamelstaat!M76-Kostenverzamelstaat!N76","v":0},{"$f":"Kostenverzamelstaat!K76-Kostenverzamelstaat!L76","v":0},{"$f":"Kostenverzamelstaat!I76-Kostenverzamelstaat!J76","v":0}]
[null,null,null," 613.1 Integrale kosten van DBC-zorgproduct gereguleerde segment ",null,null,null,null,null,{"$f":"Kostenverzamelstaat!M77-Kostenverzamelstaat!N77","v":0},{"$f":"Kostenverzamelstaat!K77-Kostenverzamelstaat!L77","v":0},{"$f":"Kostenverzamelstaat!I77-Kostenverzamelstaat!J77","v":0}]
[null,null,null," 615.1 Integrale kosten van DBC-zorgproduct vrije segment",null,null,null,null,null,{"$f":"Kostenverzamelstaat!M78-Kostenverzamelstaat!N78","v":0},{"$f":"Kostenverzamelstaat!K78-Kostenverzamelstaat!L78","v":0},{"$f":"Kostenverzamelstaat!I78-Kostenverzamelstaat!J78","v":0}]
[null,null,null," 619 Integrale kosten extramuraal werkende specialisten",null,null,null,null,null,{"$f":"Kostenverzamelstaat!M79-Kostenverzamelstaat!N79","v":0},{"$f":"Kostenverzamelstaat!K79-Kostenverzamelstaat!L79","v":0},{"$f":"Kostenverzamelstaat!I79-Kostenverzamelstaat!J79","v":0}]
[null,null,null," 806.1 Meerkosten Corona, indirect",null,null,null,null,null,{"$f":"Kostenverzamelstaat!M81-Kostenverzamelstaat!N81","v":0},null,{"$f":"Kostenverzamelstaat!I81-Kostenverzamelstaat!J81","v":0}]
[null,null,null," 806.2 Meerkosten Corona, toeslagen",null,null,null,null,null,{"$f":"Kostenverzamelstaat!M82-Kostenverzamelstaat!N82","v":0},null,{"$f":"Kostenverzamelstaat!I82-Kostenverzamelstaat!J82","v":0}]
[null,null,null," 826 Netto continuïteitsbijdrage Corona (basisverzekering)",null,null,null,null,null,{"$f":"Kostenverzamelstaat!M83-Kostenverzamelstaat!N83","v":0},{"$f":"Kostenverzamelstaat!K83-Kostenverzamelstaat!L83","v":0}]
[null,null,null," 620 Kosten fysiotherapie",null,null,null,null,null,{"$f":"Kostenverzamelstaat!M86-Kostenverzamelstaat!N86","v":0},{"$f":"Kostenverzamelstaat!K86-Kostenverzamelstaat!L86","v":0},{"$f":"Kostenverzamelstaat!I86-Kostenverzamelstaat!J86","v":0}]
[null,null,null," 621 Kosten oefentherapie Mensendieck/Cesar",null,null,null,null,null,{"$f":"Kostenverzamelstaat!M87-Kostenverzamelstaat!N87","v":0},{"$f":"Kostenverzamelstaat!K87-Kostenverzamelstaat!L87","v":0},{"$f":"Kostenverzamelstaat!I87-Kostenverzamelstaat!J87","v":0}]
[null,null,null," 623 Kosten logopedie",null,null,null,null,null,{"$f":"Kostenverzamelstaat!M88-Kostenverzamelstaat!N88","v":0},{"$f":"Kostenverzamelstaat!K88-Kostenverzamelstaat!L88","v":0},{"$f":"Kostenverzamelstaat!I88-Kostenverzamelstaat!J88","v":0}]
[]
[]
[]
[]
[null,null,null,{"$f":"NOW()","v":"2022-12-12T15:17:44.580"},null,null,null,null,null,null,null,{"$f":"CONCATENATE(\"Controleoverzicht \",LOWER(A6))","v":"Controleoverzicht pagina 1"}]
[]
["Pagina 2",null,null,{"$f":"CONCATENATE(\"KWARTAALSTAAT ZVW \", jaar_id,\" \",kwartaal_id,\"E KWARTAAL\")","v":"KWARTAALSTAAT ZVW 2022 4E KWARTAAL"}]
[null,null,null,"CONTROLEOVERZICHT"]
[null,null,null,{"$f":"IF(naw_uzovi_zorgverzekeraar<>\"0000\",CONCATENATE(UPPER(naw_naam_zorgverzekeraar),\", \",UPPER(naw_plaats_zorgverzekeraar)),\"\")","v":""},null,null,null,null,null,null,null,{"$f":"CONCATENATE(\"UZOVI: \",naw_uzovi_zorgverzekeraar)","v":"UZOVI: 0000"}]
[null,null,null,"SPECIFIEKE INFORMATIE A - vervolg"]
[null,null,null," KOSTENVERZAMELSTAAT",null,null,null,null,null,{"$f":"J20","v":"Kosten balanspost 2020"},{"$f":"K20","v":"Kosten balanspost 2021"},"Kosten balanspost 2022"]
[]
[null,null,null," 624 Kosten ergotherapie",null,null,null,null,null,{"$f":"Kostenverzamelstaat!M89-Kostenverzamelstaat!N89","v":0},{"$f":"Kostenverzamelstaat!K89-Kostenverzamelstaat!L89","v":0},{"$f":"Kostenverzamelstaat!I89-Kostenverzamelstaat!J89","v":0}]
[null,null,null," 625 Kosten dieetadvisering ",null,null,null,null,null,{"$f":"Kostenverzamelstaat!M90-Kostenverzamelstaat!N90","v":0},{"$f":"Kostenverzamelstaat!K90-Kostenverzamelstaat!L90","v":0},{"$f":"Kostenverzamelstaat!I90-Kostenverzamelstaat!J90","v":0}]
[null,null,null," 626 Gecombineerde Leefstijl Interventie (GLI)",null,null,null,null,null,{"$f":"Kostenverzamelstaat!M91-Kostenverzamelstaat!N91","v":0},{"$f":"Kostenverzamelstaat!K91-Kostenverzamelstaat!L91","v":0},{"$f":"Kostenverzamelstaat!I91-Kostenverzamelstaat!J91","v":0}]
[null,null,null," 807.1 Meerkosten Corona, indirect",null,null,null,null,null,{"$f":"Kostenverzamelstaat!M93-Kostenverzamelstaat!N93","v":0},null,{"$f":"Kostenverzamelstaat!I93-Kostenverzamelstaat!J93","v":0}]
[null,null,null," 807.2 Meerkosten Corona, toeslagen",null,null,null,null,null,{"$f":"Kostenverzamelstaat!M94-Kostenverzamelstaat!N94","v":0},null,{"$f":"Kostenverzamelstaat!I94-Kostenverzamelstaat!J94","v":0}]
[null,null,null," 827 Netto continuïteitsbijdrage Corona (basisverzekering)",null,null,null,null,null,{"$f":"Kostenverzamelstaat!M95-Kostenverzamelstaat!N95","v":0},{"$f":"Kostenverzamelstaat!K95-Kostenverzamelstaat!L95","v":0}]
[null,null,null," 640 Hulpmiddelenzorg",null,null,null,null,null,{"$f":"Kostenverzamelstaat!M98-Kostenverzamelstaat!N98","v":0},{"$f":"Kostenverzamelstaat!K98-Kostenverzamelstaat!L98","v":0},{"$f":"Kostenverzamelstaat!I98-Kostenverzamelstaat!J98","v":0}]
[null,null,null," 808.1 Meerkosten Corona, indirect",null,null,null,null,null,{"$f":"Kostenverzamelstaat!M100-Kostenverzamelstaat!N100","v":0},null,{"$f":"Kostenverzamelstaat!I100-Kostenverzamelstaat!J100","v":0}]
[null,null,null," 808.2 Meerkosten Corona, toeslagen",null,null,null,null,null,{"$f":"Kostenverzamelstaat!M101-Kostenverzamelstaat!N101","v":0},null,{"$f":"Kostenverzamelstaat!I101-Kostenverzamelstaat!J101","v":0}]
[null,null,null," 828 Netto continuïteitsbijdrage Corona (basisverzekering)",null,null,null,null,null,{"$f":"Kostenverzamelstaat!M102-Kostenverzamelstaat!N102","v":0},{"$f":"Kostenverzamelstaat!K102-Kostenverzamelstaat!L102","v":0}]
[null,null,null," 650 Kosten vervoer per ambulance/helikopter",null,null,null,null,null,{"$f":"Kostenverzamelstaat!M105-Kostenverzamelstaat!N105","v":0},{"$f":"Kostenverzamelstaat!K105-Kostenverzamelstaat!L105","v":0},{"$f":"Kostenverzamelstaat!I105-Kostenverzamelstaat!J105","v":0}]
[null,null,null," 650.1 Opbrengstenverrekeningen regionale ambulancevoorzieningen",null,null,null,null,null,{"$f":"Kostenverzamelstaat!M106-Kostenverzamelstaat!N106","v":0},{"$f":"Kostenverzamelstaat!K106-Kostenverzamelstaat!L106","v":0},{"$f":"Kostenverzamelstaat!I106-Kostenverzamelstaat!J106","v":0}]
[null,null,null," 651 Kosten vervoer per openbaar vervoer, taxi en eigen auto",null,null,null,null,null,{"$f":"Kostenverzamelstaat!M107-Kostenverzamelstaat!N107","v":0},{"$f":"Kostenverzamelstaat!K107-Kostenverzamelstaat!L107","v":0},{"$f":"Kostenverzamelstaat!I107-Kostenverzamelstaat!J107","v":0}]
[null,null,null," 809.1 Meerkosten Corona, indirect",null,null,null,null,null,{"$f":"Kostenverzamelstaat!M109-Kostenverzamelstaat!N109","v":0},null,{"$f":"Kostenverzamelstaat!I109-Kostenverzamelstaat!J109","v":0}]
[null,null,null," 809.2 Meerkosten Corona, toeslagen",null,null,null,null,null,{"$f":"Kostenverzamelstaat!M110-Kostenverzamelstaat!N110","v":0},null,{"$f":"Kostenverzamelstaat!I110-Kostenverzamelstaat!J110","v":0}]
[null,null,null," 829 Netto continuïteitsbijdrage Corona (basisverzekering)",null,null,null,null,null,{"$f":"Kostenverzamelstaat!M111-Kostenverzamelstaat!N111","v":0},{"$f":"Kostenverzamelstaat!K111-Kostenverzamelstaat!L111","v":0}]
[null,null,null," 661 Kosten specialistische GGZ met verblijf",null,null,null,null,null,{"$f":"Kostenverzamelstaat!M124-Kostenverzamelstaat!N124","v":0},{"$f":"Kostenverzamelstaat!K124-Kostenverzamelstaat!L124","v":0}]
[null,null,null," 661.1 Kosten LGGZ (langdurige GGZ, jaar 2 en 3)",null,null,null,null,null,{"$f":"Kostenverzamelstaat!M125-Kostenverzamelstaat!N125","v":0},{"$f":"Kostenverzamelstaat!K125-Kostenverzamelstaat!L125","v":0}]
[null,null,null," 662 Kosten specialistische GGZ zonder verblijf",null,null,null,null,null,{"$f":"Kostenverzamelstaat!M126-Kostenverzamelstaat!N126","v":0},{"$f":"Kostenverzamelstaat!K126-Kostenverzamelstaat!L126","v":0}]
[null,null,null," 665 Generalistische basis GGZ",null,null,null,null,null,{"$f":"Kostenverzamelstaat!M127-Kostenverzamelstaat!N127","v":0},{"$f":"Kostenverzamelstaat!K127-Kostenverzamelstaat!L127","v":0}]
[null,null,null," 666 1.1 Kosten consulten GGZ",null,null,null,null,null,null,null,{"$f":"Kostenverzamelstaat!I128-Kostenverzamelstaat!J128","v":0}]
[null,null,null," 667 Kosten intramuraal verblijf GGZ",null,null,null,null,null,null,null,{"$f":"Kostenverzamelstaat!I129-Kostenverzamelstaat!J129","v":0}]
[null,null,null," 668 overige prestaties GGZ",null,null,null,null,null,null,null,{"$f":"Kostenverzamelstaat!I130-Kostenverzamelstaat!J130","v":0}]
[null,null,null," 810.1 Meerkosten Corona, indirect",null,null,null,null,null,{"$f":"Kostenverzamelstaat!M132-Kostenverzamelstaat!N132","v":0},null,{"$f":"Kostenverzamelstaat!I132-Kostenverzamelstaat!J132","v":0}]
[null,null,null," 810.2 Meerkosten Corona, toeslagen",null,null,null,null,null,{"$f":"Kostenverzamelstaat!M133-Kostenverzamelstaat!N133","v":0},null,{"$f":"Kostenverzamelstaat!I133-Kostenverzamelstaat!J133","v":0}]
[null,null,null," 830 Netto continuïteitsbijdrage Corona (basisverzekering)",null,null,null,null,null,{"$f":"Kostenverzamelstaat!M134-Kostenverzamelstaat!N134","v":0},{"$f":"Kostenverzamelstaat!K134-Kostenverzamelstaat!L134","v":0}]
[null,null,null," 670 Geriatrische revalidatiezorg",null,null,null,null,null,{"$f":"Kostenverzamelstaat!M137-Kostenverzamelstaat!N137","v":0},{"$f":"Kostenverzamelstaat!K137-Kostenverzamelstaat!L137","v":0},{"$f":"Kostenverzamelstaat!I137-Kostenverzamelstaat!J137","v":0}]
[null,null,null," 811.1.1 Meerkosten Corona indirect en toeslagen",null,null,null,null,null,{"$f":"Kostenverzamelstaat!M139-Kostenverzamelstaat!N139","v":0},null,{"$f":"Kostenverzamelstaat!I139-Kostenverzamelstaat!J139","v":0}]
[null,null,null," 811.1.2 Meerkosten Corona indirect en toeslagen",null,null,null,null,null,{"$f":"Kostenverzamelstaat!M140-Kostenverzamelstaat!N140","v":0},null,{"$f":"Kostenverzamelstaat!I140-Kostenverzamelstaat!J140","v":0}]
[null,null,null," 831.1 Netto continuïteitsbijdrage Corona (basisverzekering)",null,null,null,null,null,{"$f":"Kostenverzamelstaat!M141-Kostenverzamelstaat!N141","v":0},{"$f":"Kostenverzamelstaat!K141-Kostenverzamelstaat!L141","v":0}]
[null,null,null," 671 Eerstelijnsverblijf (ELV)",null,null,null,null,null,{"$f":"Kostenverzamelstaat!M142-Kostenverzamelstaat!N142","v":0},{"$f":"Kostenverzamelstaat!K142-Kostenverzamelstaat!L142","v":0},{"$f":"Kostenverzamelstaat!I142-Kostenverzamelstaat!J142","v":0}]
[null,null,null," 811.2.1 Meerkosten Corona indirect en toeslagen",null,null,null,null,null,{"$f":"Kostenverzamelstaat!M144-Kostenverzamelstaat!N144","v":0},null,{"$f":"Kostenverzamelstaat!I144-Kostenverzamelstaat!J144","v":0}]
[null,null,null," 811.2.2 Meerkosten Corona indirect en toeslagen",null,null,null,null,null,{"$f":"Kostenverzamelstaat!M145-Kostenverzamelstaat!N145","v":0},null,{"$f":"Kostenverzamelstaat!I145-Kostenverzamelstaat!J145","v":0}]
[null,null,null," 831.2 Netto continuïteitsbijdrage Corona (basisverzekering)",null,null,null,null,null,{"$f":"Kostenverzamelstaat!M146-Kostenverzamelstaat!N146","v":0},{"$f":"Kostenverzamelstaat!K146-Kostenverzamelstaat!L146","v":0}]
[null,null,null," 672 Geneeskundige  Zorg Specifieke Patiëntgroepen (GZSP)",null,null,null,null,null,{"$f":"Kostenverzamelstaat!M147-Kostenverzamelstaat!N147","v":0},{"$f":"Kostenverzamelstaat!K147-Kostenverzamelstaat!L147","v":0},{"$f":"Kostenverzamelstaat!I147-Kostenverzamelstaat!J147","v":0}]
[null,null,null," 811.3.1 Meerkosten Corona indirect en toeslagen",null,null,null,null,null,{"$f":"Kostenverzamelstaat!M149-Kostenverzamelstaat!N149","v":0},null,{"$f":"Kostenverzamelstaat!I149-Kostenverzamelstaat!J149","v":0}]
[null,null,null," 811.3.2 Meerkosten Corona indirect en toeslagen",null,null,null,null,null,{"$f":"Kostenverzamelstaat!M150-Kostenverzamelstaat!N150","v":0},null,{"$f":"Kostenverzamelstaat!I150-Kostenverzamelstaat!J150","v":0}]
[null,null,null," 831.3 Netto continuïteitsbijdrage Corona (basisverzekering)",null,null,null,null,null,{"$f":"Kostenverzamelstaat!M151-Kostenverzamelstaat!N151","v":0},{"$f":"Kostenverzamelstaat!K151-Kostenverzamelstaat!L151","v":0}]
[null,null,null," 680 Kraamzorg",null,null,null,null,null,{"$f":"Kostenverzamelstaat!M154-Kostenverzamelstaat!N154","v":0},{"$f":"Kostenverzamelstaat!K154-Kostenverzamelstaat!L154","v":0},{"$f":"Kostenverzamelstaat!I154-Kostenverzamelstaat!J154","v":0}]
[null,null,null," 812.1 Meerkosten Corona indirect en toeslagen",null,null,null,null,null,{"$f":"Kostenverzamelstaat!M156-Kostenverzamelstaat!N156","v":0},null,{"$f":"Kostenverzamelstaat!I156-Kostenverzamelstaat!J156","v":0}]
[null,null,null," 812.2 Meerkosten Corona indirect en toeslagen",null,null,null,null,null,{"$f":"Kostenverzamelstaat!M157-Kostenverzamelstaat!N157","v":0},null,{"$f":"Kostenverzamelstaat!I157-Kostenverzamelstaat!J157","v":0}]
[null,null,null," 832 Netto continuïteitsbijdrage Corona (basisverzekering)",null,null,null,null,null,{"$f":"Kostenverzamelstaat!M158-Kostenverzamelstaat!N158","v":0},{"$f":"Kostenverzamelstaat!K158-Kostenverzamelstaat!L158","v":0}]
[null,null,null," 700 Overige kosten",null,null,null,null,null,{"$f":"Kostenverzamelstaat!M161-Kostenverzamelstaat!N161","v":0},{"$f":"Kostenverzamelstaat!K161-Kostenverzamelstaat!L161","v":0},{"$f":"Kostenverzamelstaat!I161-Kostenverzamelstaat!J161","v":0}]
[null,null,null," 701 Overige geneeskundige zorg",null,null,null,null,null,{"$f":"Kostenverzamelstaat!M162-Kostenverzamelstaat!N162","v":0},{"$f":"Kostenverzamelstaat!K162-Kostenverzamelstaat!L162","v":0},{"$f":"Kostenverzamelstaat!I162-Kostenverzamelstaat!J162","v":0}]
[null,null,null," 702 Kosten van zorg zintuiglijk gehandicapten ",null,null,null,null,null,{"$f":"Kostenverzamelstaat!M163-Kostenverzamelstaat!N163","v":0},{"$f":"Kostenverzamelstaat!K163-Kostenverzamelstaat!L163","v":0},{"$f":"Kostenverzamelstaat!I163-Kostenverzamelstaat!J163","v":0}]
[null,null,null," 813.1 Meerkosten Corona indirect en toeslagen",null,null,null,null,null,{"$f":"Kostenverzamelstaat!M165-Kostenverzamelstaat!N165","v":0},null,{"$f":"Kostenverzamelstaat!I165-Kostenverzamelstaat!J165","v":0}]
[null,null,null," 813.2 Meerkosten Corona indirect en toeslagen",null,null,null,null,null,{"$f":"Kostenverzamelstaat!M166-Kostenverzamelstaat!N166","v":0},null,{"$f":"Kostenverzamelstaat!I166-Kostenverzamelstaat!J166","v":0}]
[null,null,null," 833 Netto continuïteitsbijdrage Corona (basisverzekering)",null,null,null,null,null,{"$f":"Kostenverzamelstaat!M167-Kostenverzamelstaat!N167","v":0},{"$f":"Kostenverzamelstaat!K167-Kostenverzamelstaat!L167","v":0}]
[null,null,null," 720 Kosten via verzekeraar",null,null,null,null,null,{"$f":"Kostenverzamelstaat!M170-Kostenverzamelstaat!N170","v":0},{"$f":"Kostenverzamelstaat!K170-Kostenverzamelstaat!L170","v":0},{"$f":"Kostenverzamelstaat!I170-Kostenverzamelstaat!J170","v":0}]
[null,null,null," 721 Kosten via verbindingsorgaan",null,null,null,null,null,{"$f":"Kostenverzamelstaat!M171-Kostenverzamelstaat!N171","v":0},{"$f":"Kostenverzamelstaat!K171-Kostenverzamelstaat!L171","v":0},{"$f":"Kostenverzamelstaat!I171-Kostenverzamelstaat!J171","v":0}]
[null,null,null," 730 Kwaliteitsgelden",null,null,null,null,null,{"$f":"Kostenverzamelstaat!M174-Kostenverzamelstaat!N174","v":0},{"$f":"Kostenverzamelstaat!K174-Kostenverzamelstaat!L174","v":0},{"$f":"Kostenverzamelstaat!I174-Kostenverzamelstaat!J174","v":0}]
[]
[null,null,null,"VERGELIJKING SPECIFIEKE INFORMATIE A EN C"]
[null,null,null,"KOSTEN PER CODENUMMER\n(ONTVANGEN EN GEACCEPTEERDE DECLARATIES \nT/M 2e kwartaal 2022)",null,null,null,null,null,"Spec. inform. A\nkostenver-\nzamelstaat","Spec. inform. C\ndetail-\ninformatie","VERSCHIL"]
[]
[null,null,null," 610 Overige kosten ziekenhuiszorg en curatieve zorg",null,null,null,null,null,{"$f":"Kostenverzamelstaat!J73","v":0},{"$f":"'Specifieke informatie C'!H$18","v":0},{"$f":"J133-K133","v":0}]
[null,null,null," 611 Overige zorgproducten (naar instelling)",null,null,null,null,null,{"$f":"Kostenverzamelstaat!J74","v":0},{"$f":"'Specifieke informatie C'!H$27","v":0},{"$f":"J134-K134","v":0}]
[null,null,null," 612.1 Kosten add-ons - Dure geneesmiddelen",null,null,null,null,null,{"$f":"Kostenverzamelstaat!J75","v":0},{"$f":"'Specifieke informatie C'!H$36","v":0},0]
[null,null,null," 612.2  Kosten add-ons - IC",null,null,null,null,null,{"$f":"Kostenverzamelstaat!J76","v":0},{"$f":"'Specifieke informatie C'!H$45","v":0},0]
[null,null,null," 613.1 Integrale kosten DBC-zorgproduct gereguleerd segment",null,null,null,null,null,{"$f":"Kostenverzamelstaat!J77","v":0},{"$f":"'Specifieke informatie C'!H$61","v":0},0]
[null,null,null," 615.1 Integrale kosten DBC-zorgproduct vrije segment",null,null,null,null,null,{"$f":"Kostenverzamelstaat!J78","v":0},{"$f":"'Specifieke informatie C'!H$70","v":0},0]
[]
[null,null,null,{"$f":"NOW()","v":"2022-12-12T15:17:44.580"},null,null,null,null,null,null,null,{"$f":"CONCATENATE(\"Controleoverzicht \",LOWER(A72))","v":"Controleoverzicht pagina 2"}]
[]
["Pagina 3",null,null,{"$f":"CONCATENATE(\"KWARTAALSTAAT ZVW \", jaar_id,\" \",kwartaal_id,\"E KWARTAAL\")","v":"KWARTAALSTAAT ZVW 2022 4E KWARTAAL"}]
[null,null,null,"CONTROLEOVERZICHT"]
[null,null,null,{"$f":"IF(naw_uzovi_zorgverzekeraar<>\"0000\",CONCATENATE(UPPER(naw_naam_zorgverzekeraar),\", \",UPPER(naw_plaats_zorgverzekeraar)),\"\")","v":""},null,null,null,null,null,null,null,{"$f":"CONCATENATE(\"UZOVI: \",naw_uzovi_zorgverzekeraar)","v":"UZOVI: 0000"}]
[]
[null,null,null,"VERGELIJKING SPECIFIEKE INFORMATIE A EN C - vervolg"]
[null,null,null,"KOSTEN PER CODENUMMER \n(ONTVANGEN EN GEACCEPTEERDE DECLARATIES \n T/M 2e kwartaal 2022)",null,null,null,null,null,"Spec. inform. A\nkostenver-\nzamelstaat","Spec. inform. C\ndetail-\ninformatie","VERSCHIL"]
[]
[null,null,null," 701 Overige geneeskundige zorg",null,null,null,null,null,{"$f":"Kostenverzamelstaat!J162","v":0},{"$f":"'Specifieke informatie C'!L106","v":0},{"$f":"J149-K149","v":0}]
[null,null,null," 702 Kosten van zorg zintuiglijk gehandicapten ",null,null,null,null,null,{"$f":"Kostenverzamelstaat!J163","v":0},{"$f":"'Specifieke informatie C'!L112","v":0},{"$f":"J150-K150","v":0}]
[]
[null,null,null," KOSTEN PER CODENUMMER (KOSTEN INCLUSIEF BALANSPOST) 2022",null,null,null,null,null,"Spec. inform. A\nkostenver-\nzamelstaat","Spec. inform. C\ndetail-\ninformatie","VERSCHIL"]
[]
[null,null,null," 610 Overige kosten ziekenhuiszorg en curatieve zorg",null,null,null,null,null,{"$f":"Kostenverzamelstaat!I73","v":0},{"$f":"'Specifieke informatie C'!G$18","v":0},{"$f":"J154-K154","v":0}]
[null,null,null," 611 Overige zorgproducten (naar instelling)",null,null,null,null,null,{"$f":"Kostenverzamelstaat!I74","v":0},{"$f":"'Specifieke informatie C'!G$27","v":0},{"$f":"J155-K155","v":0}]
[null,null,null," 612.1 Kosten add-ons - Dure geneesmiddelen",null,null,null,null,null,{"$f":"Kostenverzamelstaat!I75","v":0},{"$f":"'Specifieke informatie C'!G$36","v":0},0]
[null,null,null," 612.2  Kosten add-ons - IC",null,null,null,null,null,{"$f":"Kostenverzamelstaat!I76","v":0},{"$f":"'Specifieke informatie C'!G$45","v":0},0]
[null,null,null," 613.1 Integrale kosten DBC-zorgproduct gereguleerd segment",null,null,null,null,null,{"$f":"Kostenverzamelstaat!I77","v":0},{"$f":"'Specifieke informatie C'!G$61","v":0},0]
[null,null,null," 615.1 Integrale kosten DBC-zorgproduct vrije segment",null,null,null,null,null,{"$f":"Kostenverzamelstaat!I78","v":0},{"$f":"'Specifieke informatie C'!G$70","v":0},0]
[]
[null,null,null," KOSTEN PER CODENUMMER (KOSTEN INCLUSIEF BALANSPOST) 2021",null,null,null,null,null,"Spec. inform. A\nkostenver-\nzamelstaat","Spec. inform. C\ndetail-\ninformatie","VERSCHIL"]
[]
[null,null,null," 610 Overige kosten ziekenhuiszorg en curatieve zorg",null,null,null,null,null,{"$f":"Kostenverzamelstaat!K73","v":0},{"$f":"'Specifieke informatie C'!I$18","v":0},{"$f":"J163-K163","v":0}]
[null,null,null," 611 Overige zorgproducten (naar instelling)",null,null,null,null,null,{"$f":"Kostenverzamelstaat!K74","v":0},{"$f":"'Specifieke informatie C'!I$27","v":0},{"$f":"J164-K164","v":0}]
[null,null,null," 612.1 Kosten add-ons - Dure geneesmiddelen",null,null,null,null,null,{"$f":"Kostenverzamelstaat!K75","v":0},{"$f":"'Specifieke informatie C'!I$36","v":0},0]
[null,null,null," 612.2  Kosten add-ons - IC",null,null,null,null,null,{"$f":"Kostenverzamelstaat!K76","v":0},{"$f":"'Specifieke informatie C'!I$45","v":0},0]
[null,null,null," 613.1 Integrale kosten DBC-zorgproduct gereguleerd segment",null,null,null,null,null,{"$f":"Kostenverzamelstaat!K77","v":0},{"$f":"'Specifieke informatie C'!I$61","v":0},0]
[null,null,null," 615.1 Integrale kosten DBC-zorgproduct vrije segment",null,null,null,null,null,{"$f":"Kostenverzamelstaat!K78","v":0},{"$f":"'Specifieke informatie C'!I$70","v":0},0]
[]
[null,null,null,{"$f":"NOW()","v":"2022-12-12T15:17:44.580"},null,null,null,null,null,null,null,{"$f":"CONCATENATE(\"Controleoverzicht \",LOWER(A142))","v":"Controleoverzicht pagina 3"}]
[]
["Pagina 4",null,null,{"$f":"CONCATENATE(\"KWARTAALSTAAT ZVW \", jaar_id,\" \",kwartaal_id,\"E KWARTAAL\")","v":"KWARTAALSTAAT ZVW 2022 4E KWARTAAL"}]
[null,null,null,"CONTROLEOVERZICHT"]
[null,null,null,{"$f":"IF(naw_uzovi_zorgverzekeraar<>\"0000\",CONCATENATE(UPPER(naw_naam_zorgverzekeraar),\", \",UPPER(naw_plaats_zorgverzekeraar)),\"\")","v":""},null,null,null,null,null,null,null,{"$f":"CONCATENATE(\"UZOVI: \",naw_uzovi_zorgverzekeraar)","v":"UZOVI: 0000"}]
[]
[]
[null,null,null,"VERGELIJKING SPECIFIEKE INFORMATIE A EN C - vervolg"]
[null,null,null," KOSTEN PER CODENUMMER \n (KOSTEN INCLUSIEF BALANSPOST) 2020 EN OUDER",null,null,null,null,null,"Spec. inform. A\nkostenver-\nzamelstaat","Spec. inform. C\ndetail-\ninformatie","VERSCHIL"]
[]
[null,null,null," 610 Overige kosten ziekenhuiszorg en curatieve zorg",null,null,null,null,null,{"$f":"Kostenverzamelstaat!M73","v":0},{"$f":"'Specifieke informatie C'!M$18","v":0},{"$f":"J180-K180","v":0}]
[null,null,null," 611 Overige zorgproducten (naar instelling)",null,null,null,null,null,{"$f":"Kostenverzamelstaat!M74","v":0},{"$f":"'Specifieke informatie C'!M$27","v":0},{"$f":"J181-K181","v":0}]
[null,null,null," 612.1 Kosten add-ons - Dure geneesmiddelen",null,null,null,null,null,{"$f":"Kostenverzamelstaat!M75","v":0},{"$f":"'Specifieke informatie C'!M$36","v":0},0]
[null,null,null," 612.2  Kosten add-ons - IC",null,null,null,null,null,{"$f":"Kostenverzamelstaat!M76","v":0},{"$f":"'Specifieke informatie C'!M$45","v":0},0]
[null,null,null," 613.1 Integrale kosten DBC-zorgproduct gereguleerd segment",null,null,null,null,null,{"$f":"Kostenverzamelstaat!M77","v":0},{"$f":"'Specifieke informatie C'!M$61","v":0},0]
[null,null,null," 615.1 Integrale kosten DBC-zorgproduct vrije segment",null,null,null,null,null,{"$f":"Kostenverzamelstaat!M78","v":0},{"$f":"'Specifieke informatie C'!M$70","v":0},0]
[]
[null,null,null,"KOSTEN PER CODENUMMER \n(ONTVANGEN EN GEACCEPTEERDE DECLARATIES \n M.B.T. 2020 EN OUDER)",null,null,null,null,null,"Spec. inform. A\nkostenver-\nzamelstaat","Spec. inform. C\ndetail-\ninformatie","VERSCHIL"]
[]
[null,null,null," 610 Overige kosten ziekenhuiszorg en curatieve zorg",null,null,null,null,null,{"$f":"Kostenverzamelstaat!N73","v":0},{"$f":"'Specifieke informatie C'!N$18","v":0},{"$f":"J189-K189","v":0}]
[null,null,null," 611 Overige zorgproducten (naar instelling)",null,null,null,null,null,{"$f":"Kostenverzamelstaat!N74","v":0},{"$f":"'Specifieke informatie C'!N$27","v":0},{"$f":"J190-K190","v":0}]
[null,null,null," 612.1 Kosten add-ons - Dure geneesmiddelen",null,null,null,null,null,{"$f":"Kostenverzamelstaat!N75","v":0},{"$f":"'Specifieke informatie C'!N$36","v":0},0]
[null,null,null," 612.2  Kosten add-ons - IC",null,null,null,null,null,{"$f":"Kostenverzamelstaat!N76","v":0},{"$f":"'Specifieke informatie C'!N$45","v":0},0]
[null,null,null," 613.1 Integrale kosten DBC-zorgproduct gereguleerd segment",null,null,null,null,null,{"$f":"Kostenverzamelstaat!N77","v":0},{"$f":"'Specifieke informatie C'!N$61","v":0},0]
[null,null,null," 615.1 Integrale kosten DBC-zorgproduct vrije segment",null,null,null,null,null,{"$f":"Kostenverzamelstaat!N78","v":0},{"$f":"'Specifieke informatie C'!N$70","v":0},0]
[]
[null,null,null," Controle code 505 kostenverzamelstaat",null,null,null,null,null,null,null,{"$f":"Kostenverzamelstaat!I18","v":0}]
[null,null,null," Kosten per verzekerde o.b.v. laatst bekende verzekerdenstand (in hele euro's)",null,null,null,null,null,null,null,{"$f":"IF(L196<>0,(L196/K12),0)","v":0}]
[null,null,null,{"$f":"IF(OR(L197>kwartaal_id*112),\"Attentiebericht: Kosten per verzekerde liggen buiten het verwachte bereik. Controleer de kostenverzamelstaat!\",\"\")","v":""}]
[]
[null,null,null,"VERGELIJKING SPECIFIEKE INFORMATIE A EN C (Contractinformatie)"]
[null,null,null," KOSTEN PER RUBRIEK OF CODENUMMER \n (KOSTEN INCLUSIEF BALANSPOST) 2022",null,null,null,null,null,"Spec. inform. A\nkostenver-\nzamelstaat","Spec. inform. C\ncontract-\ninformatie","VERSCHIL"]
[]
[null,null,null," Medisch Specialistische zorg, rubriek 06",null,null,null,null,null,{"$f":"Kostenverzamelstaat!I84","v":0},{"$f":"Contractinformatie!K44","v":0},{"$f":"J203-K203","v":0}]
[null,null,null," Geriatrische Revalidatie, Eerstelijnsverblijf en Geneeskundige zorg specifieke patinetgroepen, rubriek 11",null,null,null,null,null,{"$f":"Kostenverzamelstaat!I152","v":0},{"$f":"Contractinformatie!K97","v":0},{"$f":"J204-K204","v":0}]
[null,null,null," Zintuiglijk Gehandicapten, code 702",null,null,null,null,null,{"$f":"Kostenverzamelstaat!I163","v":0},{"$f":"Contractinformatie!K77","v":0},0]
[null,null,null,{"$f":"NOW()","v":"2022-12-12T15:17:44.580"},null,null,null,null,null,null,null,{"$f":"CONCATENATE(\"Controleoverzicht \",LOWER(A172))","v":"Controleoverzicht pagina 4"}]

{"sheet":"Parameters","index":12,"n_rows":34,"n_cols":7,"rows_kept":34,"cut":false,"hidden":true,"merged":[[1,4,1,5]]}
[]
[null,"Kwartaal:",4,null,"HASHTOTALEN"]
[null,"Jaar:",2022,null,"Alle waarden tabblad specifieke informatie A",{"$f":"ROUND(SUM(alle_cellen_info_a),0)","v":{"$error":"#REF!"}},"Opm: kolom I..L"]
[null,"Wet:","ZVW",null,"Alle waarden tabblad specifieke informatie B",{"$f":"ROUND(SUM(alle_cellen_info_c),0)","v":{"$error":"#REF!"}},"Opm: kolom I..L"]
[null,"Document:",{"$f":"CONCATENATE(\"KS\",jaar_id,wet_id,\".\",kwartaal_id)","v":"KS2022ZVW.4"},null,"Alle waarden tabbladen specifieke informatie A en C",{"$f":"SUM(F3:F4)","v":{"$error":"#REF!"}},"Opm: kolom I..L"]
[null,"Revisie:","A"]
[null,"Revisiedatum:","2022-07-01"]
[null,"Versie:",{"$f":"CONCATENATE(document_id,revisie_id)","v":"KS2022ZVW.4A"}]
[]
[]
[]
[null,"NUMMER_UO","NAAM_UO","FORMAT_UO1"]
[null,"0000","KIES UW UZOVI-NUMMER",{"$f":"CONCATENATE(B13,\" \",C13)","v":"0000 KIES UW UZOVI-NUMMER"}]
[null,"0101","UNIVÉ ZORG","0101 UNIVÉ ZORG"]
[null,"0104","CENTRALE ZORGVERZEKERINGEN NZV N.V.","0104 CENTRALE ZORGVERZEKERINGEN NZV N.V."]
[null,"0201","OHRA ZORGVERZEKERINGEN N.V.","0201 OHRA ZORGVERZEKERINGEN N.V."]
[null,"0403","ASR ","0403 ASR "]
[null,"0699","IZA","0699 IZA"]
[null,"0736","UMC","0736 UMC"]
[null,"3311","ZILVEREN KRUIS","3311 ZILVEREN KRUIS"]
[null,"3313","INTERPOLIS","3313 INTERPOLIS"]
[null,"3332","MENZIS","3332 MENZIS"]
[null,"3333","ANDERZORG","3333 ANDERZORG"]
[null,"3343","ONVZ",{"$f":"CONCATENATE(B24,\" \",C24)","v":"3343 ONVZ"}]
[null,"3347","ENO",{"$f":"CONCATENATE(B25,\" \",C25)","v":"3347 ENO"}]
[null,"3351","FBTO",{"$f":"CONCATENATE(B26,\" \",C26)","v":"3351 FBTO"}]
[null,"3352","IPTIQ",{"$f":"CONCATENATE(B27,\" \",C27)","v":"3352 IPTIQ"}]
[null,"3358","DE FRIESLAND",{"$f":"CONCATENATE(B28,\" \",C28)","v":"3358 DE FRIESLAND"}]
[null,"3359","EUCARE INSURANCE PCC LTD",{"$f":"CONCATENATE(B29,\" \",C29)","v":"3359 EUCARE INSURANCE PCC LTD"}]
[null,"7029","DSW","7029 DSW"]
[null,"7037","STAD HOLLAND",{"$f":"CONCATENATE(B31,\" \",C31)","v":"7037 STAD HOLLAND"}]
[null,"7085","ZORG EN ZEKERHEID","7085 ZORG EN ZEKERHEID"]
[null,"7095","VGZ ZORGVERZEKERAAR","7095 VGZ ZORGVERZEKERAAR"]
[null,"7119","CZ ZORGVERZEKERINGEN N.V.","7119 CZ ZORGVERZEKERINGEN N.V."]

{"sheet":"Blad1","index":13,"n_rows":1252,"n_cols":17,"rows_kept":1252,"cut":false,"hidden":true,"merged":[]}
[]
[]
[]
[]
[]
[]
[]
[]
[]
[]
[]
[null,null,null,null,"vcd_spec_idvar","vcd_waarde_flt","vcd_waarde_txt","vcd_toelichting_txt","vcd_spec1_idvar","vcd_spec2_idvar","vcd_spec3_idvar","vcd_attrib_idvar","vcd_eenheid_txt","vcd_dsnorder_flt","vcd_datatype_txt","vcd_format_txt","vcd_eenheid_flt"]
[null,null,null,null,"xstaat_kdrwet_id_","*=0","ZVQ4","Excel numeriek om te zetten sleutel kdrwet via waarden","xstaat","kdrwet","id","","",null,"C",""]
[null,null,null,null,"xstaat_kdrwet_idjmd_","*=0",20221231,"Excel numeriek om te zetten sleutel kdrwet periode","xstaat","kdrwet","idjmd","","",null,"C",""]
[null,null,null,null,"xstaat_uzovi_filename_","*=0","*=CEL(\"bestandsnaam\")","Excel numeriek filenaam bevat ook sleutels","xstaat","uzovi","filename","","",null,"C",""]
[null,null,null,null,"xstaat_uzovi_id_","*=0","*=NUMERIEKE.WAARDE(NAW_gegevens!$C$6)","Excel numeriek om te zetten sleutel uzovi","xstaat","uzovi","id","","",null,"C",""]
[null,null,null,null,"xstaat_uzovi_idvrs_","*=0","01","Excel numeriek om te zetten sleutel uzovi versie levering","xstaat","uzovi","idvrs","","",null,"C",""]
[null,null,null,null,"zvkx01_c503__TY0V01","*=Kostenverzamelstaat!$I$16","","Huisartsen- bijz betalingen- incl balans","zvkx01","c503","","TY0V01","Euro's",null,"N","",1]
[null,null,null,null,"zvkx01_a503__TY0V01","*=Kostenverzamelstaat!$J$16","","Huisartsen- bijz betalingen- geaccepteerd","zvkx01","a503","","TY0V01","Euro's",null,"N","",1]
[null,null,null,null,"zvkx01_c503__TY1V01","*=Kostenverzamelstaat!$K$16","","Huisartsen- bijz betalingen- incl balans","zvkx01","c503","","TY1V01","Euro's",null,"N","",1]
[null,null,null,null,"zvkx01_a503__TY1V01","*=Kostenverzamelstaat!$L$16","","Huisartsen- bijz betalingen- geaccepteerd","zvkx01","a503","","TY1V01","Euro's",null,"N","",1]
[null,null,null,null,"zvkx01_c503__TY2V01","*=Kostenverzamelstaat!$M$16","","Huisartsen- bijz betalingen- incl balans","zvkx01","c503","","TY2V01","Euro's",null,"N","",1]
[null,null,null,null,"zvkx01_a503__TY2V01","*=Kostenverzamelstaat!$N$16","","Huisartsen- bijz betalingen- geaccepteerd","zvkx01","a503","","TY2V01","Euro's",null,"N","",1]
[null,null,null,null,"zvkx01_c504__TY0V01","*=Kostenverzamelstaat!$I$17","","Huisartsen- bijz diensttijden- incl balans","zvkx01","c504","","TY0V01","Euro's",null,"N","",1]
[null,null,null,null,"zvkx01_a504__TY0V01","*=Kostenverzamelstaat!$J$17","","Huisartsen- bijz diensttijden- geaccepteerd","zvkx01","a504","","TY0V01","Euro's",null,"N","",1]
[null,null,null,null,"zvkx01_c504__TY1V01","*=Kostenverzamelstaat!$K$17","","Huisartsen- bijz diensttijden- incl balans","zvkx01","c504","","TY1V01","Euro's",null,"N","",1]
[null,null,null,null,"zvkx01_a504__TY1V01","*=Kostenverzamelstaat!$L$17","","Huisartsen- bijz diensttijden- geaccepteerd","zvkx01","a504","","TY1V01","Euro's",null,"N","",1]
[null,null,null,null,"zvkx01_c504__TY2V01","*=Kostenverzamelstaat!$M$17","","Huisartsen- bijz diensttijden- incl balans","zvkx01","c504","","TY2V01","Euro's",null,"N","",1]
[null,null,null,null,"zvkx01_a504__TY2V01","*=Kostenverzamelstaat!$N$17","","Huisartsen- bijz diensttijden- geaccepteerd","zvkx01","a504","","TY2V01","Euro's",null,"N","",1]
[null,null,null,null,"zvkx01_c505__TY0V01","*=Kostenverzamelstaat!$I$18","","Huisartsen- Inschrijvingen- incl balans","zvkx01","c505","","TY0V01","Euro's",null,"N","",1]
[null,null,null,null,"zvkx01_a505__TY0V01","*=Kostenverzamelstaat!$J$18","","Huisartsen- Inschrijvingen- geaccepteerd","zvkx01","a505","","TY0V01","Euro's",null,"N","",1]
[null,null,null,null,"zvkx01_c505__TY1V01","*=Kostenverzamelstaat!$K$18","","Huisartsen- Inschrijvingen- incl balans","zvkx01","c505","","TY1V01","Euro's",null,"N","",1]
[null,null,null,null,"zvkx01_a505__TY1V01","*=Kostenverzamelstaat!$L$18","","Huisartsen- Inschrijvingen- geaccepteerd","zvkx01","a505","","TY1V01","Euro's",null,"N","",1]
[null,null,null,null,"zvkx01_c505__TY2V01","*=Kostenverzamelstaat!$M$18","","Huisartsen- Inschrijvingen- incl balans","zvkx01","c505","","TY2V01","Euro's",null,"N","",1]
[null,null,null,null,"zvkx01_a505__TY2V01","*=Kostenverzamelstaat!$N$18","","Huisartsen- Inschrijvingen- geaccepteerd","zvkx01","a505","","TY2V01","Euro's",null,"N","",1]
[null,null,null,null,"zvkx01_c506__TY0V01","*=Kostenverzamelstaat!$I$19","","Huisartsen- Consult- incl balans","zvkx01","c506","","TY0V01","Euro's",null,"N","",1]
[null,null,null,null,"zvkx01_a506__TY0V01","*=Kostenverzamelstaat!$J$19","","Huisartsen- Consult- geaccepteerd","zvkx01","a506","","TY0V01","Euro's",null,"N","",1]
[null,null,null,null,"zvkx01_c506__TY1V01","*=Kostenverzamelstaat!$K$19","","Huisartsen- Consult- incl balans","zvkx01","c506","","TY1V01","Euro's",null,"N","",1]
[null,null,null,null,"zvkx01_a506__TY1V01","*=Kostenverzamelstaat!$L$19","","Huisartsen- Consult- geaccepteerd","zvkx01","a506","","TY1V01","Euro's",null,"N","",1]
[null,null,null,null,"zvkx01_c506__TY2V01","*=Kostenverzamelstaat!$M$19","","Huisartsen- Consult- incl balans","zvkx01","c506","","TY2V01","Euro's",null,"N","",1]
[null,null,null,null,"zvkx01_a506__TY2V01","*=Kostenverzamelstaat!$N$19","","Huisartsen- Consult- geaccepteerd","zvkx01","a506","","TY2V01","Euro's",null,"N","",1]
[null,null,null,null,"zvkx01_c507__TY0V01","*=Kostenverzamelstaat!$I$20","","Huisartsen- Overige- incl balans","zvkx01","c507","","TY0V01","Euro's",null,"N","",1]
[null,null,null,null,"zvkx01_a507__TY0V01","*=Kostenverzamelstaat!$J$20","","Huisartsen- Overige- geaccepteerd","zvkx01","a507","","TY0V01","Euro's",null,"N","",1]
[null,null,null,null,"zvkx01_c507__TY1V01","*=Kostenverzamelstaat!$K$20","","Huisartsen- Overige- incl balans","zvkx01","c507","","TY1V01","Euro's",null,"N","",1]
[null,null,null,null,"zvkx01_a507__TY1V01","*=Kostenverzamelstaat!$L$20","","Huisartsen- Overige- geaccepteerd","zvkx01","a507","","TY1V01","Euro's",null,"N","",1]
[null,null,null,null,"zvkx01_c507__TY2V01","*=Kostenverzamelstaat!$M$20","","Huisartsen- Overige- incl balans","zvkx01","c507","","TY2V01","Euro's",null,"N","",1]
[null,null,null,null,"zvkx01_a507__TY2V01","*=Kostenverzamelstaat!$N$20","","Huisartsen- Overige- geaccepteerd","zvkx01","a507","","TY2V01","Euro's",null,"N","",1]
[null,null,null,null,"zvkx01_c510__TY0V01","*=Kostenverzamelstaat!$I$21","","Huisartsen- MDZ- incl balans","zvkx01","c510","","TY0V01","Euro's",null,"N","",1]
[null,null,null,null,"zvkx01_a510__TY0V01","*=Kostenverzamelstaat!$J$21","","Huisartsen- MDZ- geaccepteerd","zvkx01","a510","","TY0V01","Euro's",null,"N","",1]
[null,null,null,null,"zvkx01_c510__TY1V01","*=Kostenverzamelstaat!$K$21","","Huisartsen- MDZ- incl balans","zvkx01","c510","","TY1V01","Euro's",null,"N","",1]
[null,null,null,null,"zvkx01_a510__TY1V01","*=Kostenverzamelstaat!$L$21","","Huisartsen- MDZ- geaccepteerd","zvkx01","a510","","TY1V01","Euro's",null,"N","",1]
[null,null,null,null,"zvkx01_c510__TY2V01","*=Kostenverzamelstaat!$M$21","","Huisartsen- MDZ- incl balans","zvkx01","c510","","TY2V01","Euro's",null,"N","",1]
[null,null,null,null,"zvkx01_a510__TY2V01","*=Kostenverzamelstaat!$N$21","","Huisartsen- MDZ- geaccepteerd","zvkx01","a510","","TY2V01","Euro's",null,"N","",1]
[null,null,null,null,"zvkx01_c515__TY0V01","*=Kostenverzamelstaat!$I$22","","Huisartsen- Resultaatbel. huisartsen- incl balans","zvkx01","c515","","TY0V01","Euro's",null,"N","",1]
[null,null,null,null,"zvkx01_a515__TY0V01","*=Kostenverzamelstaat!$J$22","","Huisartsen- Resultaatbel. huisartsen- geaccepteerd","zvkx01","a515","","TY0V01","Euro's",null,"N","",1]
[null,null,null,null,"zvkx01_c515__TY1V01","*=Kostenverzamelstaat!$K$22","","Huisartsen- Resultaatbel. huisartsen- incl balans","zvkx01","c515","","TY1V01","Euro's",null,"N","",1]
[null,null,null,null,"zvkx01_a515__TY1V01","*=Kostenverzamelstaat!$L$22","","Huisartsen- Resultaatbel. huisartsen- geaccepteerd","zvkx01","a515","","TY1V01","Euro's",null,"N","",1]
[null,null,null,null,"zvkx01_c515__TY2V01","*=Kostenverzamelstaat!$M$22","","Huisartsen- Resultaatbel. huisartsen- incl balans","zvkx01","c515","","TY2V01","Euro's",null,"N","",1]
[null,null,null,null,"zvkx01_a515__TY2V01","*=Kostenverzamelstaat!$N$22","","Huisartsen- Resultaatbel. huisartsen- geaccepteerd","zvkx01","a515","","TY2V01","Euro's",null,"N","",1]
[null,null,null,null,"zvkx01_c516__TY0V01","*=Kostenverzamelstaat!$I$23","","Huisartsen- Resultaatbel. MDZ- incl balans","zvkx01","c516","","TY0V01","Euro's",null,"N","",1]
[null,null,null,null,"zvkx01_a516__TY0V01","*=Kostenverzamelstaat!$J$23","","Huisartsen- Resultaatbel. MDZ- geaccepteerd","zvkx01","a516","","TY0V01","Euro's",null,"N","",1]
[null,null,null,null,"zvkx01_c516__TY1V01","*=Kostenverzamelstaat!$K$23","","Huisartsen- Resultaatbel. MDZ- incl balans","zvkx01","c516","","TY1V01","Euro's",null,"N","",1]
[null,null,null,null,"zvkx01_a516__TY1V01","*=Kostenverzamelstaat!$L$23","","Huisartsen- Resultaatbel. MDZ- geaccepteerd","zvkx01","a516","","TY1V01","Euro's",null,"N","",1]
[null,null,null,null,"zvkx01_c516__TY2V01","*=Kostenverzamelstaat!$M$23","","Huisartsen- Resultaatbel. MDZ- incl balans","zvkx01","c516","","TY2V01","Euro's",null,"N","",1]
[null,null,null,null,"zvkx01_a516__TY2V01","*=Kostenverzamelstaat!$N$23","","Huisartsen- Resultaatbel. MDZ- geaccepteerd","zvkx01","a516","","TY2V01","Euro's",null,"N","",1]
[null,null,null,null,"zvkx01_c8011__TY0V01","*=Kostenverzamelstaat!$I$25",null,"Huisartsen- Meerkosten Corona indirect- incl balans","zvkx01","c8011",null,"TY0V01","Euro's",null,"N","",1]
[null,null,null,null,"zvkx01_a8011__TY0V01","*=Kostenverzamelstaat!$J$25",null,"Huisartsen- Meerkosten Corona indirect- geaccepteerd","zvkx01","a8011",null,"TY0V01","Euro's",null,"N","",1]
[null,null,null,null,"zvkx01_c8011__TY2V01","*=Kostenverzamelstaat!$M$25",null,"Huisartsen- Meerkosten Corona indirect- incl balans","zvkx01","c8011",null,"TY2V01","Euro's",null,"N","",1]
[null,null,null,null,"zvkx01_a8011__TY2V01","*=Kostenverzamelstaat!$N$25",null,"Huisartsen- Meerkosten Corona indirect- geaccepteerd","zvkx01","a8011",null,"TY2V01","Euro's",null,"N","",1]
[null,null,null,null,"zvkx01_c8012__TY0V01","*=Kostenverzamelstaat!$I$26",null,"Huisartsen- Meerkosten Corona toeslagen- incl balans","zvkx01","c8012",null,"TY0V01","Euro's",null,"N","",1]
[null,null,null,null,"zvkx01_a8012__TY0V01","*=Kostenverzamelstaat!$J$26",null,"Huisartsen- Meerkosten Corona toeslagen- geaccepteerd","zvkx01","a8012",null,"TY0V01","Euro's",null,"N","",1]
[null,null,null,null,"zvkx01_c8012__TY2V01","*=Kostenverzamelstaat!$M$26",null,"Huisartsen- Meerkosten Corona toeslagen- incl balans","zvkx01","c8012",null,"TY2V01","Euro's",null,"N","",1]
[null,null,null,null,"zvkx01_a8012__TY2V01","*=Kostenverzamelstaat!$N$26",null,"Huisartsen- Meerkosten Corona toeslagen- geaccepteerd","zvkx01","a8012",null,"TY2V01","Euro's",null,"N","",1]
[null,null,null,null,"zvkx01_c821__TY1V01","*=Kostenverzamelstaat!$K$27",null,"Huisartsen- Netto continuïteitsbijdrage Corona (basisverzekering)-  incl balans","zvkx01","c821",null,"TY1V01","Euro's",null,"N","",1]
[null,null,null,null,"zvkx01_a821__TY1V01","*=Kostenverzamelstaat!$L$27",null,"Huisartsen- Netto continuïteitsbijdrage Corona (basisverzekering)- geaccepteerd","zvkx01","a821",null,"TY1V01","Euro's",null,"N","",1]
[null,null,null,null,"zvkx01_c821__TY2V01","*=Kostenverzamelstaat!$M$27",null,"Huisartsen- Netto continuïteitsbijdrage Corona (basisverzekering)-  incl balans","zvkx01","c821",null,"TY2V01","Euro's",null,"N","",1]
[null,null,null,null,"zvkx01_a821__TY2V01","*=Kostenverzamelstaat!$N$27",null,"Huisartsen- Netto continuïteitsbijdrage Corona (basisverzekering)- geaccepteerd","zvkx01","a821",null,"TY2V01","Euro's",null,"N","",1]
[null,null,null,null,"zvkx01_c__TY0V01","*=Kostenverzamelstaat!$I$28"]
[null,null,null,null,"zvkx01_a__TY0V01","*=Kostenverzamelstaat!$J$28"]
[null,null,null,null,"zvkx01_c__TY1V01","*=Kostenverzamelstaat!$K$28"]
[null,null,null,null,"zvkx01_a__TY1V01","*=Kostenverzamelstaat!$L$28"]
[null,null,null,null,"zvkx01_c__TY2V01","*=Kostenverzamelstaat!$M$28"]
[null,null,null,null,"zvkx01_a__TY2V01","*=Kostenverzamelstaat!$N$28"]
[null,null,null,null,"zvkx02_c520__TY0V01","*=Kostenverzamelstaat!$I$30","","Farmaceutische hulp- incl balans","zvkx02","c520","","TY0V01","Euro's",null,"N","",1]
[null,null,null,null,"zvkx02_a520__TY0V01","*=Kostenverzamelstaat!$J$30","","Farmaceutische hulp- geaccepteerd","zvkx02","a520","","TY0V01","Euro's",null,"N","",1]
[null,null,null,null,"zvkx02_c520__TY1V01","*=Kostenverzamelstaat!$K$30","","Farmaceutische hulp- incl balans","zvkx02","c520","","TY1V01","Euro's",null,"N","",1]
[null,null,null,null,"zvkx02_a520__TY1V01","*=Kostenverzamelstaat!$L$30","","Farmaceutische hulp- geaccepteerd","zvkx02","a520","","TY1V01","Euro's",null,"N","",1]
[null,null,null,null,"zvkx02_c520__TY2V01","*=Kostenverzamelstaat!$M$30","","Farmaceutische hulp- incl balans","zvkx02","c520","","TY2V01","Euro's",null,"N","",1]
[null,null,null,null,"zvkx02_a520__TY2V01","*=Kostenverzamelstaat!$N$30","","Farmaceutische hulp- geaccepteerd","zvkx02","a520","","TY2V01","Euro's",null,"N","",1]
[null,null,null,null,"zvkx02_c8021__TY0V01","*=Kostenverzamelstaat!$I$32",null,"Farmaceutische hulp- Meerkosten Corona indirect- incl balans","zvkx02","c8021","","TY0V01","Euro's",null,"N","",1]
[null,null,null,null,"zvkx02_a8021__TY0V01","*=Kostenverzamelstaat!$J$32",null,"Farmaceutische hulp- Meerkosten Corona indirect- geaccepteerd","zvkx02","a8021","","TY0V01","Euro's",null,"N","",1]
[null,null,null,null,"zvkx02_c8021__TY2V01","*=Kostenverzamelstaat!$M$32",null,"Farmaceutische hulp- Meerkosten Corona indirect- incl balans","zvkx02","c8021","","TY2V01","Euro's",null,"N","",1]
[null,null,null,null,"zvkx02_a8021__TY2V01","*=Kostenverzamelstaat!$N$32",null,"Farmaceutische hulp- Meerkosten Corona indirect- geaccepteerd","zvkx02","a8021","","TY2V01","Euro's",null,"N","",1]
[null,null,null,null,"zvkx02_c8022__TY0V01","*=Kostenverzamelstaat!$I$33",null,"Farmaceutische hulp- Meerkosten Corona toeslagen- incl balans","zvkx02","c8022","","TY0V01","Euro's",null,"N","",1]
[null,null,null,null,"zvkx02_a8022__TY0V01","*=Kostenverzamelstaat!$J$33",null,"Farmaceutische hulp- Meerkosten Corona toeslagen- geaccepteerd","zvkx02","a8022","","TY0V01","Euro's",null,"N","",1]
[null,null,null,null,"zvkx02_c8022__TY2V01","*=Kostenverzamelstaat!$M$33",null,"Farmaceutische hulp- Meerkosten Corona toeslagen- incl balans","zvkx02","c8022","","TY2V01","Euro's",null,"N","",1]
[null,null,null,null,"zvkx02_a8022__TY2V01","*=Kostenverzamelstaat!$N$33",null,"Farmaceutische hulp- Meerkosten Corona toeslagen- geaccepteerd","zvkx02","a8022","","TY2V01","Euro's",null,"N","",1]
[null,null,null,null,"zvkx02_c822__TY1V01","*=Kostenverzamelstaat!$K$34",null,"Farmaceutische hulp-  Netto continuïteitsbijdrage Corona (basisverzekering)- incl balans","zvkx02","c822","","TY1V01","Euro's",null,"N","",1]
[null,null,null,null,"zvkx02_a822__TY1V01","*=Kostenverzamelstaat!$L$34",null,"Farmaceutische hulp-  Netto continuïteitsbijdrage Corona (basisverzekering)- geaccepteerd","zvkx02","a822","","TY1V01","Euro's",null,"N","",1]
[null,null,null,null,"zvkx02_c822__TY2V01","*=Kostenverzamelstaat!$M$34",null,"Farmaceutische hulp-  Netto continuïteitsbijdrage Corona (basisverzekering)- incl balans","zvkx02","c822","","TY2V01","Euro's",null,"N","",1]
[null,null,null,null,"zvkx02_a822__TY2V01","*=Kostenverzamelstaat!$N$34",null,"Farmaceutische hulp-  Netto continuïteitsbijdrage Corona (basisverzekering)- geaccepteerd","zvkx02","a822","","TY2V01","Euro's",null,"N","",1]
[null,null,null,null,"zvkx02_c__TY0V01","*=Kostenverzamelstaat!$I$35"]
[null,null,null,null,"zvkx02_a__TY0V01","*=Kostenverzamelstaat!$J$35"]
[null,null,null,null,"zvkx02_c__TY1V01","*=Kostenverzamelstaat!$K$35"]
[null,null,null,null,"zvkx02_a__TY1V01","*=Kostenverzamelstaat!$L$35"]
[null,null,null,null,"zvkx02_c__TY2V01","*=Kostenverzamelstaat!$M$35"]
[null,null,null,null,"zvkx02_a__TY2V01","*=Kostenverzamelstaat!$N$35"]
[null,null,null,null,"zvkx03_c530__TY0V01","*=Kostenverzamelstaat!$I$37","","Verpleging en verzorging- incl balans","zvkx03","c530","","TY0V01","Euro's",null,"N","",1]
[null,null,null,null,"zvkx03_a530__TY0V01","*=Kostenverzamelstaat!$J$37","","Verpleging en verzorging- geaccepteerd","zvkx03","a530","","TY0V01","Euro's",null,"N","",1]
[null,null,null,null,"zvkx03_c530__TY1V01","*=Kostenverzamelstaat!$K$37","","Verpleging en verzorging- incl balans","zvkx03","c530","","TY1V01","Euro's",null,"N","",1]
[null,null,null,null,"zvkx03_a530__TY1V01","*=Kostenverzamelstaat!$L$37","","Verpleging en verzorging- geaccepteerd","zvkx03","a530","","TY1V01","Euro's",null,"N","",1]
[null,null,null,null,"zvkx03_c530__TY2V01","*=Kostenverzamelstaat!$M$37","","Verpleging en verzorging- incl balans","zvkx03","c530","","TY2V01","Euro's",null,"N","",1]
[null,null,null,null,"zvkx03_a530__TY2V01","*=Kostenverzamelstaat!$N$37","","Verpleging en verzorging- geaccepteerd","zvkx03","a530","","TY2V01","Euro's",null,"N","",1]
[null,null,null,null,"zvkx03_c8031__TY0V01","*=Kostenverzamelstaat!$I$39",null,"Verpleging en verzorging- Meerkosten Corona indirect- incl balans","zvkx03","c8031","","TY0V01","Euro's",null,"N","",1]
[null,null,null,null,"zvkx03_a8031__TY0V01","*=Kostenverzamelstaat!$J$39",null,"Verpleging en verzorging- Meerkosten Corona indirect- geaccepteerd","zvkx03","a8031","","TY0V01","Euro's",null,"N","",1]
[null,null,null,null,"zvkx03_c8031__TY2V01","*=Kostenverzamelstaat!$M$39",null,"Verpleging en verzorging- Meerkosten Corona indirect- incl balans","zvkx03","c8031","","TY2V01","Euro's",null,"N","",1]
[null,null,null,null,"zvkx03_a8031__TY2V01","*=Kostenverzamelstaat!$N$39",null,"Verpleging en verzorging- Meerkosten Corona indirect- geaccepteerd","zvkx03","a8031","","TY2V01","Euro's",null,"N","",1]
[null,null,null,null,"zvkx03_c8032__TY0V01","*=Kostenverzamelstaat!$I$40",null,"Verpleging en verzorging- Meerkosten Corona toeslagen- incl balans","zvkx03","c8032","","TY0V01","Euro's",null,"N","",1]
[null,null,null,null,"zvkx03_a8032__TY0V01","*=Kostenverzamelstaat!$J$40",null,"Verpleging en verzorging- Meerkosten Corona toeslagen- geaccepteerd","zvkx03","a8032","","TY0V01","Euro's",null,"N","",1]
[null,null,null,null,"zvkx03_c8032__TY2V01","*=Kostenverzamelstaat!$M$40",null,"Verpleging en verzorging- Meerkosten Corona toeslagen- incl balans","zvkx03","c8032","","TY2V01","Euro's",null,"N","",1]
[null,null,null,null,"zvkx03_a8032__TY2V01","*=Kostenverzamelstaat!$N$40",null,"Verpleging en verzorging- Meerkosten Corona toeslagen- geaccepteerd","zvkx03","a8032","","TY2V01","Euro's",null,"N","",1]
[null,null,null,null,"zvkx03_c823__TY1V01","*=Kostenverzamelstaat!$K$41",null,"Verpleging en verzorging- Netto continuïteitsbijdrage Corona (basisverzekering)- incl balans","zvkx03","c823","","TY1V01","Euro's",null,"N","",1]
[null,null,null,null,"zvkx03_a823__TY1V01","*=Kostenverzamelstaat!$L$41",null,"Verpleging en verzorging- Netto continuïteitsbijdrage Corona (basisverzekering)- geaccepteerd","zvkx03","a823","","TY1V01","Euro's",null,"N","",1]
[null,null,null,null,"zvkx03_c823__TY2V01","*=Kostenverzamelstaat!$M$41",null,"Verpleging en verzorging- Netto continuïteitsbijdrage Corona (basisverzekering)- incl balans","zvkx03","c823","","TY2V01","Euro's",null,"N","",1]
[null,null,null,null,"zvkx03_a823__TY2V01","*=Kostenverzamelstaat!$N$41",null,"Verpleging en verzorging- Netto continuïteitsbijdrage Corona (basisverzekering)- geaccepteerd","zvkx03","a823","","TY2V01","Euro's",null,"N","",1]
[null,null,null,null,"zvkx03_c__TY0V01","*=Kostenverzamelstaat!$I$42"]
[null,null,null,null,"zvkx03_a__TY0V01","*=Kostenverzamelstaat!$J$42"]
[null,null,null,null,"zvkx03_c__TY1V01","*=Kostenverzamelstaat!$K$42"]
[null,null,null,null,"zvkx03_a__TY1V01","*=Kostenverzamelstaat!$L$42"]
[null,null,null,null,"zvkx03_c__TY2V01","*=Kostenverzamelstaat!$M$42"]
[null,null,null,null,"zvkx03_a__TY2V01","*=Kostenverzamelstaat!$N$42"]
[null,null,null,null,"zvkx04_c5601__TY0V01","*=Kostenverzamelstaat!$I$44","","Mondzorg- volwassen verzekerden- incl balans","zvkx04","c5601","","TY0V01","Euro's",null,"N","",1]
[null,null,null,null,"zvkx04_a5601__TY0V01","*=Kostenverzamelstaat!$J$44","","Mondzorg- volwassen verzekerden- geaccepteerd","zvkx04","a5601","","TY0V01","Euro's",null,"N","",1]
[null,null,null,null,"zvkx04_c5601__TY1V01","*=Kostenverzamelstaat!$K$44","","Mondzorg- volwassen verzekerden- incl balans","zvkx04","c5601","","TY1V01","Euro's",null,"N","",1]
[null,null,null,null,"zvkx04_a5601__TY1V01","*=Kostenverzamelstaat!$L$44","","Mondzorg- volwassen verzekerden- geaccepteerd","zvkx04","a5601","","TY1V01","Euro's",null,"N","",1]
[null,null,null,null,"zvkx04_c5601__TY2V01","*=Kostenverzamelstaat!$M$44","","Mondzorg- volwassen verzekerden- incl balans","zvkx04","c5601","","TY2V01","Euro's",null,"N","",1]
[null,null,null,null,"zvkx04_a5601__TY2V01","*=Kostenverzamelstaat!$N$44","","Mondzorg- volwassen verzekerden- geaccepteerd","zvkx04","a5601","","TY2V01","Euro's",null,"N","",1]
[null,null,null,null,"zvkx04_c5602__TY0V01","*=Kostenverzamelstaat!$I$45","","Mondzorg- jeugdige verzekerden- incl balans","zvkx04","c5602","","TY0V01","Euro's",null,"N","",1]
[null,null,null,null,"zvkx04_a5602__TY0V01","*=Kostenverzamelstaat!$J$45","","Mondzorg- jeugdige verzekerden- geaccepteerd","zvkx04","a5602","","TY0V01","Euro's",null,"N","",1]
[null,null,null,null,"zvkx04_c5602__TY1V01","*=Kostenverzamelstaat!$K$45","","Mondzorg- jeugdige verzekerden- incl balans","zvkx04","c5602","","TY1V01","Euro's",null,"N","",1]
[null,null,null,null,"zvkx04_a5602__TY1V01","*=Kostenverzamelstaat!$L$45","","Mondzorg- jeugdige verzekerden- geaccepteerd","zvkx04","a5602","","TY1V01","Euro's",null,"N","",1]
[null,null,null,null,"zvkx04_c5602__TY2V01","*=Kostenverzamelstaat!$M$45","","Mondzorg- jeugdige verzekerden- incl balans","zvkx04","c5602","","TY2V01","Euro's",null,"N","",1]
[null,null,null,null,"zvkx04_a5602__TY2V01","*=Kostenverzamelstaat!$N$45","","Mondzorg- jeugdige verzekerden- geaccepteerd","zvkx04","a5602","","TY2V01","Euro's",null,"N","",1]
[null,null,null,null,"zvkx04_c561__TY0V01","*=Kostenverzamelstaat!$I$46","","Mondzorg- gebitsprothesen- incl balans","zvkx04","c561","","TY0V01","Euro's",null,"N","",1]
[null,null,null,null,"zvkx04_a561__TY0V01","*=Kostenverzamelstaat!$J$46","","Mondzorg- gebitsprothesen- geaccepteerd","zvkx04","a561","","TY0V01","Euro's",null,"N","",1]
[null,null,null,null,"zvkx04_c561__TY1V01","*=Kostenverzamelstaat!$K$46","","Mondzorg- gebitsprothesen- incl balans","zvkx04","c561","","TY1V01","Euro's",null,"N","",1]
[null,null,null,null,"zvkx04_a561__TY1V01","*=Kostenverzamelstaat!$L$46","","Mondzorg- gebitsprothesen- geaccepteerd","zvkx04","a561","","TY1V01","Euro's",null,"N","",1]
[null,null,null,null,"zvkx04_c561__TY2V01","*=Kostenverzamelstaat!$M$46","","Mondzorg- gebitsprothesen- incl balans","zvkx04","c561","","TY2V01","Euro's",null,"N","",1]
[null,null,null,null,"zvkx04_a561__TY2V01","*=Kostenverzamelstaat!$N$46","","Mondzorg- gebitsprothesen- geaccepteerd","zvkx04","a561","","TY2V01","Euro's",null,"N","",1]
[null,null,null,null,"zvkx04_c8041__TY0V01","*=Kostenverzamelstaat!$I$48",null,"Mondzorg- Meerkosten Corona indirect-  incl balans","zvkx04","c8041",null,"TY0V01","Euro's",null,"N","",1]
[null,null,null,null,"zvkx04_a8041__TY0V01","*=Kostenverzamelstaat!$J$48",null,"Mondzorg- Meerkosten Corona indirect- geaccepteerd","zvkx04","a8041",null,"TY0V01","Euro's",null,"N","",1]
[null,null,null,null,"zvkx04_c8041__TY2V01","*=Kostenverzamelstaat!$M$48",null,"Mondzorg- Meerkosten Corona indirect-  incl balans","zvkx04","c8041",null,"TY2V01","Euro's",null,"N","",1]
[null,null,null,null,"zvkx04_a8041__TY2V01","*=Kostenverzamelstaat!$N48",null,"Mondzorg- Meerkosten Corona indirect- geaccepteerd","zvkx04","a8041",null,"TY2V01","Euro's",null,"N","",1]
[null,null,null,null,"zvkx04_c8042__TY0V01","*=Kostenverzamelstaat!$I$49",null,"Mondzorg- Meerkosten Corona toeslagen- incl balans","zvkx04","c8042",null,"TY0V01","Euro's",null,"N","",1]
[null,null,null,null,"zvkx04_a8042__TY0V01","*=Kostenverzamelstaat!$J$49",null,"Mondzorg- Meerkosten Corona toeslagen- geaccepteerd","zvkx04","a8042",null,"TY0V01","Euro's",null,"N","",1]
[null,null,null,null,"zvkx04_c8042__TY2V01","*=Kostenverzamelstaat!$M$49",null,"Mondzorg- Meerkosten Corona toeslagen- incl balans","zvkx04","c8042",null,"TY2V01","Euro's",null,"N","",1]
[null,null,null,null,"zvkx04_a8042__TY2V01","*=Kostenverzamelstaat!$N49",null,"Mondzorg- Meerkosten Corona toeslagen- geaccepteerd","zvkx04","a8042",null,"TY2V01","Euro's",null,"N","",1]
[null,null,null,null,"zvkx04_c824__TY1V01","*=Kostenverzamelstaat!$K$50",null,"Mondzorg- Netto continuïteitsbijdrage Corona (basisverzekering)- incl balans","zvkx04","c824",null,"TY1V01","Euro's",null,"N","",1]
[null,null,null,null,"zvkx04_a824__TY1V01","*=Kostenverzamelstaat!$L$50",null,"Mondzorg- Netto continuïteitsbijdrage Corona (basisverzekering)- geaccepteerd","zvkx04","a824",null,"TY1V01","Euro's",null,"N","",1]
[null,null,null,null,"zvkx04_c824__TY2V01","*=Kostenverzamelstaat!$M$50",null,"Mondzorg- Netto continuïteitsbijdrage Corona (basisverzekering)- incl balans","zvkx04","c824",null,"TY2V01","Euro's",null,"N","",1]
[null,null,null,null,"zvkx04_a824__TY2V01","*=Kostenverzamelstaat!$N$50",null,"Mondzorg- Netto continuïteitsbijdrage Corona (basisverzekering)- geaccepteerd","zvkx04","a824",null,"TY2V01","Euro's",null,"N","",1]
[null,null,null,null,"zvkx04_c__TY0V01","*=Kostenverzamelstaat!$I$51"]
[null,null,null,null,"zvkx04_a__TY0V01","*=Kostenverzamelstaat!$J$51"]
[null,null,null,null,"zvkx04_c__TY1V01","*=Kostenverzamelstaat!$K$51"]
[null,null,null,null,"zvkx04_a__TY1V01","*=Kostenverzamelstaat!$L$51"]
[null,null,null,null,"zvkx04_c__TY2V01","*=Kostenverzamelstaat!$M$51"]
[null,null,null,null,"zvkx04_a__TY2V01","*=Kostenverzamelstaat!$N$51"]
[null,null,null,null,"zvkx05_c580__TY0V01","*=Kostenverzamelstaat!$I$53","","Verloskundige hulp- door verloskundigen- incl balans","zvkx05","c580","","TY0V01","Euro's",null,"N","",1]
[null,null,null,null,"zvkx05_a580__TY0V01","*=Kostenverzamelstaat!$J$53","","Verloskundige hulp- door verloskundigen- geaccepteerd","zvkx05","a580","","TY0V01","Euro's",null,"N","",1]
[null,null,null,null,"zvkx05_c580__TY1V01","*=Kostenverzamelstaat!$K$53","","Verloskundige hulp- door verloskundigen- incl balans","zvkx05","c580","","TY1V01","Euro's",null,"N","",1]
[null,null,null,null,"zvkx05_a580__TY1V01","*=Kostenverzamelstaat!$L$53","","Verloskundige hulp- door verloskundigen- geaccepteerd","zvkx05","a580","","TY1V01","Euro's",null,"N","",1]
[null,null,null,null,"zvkx05_c580__TY2V01","*=Kostenverzamelstaat!$M$53","","Verloskundige hulp- door verloskundigen- incl balans","zvkx05","c580","","TY2V01","Euro's",null,"N","",1]
[null,null,null,null,"zvkx05_a580__TY2V01","*=Kostenverzamelstaat!$N$53","","Verloskundige hulp- door verloskundigen- geaccepteerd","zvkx05","a580","","TY2V01","Euro's",null,"N","",1]
[null,null,null,null,"zvkx05_c582__TY0V01","*=Kostenverzamelstaat!$I$54","","Verloskundige hulp- Integrale geboortezorg-  incl balans","zvkx05","a582","","TY0V01","Euro's",null,"N","",1]
[null,null,null,null,"zvkx05_a582__TY0V01","*=Kostenverzamelstaat!$J$54","","Verloskundige hulp- Integrale geboortezorg- geaccepteerd","zvkx05","a582","","TY0V01","Euro's",null,"N","",1]
[null,null,null,null,"zvkx05_c582__TY1V01","*=Kostenverzamelstaat!$K$54","","Verloskundige hulp- Integrale geboortezorg-  incl balans","zvkx05","a582","","TY1V01","Euro's",null,"N","",1]
[null,null,null,null,"zvkx05_a582__TY1V01","*=Kostenverzamelstaat!$L$54","","Verloskundige hulp- Integrale geboortezorg- geaccepteerd","zvkx05","a582","","TY1V01","Euro's",null,"N","",1]
[null,null,null,null,"zvkx05_c582__TY2V01","*=Kostenverzamelstaat!$M$54","","Verloskundige hulp- Integrale geboortezorg-  incl balans","zvkx05","a582","","TY2V01","Euro's",null,"N","",1]
[null,null,null,null,"zvkx05_a582__TY2V01","*=Kostenverzamelstaat!$N$54","","Verloskundige hulp- Integrale geboortezorg- geaccepteerd","zvkx05","a582","","TY2V01","Euro's",null,"N","",1]
[null,null,null,null,"zvkx05_c8051__TY0V01","*=Kostenverzamelstaat!$I$56",null,"Verloskundige hulp- Meerkosten Corona indirect- incl balans","zvkx05","c8051",null,"TY0V01","Euro's",null,"N","",1]
[null,null,null,null,"zvkx05_a8051__TY0V01","*=Kostenverzamelstaat!$J$56",null,"Verloskundige hulp- Meerkosten Corona indirect- geaccepteerd","zvkx05","a8051",null,"TY0V01","Euro's",null,"N","",1]
[null,null,null,null,"zvkx05_c8051__TY2V01","*=Kostenverzamelstaat!$M$56",null,"Verloskundige hulp- Meerkosten Corona indirect- incl balans","zvkx05","c8051",null,"TY2V01","Euro's",null,"N","",1]
[null,null,null,null,"zvkx05_a8051__TY2V01","*=Kostenverzamelstaat!$N$56",null,"Verloskundige hulp- Meerkosten Corona indirect- geaccepteerd","zvkx05","a8051",null,"TY2V01","Euro's",null,"N","",1]
[null,null,null,null,"zvkx05_c8052__TY0V01","*=Kostenverzamelstaat!$I$57",null,"Verloskundige hulp- Meerkosten Corona toeslagen- incl balans","zvkx05","c8052",null,"TY0V01","Euro's",null,"N","",1]
[null,null,null,null,"zvkx05_a8052__TY0V01","*=Kostenverzamelstaat!$J$57",null,"Verloskundige hulp- Meerkosten Corona toeslagen- geaccepteerd","zvkx05","a8052",null,"TY0V01","Euro's",null,"N","",1]
[null,null,null,null,"zvkx05_c8052__TY2V01","*=Kostenverzamelstaat!$M$57",null,"Verloskundige hulp- Meerkosten Corona toeslagen- incl balans","zvkx05","c8052",null,"TY2V01","Euro's",null,"N","",1]
[null,null,null,null,"zvkx05_a8052__TY2V01","*=Kostenverzamelstaat!$N$57",null,"Verloskundige hulp- Meerkosten Corona toeslagen- geaccepteerd","zvkx05","a8052",null,"TY2V01","Euro's",null,"N","",1]
[null,null,null,null,"zvkx05_c825__TY1V01","*=Kostenverzamelstaat!$K$58",null,"Verloskundige hulp- Netto continuïteitsbijdrage Corona (basisverzekering)- incl balans","zvkx05","c825",null,"TY1V01","Euro's",null,"N","",1]
[null,null,null,null,"zvkx05_a825__TY1V01","*=Kostenverzamelstaat!$L$58",null,"Verloskundige hulp- Netto continuïteitsbijdrage Corona (basisverzekering)- geaccepteerd","zvkx05","a825",null,"TY1V01","Euro's",null,"N","",1]
[null,null,null,null,"zvkx05_c825__TY2V01","*=Kostenverzamelstaat!$M$58",null,"Verloskundige hulp- Netto continuïteitsbijdrage Corona (basisverzekering)- incl balans","zvkx05","c825",null,"TY2V01","Euro's",null,"N","",1]
[null,null,null,null,"zvkx05_a825__TY2V01","*=Kostenverzamelstaat!$N$58",null,"Verloskundige hulp- Netto continuïteitsbijdrage Corona (basisverzekering)- geaccepteerd","zvkx05","a825",null,"TY2V01","Euro's",null,"N","",1]
[null,null,null,null,"zvkx05_c__TY0V01","*=Kostenverzamelstaat!$I$59"]
[null,null,null,null,"zvkx05_a__TY0V01","*=Kostenverzamelstaat!$J$59"]
[null,null,null,null,"zvkx05_c__TY1V01","*=Kostenverzamelstaat!$K$59"]
[null,null,null,null,"zvkx05_a__TY1V01","*=Kostenverzamelstaat!$L$59"]
[null,null,null,null,"zvkx05_c__TY2V01","*=Kostenverzamelstaat!$M$59"]
[null,null,null,null,"zvkx05_a__TY2V01","*=Kostenverzamelstaat!$N$59"]
[null,null,null,null,"zvkx06_c545__TY0V01","*=Kostenverzamelstaat!$I$72","","Medisch specialistische hulp- mondziekten en kaakchirurgie- incl balans","zvkx06","c545","","TY0V01","Euro's",null,"N","",1]
[null,null,null,null,"zvkx06_a545__TY0V01","*=Kostenverzamelstaat!$J$72","","Medisch specialistische hulp- mondziekten en kaakchirurgie- geaccepteerd","zvkx06","a545","","TY0V01","Euro's",null,"N","",1]
[null,null,null,null,"zvkx06_c545__TY1V01","*=Kostenverzamelstaat!$K$72","","Medisch specialistische hulp- mondziekten en kaakchirurgie- incl balans","zvkx06","c545","","TY1V01","Euro's",null,"N","",1]
[null,null,null,null,"zvkx06_a545__TY1V01","*=Kostenverzamelstaat!$L$72","","Medisch specialistische hulp- mondziekten en kaakchirurgie- geaccepteerd","zvkx06","a545","","TY1V01","Euro's",null,"N","",1]
[null,null,null,null,"zvkx06_c545__TY2V01","*=Kostenverzamelstaat!$M$72","","Medisch specialistische hulp- mondziekten en kaakchirurgie- incl balans","zvkx06","c545","","TY2V01","Euro's",null,"N","",1]
[null,null,null,null,"zvkx06_a545__TY2V01","*=Kostenverzamelstaat!$N$72","","Medisch specialistische hulp- mondziekten en kaakchirurgie- geaccepteerd","zvkx06","a545","","TY2V01","Euro's",null,"N","",1]
[null,null,null,null,"zvkx06_c610__TY0V01","*=Kostenverzamelstaat!$I$73","","Medisch specialistische hulp- Overige ziekenhuiszorg,curatief- incl balans","zvkx06","c610","","TY0V01","Euro's",null,"N","",1]
[null,null,null,null,"zvkx06_a610__TY0V01","*=Kostenverzamelstaat!$J$73","","Medisch specialistische hulp- Overige ziekenhuiszorg,curatief- geaccepteerd","zvkx06","a610","","TY0V01","Euro's",null,"N","",1]
[null,null,null,null,"zvkx06_c610__TY1V01","*=Kostenverzamelstaat!$K$73","","Medisch specialistische hulp- Overige ziekenhuiszorg,curatief- incl balans","zvkx06","c610","","TY1V01","Euro's",null,"N","",1]
[null,null,null,null,"zvkx06_a610__TY1V01","*=Kostenverzamelstaat!$L$73","","Medisch specialistische hulp- Overige ziekenhuiszorg,curatief- geaccepteerd","zvkx06","a610","","TY1V01","Euro's",null,"N","",1]
[null,null,null,null,"zvkx06_c610__TY2V01","*=Kostenverzamelstaat!$M$73","","Medisch specialistische hulp- Overige ziekenhuiszorg,curatief- incl balans","zvkx06","c610","","TY2V01","Euro's",null,"N","",1]
[null,null,null,null,"zvkx06_a610__TY2V01","*=Kostenverzamelstaat!$N$73","","Medisch specialistische hulp- Overige ziekenhuiszorg,curatief- geaccepteerd","zvkx06","a610","","TY2V01","Euro's",null,"N","",1]
[null,null,null,null,"zvkx06_c611__TY0V01","*=Kostenverzamelstaat!$I$74","","Medisch specialistische hulp- Overige zorg- incl balans","zvkx06","c611","","TY0V01","Euro's",null,"N","",1]
[null,null,null,null,"zvkx06_a611__TY0V01","*=Kostenverzamelstaat!$J$74","","Medisch specialistische hulp- Overige zorg- geaccepteerd","zvkx06","a611","","TY0V01","Euro's",null,"N","",1]
[null,null,null,null,"zvkx06_c611__TY1V01","*=Kostenverzamelstaat!$K$74","","Medisch specialistische hulp- Overige zorg- incl balans","zvkx06","c611","","TY1V01","Euro's",null,"N","",1]
[null,null,null,null,"zvkx06_a611__TY1V01","*=Kostenverzamelstaat!$L$74","","Medisch specialistische hulp- Overige zorg- geaccepteerd","zvkx06","a611","","TY1V01","Euro's",null,"N","",1]
[null,null,null,null,"zvkx06_c611__TY2V01","*=Kostenverzamelstaat!$M$74","","Medisch specialistische hulp- Overige zorg- incl balans","zvkx06","c611","","TY2V01","Euro's",null,"N","",1]
[null,null,null,null,"zvkx06_a611__TY2V01","*=Kostenverzamelstaat!$N$74","","Medisch specialistische hulp- Overige zorg- geaccepteerd","zvkx06","a611","","TY2V01","Euro's",null,"N","",1]
[null,null,null,null,"zvkx06_c6121__TY0V01","*=Kostenverzamelstaat!$I$75","","Medisch specialistische hulp- add-on's Dure geneesmiddelen- incl balans","zvkx06","c6121","","TY0V01","Euro's",null,"N","",1]
[null,null,null,null,"zvkx06_a6121__TY0V01","*=Kostenverzamelstaat!$J$75","","Medisch specialistische hulp- add-on's Dure geneesmiddelen- geaccepteerd","zvkx06","a6121","","TY0V01","Euro's",null,"N","",1]
[null,null,null,null,"zvkx06_c6121__TY1V01","*=Kostenverzamelstaat!$K$75","","Medisch specialistische hulp- add-on's Dure geneesmiddelen- incl balans","zvkx06","c6121","","TY1V01","Euro's",null,"N","",1]
[null,null,null,null,"zvkx06_a6121__TY1V01","*=Kostenverzamelstaat!$L75","","Medisch specialistische hulp- add-on's Dure geneesmiddelen- geaccepteerd","zvkx06","a6121","","TY1V01","Euro's",null,"N","",1]
[null,null,null,null,"zvkx06_c6121__TY2V01","*=Kostenverzamelstaat!$M$75","","Medisch specialistische hulp- add-on's Dure geneesmiddelen- incl balans","zvkx06","c6121","","TY2V01","Euro's",null,"N","",1]
[null,null,null,null,"zvkx06_a6121__TY2V01","*=Kostenverzamelstaat!$N$75","","Medisch specialistische hulp- add-on's Dure geneesmiddelen- geaccepteerd","zvkx06","a6121","","TY2V01","Euro's",null,"N","",1]
[null,null,null,null,"zvkx06_c6122__TY0V01","*=Kostenverzamelstaat!$I$76","","Medisch specialistische hulp- IC- incl balans","zvkx06","c6122","","TY0V01","Euro's",null,"N","",1]
[null,null,null,null,"zvkx06_a6122__TY0V01","*=Kostenverzamelstaat!$J$76","","Medisch specialistische hulp- IC- geaccepteerd","zvkx06","a6122","","TY0V01","Euro's",null,"N","",1]
[null,null,null,null,"zvkx06_c6122__TY1V01","*=Kostenverzamelstaat!$K$76","","Medisch specialistische hulp- IC- incl balans","zvkx06","c6122","","TY1V01","Euro's",null,"N","",1]
[null,null,null,null,"zvkx06_a6122__TY1V01","*=Kostenverzamelstaat!$L$76","","Medisch specialistische hulp- IC- geaccepteerd","zvkx06","a6122","","TY1V01","Euro's",null,"N","",1]
[null,null,null,null,"zvkx06_c6122__TY2V01","*=Kostenverzamelstaat!$M$76","","Medisch specialistische hulp- IC- incl balans","zvkx06","c6122","","TY2V01","Euro's",null,"N","",1]
[null,null,null,null,"zvkx06_a6122__TY2V01","*=Kostenverzamelstaat!$N$76","","Medisch specialistische hulp- IC- geaccepteerd","zvkx06","a6122","","TY2V01","Euro's",null,"N","",1]
[null,null,null,null,"zvkx06_c6131__TY0V01","*=Kostenverzamelstaat!$I$77","","Medisch specialistische hulp- Integraal DBC-zorgproduct gereguleerd- incl balans","zvkx06","c6131","","TY0V01","Euro's",null,"N","",1]
[null,null,null,null,"zvkx06_a6131__TY0V01","*=Kostenverzamelstaat!$J$77","","Medisch specialistische hulp- Integraal DBC-zorgproduct gereguleerd- geaccepteerd","zvkx06","a6131","","TY0V01","Euro's",null,"N","",1]
[null,null,null,null,"zvkx06_c6131__TY1V01","*=Kostenverzamelstaat!$K$77","","Medisch specialistische hulp- Integraal DBC-zorgproduct gereguleerd- incl balans","zvkx06","c6131","","TY1V01","Euro's",null,"N","",1]
[null,null,null,null,"zvkx06_a6131__TY1V01","*=Kostenverzamelstaat!$L$77","","Medisch specialistische hulp- Integraal DBC-zorgproduct gereguleerd- geaccepteerd","zvkx06","a6131","","TY1V01","Euro's",null,"N","",1]
[null,null,null,null,"zvkx06_c6131__TY2V01","*=Kostenverzamelstaat!$M$77","","Medisch specialistische hulp- Integraal DBC-zorgproduct gereguleerd- incl balans","zvkx06","c6131","","TY2V01","Euro's",null,"N","",1]
[null,null,null,null,"zvkx06_a6131__TY2V01","*=Kostenverzamelstaat!$N$77","","Medisch specialistische hulp- Integraal DBC-zorgproduct gereguleerd- geaccepteerd","zvkx06","a6131","","TY2V01","Euro's",null,"N","",1]
[null,null,null,null,"zvkx06_c6151__TY0V01","*=Kostenverzamelstaat!$I$78","","Medisch specialistische hulp- Integraal DBC-zorgproduct vrije segment- incl balans","zvkx06","c6151","","TY0V01","Euro's",null,"N","",1]
[null,null,null,null,"zvkx06_a6151__TY0V01","*=Kostenverzamelstaat!$J$78","","Medisch specialistische hulp- Integraal DBC-zorgproduct vrije segment- geaccepteerd","zvkx06","a6151","","TY0V01","Euro's",null,"N","",1]
[null,null,null,null,"zvkx06_c6151__TY1V01","*=Kostenverzamelstaat!$K$78","","Medisch specialistische hulp- Integraal DBC-zorgproduct vrije segment- incl balans","zvkx06","c6151","","TY1V01","Euro's",null,"N","",1]
[null,null,null,null,"zvkx06_a6151__TY1V01","*=Kostenverzamelstaat!$L$78","","Medisch specialistische hulp- Integraal DBC-zorgproduct vrije segment- geaccepteerd","zvkx06","a6151","","TY1V01","Euro's",null,"N","",1]
[null,null,null,null,"zvkx06_c6151__TY2V01","*=Kostenverzamelstaat!$M$78","","Medisch specialistische hulp- Integraal DBC-zorgproduct vrije segment- incl balans","zvkx06","c6151","","TY2V01","Euro's",null,"N","",1]
[null,null,null,null,"zvkx06_a6151__TY2V01","*=Kostenverzamelstaat!$N$78","","Medisch specialistische hulp- Integraal DBC-zorgproduct vrije segment- geaccepteerd","zvkx06","a6151","","TY2V01","Euro's",null,"N","",1]
[null,null,null,null,"zvkx06_c619__TY0V01","*=Kostenverzamelstaat!$I$79","","Medisch specialistische hulp- honoraria extramuraal- incl balans","zvkx06","c619","","TY0V01","Euro's",null,"N","",1]
[null,null,null,null,"zvkx06_a619__TY0V01","*=Kostenverzamelstaat!$J$79","","Medisch specialistische hulp- honoraria extramuraal- geaccepteerd","zvkx06","a619","","TY0V01","Euro's",null,"N","",1]
[null,null,null,null,"zvkx06_c619__TY1V01","*=Kostenverzamelstaat!$K$79","","Medisch specialistische hulp- honoraria extramuraal- incl balans","zvkx06","c619","","TY1V01","Euro's",null,"N","",1]
[null,null,null,null,"zvkx06_a619__TY1V01","*=Kostenverzamelstaat!$L$79","","Medisch specialistische hulp- honoraria extramuraal- geaccepteerd","zvkx06","a619","","TY1V01","Euro's",null,"N","",1]
[null,null,null,null,"zvkx06_c619__TY2V01","*=Kostenverzamelstaat!$M$79","","Medisch specialistische hulp- honoraria extramuraal- incl balans","zvkx06","c619","","TY2V01","Euro's",null,"N","",1]
[null,null,null,null,"zvkx06_a619__TY2V01","*=Kostenverzamelstaat!$N$79","","Medisch specialistische hulp- honoraria extramuraal- geaccepteerd","zvkx06","a619","","TY2V01","Euro's",null,"N","",1]
[null,null,null,null,"zvkx06_c8061__TY0V01","*=Kostenverzamelstaat!$I$81",null,"Medisch specialistische hulp- Meerkosten Corona indirect en toeslagen- incl balans","zvkx06","c8061",null,"TY0V01","Euro's",null,"N","",1]
[null,null,null,null,"zvkx06_a8061__TY0V01","*=Kostenverzamelstaat!$J$81",null,"Medisch specialistische hulp- Meerkosten Corona indirect en toeslagen- geaccepteerd","zvkx06","a8061",null,"TY0V01","Euro's",null,"N","",1]
[null,null,null,null,"zvkx06_c8061__TY2V01","*=Kostenverzamelstaat!$M$81",null,"Medisch specialistische hulp- Meerkosten Corona indirect en toeslagen- incl balans","zvkx06","c8061",null,"TY2V01","Euro's",null,"N","",1]
[null,null,null,null,"zvkx06_a8061__TY2V01","*=Kostenverzamelstaat!$N$81",null,"Medisch specialistische hulp- Meerkosten Corona indirect en toeslagen- geaccepteerd","zvkx06","a8061",null,"TY2V01","Euro's",null,"N","",1]
[null,null,null,null,"zvkx06_c8062__TY0V01","*=Kostenverzamelstaat!$I$82",null,"Medisch specialistische hulp- Meerkosten Corona indirect en toeslagen- incl balans","zvkx06","c8062",null,"TY0V01","Euro's",null,"N","",1]
[null,null,null,null,"zvkx06_a8062__TY0V01","*=Kostenverzamelstaat!$J$82",null,"Medisch specialistische hulp- Meerkosten Corona indirect en toeslagen- geaccepteerd","zvkx06","a8062",null,"TY0V01","Euro's",null,"N","",1]
[null,null,null,null,"zvkx06_c8062__TY2V01","*=Kostenverzamelstaat!$M$82",null,"Medisch specialistische hulp- Meerkosten Corona indirect en toeslagen- incl balans","zvkx06","c8062",null,"TY2V01","Euro's",null,"N","",1]
[null,null,null,null,"zvkx06_a8062__TY2V01","*=Kostenverzamelstaat!$N$82",null,"Medisch specialistische hulp- Meerkosten Corona indirect en toeslagen- geaccepteerd","zvkx06","a8062",null,"TY2V01","Euro's",null,"N","",1]
[null,null,null,null,"zvkx06_c826__TY1V01","*=Kostenverzamelstaat!$K$83",null,"Medisch specialistische hulp- Netto continuïteitsbijdrage Corona (basisverzekering)- incl balans","zvkx06","c826",null,"TY1V01","Euro's",null,"N","",1]
[null,null,null,null,"zvkx06_a826__TY1V01","*=Kostenverzamelstaat!$L$83",null,"Medisch specialistische hulp- Netto continuïteitsbijdrage Corona (basisverzekering)- geaccepteerd","zvkx06","a826",null,"TY1V01","Euro's",null,"N","",1]
[null,null,null,null,"zvkx06_c826__TY2V01","*=Kostenverzamelstaat!$M$83",null,"Medisch specialistische hulp- Netto continuïteitsbijdrage Corona (basisverzekering)- incl balans","zvkx06","c826",null,"TY2V01","Euro's",null,"N","",1]
[null,null,null,null,"zvkx06_a826__TY2V01","*=Kostenverzamelstaat!$N$83",null,"Medisch specialistische hulp- Netto continuïteitsbijdrage Corona (basisverzekering)- geaccepteerd","zvkx06","a826",null,"TY2V01","Euro's",null,"N","",1]
[null,null,null,null,"zvkx06_c__TY0V01","*=Kostenverzamelstaat!$I$84"]
[null,null,null,null,"zvkx06_a__TY0V01","*=Kostenverzamelstaat!$J$84"]
[null,null,null,null,"zvkx06_c__TY1V01","*=Kostenverzamelstaat!$K$84"]
[null,null,null,null,"zvkx06_a__TY1V01","*=Kostenverzamelstaat!$L$84"]
[null,null,null,null,"zvkx06_c__TY2V01","*=Kostenverzamelstaat!$M$84"]
[null,null,null,null,"zvkx06_a__TY2V01","*=Kostenverzamelstaat!$N$84"]
[null,null,null,null,"zvkx07_c620__TY0V01","*=Kostenverzamelstaat!$I$86","","paramedische hulp- fysiotherapie- incl balans","zvkx07","c620","","TY0V01","Euro's",null,"N","",1]
[null,null,null,null,"zvkx07_a620__TY0V01","*=Kostenverzamelstaat!$J$86","","paramedische hulp- fysiotherapie- geaccepteerd","zvkx07","a620","","TY0V01","Euro's",null,"N","",1]
[null,null,null,null,"zvkx07_c620__TY1V01","*=Kostenverzamelstaat!$K$86","","paramedische hulp- fysiotherapie- incl balans","zvkx07","c620","","TY1V01","Euro's",null,"N","",1]
[null,null,null,null,"zvkx07_a620__TY1V01","*=Kostenverzamelstaat!$L$86","","paramedische hulp- fysiotherapie- geaccepteerd","zvkx07","a620","","TY1V01","Euro's",null,"N","",1]
[null,null,null,null,"zvkx07_c620__TY2V01","*=Kostenverzamelstaat!$M$86","","paramedische hulp- fysiotherapie- incl balans","zvkx07","c620","","TY2V01","Euro's",null,"N","",1]
[null,null,null,null,"zvkx07_a620__TY2V01","*=Kostenverzamelstaat!$N$86","","paramedische hulp- fysiotherapie- geaccepteerd","zvkx07","a620","","TY2V01","Euro's",null,"N","",1]
[null,null,null,null,"zvkx07_c621__TY0V01","*=Kostenverzamelstaat!$I$87","","paramedische hulp- Mensendieck/Cesar- incl balans","zvkx07","c621","","TY0V01","Euro's",null,"N","",1]
[null,null,null,null,"zvkx07_a621__TY0V01","*=Kostenverzamelstaat!$J$87","","paramedische hulp- Mensendieck/Cesar- geaccepteerd","zvkx07","a621","","TY0V01","Euro's",null,"N","",1]
[null,null,null,null,"zvkx07_c621__TY1V01","*=Kostenverzamelstaat!$K$87","","paramedische hulp- Mensendieck/Cesar- incl balans","zvkx07","c621","","TY1V01","Euro's",null,"N","",1]
[null,null,null,null,"zvkx07_a621__TY1V01","*=Kostenverzamelstaat!$L$87","","paramedische hulp- Mensendieck/Cesar- geaccepteerd","zvkx07","a621","","TY1V01","Euro's",null,"N","",1]
[null,null,null,null,"zvkx07_c621__TY2V01","*=Kostenverzamelstaat!$M$87","","paramedische hulp- Mensendieck/Cesar- incl balans","zvkx07","c621","","TY2V01","Euro's",null,"N","",1]
[null,null,null,null,"zvkx07_a621__TY2V01","*=Kostenverzamelstaat!$N$87","","paramedische hulp- Mensendieck/Cesar- geaccepteerd","zvkx07","a621","","TY2V01","Euro's",null,"N","",1]
[null,null,null,null,"zvkx07_c623__TY0V01","*=Kostenverzamelstaat!$I$88","","paramedische hulp- logopedie- incl balans","zvkx07","c623","","TY0V01","Euro's",null,"N","",1]
[null,null,null,null,"zvkx07_a623__TY0V01","*=Kostenverzamelstaat!$J$88","","paramedische hulp- logopedie- geaccepteerd","zvkx07","a623","","TY0V01","Euro's",null,"N","",1]
[null,null,null,null,"zvkx07_c623__TY1V01","*=Kostenverzamelstaat!$K$88","","paramedische hulp- logopedie- incl balans","zvkx07","c623","","TY1V01","Euro's",null,"N","",1]
[null,null,null,null,"zvkx07_a623__TY1V01","*=Kostenverzamelstaat!$L$88","","paramedische hulp- logopedie- geaccepteerd","zvkx07","a623","","TY1V01","Euro's",null,"N","",1]
[null,null,null,null,"zvkx07_c623__TY2V01","*=Kostenverzamelstaat!$M$88","","paramedische hulp- logopedie- incl balans","zvkx07","c623","","TY2V01","Euro's",null,"N","",1]
[null,null,null,null,"zvkx07_a623__TY2V01","*=Kostenverzamelstaat!$N$88","","paramedische hulp- logopedie- geaccepteerd","zvkx07","a623","","TY2V01","Euro's",null,"N","",1]
[null,null,null,null,"zvkx07_c624__TY0V01","*=Kostenverzamelstaat!$I$89","","paramedische hulp- ergotherapie- incl balans","zvkx07","c624","","TY0V01","Euro's",null,"N","",1]
[null,null,null,null,"zvkx07_a624__TY0V01","*=Kostenverzamelstaat!$J$89","","paramedische hulp- ergotherapie- geaccepteerd","zvkx07","a624","","TY0V01","Euro's",null,"N","",1]
[null,null,null,null,"zvkx07_c624__TY1V01","*=Kostenverzamelstaat!$K$89","","paramedische hulp- ergotherapie- incl balans","zvkx07","c624","","TY1V01","Euro's",null,"N","",1]
[null,null,null,null,"zvkx07_a624__TY1V01","*=Kostenverzamelstaat!$L$89","","paramedische hulp- ergotherapie- geaccepteerd","zvkx07","a624","","TY1V01","Euro's",null,"N","",1]
[null,null,null,null,"zvkx07_c624__TY2V01","*=Kostenverzamelstaat!$M$89","","paramedische hulp- ergotherapie- incl balans","zvkx07","c624","","TY2V01","Euro's",null,"N","",1]
[null,null,null,null,"zvkx07_a624__TY2V01","*=Kostenverzamelstaat!$N$89","","paramedische hulp- ergotherapie- geaccepteerd","zvkx07","a624","","TY2V01","Euro's",null,"N","",1]
[null,null,null,null,"zvkx07_c625__TY0V01","*=Kostenverzamelstaat!$I$90","","paramedische hulp- dieetadvisering- incl balans","zvkx07","c625","","TY0V01","Euro's",null,"N","",1]
[null,null,null,null,"zvkx07_a625__TY0V01","*=Kostenverzamelstaat!$J$90","","paramedische hulp- dieetadvisering- geaccepteerd","zvkx07","a625","","TY0V01","Euro's",null,"N","",1]
[null,null,null,null,"zvkx07_c625__TY1V01","*=Kostenverzamelstaat!$K$90","","paramedische hulp- dieetadvisering- incl balans","zvkx07","c625","","TY1V01","Euro's",null,"N","",1]
[null,null,null,null,"zvkx07_a625__TY1V01","*=Kostenverzamelstaat!$L$90","","paramedische hulp- dieetadvisering- geaccepteerd","zvkx07","a625","","TY1V01","Euro's",null,"N","",1]
[null,null,null,null,"zvkx07_c625__TY2V01","*=Kostenverzamelstaat!$M$90","","paramedische hulp- dieetadvisering- incl balans","zvkx07","c625","","TY2V01","Euro's",null,"N","",1]
[null,null,null,null,"zvkx07_a625__TY2V01","*=Kostenverzamelstaat!$N$90","","paramedische hulp- dieetadvisering- geaccepteerd","zvkx07","a625","","TY2V01","Euro's",null,"N","",1]
[null,null,null,null,"zvkx07_c626__TY0V01","*=Kostenverzamelstaat!$I$91","","paramedische hulp- GLI-  incl balans","zvkx07","c626","","TY0V01","Euro's",null,"N","",1]
[null,null,null,null,"zvkx07_a626__TY0V01","*=Kostenverzamelstaat!$J$91","","paramedische hulp- GLI- geaccepteerd","zvkx07","a625","","TY0V01","Euro's",null,"N","",1]
[null,null,null,null,"zvkx07_c626__TY1V01","*=Kostenverzamelstaat!$K$91","","paramedische hulp- GLI-  incl balans","zvkx07","a625","","TY1V01","Euro's",null,"N","",1]
[null,null,null,null,"zvkx07_a626__TY1V01","*=Kostenverzamelstaat!$L$91","","paramedische hulp- GLI- geaccepteerd","zvkx07","a625","","TY1V01","Euro's",null,"N","",1]
[null,null,null,null,"zvkx07_c626__TY2V01","*=Kostenverzamelstaat!$M$91","","paramedische hulp- GLI-  incl balans","zvkx07","a625","","TY2V01","Euro's",null,"N","",1]
[null,null,null,null,"zvkx07_a626__TY2V01","*=Kostenverzamelstaat!$N$91","","paramedische hulp- GLI- geaccepteerd","zvkx07","a625","","TY2V01","Euro's",null,"N","",1]
[null,null,null,null,"zvkx07_c8071__TY0V01","*=Kostenverzamelstaat!$I$93",null,"paramedische hulp-  Meerkosten Corona indirect- incl balans","zvkx07","c8071",null,"TY0V01","Euro's",null,"N","",1]
[null,null,null,null,"zvkx07_a8071__TY0V01","*=Kostenverzamelstaat!$J$93",null,"paramedische hulp-  Meerkosten Corona indirect- geaccepteerd","zvkx07","a8071",null,"TY0V01","Euro's",null,"N","",1]
[null,null,null,null,"zvkx07_c8071__TY2V01","*=Kostenverzamelstaat!$M$93",null,"paramedische hulp-  Meerkosten Corona indirect- incl balans","zvkx07","c8071",null,"TY2V01","Euro's",null,"N","",1]
[null,null,null,null,"zvkx07_a8071__TY2V01","*=Kostenverzamelstaat!$N$93",null,"paramedische hulp-  Meerkosten Corona indirect- geaccepteerd","zvkx07","a8071",null,"TY2V01","Euro's",null,"N","",1]
[null,null,null,null,"zvkx07_c8072__TY0V01","*=Kostenverzamelstaat!$I$94",null,"paramedische hulp-  Meerkosten Corona toeslagen- incl balans","zvkx07","c8072",null,"TY0V01","Euro's",null,"N","",1]
[null,null,null,null,"zvkx07_a8072__TY0V01","*=Kostenverzamelstaat!$J$94",null,"paramedische hulp-  Meerkosten Corona toeslagen- geaccepteerd","zvkx07","a8072",null,"TY0V01","Euro's",null,"N","",1]
[null,null,null,null,"zvkx07_c8072__TY2V01","*=Kostenverzamelstaat!$M$94",null,"paramedische hulp-  Meerkosten Corona toeslagen- incl balans","zvkx07","c8072",null,"TY2V01","Euro's",null,"N","",1]
[null,null,null,null,"zvkx07_a8072__TY2V01","*=Kostenverzamelstaat!$N$94",null,"paramedische hulp-  Meerkosten Corona toeslagen- geaccepteerd","zvkx07","a8072",null,"TY2V01","Euro's",null,"N","",1]
[null,null,null,null,"zvkx07_c827__TY1V01","*=Kostenverzamelstaat!$K$95",null,"paramedische hulp-Netto continuïteitsbijdrage Corona (basisverzekering)- incl balans","zvkx07","c827",null,"TY1V01","Euro's",null,"N","",1]
[null,null,null,null,"zvkx07_a827__TY1V01","*=Kostenverzamelstaat!$L$95",null,"paramedische hulp-Netto continuïteitsbijdrage Corona (basisverzekering)- geaccepteerd","zvkx07","a827",null,"TY1V01","Euro's",null,"N","",1]
[null,null,null,null,"zvkx07_c827__TY2V01","*=Kostenverzamelstaat!$M$95",null,"paramedische hulp-Netto continuïteitsbijdrage Corona (basisverzekering)- incl balans","zvkx07","c827",null,"TY2V01","Euro's",null,"N","",1]
[null,null,null,null,"zvkx07_a827__TY2V01","*=Kostenverzamelstaat!$N$95",null,"paramedische hulp-Netto continuïteitsbijdrage Corona (basisverzekering)- geaccepteerd","zvkx07","a827",null,"TY2V01","Euro's",null,"N","",1]
[null,null,null,null,"zvkx07_c__TY0V01","*=Kostenverzamelstaat!$I$96"]
[null,null,null,null,"zvkx07_a__TY0V01","*=Kostenverzamelstaat!$J$96"]
[null,null,null,null,"zvkx07_c__TY1V01","*=Kostenverzamelstaat!$K$96"]
[null,null,null,null,"zvkx07_a__TY1V01","*=Kostenverzamelstaat!$L$96"]
[null,null,null,null,"zvkx07_c__TY2V01","*=Kostenverzamelstaat!$M$96"]
[null,null,null,null,"zvkx07_a__TY2V01","*=Kostenverzamelstaat!$N$96"]
[null,null,null,null,"zvkx08_c640__TY0V01","*=Kostenverzamelstaat!$I$98","","Hulpmiddelen-- incl balans","zvkx08","c640","","TY0V01","Euro's",null,"N","",1]
[null,null,null,null,"zvkx08_a640__TY0V01","*=Kostenverzamelstaat!$J$98","","Hulpmiddelen-- geaccepteerd","zvkx08","a640","","TY0V01","Euro's",null,"N","",1]
[null,null,null,null,"zvkx08_c640__TY1V01","*=Kostenverzamelstaat!$K$98","","Hulpmiddelen-- incl balans","zvkx08","c640","","TY1V01","Euro's",null,"N","",1]
[null,null,null,null,"zvkx08_a640__TY1V01","*=Kostenverzamelstaat!$L$98","","Hulpmiddelen-- geaccepteerd","zvkx08","a640","","TY1V01","Euro's",null,"N","",1]
[null,null,null,null,"zvkx08_c640__TY2V01","*=Kostenverzamelstaat!$M$98","","Hulpmiddelen-- incl balans","zvkx08","c640","","TY2V01","Euro's",null,"N","",1]
[null,null,null,null,"zvkx08_a640__TY2V01","*=Kostenverzamelstaat!$N$98","","Hulpmiddelen-- geaccepteerd","zvkx08","a640","","TY2V01","Euro's",null,"N","",1]
[null,null,null,null,"zvkx08_c8081__TY0V01","*=Kostenverzamelstaat!$I$100",null,"Hulpmiddelen-  Meerkosten Corona indirect- incl balans","zvkx08","c8081",null,"TY0V01","Euro's",null,"N","",1]
[null,null,null,null,"zvkx08_a8081__TY0V01","*=Kostenverzamelstaat!$J$100",null,"Hulpmiddelen-  Meerkosten Corona indirect- geaccepteerd","zvkx08","a8081",null,"TY0V01","Euro's",null,"N","",1]
[null,null,null,null,"zvkx08_c8081__TY2V01","*=Kostenverzamelstaat!$M$100",null,"Hulpmiddelen-  Meerkosten Corona indirect- incl balans","zvkx08","c8081",null,"TY2V01","Euro's",null,"N","",1]
[null,null,null,null,"zvkx08_a8081__TY2V01","*=Kostenverzamelstaat!$N$100",null,"Hulpmiddelen-  Meerkosten Corona indirect- geaccepteerd","zvkx08","a8081",null,"TY2V01","Euro's",null,"N","",1]
[null,null,null,null,"zvkx08_c8082__TY0V01","*=Kostenverzamelstaat!$I$101",null,"Hulpmiddelen-  Meerkosten Corona toeslagen- incl balans","zvkx08","c8082",null,"TY0V01","Euro's",null,"N","",1]
[null,null,null,null,"zvkx08_a8082__TY0V01","*=Kostenverzamelstaat!$J$101",null,"Hulpmiddelen-  Meerkosten Corona toeslagen- geaccepteerd","zvkx08","a8082",null,"TY0V01","Euro's",null,"N","",1]
[null,null,null,null,"zvkx08_c8082__TY2V01","*=Kostenverzamelstaat!$M$101",null,"Hulpmiddelen-  Meerkosten Corona toeslagen- incl balans","zvkx08","c8082",null,"TY2V01","Euro's",null,"N","",1]
[null,null,null,null,"zvkx08_a8082__TY2V01","*=Kostenverzamelstaat!$N$101",null,"Hulpmiddelen-  Meerkosten Corona toeslagen- geaccepteerd","zvkx08","a8082",null,"TY2V01","Euro's",null,"N","",1]
[null,null,null,null,"zvkx08_c828__TY1V01","*=Kostenverzamelstaat!$K$102",null,"Hulpmiddelen- Netto continuïteitsbijdrage Corona (basisverzekering)- incl balans","zvkx08","c828",null,"TY1V01","Euro's",null,"N","",1]
[null,null,null,null,"zvkx08_a828__TY1V01","*=Kostenverzamelstaat!$L$102",null,"Hulpmiddelen- Netto continuïteitsbijdrage Corona (basisverzekering)- geaccepteerd","zvkx08","a828",null,"TY1V01","Euro's",null,"N","",1]
[null,null,null,null,"zvkx08_c828__TY2V01","*=Kostenverzamelstaat!$M$102",null,"Hulpmiddelen- Netto continuïteitsbijdrage Corona (basisverzekering)- incl balans","zvkx08","c828",null,"TY2V01","Euro's",null,"N","",1]
[null,null,null,null,"zvkx08_a828__TY2V01","*=Kostenverzamelstaat!$N$102",null,"Hulpmiddelen- Netto continuïteitsbijdrage Corona (basisverzekering)- geaccepteerd","zvkx08","a828",null,"TY2V01","Euro's",null,"N","",1]
[null,null,null,null,"zvkx08_c__TY0V01","*=Kostenverzamelstaat!$I$103"]
[null,null,null,null,"zvkx08_a__TY0V01","*=Kostenverzamelstaat!$J$103"]
[null,null,null,null,"zvkx08_c__TY1V01","*=Kostenverzamelstaat!$K$103"]
[null,null,null,null,"zvkx08_a__TY1V01","*=Kostenverzamelstaat!$L$103"]
[null,null,null,null,"zvkx08_c__TY2V01","*=Kostenverzamelstaat!$M$103"]
[null,null,null,null,"zvkx08_a__TY2V01","*=Kostenverzamelstaat!$N$103"]
[null,null,null,null,"zvkx09_c650__TY0V01","*=Kostenverzamelstaat!$I$105","","Ziekenvervoer- ambulance/helicopter- incl balans","zvkx09","c650","","TY0V01","Euro's",null,"N","",1]
[null,null,null,null,"zvkx09_a650__TY0V01","*=Kostenverzamelstaat!$J$105","","Ziekenvervoer- ambulance/helicopter- geaccepteerd","zvkx09","a650","","TY0V01","Euro's",null,"N","",1]
[null,null,null,null,"zvkx09_c650__TY1V01","*=Kostenverzamelstaat!$K$105","","Ziekenvervoer- ambulance/helicopter- incl balans","zvkx09","c650","","TY1V01","Euro's",null,"N","",1]
[null,null,null,null,"zvkx09_a650__TY1V01","*=Kostenverzamelstaat!$L$105","","Ziekenvervoer- ambulance/helicopter- geaccepteerd","zvkx09","a650","","TY1V01","Euro's",null,"N","",1]
[null,null,null,null,"zvkx09_c650__TY2V01","*=Kostenverzamelstaat!$M$105","","Ziekenvervoer- ambulance/helicopter- incl balans","zvkx09","c650","","TY2V01","Euro's",null,"N","",1]
[null,null,null,null,"zvkx09_a650__TY2V01","*=Kostenverzamelstaat!$N$105","","Ziekenvervoer- ambulance/helicopter- geaccepteerd","zvkx09","a650","","TY2V01","Euro's",null,"N","",1]
[null,null,null,null,"zvkx09_c6501__TY0V01","*=Kostenverzamelstaat!$I$106","","Ziekenvervoer- regionale ambulance- incl balans","zvkx09","c6501","","TY0V01","Euro's",null,"N","",1]
[null,null,null,null,"zvkx09_a6501__TY0V01","*=Kostenverzamelstaat!$J$106","","Ziekenvervoer- regionale ambulance- geaccepteerd","zvkx09","a6501","","TY0V01","Euro's",null,"N","",1]
[null,null,null,null,"zvkx09_c6501__TY1V01","*=Kostenverzamelstaat!$K$106","","Ziekenvervoer- regionale ambulance- incl balans","zvkx09","c6501","","TY1V01","Euro's",null,"N","",1]
[null,null,null,null,"zvkx09_a6501__TY1V01","*=Kostenverzamelstaat!$L$106","","Ziekenvervoer- regionale ambulance- geaccepteerd","zvkx09","a6501","","TY1V01","Euro's",null,"N","",1]
[null,null,null,null,"zvkx09_c6501__TY2V01","*=Kostenverzamelstaat!$M$106","","Ziekenvervoer- regionale ambulance- incl balans","zvkx09","c6501","","TY2V01","Euro's",null,"N","",1]
[null,null,null,null,"zvkx09_a6501__TY2V01","*=Kostenverzamelstaat!$N$106","","Ziekenvervoer- regionale ambulance- geaccepteerd","zvkx09","a6501","","TY2V01","Euro's",null,"N","",1]
[null,null,null,null,"zvkx09_c651__TY0V01","*=Kostenverzamelstaat!$I$107","","Ziekenvervoer- ov, taxi en eigen auto- incl balans","zvkx09","c651","","TY0V01","Euro's",null,"N","",1]
[null,null,null,null,"zvkx09_a651__TY0V01","*=Kostenverzamelstaat!$J$107","","Ziekenvervoer- ov, taxi en eigen auto- geaccepteerd","zvkx09","a651","","TY0V01","Euro's",null,"N","",1]
[null,null,null,null,"zvkx09_c651__TY1V01","*=Kostenverzamelstaat!$K$107","","Ziekenvervoer- ov, taxi en eigen auto- incl balans","zvkx09","c651","","TY1V01","Euro's",null,"N","",1]
[null,null,null,null,"zvkx09_a651__TY1V01","*=Kostenverzamelstaat!$L$107","","Ziekenvervoer- ov, taxi en eigen auto- geaccepteerd","zvkx09","a651","","TY1V01","Euro's",null,"N","",1]
[null,null,null,null,"zvkx09_c651__TY2V01","*=Kostenverzamelstaat!$M$107","","Ziekenvervoer- ov, taxi en eigen auto- incl balans","zvkx09","c651","","TY2V01","Euro's",null,"N","",1]
[null,null,null,null,"zvkx09_a651__TY2V01","*=Kostenverzamelstaat!$N$107","","Ziekenvervoer- ov, taxi en eigen auto- geaccepteerd","zvkx09","a651","","TY2V01","Euro's",null,"N","",1]
[null,null,null,null,"zvkx09_c8091__TY0V01","*=Kostenverzamelstaat!$I$109",null,"Ziekenvervoer-  Meerkosten Corona indirect- incl balans","zvkx09","c8091",null,"TY0V01","Euro's",null,"N","",1]
[null,null,null,null,"zvkx09_a8091__TY0V01","*=Kostenverzamelstaat!$J$109",null,"Ziekenvervoer-  Meerkosten Corona indirect- geaccepteerd","zvkx09","a8092",null,"TY0V01","Euro's",null,"N","",1]
[null,null,null,null,"zvkx09_c8091__TY2V01","*=Kostenverzamelstaat!$M$109",null,"Ziekenvervoer-  Meerkosten Corona indirect- incl balans","zvkx09","c8091",null,"TY2V01","Euro's",null,"N","",1]
[null,null,null,null,"zvkx09_a8091__TY2V01","*=Kostenverzamelstaat!$N$109",null,"Ziekenvervoer-  Meerkosten Corona indirect- geaccepteerd","zvkx09","a8092",null,"TY2V01","Euro's",null,"N","",1]
[null,null,null,null,"zvkx09_c8092__TY0V01","*=Kostenverzamelstaat!$I$110",null,"Ziekenvervoer-  Meerkosten Corona toeslagen- incl balans","zvkx09","c8091",null,"TY0V01","Euro's",null,"N","",1]
[null,null,null,null,"zvkx09_a8092__TY0V01","*=Kostenverzamelstaat!$J$110",null,"Ziekenvervoer-  Meerkosten Corona toeslagen- geaccepteerd","zvkx09","a8092",null,"TY0V01","Euro's",null,"N","",1]
[null,null,null,null,"zvkx09_c8092__TY2V01","*=Kostenverzamelstaat!$M$110",null,"Ziekenvervoer-  Meerkosten Corona toeslagen- incl balans","zvkx09","c8091",null,"TY2V01","Euro's",null,"N","",1]
[null,null,null,null,"zvkx09_a8092__TY2V01","*=Kostenverzamelstaat!$N$110",null,"Ziekenvervoer-  Meerkosten Corona toeslagen- geaccepteerd","zvkx09","a8092",null,"TY2V01","Euro's",null,"N","",1]
[null,null,null,null,"zvkx09_c829__TY1V01","*=Kostenverzamelstaat!$K$111",null,"Ziekenvervoer- Netto continuïteitsbijdrage Corona (basisverzekering)-  incl balans","zvkx09","c829",null,"TY1V01","Euro's",null,"N","",1]
[null,null,null,null,"zvkx09_a829__TY1V01","*=Kostenverzamelstaat!$L$111",null,"Ziekenvervoer- Netto continuïteitsbijdrage Corona (basisverzekering)- geaccepteerd","zvkx09","a829",null,"TY1V01","Euro's",null,"N","",1]
[null,null,null,null,"zvkx09_c829__TY2V01","*=Kostenverzamelstaat!$M$111",null,"Ziekenvervoer- Netto continuïteitsbijdrage Corona (basisverzekering)-  incl balans","zvkx09","c829",null,"TY2V01","Euro's",null,"N","",1]
[null,null,null,null,"zvkx09_a829__TY2V01","*=Kostenverzamelstaat!$N$111",null,"Ziekenvervoer- Netto continuïteitsbijdrage Corona (basisverzekering)- geaccepteerd","zvkx09","a829",null,"TY2V01","Euro's",null,"N","",1]
[null,null,null,null,"zvkx09_c__TY0V01","*=Kostenverzamelstaat!$I$112"]
[null,null,null,null,"zvkx09_a__TY0V01","*=Kostenverzamelstaat!$J$112"]
[null,null,null,null,"zvkx09_c__TY1V01","*=Kostenverzamelstaat!$K$112"]
[null,null,null,null,"zvkx09_a__TY1V01","*=Kostenverzamelstaat!$L$112"]
[null,null,null,null,"zvkx09_c__TY2V01","*=Kostenverzamelstaat!$M$112"]
[null,null,null,null,"zvkx09_a__TY2V01","*=Kostenverzamelstaat!$N$112"]
[null,null,null,null,"zvkx10_c661__TY1V01","*=Kostenverzamelstaat!$K$124","","Geneeskundige GGZ- GGZ met verblijf- incl balans","zvkx10","c661","","TY1V01","Euro's",null,"N","",1]
[null,null,null,null,"zvkx10_a661__TY1V01","*=Kostenverzamelstaat!$L$124","","Geneeskundige GGZ- GGZ met verblijf- geaccepteerd","zvkx10","a661","","TY1V01","Euro's",null,"N","",1]
[null,null,null,null,"zvkx10_c661__TY2V01","*=Kostenverzamelstaat!$M$124","","Geneeskundige GGZ- GGZ met verblijf- incl balans","zvkx10","c661","","TY2V01","Euro's",null,"N","",1]
[null,null,null,null,"zvkx10_a661__TY2V01","*=Kostenverzamelstaat!$N$124","","Geneeskundige GGZ- GGZ met verblijf- geaccepteerd","zvkx10","a661","","TY2V01","Euro's",null,"N","",1]
[null,null,null,null,"zvkx10_c6611__TY1V01","*=Kostenverzamelstaat!$K$125","","Geneeskundige GGZ- GGZ jaar 2 en 3- incl balans","zvkx10","c6611","","TY1V01","Euro's",null,"N","",1]
[null,null,null,null,"zvkx10_a6611__TY1V01","*=Kostenverzamelstaat!$L$125","","Geneeskundige GGZ- GGZ jaar 2 en 3- geaccepteerd","zvkx10","a6611","","TY1V01","Euro's",null,"N","",1]
[null,null,null,null,"zvkx10_c6611__TY2V01","*=Kostenverzamelstaat!$M$125","","Geneeskundige GGZ- GGZ jaar 2 en 3- incl balans","zvkx10","c6611","","TY2V01","Euro's",null,"N","",1]
[null,null,null,null,"zvkx10_a6611__TY2V01","*=Kostenverzamelstaat!$N$125","","Geneeskundige GGZ- GGZ jaar 2 en 3- geaccepteerd","zvkx10","a6611","","TY2V01","Euro's",null,"N","",1]
[null,null,null,null,"zvkx10_c662__TY1V01","*=Kostenverzamelstaat!$K$126","","Geneeskundige GGZ- GGZ zonder verblijf- incl balans","zvkx10","c662","","TY1V01","Euro's",null,"N","",1]
[null,null,null,null,"zvkx10_a662__TY1V01","*=Kostenverzamelstaat!$L$126","","Geneeskundige GGZ- GGZ zonder verblijf- geaccepteerd","zvkx10","a662","","TY1V01","Euro's",null,"N","",1]
[null,null,null,null,"zvkx10_c662__TY2V01","*=Kostenverzamelstaat!$M$126","","Geneeskundige GGZ- GGZ zonder verblijf- incl balans","zvkx10","c662","","TY2V01","Euro's",null,"N","",1]
[null,null,null,null,"zvkx10_a662__TY2V01","*=Kostenverzamelstaat!$N$126","","Geneeskundige GGZ- GGZ zonder verblijf- geaccepteerd","zvkx10","a662","","TY2V01","Euro's",null,"N","",1]
[null,null,null,null,"zvkx10_c665__TY1V01","*=Kostenverzamelstaat!$K$127","","Geneeskundige GGZ- basis GGZ- incl balans","zvkx10","c665","","TY1V01","Euro's",null,"N","",1]
[null,null,null,null,"zvkx10_a665__TY1V01","*=Kostenverzamelstaat!$L$127","","Geneeskundige GGZ- basis GGZ- geaccepteerd","zvkx10","a665","","TY1V01","Euro's",null,"N","",1]
[null,null,null,null,"zvkx10_c665__TY2V01","*=Kostenverzamelstaat!$M$127","","Geneeskundige GGZ- basis GGZ- incl balans","zvkx10","c665","","TY2V01","Euro's",null,"N","",1]
[null,null,null,null,"zvkx10_a665__TY2V01","*=Kostenverzamelstaat!$N$127","","Geneeskundige GGZ- basis GGZ- geaccepteerd","zvkx10","a665","","TY2V01","Euro's",null,"N","",1]
[null,null,null,null,"zvkx10_c666__TY0V01","*=Kostenverzamelstaat!$I$128","","Geneeskundige GGZ- consulten GGZ- incl balans","zvkx10","c666","","TY0V01","Euro's",null,"N","",1]
[null,null,null,null,"zvkx10_a666__TY0V01","*=Kostenverzamelstaat!$J$128","","Geneeskundige GGZ- consulten GGZ- geaccepteerd","zvkx10","a666","","TY0V01","Euro's",null,"N","",1]
[null,null,null,null,"zvkx10_c667__TY0V01","*=Kostenverzamelstaat!$I$129","","Geneeskundige GGZ- intramuraal verblijf GGZ- incl balans","zvkx10","c667","","TY0V01","Euro's",null,"N","",1]
[null,null,null,null,"zvkx10_a667__TY0V01","*=Kostenverzamelstaat!$J$129","","Geneeskundige GGZ- intramuraal verblijf GGZ- geaccepteerd","zvkx10","a667","","TY0V01","Euro's",null,"N","",1]
[null,null,null,null,"zvkx10_c668__TY0V01","*=Kostenverzamelstaat!$I$130","","Geneeskundige GGZ- overige prestaties GGZ- incl balans","zvkx10","c668","","TY0V01","Euro's",null,"N","",1]
[null,null,null,null,"zvkx10_a668__TY0V01","*=Kostenverzamelstaat!$J$130","","Geneeskundige GGZ- overige prestaties GGZ- geaccepteerd","zvkx10","a668","","TY0V01","Euro's",null,"N","",1]
[null,null,null,null,"zvkx10_c8101__TY0V01","*=Kostenverzamelstaat!$I$132",null,"Geneeskundige GGZ-  Meerkosten Corona indirect- incl balans","zvkx10","c8101",null,"TY0V01","Euro's",null,"N","",1]
[null,null,null,null,"zvkx10_a8101__TY0V01","*=Kostenverzamelstaat!$J$132",null,"Geneeskundige GGZ-  Meerkosten Corona indirect- geaccepteerd","zvkx10","a8101",null,"TY0V01","Euro's",null,"N","",1]
[null,null,null,null,"zvkx10_c8101__TY2V01","*=Kostenverzamelstaat!$M$132",null,"Geneeskundige GGZ-  Meerkosten Corona indirect- incl balans","zvkx10","c8101",null,"TY2V01","Euro's",null,"N","",1]
[null,null,null,null,"zvkx10_a8101__TY2V01","*=Kostenverzamelstaat!$N$132",null,"Geneeskundige GGZ-  Meerkosten Corona indirect- geaccepteerd","zvkx10","a8101",null,"TY2V01","Euro's",null,"N","",1]
[null,null,null,null,"zvkx10_c8102__TY0V01","*=Kostenverzamelstaat!$I$133",null,"Geneeskundige GGZ-  Meerkosten Corona toeslagen- incl balans","zvkx10","c8102",null,"TY0V01","Euro's",null,"N","",1]
[null,null,null,null,"zvkx10_a8102__TY0V01","*=Kostenverzamelstaat!$J$133",null,"Geneeskundige GGZ-  Meerkosten Corona toeslagen- geaccepteerd","zvkx10","a8102",null,"TY0V01","Euro's",null,"N","",1]
[null,null,null,null,"zvkx10_c8102__TY2V01","*=Kostenverzamelstaat!$M$133",null,"Geneeskundige GGZ-  Meerkosten Corona toeslagen- incl balans","zvkx10","c8102",null,"TY2V01","Euro's",null,"N","",1]
[null,null,null,null,"zvkx10_a8102__TY2V01","*=Kostenverzamelstaat!$N$133",null,"Geneeskundige GGZ-  Meerkosten Corona toeslagen- geaccepteerd","zvkx10","a8102",null,"TY2V01","Euro's",null,"N","",1]
[null,null,null,null,"zvkx10_c830__TY1V01","*=Kostenverzamelstaat!$K$134",null,"Geneeskundige GGZ- Netto continuïteitsbijdrage Corona (basisverzekering)-  incl balans","zvkx10","c830",null,"TY1V01","Euro's",null,"N","",1]
[null,null,null,null,"zvkx10_a830__TY1V01","*=Kostenverzamelstaat!$L$134",null,"Geneeskundige GGZ- Netto continuïteitsbijdrage Corona (basisverzekering)- geaccepteerd","zvkx10","a830",null,"TY1V01","Euro's",null,"N","",1]
[null,null,null,null,"zvkx10_c830__TY2V01","*=Kostenverzamelstaat!$M$134",null,"Geneeskundige GGZ- Netto continuïteitsbijdrage Corona (basisverzekering)-  incl balans","zvkx10","c830",null,"TY2V01","Euro's",null,"N","",1]
[null,null,null,null,"zvkx10_a830__TY2V01","*=Kostenverzamelstaat!$N$134",null,"Geneeskundige GGZ- Netto continuïteitsbijdrage Corona (basisverzekering)- geaccepteerd","zvkx10","a830",null,"TY2V01","Euro's",null,"N","",1]
[null,null,null,null,"zvkx10_c__TY0V01","*=Kostenverzamelstaat!$I$135"]
[null,null,null,null,"zvkx10_a__TY0V01","*=Kostenverzamelstaat!$J$135"]
[null,null,null,null,"zvkx10_c__TY1V01","*=Kostenverzamelstaat!$K$135"]
[null,null,null,null,"zvkx10_a__TY1V01","*=Kostenverzamelstaat!$L$135"]
[null,null,null,null,"zvkx10_c__TY2V01","*=Kostenverzamelstaat!$M$135"]
[null,null,null,null,"zvkx10_a__TY2V01","*=Kostenverzamelstaat!$N$135"]
[null,null,null,null,"zvkx11_c670__TY0V01","*=Kostenverzamelstaat!$I$137","","Geriatische revalidatiezorg- incl balans","zvkx11","c670","","TY0V01","Euro's",null,"N","",1]
[null,null,null,null,"zvkx11_a670__TY0V01","*=Kostenverzamelstaat!$J$137","","Geriatische revalidatiezorg-- geaccepteerd","zvkx11","a670","","TY0V01","Euro's",null,"N","",1]
[null,null,null,null,"zvkx11_c670__TY1V01","*=Kostenverzamelstaat!$K$137","","Geriatische revalidatiezorg- incl balans","zvkx11","c670","","TY1V01","Euro's",null,"N","",1]
[null,null,null,null,"zvkx11_a670__TY1V01","*=Kostenverzamelstaat!$L$137","","Geriatische revalidatiezorg-- geaccepteerd","zvkx11","a670","","TY1V01","Euro's",null,"N","",1]
[null,null,null,null,"zvkx11_c670__TY2V01","*=Kostenverzamelstaat!$M$137","","Geriatische revalidatiezorg- incl balans","zvkx11","c670","","TY2V01","Euro's",null,"N","",1]
[null,null,null,null,"zvkx11_a670__TY2V01","*=Kostenverzamelstaat!$N$137","","Geriatische revalidatiezorg-- geaccepteerd","zvkx11","a670","","TY2V01","Euro's",null,"N","",1]
[null,null,null,null,"zvkx11_c81111__TY0V01","*=Kostenverzamelstaat!$I$139",null,"Geriatische revalidatiezorg- GRZ-  Meerkosten Corona indirect- incl balans","zvkx11","c81111",null,"TY0V01","Euro's",null,"N","",1]
[null,null,null,null,"zvkx11_a81111__TY0V01","*=Kostenverzamelstaat!$J$139",null,"Geriatische revalidatiezorg- GRZ-  Meerkosten Corona indirect- geaccepteerd","zvkx11","a81111",null,"TY0V01","Euro's",null,"N","",1]
[null,null,null,null,"zvkx11_c81111__TY2V01","*=Kostenverzamelstaat!$M$139",null,"Geriatische revalidatiezorg- GRZ-  Meerkosten Corona indirect- incl balans","zvkx11","c81111",null,"TY2V01","Euro's",null,"N","",1]
[null,null,null,null,"zvkx11_a81111__TY2V01","*=Kostenverzamelstaat!$N$139",null,"Geriatische revalidatiezorg- GRZ-  Meerkosten Corona indirect- geaccepteerd","zvkx11","a81111",null,"TY2V01","Euro's",null,"N","",1]
[null,null,null,null,"zvkx11_c81112__TY0V01","*=Kostenverzamelstaat!$I$140",null,"Geriatische revalidatiezorg- GRZ-  Meerkosten Corona toeslagen- incl balans","zvkx11","c81112",null,"TY0V01","Euro's",null,"N","",1]
[null,null,null,null,"zvkx11_a81112__TY0V01","*=Kostenverzamelstaat!$J$140",null,"Geriatische revalidatiezorg- GRZ-  Meerkosten Corona toeslagen- geaccepteerd","zvkx11","a81112",null,"TY0V01","Euro's",null,"N","",1]
[null,null,null,null,"zvkx11_c81112__TY2V01","*=Kostenverzamelstaat!$M$140",null,"Geriatische revalidatiezorg- GRZ-  Meerkosten Corona toeslagen- incl balans","zvkx11","c81112",null,"TY2V01","Euro's",null,"N","",1]
[null,null,null,null,"zvkx11_a81112__TY2V01","*=Kostenverzamelstaat!$N$140",null,"Geriatische revalidatiezorg- GRZ-  Meerkosten Corona toeslagen- geaccepteerd","zvkx11","a81112",null,"TY2V01","Euro's",null,"N","",1]
[null,null,null,null,"zvkx11_c8311__TY1V01","*=Kostenverzamelstaat!$K$141",null,"Geriatische revalidatiezorg- GRZ- Netto continuïteitsbijdrage Corona (basisverzekering)- incl balans","zvkx11","c8311",null,"TY1V01","Euro's",null,"N","",1]
[null,null,null,null,"zvkx11_a8311__TY1V01","*=Kostenverzamelstaat!$L$141",null,"Geriatische revalidatiezorg- GRZ- Netto continuïteitsbijdrage Corona (basisverzekering)- geaccepteerd","zvkx11","a8311",null,"TY1V01","Euro's",null,"N","",1]
[null,null,null,null,"zvkx11_c8311__TY2V01","*=Kostenverzamelstaat!$M$141",null,"Geriatische revalidatiezorg- GRZ- Netto continuïteitsbijdrage Corona (basisverzekering)- incl balans","zvkx11","c8311",null,"TY2V01","Euro's",null,"N","",1]
[null,null,null,null,"zvkx11_a8311__TY2V01","*=Kostenverzamelstaat!$N$141",null,"Geriatische revalidatiezorg- GRZ- Netto continuïteitsbijdrage Corona (basisverzekering)- geaccepteerd","zvkx11","a8311",null,"TY2V01","Euro's",null,"N","",1]
[null,null,null,null,"zvkx11_c671__TY0V01","*=Kostenverzamelstaat!$I$142","","Geriatische revalidatiezorg- Eerstelijnsverblijf- incl balans","zvkx11","c671","","TY0V01","Euro's",null,"N","",1]
[null,null,null,null,"zvkx11_a671__TY0V01","*=Kostenverzamelstaat!$J$142","","Geriatische revalidatiezorg- Eerstelijnsverblijf- geaccepteerd","zvkx11","a671","","TY0V01","Euro's",null,"N","",1]
[null,null,null,null,"zvkx11_c671__TY1V01","*=Kostenverzamelstaat!$K$142","","Geriatische revalidatiezorg- Eerstelijnsverblijf- incl balans","zvkx11","c671","","TY1V01","Euro's",null,"N","",1]
[null,null,null,null,"zvkx11_a671__TY1V01","*=Kostenverzamelstaat!$L$142","","Geriatische revalidatiezorg- Eerstelijnsverblijf- geaccepteerd","zvkx11","a671","","TY1V01","Euro's",null,"N","",1]
[null,null,null,null,"zvkx11_c671__TY2V01","*=Kostenverzamelstaat!$M$142","","Geriatische revalidatiezorg- Eerstelijnsverblijf- incl balans","zvkx11","c671","","TY2V01","Euro's",null,"N","",1]
[null,null,null,null,"zvkx11_a671__TY2V01","*=Kostenverzamelstaat!$N$142","","Geriatische revalidatiezorg- Eerstelijnsverblijf- geaccepteerd","zvkx11","a671","","TY2V01","Euro's",null,"N","",1]
[null,null,null,null,"zvkx11_c81121__TY0V01","*=Kostenverzamelstaat!$I$144",null,"Geriatische revalidatiezorg- Eerstelijnsverblijf-  Meerkosten Corona indirect- incl balans","zvkx11","c81121",null,"TY0V01","Euro's",null,"N","",1]
[null,null,null,null,"zvkx11_a81121__TY0V01","*=Kostenverzamelstaat!$J$144",null,"Geriatische revalidatiezorg- Eerstelijnsverblijf- Meerkosten Corona indirect- geaccepteerd","zvkx11","a81121",null,"TY0V01","Euro's",null,"N","",1]
[null,null,null,null,"zvkx11_c81121__TY2V01","*=Kostenverzamelstaat!$M$144",null,"Geriatische revalidatiezorg- Eerstelijnsverblijf-  Meerkosten Corona indirect- incl balans","zvkx11","c81121",null,"TY2V01","Euro's",null,"N","",1]
[null,null,null,null,"zvkx11_a81121__TY2V01","*=Kostenverzamelstaat!$N$144",null,"Geriatische revalidatiezorg- Eerstelijnsverblijf- Meerkosten Corona indirect- geaccepteerd","zvkx11","a81121",null,"TY2V01","Euro's",null,"N","",1]
[null,null,null,null,"zvkx11_c81122__TY0V01","*=Kostenverzamelstaat!$I$145",null,"Geriatische revalidatiezorg- Eerstelijnsverblijf-  Meerkosten Corona toeslagen- incl balans","zvkx11","c81122",null,"TY0V01","Euro's",null,"N","",1]
[null,null,null,null,"zvkx11_a81122__TY0V01","*=Kostenverzamelstaat!$J$145",null,"Geriatische revalidatiezorg- Eerstelijnsverblijf- Meerkosten Corona toeslagen-geaccepteerd","zvkx11","a81122",null,"TY0V01","Euro's",null,"N","",1]
[null,null,null,null,"zvkx11_c81122__TY2V01","*=Kostenverzamelstaat!$M$145",null,"Geriatische revalidatiezorg- Eerstelijnsverblijf-  Meerkosten Corona toeslagen- incl balans","zvkx11","c81122",null,"TY2V01","Euro's",null,"N","",1]
[null,null,null,null,"zvkx11_a81122__TY2V01","*=Kostenverzamelstaat!$N$145",null,"Geriatische revalidatiezorg- Eerstelijnsverblijf- Meerkosten Corona toeslagen-geaccepteerd","zvkx11","a81122",null,"TY2V01","Euro's",null,"N","",1]
[null,null,null,null,"zvkx11_c8312__TY1V01","*=Kostenverzamelstaat!$K$146",null,"Geriatische revalidatiezorg- Eerstelijnsverblijf- Netto continuïteitsbijdrage Corona (basisverzekering)- incl balans","zvkx11","c8312",null,"TY1V01","Euro's",null,"N","",1]
[null,null,null,null,"zvkx11_a8312__TY1V01","*=Kostenverzamelstaat!$L$146",null,"Geriatische revalidatiezorg- Eerstelijnsverblijf- Netto continuïteitsbijdrage Corona (basisverzekering)-  geaccepteerd","zvkx11","a8312",null,"TY1V01","Euro's",null,"N","",1]
[null,null,null,null,"zvkx11_c8312__TY2V01","*=Kostenverzamelstaat!$M$146",null,"Geriatische revalidatiezorg- Eerstelijnsverblijf- Netto continuïteitsbijdrage Corona (basisverzekering)- incl balans","zvkx11","c8312",null,"TY2V01","Euro's",null,"N","",1]
[null,null,null,null,"zvkx11_a8312__TY2V01","*=Kostenverzamelstaat!$N$146",null,"Geriatische revalidatiezorg- Eerstelijnsverblijf- Netto continuïteitsbijdrage Corona (basisverzekering)-  geaccepteerd","zvkx11","a8312",null,"TY2V01","Euro's",null,"N","",1]
[null,null,null,null,"zvkx11_c672__TY0V01","*=Kostenverzamelstaat!$I$147",null,"Geriatische revalidatiezorg- GZSP- incl balans","zvkx11","c672","","TY0V01","Euro's",null,"N","",1]
[null,null,null,null,"zvkx11_a672__TY0V01","*=Kostenverzamelstaat!$J$147",null,"Geriatische revalidatiezorg- GZSP- geaccepteerd","zvkx11","a672","","TY0V01","Euro's",null,"N","",1]
[null,null,null,null,"zvkx11_c672__TY1V01","*=Kostenverzamelstaat!$K$147",null,"Geriatische revalidatiezorg- GZSP- incl balans","zvkx11","a672","","TY1V01","Euro's",null,"N","",1]
[null,null,null,null,"zvkx11_a672__TY1V01","*=Kostenverzamelstaat!$L$147",null,"Geriatische revalidatiezorg- GZSP- geaccepteerd","zvkx11","a672","","TY1V01","Euro's",null,"N","",1]
[null,null,null,null,"zvkx11_c672__TY2V01","*=Kostenverzamelstaat!$M$147",null,"Geriatische revalidatiezorg- GZSP- incl balans","zvkx11","a672","","TY2V01","Euro's",null,"N","",1]
[null,null,null,null,"zvkx11_a672__TY2V01","*=Kostenverzamelstaat!$N$147",null,"Geriatische revalidatiezorg- GZSP- geaccepteerd","zvkx11","a672","","TY2V01","Euro's",null,"N","",1]
[null,null,null,null,"zvkx11_c81131__TY0V01","*=Kostenverzamelstaat!$I$149",null,"Geriatische revalidatiezorg- GZSP- Meerkosten Corona indirect- incl balans","zvkx11","c81131",null,"TY0V01","Euro's",null,"N","",1]
[null,null,null,null,"zvkx11_a81131__TY0V01","*=Kostenverzamelstaat!$J$149",null,"Geriatische revalidatiezorg- GZSP-  Meerkosten Corona indirect- geaccepteerd","zvkx11","a81131",null,"TY0V01","Euro's",null,"N","",1]
[null,null,null,null,"zvkx11_c81131__TY2V01","*=Kostenverzamelstaat!$M$149",null,"Geriatische revalidatiezorg- GZSP- Meerkosten Corona indirect- incl balans","zvkx11","c81131",null,"TY2V01","Euro's",null,"N","",1]
[null,null,null,null,"zvkx11_a81131__TY2V01","*=Kostenverzamelstaat!$N$149",null,"Geriatische revalidatiezorg- GZSP-  Meerkosten Corona indirect- geaccepteerd","zvkx11","a81131",null,"TY2V01","Euro's",null,"N","",1]
[null,null,null,null,"zvkx11_c81132__TY0V01","*=Kostenverzamelstaat!$I$150",null,"Geriatische revalidatiezorg- GZSP- Meerkosten Corona toeslagen- incl balans","zvkx11","c81132",null,"TY0V01","Euro's",null,"N","",1]
[null,null,null,null,"zvkx11_a81132__TY0V01","*=Kostenverzamelstaat!$J$150",null,"Geriatische revalidatiezorg- GZSP-  Meerkosten Corona toeslagen- geaccepteerd","zvkx11","a81132",null,"TY0V01","Euro's",null,"N","",1]
[null,null,null,null,"zvkx11_c81132__TY2V01","*=Kostenverzamelstaat!$M$150",null,"Geriatische revalidatiezorg- GZSP- Meerkosten Corona toeslagen- incl balans","zvkx11","c81132",null,"TY2V01","Euro's",null,"N","",1]
[null,null,null,null,"zvkx11_a81132__TY2V01","*=Kostenverzamelstaat!$N$150",null,"Geriatische revalidatiezorg- GZSP-  Meerkosten Corona toeslagen- geaccepteerd","zvkx11","a81132",null,"TY2V01","Euro's",null,"N","",1]
[null,null,null,null,"zvkx11_c8313__TY1V01","*=Kostenverzamelstaat!$K$151",null,"Geriatische revalidatiezorg- GZSP- Netto continuïteitsbijdrage Corona (basisverzekering)- incl balans","zvkx11","c8313",null,"TY1V01","Euro's",null,"N","",1]
[null,null,null,null,"zvkx11_a8313__TY1V01","*=Kostenverzamelstaat!$L$151",null,"Geriatische revalidatiezorg- GZSP- Netto continuïteitsbijdrage Corona (basisverzekering)- geaccepteerd","zvkx11","a8313",null,"TY1V01","Euro's",null,"N","",1]
[null,null,null,null,"zvkx11_c8313__TY2V01","*=Kostenverzamelstaat!$M$151",null,"Geriatische revalidatiezorg- GZSP- Netto continuïteitsbijdrage Corona (basisverzekering)- incl balans","zvkx11","c8313",null,"TY2V01","Euro's",null,"N","",1]
[null,null,null,null,"zvkx11_a8313__TY2V01","*=Kostenverzamelstaat!$N$151",null,"Geriatische revalidatiezorg- GZSP- Netto continuïteitsbijdrage Corona (basisverzekering)- geaccepteerd","zvkx11","a8313",null,"TY2V01","Euro's",null,"N","",1]
[null,null,null,null,"zvkx11_c__TY0V01","*=Kostenverzamelstaat!$I$152"]
[null,null,null,null,"zvkx11_a__TY0V01","*=Kostenverzamelstaat!$J$152"]
[null,null,null,null,"zvkx11_c__TY1V01","*=Kostenverzamelstaat!$K$152"]
[null,null,null,null,"zvkx11_a__TY1V01","*=Kostenverzamelstaat!$L$152"]
[null,null,null,null,"zvkx11_c__TY2V01","*=Kostenverzamelstaat!$M$152"]
[null,null,null,null,"zvkx11_a__TY2V01","*=Kostenverzamelstaat!$N$152"]
[null,null,null,null,"zvkx12_c680__TY0V01","*=Kostenverzamelstaat!$I$154","","Kraamzorg-- incl balans","zvkx12","c680","","TY0V01","Euro's",null,"N","",1]
[null,null,null,null,"zvkx12_a680__TY0V01","*=Kostenverzamelstaat!$J$154","","Kraamzorg-- geaccepteerd","zvkx12","a680","","TY0V01","Euro's",null,"N","",1]
[null,null,null,null,"zvkx12_c680__TY1V01","*=Kostenverzamelstaat!$K$154","","Kraamzorg-- incl balans","zvkx12","c680","","TY1V01","Euro's",null,"N","",1]
[null,null,null,null,"zvkx12_a680__TY1V01","*=Kostenverzamelstaat!$L$154","","Kraamzorg-- geaccepteerd","zvkx12","a680","","TY1V01","Euro's",null,"N","",1]
[null,null,null,null,"zvkx12_c680__TY2V01","*=Kostenverzamelstaat!$M$154","","Kraamzorg-- incl balans","zvkx12","c680","","TY2V01","Euro's",null,"N","",1]
[null,null,null,null,"zvkx12_a680__TY2V01","*=Kostenverzamelstaat!$N$154","","Kraamzorg-- geaccepteerd","zvkx12","a680","","TY2V01","Euro's",null,"N","",1]
[null,null,null,null,"zvkx12_c8121__TY0V01","*=Kostenverzamelstaat!$I$156",null,"Kraamzorg-  Meerkosten Corona indirect- incl balans","zvkx12","c8121",null,"TY0V01","Euro's",null,"N","",1]
[null,null,null,null,"zvkx12_a8121__TY0V01","*=Kostenverzamelstaat!$J$156",null,"Kraamzorg-  Meerkosten Corona indirect- geaccepteerd","zvkx12","a8121",null,"TY0V01","Euro's",null,"N","",1]
[null,null,null,null,"zvkx12_c8121__TY2V01","*=Kostenverzamelstaat!$M$156",null,"Kraamzorg-  Meerkosten Corona indirect- incl balans","zvkx12","c8121",null,"TY2V01","Euro's",null,"N","",1]
[null,null,null,null,"zvkx12_a8121__TY2V01","*=Kostenverzamelstaat!$N$156",null,"Kraamzorg-  Meerkosten Corona indirect- geaccepteerd","zvkx12","a8121",null,"TY2V01","Euro's",null,"N","",1]
[null,null,null,null,"zvkx12_c8122__TY0V01","*=Kostenverzamelstaat!$I$157",null,"Kraamzorg-  Meerkosten Corona toeslagen- incl balans","zvkx12","c8122",null,"TY0V01","Euro's",null,"N","",1]
[null,null,null,null,"zvkx12_a8122__TY0V01","*=Kostenverzamelstaat!$J$157",null,"Kraamzorg-  Meerkosten Corona toeslagen- geaccepteerd","zvkx12","a8122",null,"TY0V01","Euro's",null,"N","",1]
[null,null,null,null,"zvkx12_c8122__TY2V01","*=Kostenverzamelstaat!$M$157",null,"Kraamzorg-  Meerkosten Corona toeslagen- incl balans","zvkx12","c8122",null,"TY2V01","Euro's",null,"N","",1]
[null,null,null,null,"zvkx12_a8122__TY2V01","*=Kostenverzamelstaat!$N$157",null,"Kraamzorg-  Meerkosten Corona toeslagen- geaccepteerd","zvkx12","a8122",null,"TY2V01","Euro's",null,"N","",1]
[null,null,null,null,"zvkx12_c832__TY1V01","*=Kostenverzamelstaat!$K$158",null,"Kraamzorg- Netto continuïteitsbijdrage Corona (basisverzekering)- incl balans","zvkx12","c832",null,"TY1V01","Euro's",null,"N","",1]
[null,null,null,null,"zvkx12_a832__TY1V01","*=Kostenverzamelstaat!$L$158",null,"Kraamzorg- Netto continuïteitsbijdrage Corona (basisverzekering)- geaccepteerd","zvkx12","a832",null,"TY1V01","Euro's",null,"N","",1]
[null,null,null,null,"zvkx12_c832__TY2V01","*=Kostenverzamelstaat!$M$158",null,"Kraamzorg- Netto continuïteitsbijdrage Corona (basisverzekering)- incl balans","zvkx12","c832",null,"TY2V01","Euro's",null,"N","",1]
[null,null,null,null,"zvkx12_a832__TY2V01","*=Kostenverzamelstaat!$N$158",null,"Kraamzorg- Netto continuïteitsbijdrage Corona (basisverzekering)- geaccepteerd","zvkx12","a832",null,"TY2V01","Euro's",null,"N","",1]
[null,null,null,null,"zvkx12_c__TY0V01","*=Kostenverzamelstaat!$I$159"]
[null,null,null,null,"zvkx12_a__TY0V01","*=Kostenverzamelstaat!$J$159"]
[null,null,null,null,"zvkx12_c__TY1V01","*=Kostenverzamelstaat!$K$159"]
[null,null,null,null,"zvkx12_a__TY1V01","*=Kostenverzamelstaat!$L$159"]
[null,null,null,null,"zvkx12_c__TY2V01","*=Kostenverzamelstaat!$M$159"]
[null,null,null,null,"zvkx12_a__TY2V01","*=Kostenverzamelstaat!$N$159"]
[null,null,null,null,"zvkx13_c700__TY0V01","*=Kostenverzamelstaat!$I$161","","Overige kosten-- incl balans","zvkx13","c700","","TY0V01","Euro's",null,"N","",1]
[null,null,null,null,"zvkx13_a700__TY0V01","*=Kostenverzamelstaat!$J$161","","Overige kosten- geaccepteerd","zvkx13","a700","","TY0V01","Euro's",null,"N","",1]
[null,null,null,null,"zvkx13_c700__TY1V01","*=Kostenverzamelstaat!$K$161","","Overige kosten-- incl balans","zvkx13","c700","","TY1V01","Euro's",null,"N","",1]
[null,null,null,null,"zvkx13_a700__TY1V01","*=Kostenverzamelstaat!$L$161","","Overige kosten-- geaccepteerd","zvkx13","a700","","TY1V01","Euro's",null,"N","",1]
[null,null,null,null,"zvkx13_c700__TY2V01","*=Kostenverzamelstaat!$M$161","","Overige kosten-- incl balans","zvkx13","c700","","TY2V01","Euro's",null,"N","",1]
[null,null,null,null,"zvkx13_a700__TY2V01","*=Kostenverzamelstaat!$N$161","","Overige kosten-- geaccepteerd","zvkx13","a700","","TY2V01","Euro's",null,"N","",1]
[null,null,null,null,"zvkx13_c701__TY0V01","*=Kostenverzamelstaat!$I$162","","Overige kosten- geneeskundige zorg- incl balans","zvkx13","c701","","TY0V01","Euro's",null,"N","",1]
[null,null,null,null,"zvkx13_a701__TY0V01","*=Kostenverzamelstaat!$J$162","","Overige kosten- geneeskundige zorg-geaccepteerd","zvkx13","a701","","TY0V01","Euro's",null,"N","",1]
[null,null,null,null,"zvkx13_c701__TY1V01","*=Kostenverzamelstaat!$K$162","","Overige kosten- geneeskundige zorg- incl balans","zvkx13","c701","","TY1V01","Euro's",null,"N","",1]
[null,null,null,null,"zvkx13_a701__TY1V01","*=Kostenverzamelstaat!$L$162","","Overige kosten- geneeskundige zorg- geaccepteerd","zvkx13","a701","","TY1V01","Euro's",null,"N","",1]
[null,null,null,null,"zvkx13_c701__TY2V01","*=Kostenverzamelstaat!$M$162","","Overige kosten- geneeskundige zorg- incl balans","zvkx13","c701","","TY2V01","Euro's",null,"N","",1]
[null,null,null,null,"zvkx13_a701__TY2V01","*=Kostenverzamelstaat!$N$162","","Overige kosten- geneeskundige zorg- geaccepteerd","zvkx13","a701","","TY2V01","Euro's",null,"N","",1]
[null,null,null,null,"zvkx13_c702__TY0V01","*=Kostenverzamelstaat!$I$163","","Overige kosten- zintuiglijk gehandicapten- incl balans","zvkx13","c702","","TY0V01","Euro's",null,"N","",1]
[null,null,null,null,"zvkx13_a702__TY0V01","*=Kostenverzamelstaat!$J$163","","Overige kosten- zintuiglijk gehandicapten- geaccepteerd","zvkx13","a702","","TY0V01","Euro's",null,"N","",1]
[null,null,null,null,"zvkx13_c702__TY1V01","*=Kostenverzamelstaat!$K$163","","Overige kosten- zintuiglijk gehandicapten- incl balans","zvkx13","c702","","TY1V01","Euro's",null,"N","",1]
[null,null,null,null,"zvkx13_a702__TY1V01","*=Kostenverzamelstaat!$L$163","","Overige kosten- zintuiglijk gehandicapten- geaccepteerd","zvkx13","a702","","TY1V01","Euro's",null,"N","",1]
[null,null,null,null,"zvkx13_c702__TY2V01","*=Kostenverzamelstaat!$M$163","","Overige kosten- zintuiglijk gehandicapten- incl balans","zvkx13","c702","","TY2V01","Euro's",null,"N","",1]
[null,null,null,null,"zvkx13_a702__TY2V01","*=Kostenverzamelstaat!$N$163","","Overige kosten- zintuiglijk gehandicapten- geaccepteerd","zvkx13","a702","","TY2V01","Euro's",null,"N","",1]
[null,null,null,null,"zvkx13_c8131__TY0V01","*=Kostenverzamelstaat!$I$165",null,"Overige kosten-  Meerkosten Corona indirect- incl balans","zvkx13","c8131",null,"TY0V01","Euro's",null,"N","",1]
[null,null,null,null,"zvkx13_a8131__TY0V01","*=Kostenverzamelstaat!$J$165",null,"Overige kosten-  Meerkosten Corona indirect- geaccepteerd","zvkx13","a8131",null,"TY0V01","Euro's",null,"N","",1]
[null,null,null,null,"zvkx13_c8131__TY2V01","*=Kostenverzamelstaat!$M$165",null,"Overige kosten-  Meerkosten Corona indirect- incl balans","zvkx13","c8131",null,"TY2V01","Euro's",null,"N","",1]
[null,null,null,null,"zvkx13_a8131__TY2V01","*=Kostenverzamelstaat!$N$165",null,"Overige kosten-  Meerkosten Corona indirect- geaccepteerd","zvkx13","a8131",null,"TY2V01","Euro's",null,"N","",1]
[null,null,null,null,"zvkx13_c8132__TY0V01","*=Kostenverzamelstaat!$I$166",null,"Overige kosten-  Meerkosten Corona toeslagen- incl balans","zvkx13","c8132",null,"TY0V01","Euro's",null,"N","",1]
[null,null,null,null,"zvkx13_a8132__TY0V01","*=Kostenverzamelstaat!$J$166",null,"Overige kosten-  Meerkosten Corona toeslagen- geaccepteerd","zvkx13","a8132",null,"TY0V01","Euro's",null,"N","",1]
[null,null,null,null,"zvkx13_c8132__TY2V01","*=Kostenverzamelstaat!$M$166",null,"Overige kosten-  Meerkosten Corona toeslagen- incl balans","zvkx13","c8132",null,"TY2V01","Euro's",null,"N","",1]
[null,null,null,null,"zvkx13_a8132__TY2V01","*=Kostenverzamelstaat!$N$166",null,"Overige kosten-  Meerkosten Corona toeslagen- geaccepteerd","zvkx13","a8132",null,"TY2V01","Euro's",null,"N","",1]
[null,null,null,null,"zvkx13_c833__TY1V01","*=Kostenverzamelstaat!$K$167",null,"Overige kosten- Netto continuïteitsbijdrage Corona (basisverzekering)- incl balans","zvkx13","c833",null,"TY1V01","Euro's",null,"N","",1]
[null,null,null,null,"zvkx13_a833__TY1V01","*=Kostenverzamelstaat!$L$167",null,"Overige kosten- Netto continuïteitsbijdrage Corona (basisverzekering)- geaccepteerd","zvkx13","a833",null,"TY1V01","Euro's",null,"N","",1]
[null,null,null,null,"zvkx13_c833__TY2V01","*=Kostenverzamelstaat!$M$167",null,"Overige kosten- Netto continuïteitsbijdrage Corona (basisverzekering)- incl balans","zvkx13","c833",null,"TY2V01","Euro's",null,"N","",1]
[null,null,null,null,"zvkx13_a833__TY2V01","*=Kostenverzamelstaat!$N$167",null,"Overige kosten- Netto continuïteitsbijdrage Corona (basisverzekering)- geaccepteerd","zvkx13","a833",null,"TY2V01","Euro's",null,"N","",1]
[null,null,null,null,"zvkx13_c__TY0V01","*=Kostenverzamelstaat!$I$168"]
[null,null,null,null,"zvkx13_a__TY0V01","*=Kostenverzamelstaat!$J$168"]
[null,null,null,null,"zvkx13_c__TY1V01","*=Kostenverzamelstaat!$K$168"]
[null,null,null,null,"zvkx13_a__TY1V01","*=Kostenverzamelstaat!$L$168"]
[null,null,null,null,"zvkx13_c__TY2V01","*=Kostenverzamelstaat!$M$168"]
[null,null,null,null,"zvkx13_a__TY2V01","*=Kostenverzamelstaat!$N$168"]
[null,null,null,null,"zvkx15_c720__TY0V01","*=Kostenverzamelstaat!$I$170","","Grensoverschrijdende zorg- via verzekeraar- incl balans","zvkx15","c720","","TY0V01","Euro's",null,"N","",1]
[null,null,null,null,"zvkx15_a720__TY0V01","*=Kostenverzamelstaat!$J$170","","Grensoverschrijdende zorg- via verzekeraar- geaccepteerd","zvkx15","a720","","TY0V01","Euro's",null,"N","",1]
[null,null,null,null,"zvkx15_c720__TY1V01","*=Kostenverzamelstaat!$K$170","","Grensoverschrijdende zorg- via verzekeraar- incl balans","zvkx15","c720","","TY1V01","Euro's",null,"N","",1]
[null,null,null,null,"zvkx15_a720__TY1V01","*=Kostenverzamelstaat!$L$170","","Grensoverschrijdende zorg- via verzekeraar- geaccepteerd","zvkx15","a720","","TY1V01","Euro's",null,"N","",1]
[null,null,null,null,"zvkx15_c720__TY2V01","*=Kostenverzamelstaat!$M$170","","Grensoverschrijdende zorg- via verzekeraar- incl balans","zvkx15","c720","","TY2V01","Euro's",null,"N","",1]
[null,null,null,null,"zvkx15_a720__TY2V01","*=Kostenverzamelstaat!$N$170","","Grensoverschrijdende zorg- via verzekeraar- geaccepteerd","zvkx15","a720","","TY2V01","Euro's",null,"N","",1]
[null,null,null,null,"zvkx15_c721__TY0V01","*=Kostenverzamelstaat!$I$171","","Grensoverschrijdende zorg- via verbindingsorgaan- incl balans","zvkx15","c721","","TY0V01","Euro's",null,"N","",1]
[null,null,null,null,"zvkx15_a721__TY0V01","*=Kostenverzamelstaat!$J$171","","Grensoverschrijdende zorg- via verbindingsorgaan- geaccepteerd","zvkx15","a721","","TY0V01","Euro's",null,"N","",1]
[null,null,null,null,"zvkx15_c721__TY1V01","*=Kostenverzamelstaat!$K$171","","Grensoverschrijdende zorg- via verbindingsorgaan- incl balans","zvkx15","c721","","TY1V01","Euro's",null,"N","",1]
[null,null,null,null,"zvkx15_a721__TY1V01","*=Kostenverzamelstaat!$L$171","","Grensoverschrijdende zorg- via verbindingsorgaan- geaccepteerd","zvkx15","a721","","TY1V01","Euro's",null,"N","",1]
[null,null,null,null,"zvkx15_c721__TY2V01","*=Kostenverzamelstaat!$M$171","","Grensoverschrijdende zorg- via verbindingsorgaan- incl balans","zvkx15","c721","","TY2V01","Euro's",null,"N","",1]
[null,null,null,null,"zvkx15_a721__TY2V01","*=Kostenverzamelstaat!$N$171","","Grensoverschrijdende zorg- via verbindingsorgaan- geaccepteerd","zvkx15","a721","","TY2V01","Euro's",null,"N","",1]
[null,null,null,null,"zvkx15_c__TY0V01","*=Kostenverzamelstaat!$I$172"]
[null,null,null,null,"zvkx15_a__TY0V01","*=Kostenverzamelstaat!$J$172"]
[null,null,null,null,"zvkx15_c__TY1V01","*=Kostenverzamelstaat!$K$172"]
[null,null,null,null,"zvkx15_a__TY1V01","*=Kostenverzamelstaat!$L$172"]
[null,null,null,null,"zvkx15_c__TY2V01","*=Kostenverzamelstaat!$M$172"]
[null,null,null,null,"zvkx15_a__TY2V01","*=Kostenverzamelstaat!$N$172"]
[null,null,null,null,"zvkx16_c730__TY0V01","*=Kostenverzamelstaat!$I$174","","Kwaliteitsgelden-- incl balans","zvkx16","c730","","TY0V01","Euro's",null,"N","",1]
[null,null,null,null,"zvkx16_a730__TY0V01","*=Kostenverzamelstaat!$J$174","","Kwaliteitsgelden-- geaccepteerd","zvkx16","a730","","TY0V01","Euro's",null,"N","",1]
[null,null,null,null,"zvkx16_c730__TY1V01","*=Kostenverzamelstaat!$K$174","","Kwaliteitsgelden-- incl balans","zvkx16","c730","","TY1V01","Euro's",null,"N","",1]
[null,null,null,null,"zvkx16_a730__TY1V01","*=Kostenverzamelstaat!$L$174","","Kwaliteitsgelden-- geaccepteerd","zvkx16","a730","","TY1V01","Euro's",null,"N","",1]
[null,null,null,null,"zvkx16_c730__TY2V01","*=Kostenverzamelstaat!$M$174","","Kwaliteitsgelden-- incl balans","zvkx16","c730","","TY2V01","Euro's",null,"N","",1]
[null,null,null,null,"zvkx16_a730__TY2V01","*=Kostenverzamelstaat!$N$174","","Kwaliteitsgelden-- geaccepteerd","zvkx16","a730","","TY2V01","Euro's",null,"N","",1]
[null,null,null,null,"zvkx16_c__TY0V01","*=Kostenverzamelstaat!$I$175"]
[null,null,null,null,"zvkx16_a__TY0V01","*=Kostenverzamelstaat!$J$175"]
[null,null,null,null,"zvkx16_c__TY1V01","*=Kostenverzamelstaat!$K$175"]
[null,null,null,null,"zvkx16_a__TY1V01","*=Kostenverzamelstaat!$L$175"]
[null,null,null,null,"zvkx16_c__TY2V01","*=Kostenverzamelstaat!$M$175"]
[null,null,null,null,"zvkx16_a__TY2V01","*=Kostenverzamelstaat!$N$175"]
[null,null,null,null,"zvkx_c__TY0V01","*=Kostenverzamelstaat!$I$176"]
[null,null,null,null,"zvkx_a__TY0V01","*=Kostenverzamelstaat!$J$176"]
[null,null,null,null,"zvkx_c__TY1V01","*=Kostenverzamelstaat!$K$176"]
[null,null,null,null,"zvkx_a__TY1V01","*=Kostenverzamelstaat!$L$176"]
[null,null,null,null,"zvkx_c__TY2V01","*=Kostenverzamelstaat!$M$176"]
[null,null,null,null,"zvkx_a__TY2V01","*=Kostenverzamelstaat!$N$176"]
[null,null,null,null,"zvkxdnb_c8901__TY0V01","*=Kostenverzamelstaat!$I$186","","Verschilposten DNB- Opbrengsten verhaal- incl balans","zvkxdnb","c8901","","TY0V01","Euro's",null,"N","",1]
[null,null,null,null,"zvkxdnb_a8901__TY0V01","*=Kostenverzamelstaat!$J$186","","Verschilposten DNB- Opbrengsten verhaal- geaccepteerd","zvkxdnb","a8901","","TY0V01","Euro's",null,"N","",1]
[null,null,null,null,"zvkxdnb_c8901__TY1V01","*=Kostenverzamelstaat!$K$186","","Verschilposten DNB- Opbrengsten verhaal- incl balans","zvkxdnb","c8901","","TY1V01","Euro's",null,"N","",1]
[null,null,null,null,"zvkxdnb_a8901__TY1V01","*=Kostenverzamelstaat!$L$186","","Verschilposten DNB- Opbrengsten verhaal- geaccepteerd","zvkxdnb","a8901","","TY1V01","Euro's",null,"N","",1]
[null,null,null,null,"zvkxdnb_c8901__TY2V01","*=Kostenverzamelstaat!$M$186","","Verschilposten DNB- Opbrengsten verhaal- incl balans","zvkxdnb","c8901","","TY2V01","Euro's",null,"N","",1]
[null,null,null,null,"zvkxdnb_a8901__TY2V01","*=Kostenverzamelstaat!$N$186","","Verschilposten DNB- Opbrengsten verhaal- geaccepteerd","zvkxdnb","a8901","","TY2V01","Euro's",null,"N","",1]
[null,null,null,null,"zvkxdnb_c910__TY0V01","*=Kostenverzamelstaat!$I$187","","Verschilposten DNB- Schade tlv het vrijwillig eigen risico- incl balans","zvkxdnb","c910","","TY0V01","Euro's",null,"N","",1]
[null,null,null,null,"zvkxdnb_a910__TY0V01","*=Kostenverzamelstaat!$J$187","","Verschilposten DNB- Schade tlv het vrijwillig eigen risico- geaccepteerd","zvkxdnb","a910","","TY0V01","Euro's",null,"N","",1]
[null,null,null,null,"zvkxdnb_c910__TY1V01","*=Kostenverzamelstaat!$K$187","","Verschilposten DNB- Schade tlv het vrijwillig eigen risico- incl balans","zvkxdnb","c910","","TY1V01","Euro's",null,"N","",1]
[null,null,null,null,"zvkxdnb_a910__TY1V01","*=Kostenverzamelstaat!$L$187","","Verschilposten DNB- Schade tlv het vrijwillig eigen risico- geaccepteerd","zvkxdnb","a910","","TY1V01","Euro's",null,"N","",1]
[null,null,null,null,"zvkxdnb_c910__TY2V01","*=Kostenverzamelstaat!$M$187","","Verschilposten DNB- Schade tlv het vrijwillig eigen risico- incl balans","zvkxdnb","c910","","TY2V01","Euro's",null,"N","",1]
[null,null,null,null,"zvkxdnb_a910__TY2V01","*=Kostenverzamelstaat!$N$187","","Verschilposten DNB- Schade tlv het vrijwillig eigen risico- geaccepteerd","zvkxdnb","a910","","TY2V01","Euro's",null,"N","",1]
[null,null,null,null,"zvkxdnb_c915__TY0V01","*=Kostenverzamelstaat!$I$188","","Verschilposten DNB- Schade tlv het verplicht eigen risico- incl balans","zvkxdnb","c915","","TY0V01","Euro's",null,"N","",1]
[null,null,null,null,"zvkxdnb_a915__TY0V01","*=Kostenverzamelstaat!$J$188","","Verschilposten DNB- Schade tlv het verplicht eigen risico- geaccepteerd","zvkxdnb","a915","","TY0V01","Euro's",null,"N","",1]
[null,null,null,null,"zvkxdnb_c915__TY1V01","*=Kostenverzamelstaat!$K$188","","Verschilposten DNB- Schade tlv het verplicht eigen risico- incl balans","zvkxdnb","c915","","TY1V01","Euro's",null,"N","",1]
[null,null,null,null,"zvkxdnb_a915__TY1V01","*=Kostenverzamelstaat!$L$188","","Verschilposten DNB- Schade tlv het verplicht eigen risico- geaccepteerd","zvkxdnb","a915","","TY1V01","Euro's",null,"N","",1]
[null,null,null,null,"zvkxdnb_c915__TY2V01","*=Kostenverzamelstaat!$M$188","","Verschilposten DNB- Schade tlv het verplicht eigen risico- incl balans","zvkxdnb","c915","","TY2V01","Euro's",null,"N","",1]
[null,null,null,null,"zvkxdnb_a915__TY2V01","*=Kostenverzamelstaat!$N$188","","Verschilposten DNB- Schade tlv het verplicht eigen risico- geaccepteerd","zvkxdnb","a915","","TY2V01","Euro's",null,"N","",1]
[null,null,null,null,"zvkxdnb_c940__TY0V01","*=Kostenverzamelstaat!$I$189","","Verschilposten DNB- Netto Premieopbrengsten- incl balans","zvkxdnb","c940","","TY0V01","Euro's",null,"N","",1]
[null,null,null,null,"zvkxdnb_a940__TY0V01","*=Kostenverzamelstaat!$J$189","","Verschilposten DNB- Netto Premieopbrengsten- geaccepteerd","zvkxdnb","a940","","TY0V01","Euro's",null,"N","",1]
[null,null,null,null,"zvkxdnb_c940__TY1V01","*=Kostenverzamelstaat!$K$189","","Verschilposten DNB- Netto Premieopbrengsten- incl balans","zvkxdnb","c940","","TY1V01","Euro's",null,"N","",1]
[null,null,null,null,"zvkxdnb_a940__TY1V01","*=Kostenverzamelstaat!$L$189","","Verschilposten DNB- Netto Premieopbrengsten- geaccepteerd","zvkxdnb","a940","","TY1V01","Euro's",null,"N","",1]
[null,null,null,null,"zvkxdnb_c940__TY2V01","*=Kostenverzamelstaat!$M$189","","Verschilposten DNB- Netto Premieopbrengsten- incl balans","zvkxdnb","c940","","TY2V01","Euro's",null,"N","",1]
[null,null,null,null,"zvkxdnb_a940__TY2V01","*=Kostenverzamelstaat!$N$189","","Verschilposten DNB- Netto Premieopbrengsten- geaccepteerd","zvkxdnb","a940","","TY2V01","Euro's",null,"N","",1]
[null,null,null,null,"zvkx01_cc504__TY1V01","*='Catastr kostenverzamelst'!I16","","Huisartsen- bijz diensttijden- kst Corona- incl balans","zvkx01","cc504","","TY1V01","Euro's",null,"N","",1]
[null,null,null,null,"zvkx01_ac504__TY1V01","*='Catastr kostenverzamelst'!J16","","Huisartsen- bijz diensttijden- kst Corona- geaccepteerd","zvkx01","ac504","","TY1V01","Euro's",null,"N","",1]
[null,null,null,null,"zvkx01_cc504__TY2V01","*='Catastr kostenverzamelst'!$K$16","","Huisartsen- bijz diensttijden- kst Corona- incl balans","zvkx01","cc504","","TY2V01","Euro's",null,"N","",1]
[null,null,null,null,"zvkx01_ac504__TY2V01","*='Catastr kostenverzamelst'!$L$16","","Huisartsen- bijz diensttijden- kst Corona- geaccepteerd","zvkx01","ac504","","TY2V01","Euro's",null,"N","",1]
[null,null,null,null,"zvkx01_cc506__TY1V01","*='Catastr kostenverzamelst'!$I$18","","Huisartsen- Consult- kst Corona- incl balans","zvkx01","cc506","","TY1V01","Euro's",null,"N","",1]
[null,null,null,null,"zvkx01_ac506__TY1V01","*='Catastr kostenverzamelst'!$J$18","","Huisartsen- Consult- kst Corona- geaccepteerd","zvkx01","ac506","","TY1V01","Euro's",null,"N","",1]
[null,null,null,null,"zvkx01_cc506__TY2V01","*='Catastr kostenverzamelst'!$K$18","","Huisartsen- Consult- kst Corona- incl balans","zvkx01","cc506","","TY2V01","Euro's",null,"N","",1]
[null,null,null,null,"zvkx01_ac506__TY2V01","*='Catastr kostenverzamelst'!$L$18","","Huisartsen- Consult- kst Corona- geaccepteerd","zvkx01","ac506","","TY2V01","Euro's",null,"N","",1]
[null,null,null,null,"zvkx01_cc507__TY1V01","*='Catastr kostenverzamelst'!$I$19","","Huisartsen- Overige- kst Corona- incl balans","zvkx01","cc507","","TY1V01","Euro's",null,"N","",1]
[null,null,null,null,"zvkx01_ac507__TY1V01","*='Catastr kostenverzamelst'!$J$19","","Huisartsen- Overige- kst Corona- geaccepteerd","zvkx01","ac507","","TY1V01","Euro's",null,"N","",1]
[null,null,null,null,"zvkx01_cc507__TY2V01","*='Catastr kostenverzamelst'!$K$19","","Huisartsen- Overige- kst Corona- incl balans","zvkx01","cc507","","TY2V01","Euro's",null,"N","",1]
[null,null,null,null,"zvkx01_ac507__TY2V01","*='Catastr kostenverzamelst'!$L$19","","Huisartsen- Overige- kst Corona- geaccepteerd","zvkx01","ac507","","TY2V01","Euro's",null,"N","",1]
[null,null,null,null,"zvkx01_cc515__TY1V01","*='Catastr kostenverzamelst'!$I$21","","Huisartsen- Resultaatbel. huisartsen- kst Corona- incl balans","zvkx01","cc515","","TY1V01","Euro's",null,"N","",1]
[null,null,null,null,"zvkx01_ac515__TY1V01","*='Catastr kostenverzamelst'!$J$21","","Huisartsen- Resultaatbel. huisartsen- kst Corona- geaccepteerd","zvkx01","ac515","","TY1V01","Euro's",null,"N","",1]
[null,null,null,null,"zvkx01_cc515__TY2V01","*='Catastr kostenverzamelst'!$K$21","","Huisartsen- Resultaatbel. huisartsen- kst Corona- incl balans","zvkx01","cc515","","TY2V01","Euro's",null,"N","",1]
[null,null,null,null,"zvkx01_ac515__TY2V01","*='Catastr kostenverzamelst'!$L$21","","Huisartsen- Resultaatbel. huisartsen- kst Corona- geaccepteerd","zvkx01","ac515","","TY2V01","Euro's",null,"N","",1]
[null,null,null,null,"zvkx01_cc8011__TY1V01","*='Catastr kostenverzamelst'!$I$24",null,"Huisartsen- Meerkosten Corona, indirect- kst Corona- incl balans","zvkx01","cc8011",null,"TY1V01","Euro's",null,"N","",1]
[null,null,null,null,"zvkx01_ac8011__TY1V01","*='Catastr kostenverzamelst'!$J$24",null,"Huisartsen- Meerkosten Corona, indirect- kst Corona- geaccepteerd","zvkx01","ac8011",null,"TY1V01","Euro's",null,"N","",1]
[null,null,null,null,"zvkx01_cc8011__TY2V01","*='Catastr kostenverzamelst'!$K$24",null,"Huisartsen- Meerkosten Corona, indirect- kst Corona- incl balans","zvkx01","cc8011",null,"TY2V01","Euro's",null,"N","",1]
[null,null,null,null,"zvkx01_ac8011__TY2V01","*='Catastr kostenverzamelst'!$L$24",null,"Huisartsen- Meerkosten Corona, indirect- kst Corona- geaccepteerd","zvkx01","ac8011",null,"TY2V01","Euro's",null,"N","",1]
[null,null,null,null,"zvkx01_cc8012__TY1V01","*='Catastr kostenverzamelst'!$I$25",null,"Huisartsen- Meerkosten Corona, toeslagen- kst Corona- incl balans","zvkx01","cc8012",null,"TY1V01","Euro's",null,"N","",1]
[null,null,null,null,"zvkx01_ac8012__TY1V01","*='Catastr kostenverzamelst'!$J$25",null,"Huisartsen- Meerkosten Corona, toeslagen- kst Corona- geaccepteerd","zvkx01","ac8012",null,"TY1V01","Euro's",null,"N","",1]
[null,null,null,null,"zvkx01_cc8012__TY2V01","*='Catastr kostenverzamelst'!$K$25",null,"Huisartsen- Meerkosten Corona, toeslagen- kst Corona- incl balans","zvkx01","cc8012",null,"TY2V01","Euro's",null,"N","",1]
[null,null,null,null,"zvkx01_ac8012__TY2V01","*='Catastr kostenverzamelst'!$L$25",null,"Huisartsen- Meerkosten Corona, toeslagen- kst Corona- geaccepteerd","zvkx01","ac8012",null,"TY2V01","Euro's",null,"N","",1]
[null,null,null,null,"zvkx02_cc8021__TY1V01","*='Catastr kostenverzamelst'!$I$30",null,"Farmaceutische hulp- Meerkosten Corona, indirect- kst Corona- incl balans","zvkx02","cc8021",null,"TY1V01","Euro's",null,"N","",1]
[null,null,null,null,"zvkx02_ac8021__TY1V01","*='Catastr kostenverzamelst'!$J$30",null,"Farmaceutische hulp- Meerkosten Corona, indirect- kst Corona- geaccepteerd","zvkx02","ac8021",null,"TY1V01","Euro's",null,"N","",1]
[null,null,null,null,"zvkx02_cc8021__TY2V01","*='Catastr kostenverzamelst'!$K$30",null,"Farmaceutische hulp- Meerkosten Corona, indirect- kst Corona- incl balans","zvkx02","cc8021",null,"TY2V01","Euro's",null,"N","",1]
[null,null,null,null,"zvkx02_ac8021__TY2V01","*='Catastr kostenverzamelst'!$L$30",null,"Farmaceutische hulp- Meerkosten Corona, indirect- kst Corona- geaccepteerd","zvkx02","ac8021",null,"TY2V01","Euro's",null,"N","",1]
[null,null,null,null,"zvkx02_cc8022__TY1V01","*='Catastr kostenverzamelst'!$I$31",null,"Farmaceutische hulp- Meerkosten Corona, toeslagen- kst Corona- incl balans","zvkx02","cc8022",null,"TY1V01","Euro's",null,"N","",1]
[null,null,null,null,"zvkx02_ac8022__TY1V01","*='Catastr kostenverzamelst'!$J$31",null,"Farmaceutische hulp- Meerkosten Corona, toeslagen- kst Corona- geaccepteerd","zvkx02","ac8022",null,"TY1V01","Euro's",null,"N","",1]
[null,null,null,null,"zvkx02_cc8022__TY2V01","*='Catastr kostenverzamelst'!$K$31",null,"Farmaceutische hulp- Meerkosten Corona, toeslagen- kst Corona- incl balans","zvkx02","cc8022",null,"TY2V01","Euro's",null,"N","",1]
[null,null,null,null,"zvkx02_ac8022__TY2V01","*='Catastr kostenverzamelst'!$L$31",null,"Farmaceutische hulp- Meerkosten Corona, toeslagen- kst Corona- geaccepteerd","zvkx02","ac8022",null,"TY2V01","Euro's",null,"N","",1]
[null,null,null,null,"zvkx03_cc530__TY1V01","*='Catastr kostenverzamelst'!$I$34",null,"Verpleging en verzorging- Meerkosten Corona, indirect- kst Corona- incl balans","zvkx03","cc530",null,"TY1V01","Euro's",null,"N","",1]
[null,null,null,null,"zvkx03_ac530__TY1V01","*='Catastr kostenverzamelst'!$J$34",null,"Verpleging en verzorging- Meerkosten Corona, indirect- kst Corona- geaccepteerd","zvkx03","ac530",null,"TY1V01","Euro's",null,"N","",1]
[null,null,null,null,"zvkx03_cc530__TY2V01","*='Catastr kostenverzamelst'!$K$34",null,"Verpleging en verzorging- Meerkosten Corona, indirect- kst Corona- incl balans","zvkx03","cc530",null,"TY2V01","Euro's",null,"N","",1]
[null,null,null,null,"zvkx03_ac530__TY2V01","*='Catastr kostenverzamelst'!$L$34",null,"Verpleging en verzorging- Meerkosten Corona, indirect- kst Corona- geaccepteerd","zvkx03","ac530",null,"TY2V01","Euro's",null,"N","",1]
[null,null,null,null,"zvkx03_cc8031__TY1V01","*='Catastr kostenverzamelst'!$I$36",null,"Verpleging en verzorging- Meerkosten Corona, indirect- kst Corona- incl balans","zvkx03","cc8031",null,"TY1V01","Euro's",null,"N","",1]
[null,null,null,null,"zvkx03_ac8031__TY1V01","*='Catastr kostenverzamelst'!$J$36",null,"Verpleging en verzorging- Meerkosten Corona, indirect- kst Corona- geaccepteerd","zvkx03","ac8031",null,"TY1V01","Euro's",null,"N","",1]
[null,null,null,null,"zvkx03_cc8031__TY2V01","*='Catastr kostenverzamelst'!$K$36",null,"Verpleging en verzorging- Meerkosten Corona, indirect- kst Corona- incl balans","zvkx03","cc8031",null,"TY2V01","Euro's",null,"N","",1]
[null,null,null,null,"zvkx03_ac8031__TY2V01","*='Catastr kostenverzamelst'!$L$36",null,"Verpleging en verzorging- Meerkosten Corona, indirect- kst Corona- geaccepteerd","zvkx03","ac8031",null,"TY2V01","Euro's",null,"N","",1]
[null,null,null,null,"zvkx03_cc8032__TY1V01","*='Catastr kostenverzamelst'!$I$37",null,"Verpleging en verzorging- Meerkosten Corona, toeslagen- kst Corona- incl balans","zvkx03","cc8032",null,"TY1V01","Euro's",null,"N","",1]
[null,null,null,null,"zvkx03_ac8032__TY1V01","*='Catastr kostenverzamelst'!$J$37",null,"Verpleging en verzorging- Meerkosten Corona, toeslagen- kst Corona- geaccepteerd","zvkx03","ac8032",null,"TY1V01","Euro's",null,"N","",1]
[null,null,null,null,"zvkx03_cc8032__TY2V01","*='Catastr kostenverzamelst'!$K$37",null,"Verpleging en verzorging- Meerkosten Corona, toeslagen- kst Corona- incl balans","zvkx03","cc8032",null,"TY2V01","Euro's",null,"N","",1]
[null,null,null,null,"zvkx03_ac8032__TY2V01","*='Catastr kostenverzamelst'!$L$37",null,"Verpleging en verzorging- Meerkosten Corona, toeslagen- kst Corona- geaccepteerd","zvkx03","ac8032",null,"TY2V01","Euro's",null,"N","",1]
[null,null,null,null,"zvkx04_cc8041__TY1V01","*='Catastr kostenverzamelst'!$I$44",null,"Mondzorg- Meerkosten Corona, indirect- kst Corona- incl balans","zvkx04","cc8041",null,"TY1V01","Euro's",null,"N","",1]
[null,null,null,null,"zvkx04_ac8041__TY1V01","*='Catastr kostenverzamelst'!$J$44",null,"Mondzorg- Meerkosten Corona, indirect- kst Corona- geaccepteerd","zvkx04","ac8041",null,"TY1V01","Euro's",null,"N","",1]
[null,null,null,null,"zvkx04_cc8041__TY2V01","*='Catastr kostenverzamelst'!$K$44",null,"Mondzorg- Meerkosten Corona, indirect- kst Corona- incl balans","zvkx04","cc8041",null,"TY2V01","Euro's",null,"N","",1]
[null,null,null,null,"zvkx04_ac8041__TY2V01","*='Catastr kostenverzamelst'!$L$44",null,"Mondzorg- Meerkosten Corona, indirect- kst Corona- geaccepteerd","zvkx04","ac8041",null,"TY2V01","Euro's",null,"N","",1]
[null,null,null,null,"zvkx04_cc8042__TY1V01","*='Catastr kostenverzamelst'!$I$45",null,"Mondzorg- Meerkosten Corona, toeslagen- kst Corona- incl balans","zvkx04","cc8042",null,"TY1V01","Euro's",null,"N","",1]
[null,null,null,null,"zvkx04_ac8042__TY1V01","*='Catastr kostenverzamelst'!$J$45",null,"Mondzorg- Meerkosten Corona, toeslagen- kst Corona- geaccepteerd","zvkx04","ac8042",null,"TY1V01","Euro's",null,"N","",1]
[null,null,null,null,"zvkx04_cc8042__TY2V01","*='Catastr kostenverzamelst'!$K$45",null,"Mondzorg- Meerkosten Corona, toeslagen- kst Corona- incl balans","zvkx04","cc8042",null,"TY2V01","Euro's",null,"N","",1]
[null,null,null,null,"zvkx04_ac8042__TY2V01","*='Catastr kostenverzamelst'!$L$45",null,"Mondzorg- Meerkosten Corona, toeslagen- kst Corona- geaccepteerd","zvkx04","ac8042",null,"TY2V01","Euro's",null,"N","",1]
[null,null,null,null,"zvkx05_cc8051__TY1V01","*='Catastr kostenverzamelst'!$I$51",null,"Verloskundige hulp- Meerkosten Corona, indirect- kst Corona- incl balans","zvkx05","cc8051",null,"TY1V01","Euro's",null,"N","",1]
[null,null,null,null,"zvkx05_ac8051__TY1V01","*='Catastr kostenverzamelst'!$J$51",null,"Verloskundige hulp- Meerkosten Corona, indirect- kst Corona- geaccepteerd","zvkx05","ac8051",null,"TY1V01","Euro's",null,"N","",1]
[null,null,null,null,"zvkx05_cc8051__TY2V01","*='Catastr kostenverzamelst'!$K$51",null,"Verloskundige hulp- Meerkosten Corona, indirect- kst Corona- incl balans","zvkx05","cc8051",null,"TY2V01","Euro's",null,"N","",1]
[null,null,null,null,"zvkx05_ac8051__TY2V01","*='Catastr kostenverzamelst'!$L$51",null,"Verloskundige hulp- Meerkosten Corona, indirect- kst Corona- geaccepteerd","zvkx05","ac8051",null,"TY2V01","Euro's",null,"N","",1]
[null,null,null,null,"zvkx05_cc8052__TY1V01","*='Catastr kostenverzamelst'!$I$52",null,"Verloskundige hulp- Meerkosten Corona, toeslagen- kst Corona- incl balans","zvkx05","cc8052",null,"TY1V01","Euro's",null,"N","",1]
[null,null,null,null,"zvkx05_ac8052__TY1V01","*='Catastr kostenverzamelst'!$J$52",null,"Verloskundige hulp- Meerkosten Corona, toeslagen- kst Corona- geaccepteerd","zvkx05","ac8052",null,"TY1V01","Euro's",null,"N","",1]
[null,null,null,null,"zvkx05_cc8052__TY2V01","*='Catastr kostenverzamelst'!$K$52",null,"Verloskundige hulp- Meerkosten Corona, toeslagen- kst Corona- incl balans","zvkx05","cc8052",null,"TY2V01","Euro's",null,"N","",1]
[null,null,null,null,"zvkx05_ac8052__TY2V01","*='Catastr kostenverzamelst'!$L$52",null,"Verloskundige hulp- Meerkosten Corona, toeslagen- kst Corona- geaccepteerd","zvkx05","ac8052",null,"TY2V01","Euro's",null,"N","",1]
[null,null,null,null,"zvkx06_cc6122__TY1V01","*='Catastr kostenverzamelst'!$I$70","","Medisch specialistische hulp-IC- kst Corona- incl balans","zvkx06","cc6122","","TY1V01","Euro's",null,"N","",1]
[null,null,null,null,"zvkx06_ac6122__TY1V01","*='Catastr kostenverzamelst'!$J$70","","Medisch specialistische hulp-IC- kst Corona- geaccepteerd","zvkx06","ac6122","","TY1V01","Euro's",null,"N","",1]
[null,null,null,null,"zvkx06_cc6122__TY2V01","*='Catastr kostenverzamelst'!$K$70","","Medisch specialistische hulp-IC- kst Corona- incl balans","zvkx06","cc6122","","TY2V01","Euro's",null,"N","",1]
[null,null,null,null,"zvkx06_ac6122__TY2V01","*='Catastr kostenverzamelst'!$L$70","","Medisch specialistische hulp-IC- kst Corona- geaccepteerd","zvkx06","ac6122","","TY2V01","Euro's",null,"N","",1]
[null,null,null,null,"zvkx06_cc6131__TY1V01","*='Catastr kostenverzamelst'!$I$71","","Medisch specialistische hulp- Integraal DBC-zorgproduct gereguleerd- kst Corona- incl balans","zvkx06","cc6131","","TY1V01","Euro's",null,"N","",1]
[null,null,null,null,"zvkx06_ac6131__TY1V01","*='Catastr kostenverzamelst'!$J$71","","Medisch specialistische hulp- Integraal DBC-zorgproduct gereguleerd- kst Corona- geaccepteerd","zvkx06","ac6131","","TY1V01","Euro's",null,"N","",1]
[null,null,null,null,"zvkx06_cc6131__TY2V01","*='Catastr kostenverzamelst'!$K$71","","Medisch specialistische hulp- Integraal DBC-zorgproduct gereguleerd- kst Corona- incl balans","zvkx06","cc6131","","TY2V01","Euro's",null,"N","",1]
[null,null,null,null,"zvkx06_ac6131__TY2V01","*='Catastr kostenverzamelst'!$L$71","","Medisch specialistische hulp- Integraal DBC-zorgproduct gereguleerd- kst Corona- geaccepteerd","zvkx06","ac6131","","TY2V01","Euro's",null,"N","",1]
[null,null,null,null,"zvkx06_cc6151__TY1V01","*='Catastr kostenverzamelst'!$I$72","","Medisch specialistische hulp- Integraal DBC-zorgproduct vrije segment- kst Corona- incl balans","zvkx06","cc6151","","TY1V01","Euro's",null,"N","",1]
[null,null,null,null,"zvkx06_ac6151__TY1V01","*='Catastr kostenverzamelst'!$J$72","","Medisch specialistische hulp- Integraal DBC-zorgproduct vrije segment- kst Corona- geaccepteerd","zvkx06","ac6151","","TY1V01","Euro's",null,"N","",1]
[null,null,null,null,"zvkx06_cc6151__TY2V01","*='Catastr kostenverzamelst'!$K$72","","Medisch specialistische hulp- Integraal DBC-zorgproduct vrije segment- kst Corona- incl balans","zvkx06","cc6151","","TY2V01","Euro's",null,"N","",1]
[null,null,null,null,"zvkx06_ac6151__TY2V01","*='Catastr kostenverzamelst'!$L$72","","Medisch specialistische hulp- Integraal DBC-zorgproduct vrije segment- kst Corona- geaccepteerd","zvkx06","ac6151","","TY2V01","Euro's",null,"N","",1]
[null,null,null,null,"zvkx06_cc8061__TY1V01","*='Catastr kostenverzamelst'!$I$75",null,"Medisch specialistische hulp- Meerkosten Corona, indirect- kst Corona- incl balans","zvkx06","cc8061",null,"TY1V01","Euro's",null,"N","",1]
[null,null,null,null,"zvkx06_ac8061__TY1V01","*='Catastr kostenverzamelst'!$J$75",null,"Medisch specialistische hulp- Meerkosten Corona, indirect- kst Corona- geaccepteerd","zvkx06","ac8061",null,"TY1V01","Euro's",null,"N","",1]
[null,null,null,null,"zvkx06_cc8061__TY2V01","*='Catastr kostenverzamelst'!$K$75",null,"Medisch specialistische hulp- Meerkosten Corona, indirect- kst Corona- incl balans","zvkx06","cc8061",null,"TY2V01","Euro's",null,"N","",1]
[null,null,null,null,"zvkx06_ac8061__TY2V01","*='Catastr kostenverzamelst'!$L$75",null,"Medisch specialistische hulp- Meerkosten Corona, indirect- kst Corona- geaccepteerd","zvkx06","ac8061",null,"TY2V01","Euro's",null,"N","",1]
[null,null,null,null,"zvkx06_cc8062__TY1V01","*='Catastr kostenverzamelst'!$I$76",null,"Medisch specialistische hulp- Meerkosten Corona, toeslagen- kst Corona- incl balans","zvkx06","cc8062",null,"TY1V01","Euro's",null,"N","",1]
[null,null,null,null,"zvkx06_ac8062__TY1V01","*='Catastr kostenverzamelst'!$J$76",null,"Medisch specialistische hulp- Meerkosten Corona, toeslagen- kst Corona- geaccepteerd","zvkx06","ac8062",null,"TY1V01","Euro's",null,"N","",1]
[null,null,null,null,"zvkx06_cc8062__TY2V01","*='Catastr kostenverzamelst'!$K$76",null,"Medisch specialistische hulp- Meerkosten Corona, toeslagen- kst Corona- incl balans","zvkx06","cc8062",null,"TY2V01","Euro's",null,"N","",1]
[null,null,null,null,"zvkx06_ac8062__TY2V01","*='Catastr kostenverzamelst'!$L$76",null,"Medisch specialistische hulp- Meerkosten Corona, toeslagen- kst Corona- geaccepteerd","zvkx06","ac8062",null,"TY2V01","Euro's",null,"N","",1]
[null,null,null,null,"zvkx07_cc620__TY1V01","*='Catastr kostenverzamelst'!$I$79","","Paramedische hulp- fysiotherapie- kst Corona- incl balans","zvkx07","cc620","","TY1V01","Euro's",null,"N","",1]
[null,null,null,null,"zvkx07_ac620__TY1V01","*='Catastr kostenverzamelst'!$J$79","","Paramedische hulp- fysiotherapie- kst Corona- geaccepteerd","zvkx07","ac620","","TY1V01","Euro's",null,"N","",1]
[null,null,null,null,"zvkx07_cc620__TY2V01","*='Catastr kostenverzamelst'!$K$79","","Paramedische hulp- fysiotherapie- kst Corona- incl balans","zvkx07","cc620","","TY2V01","Euro's",null,"N","",1]
[null,null,null,null,"zvkx07_ac620__TY2V01","*='Catastr kostenverzamelst'!$L$79","","Paramedische hulp- fysiotherapie- kst Corona- geaccepteerd","zvkx07","ac620","","TY2V01","Euro's",null,"N","",1]
[null,null,null,null,"zvkx07_cc621__TY1V01","*='Catastr kostenverzamelst'!$I$80","","Paramedische hulp- Mensendieck/Cesar- kst Corona- incl balans","zvkx07","cc621","","TY1V01","Euro's",null,"N","",1]
[null,null,null,null,"zvkx07_ac621__TY1V01","*='Catastr kostenverzamelst'!$J$80","","Paramedische hulp- Mensendieck/Cesar- kst Corona- geaccepteerd","zvkx07","ac621","","TY1V01","Euro's",null,"N","",1]
[null,null,null,null,"zvkx07_cc621__TY2V01","*='Catastr kostenverzamelst'!$K$80","","Paramedische hulp- Mensendieck/Cesar- kst Corona- incl balans","zvkx07","cc621","","TY2V01","Euro's",null,"N","",1]
[null,null,null,null,"zvkx07_ac621__TY2V01","*='Catastr kostenverzamelst'!$L$80","","Paramedische hulp- Mensendieck/Cesar- kst Corona- geaccepteerd","zvkx07","ac621","","TY2V01","Euro's",null,"N","",1]
[null,null,null,null,"zvkx07_cc623__TY1V01","*='Catastr kostenverzamelst'!$I$81","","Paramedische hulp- logopedie- kst Corona- incl balans","zvkx07","cc623","","TY1V01","Euro's",null,"N","",1]
[null,null,null,null,"zvkx07_ac623__TY1V01","*='Catastr kostenverzamelst'!$J$81","","Paramedische hulp- logopedie- kst Corona- geaccepteerd","zvkx07","ac623","","TY1V01","Euro's",null,"N","",1]
[null,null,null,null,"zvkx07_cc623__TY2V01","*='Catastr kostenverzamelst'!$K$81","","Paramedische hulp- logopedie- kst Corona- incl balans","zvkx07","cc623","","TY2V01","Euro's",null,"N","",1]
[null,null,null,null,"zvkx07_ac623__TY2V01","*='Catastr kostenverzamelst'!$L$81","","Paramedische hulp- logopedie- kst Corona- geaccepteerd","zvkx07","ac623","","TY2V01","Euro's",null,"N","",1]
[null,null,null,null,"zvkx07_cc624__TY1V01","*='Catastr kostenverzamelst'!$I$82","","Paramedische hulp- ergotherapie- kst Corona- incl balans","zvkx07","cc624","","TY1V01","Euro's",null,"N","",1]
[null,null,null,null,"zvkx07_ac624__TY1V01","*='Catastr kostenverzamelst'!$J$82","","Paramedische hulp- ergotherapie- kst Corona- geaccepteerd","zvkx07","ac624","","TY1V01","Euro's",null,"N","",1]
[null,null,null,null,"zvkx07_cc624__TY2V01","*='Catastr kostenverzamelst'!$K$82","","Paramedische hulp- ergotherapie- kst Corona- incl balans","zvkx07","cc624","","TY2V01","Euro's",null,"N","",1]
[null,null,null,null,"zvkx07_ac624__TY2V01","*='Catastr kostenverzamelst'!$L$82","","Paramedische hulp- ergotherapie- kst Corona- geaccepteerd","zvkx07","ac624","","TY2V01","Euro's",null,"N","",1]
[null,null,null,null,"zvkx07_cc625__TY1V01","*='Catastr kostenverzamelst'!$I$83","","Paramedische hulp- dieetadvisering- kst Corona- incl balans","zvkx07","cc625","","TY1V01","Euro's",null,"N","",1]
[null,null,null,null,"zvkx07_ac625__TY1V01","*='Catastr kostenverzamelst'!$J$83","","Paramedische hulp- dieetadvisering- kst Corona- incl balans","zvkx07","ac625","","TY1V01","Euro's",null,"N","",1]
[null,null,null,null,"zvkx07_cc625__TY2V01","*='Catastr kostenverzamelst'!$K$83","","Paramedische hulp- dieetadvisering- kst Corona- geaccepteerd","zvkx07","cc625","","TY2V01","Euro's",null,"N","",1]
[null,null,null,null,"zvkx07_ac625__TY2V01","*='Catastr kostenverzamelst'!$L$83","","Paramedische hulp- dieetadvisering- kst Corona- geaccepteerd","zvkx07","ac625","","TY2V01","Euro's",null,"N","",1]
[null,null,null,null,"zvkx07_cc8071__TY1V01","*='Catastr kostenverzamelst'!$I$86",null,"Paramedische hulp- Meerkosten Corona, indirect- kst Corona- incl balans","zvkx07","cc8071",null,"TY1V01","Euro's",null,"N","",1]
[null,null,null,null,"zvkx07_ac8071__TY1V01","*='Catastr kostenverzamelst'!$J$86",null,"Paramedische hulp- Meerkosten Corona, indirect- kst Corona- geaccepteerd","zvkx07","ac8071",null,"TY1V01","Euro's",null,"N","",1]
[null,null,null,null,"zvkx07_cc8071__TY2V01","*='Catastr kostenverzamelst'!$K$86",null,"Paramedische hulp- Meerkosten Corona, indirect- kst Corona- incl balans","zvkx07","cc8071",null,"TY2V01","Euro's",null,"N","",1]
[null,null,null,null,"zvkx07_ac8071__TY2V01","*='Catastr kostenverzamelst'!$L$86",null,"Paramedische hulp- Meerkosten Corona, indirect- kst Corona- geaccepteerd","zvkx07","ac8071",null,"TY2V01","Euro's",null,"N","",1]
[null,null,null,null,"zvkx07_cc8072__TY1V01","*='Catastr kostenverzamelst'!$I$87",null,"Paramedische hulp- Meerkosten Corona, toeslagen- kst Corona- incl balans","zvkx07","cc8072",null,"TY1V01","Euro's",null,"N","",1]
[null,null,null,null,"zvkx07_ac8072__TY1V01","*='Catastr kostenverzamelst'!$J$87",null,"Paramedische hulp- Meerkosten Corona, toeslagen- kst Corona- geaccepteerd","zvkx07","ac8072",null,"TY1V01","Euro's",null,"N","",1]
[null,null,null,null,"zvkx07_cc8072__TY2V01","*='Catastr kostenverzamelst'!$K$87",null,"Paramedische hulp- Meerkosten Corona, toeslagen- kst Corona- incl balans","zvkx07","cc8072",null,"TY2V01","Euro's",null,"N","",1]
[null,null,null,null,"zvkx07_ac8072__TY2V01","*='Catastr kostenverzamelst'!$L$87",null,"Paramedische hulp- Meerkosten Corona, toeslagen- kst Corona- geaccepteerd","zvkx07","ac8072",null,"TY2V01","Euro's",null,"N","",1]
[null,null,null,null,"zvkx08_cc8081__TY1V01","*='Catastr kostenverzamelst'!$I$92",null,"Hulpmiddelen- Meerkosten Corona, indirect- kst Corona- incl balans","zvkx08","cc8081",null,"TY1V01","Euro's",null,"N","",1]
[null,null,null,null,"zvkx08_ac8081__TY1V01","*='Catastr kostenverzamelst'!$J$92",null,"Hulpmiddelen- Meerkosten Corona, indirect- kst Corona- geaccepteerd","zvkx08","ac8081",null,"TY1V01","Euro's",null,"N","",1]
[null,null,null,null,"zvkx08_cc8081__TY2V01","*='Catastr kostenverzamelst'!$K$92",null,"Hulpmiddelen- Meerkosten Corona, indirect- kst Corona- incl balans","zvkx08","cc8081",null,"TY2V01","Euro's",null,"N","",1]
[null,null,null,null,"zvkx08_ac8081__TY2V01","*='Catastr kostenverzamelst'!$L$92",null,"Hulpmiddelen- Meerkosten Corona, indirect- kst Corona- geaccepteerd","zvkx08","ac8081",null,"TY2V01","Euro's",null,"N","",1]
[null,null,null,null,"zvkx08_cc8082__TY1V01","*='Catastr kostenverzamelst'!$I$93",null,"Hulpmiddelen- Meerkosten Corona, toeslagen- kst Corona- incl balans","zvkx08","cc8082",null,"TY1V01","Euro's",null,"N","",1]
[null,null,null,null,"zvkx08_ac8082__TY1V01","*='Catastr kostenverzamelst'!$J$93",null,"Hulpmiddelen- Meerkosten Corona, toeslagen- kst Corona- geaccepteerd","zvkx08","ac8082",null,"TY1V01","Euro's",null,"N","",1]
[null,null,null,null,"zvkx08_cc8082__TY2V01","*='Catastr kostenverzamelst'!$K$93",null,"Hulpmiddelen- Meerkosten Corona, toeslagen- kst Corona- incl balans","zvkx08","cc8082",null,"TY2V01","Euro's",null,"N","",1]
[null,null,null,null,"zvkx08_ac8082__TY2V01","*='Catastr kostenverzamelst'!$L$93",null,"Hulpmiddelen- Meerkosten Corona, toeslagen- kst Corona- geaccepteerd","zvkx08","ac8082",null,"TY2V01","Euro's",null,"N","",1]
[null,null,null,null,"zvkx09_cc650__TY1V01","*='Catastr kostenverzamelst'!$I$96",null,"Ziekenvervoer- Meerkosten Corona, indirect- kst Corona- incl balans","zvkx09","cc650",null,"TY1V01","Euro's",null,"N"]
[null,null,null,null,"zvkx09_ac650__TY1V01","*='Catastr kostenverzamelst'!$J$96",null,"Ziekenvervoer- Meerkosten Corona, indirect- kst Corona- geaccepteerd","zvkx09","ac650",null,"TY1V01","Euro's",null,"N"]
[null,null,null,null,"zvkx09_cc650__TY2V01","*='Catastr kostenverzamelst'!$K$96",null,"Ziekenvervoer- Meerkosten Corona, indirect- kst Corona- incl balans","zvkx09","cc650",null,"TY2V01","Euro's",null,"N"]
[null,null,null,null,"zvkx09_ac650__TY2V01","*='Catastr kostenverzamelst'!$L$96",null,"Ziekenvervoer- Meerkosten Corona, indirect- kst Corona- geaccepteerd","zvkx09","ac650",null,"TY2V01","Euro's",null,"N"]
[null,null,null,null,"zvkx09_cc8091__TY1V01","*='Catastr kostenverzamelst'!$I$100",null,"Ziekenvervoer- Meerkosten Corona, indirect- kst Corona- incl balans","zvkx09","cc8091",null,"TY1V01","Euro's",null,"N","",1]
[null,null,null,null,"zvkx09_ac8091__TY1V01","*='Catastr kostenverzamelst'!$J$100",null,"Ziekenvervoer- Meerkosten Corona, indirect- kst Corona- geaccepteerd","zvkx09","ac8091",null,"TY1V01","Euro's",null,"N","",1]
[null,null,null,null,"zvkx09_cc8091__TY2V01","*='Catastr kostenverzamelst'!$K$100",null,"Ziekenvervoer- Meerkosten Corona, indirect- kst Corona- incl balans","zvkx09","cc8091",null,"TY2V01","Euro's",null,"N","",1]
[null,null,null,null,"zvkx09_ac8091__TY2V01","*='Catastr kostenverzamelst'!$L$100",null,"Ziekenvervoer- Meerkosten Corona, indirect- kst Corona- geaccepteerd","zvkx09","ac8091",null,"TY2V01","Euro's",null,"N","",1]
[null,null,null,null,"zvkx09_cc8092__TY1V01","*='Catastr kostenverzamelst'!$I$101",null,"Ziekenvervoer- Meerkosten Corona, toeslagen- kst Corona- incl balans","zvkx09","cc8092",null,"TY1V01","Euro's",null,"N","",1]
[null,null,null,null,"zvkx09_ac8092__TY1V01","*='Catastr kostenverzamelst'!$J$101",null,"Ziekenvervoer- Meerkosten Corona, toeslagen- kst Corona- geaccepteerd","zvkx09","ac8092",null,"TY1V01","Euro's",null,"N","",1]
[null,null,null,null,"zvkx09_cc8092__TY2V01","*='Catastr kostenverzamelst'!$K$101",null,"Ziekenvervoer- Meerkosten Corona, toeslagen- kst Corona- incl balans","zvkx09","cc8092",null,"TY2V01","Euro's",null,"N","",1]
[null,null,null,null,"zvkx09_ac8092__TY2V01","*='Catastr kostenverzamelst'!$L$101",null,"Ziekenvervoer- Meerkosten Corona, toeslagen- kst Corona- geaccepteerd","zvkx09","ac8092",null,"TY2V01","Euro's",null,"N","",1]
[null,null,null,null,"zvkx10_cc8101__TY1V01","*='Catastr kostenverzamelst'!$I$119",null,"Geneeskundige GGZ- Meerkosten Corona, indirect- kst Corona- incl balans","zvkx10","cc8101",null,"TY1V01","Euro's",null,"N","",1]
[null,null,null,null,"zvkx10_ac8101__TY1V01","*='Catastr kostenverzamelst'!$J$119",null,"Geneeskundige GGZ- Meerkosten Corona, indirect- kst Corona- geaccepteerd","zvkx10","ac8101",null,"TY1V01","Euro's",null,"N","",1]
[null,null,null,null,"zvkx10_cc8101__TY2V01","*='Catastr kostenverzamelst'!$K$119",null,"Geneeskundige GGZ- Meerkosten Corona, indirect- kst Corona- incl balans","zvkx10","cc8101",null,"TY2V01","Euro's",null,"N","",1]
[null,null,null,null,"zvkx10_ac8101__TY2V01","*='Catastr kostenverzamelst'!$L$119",null,"Geneeskundige GGZ- Meerkosten Corona, indirect- kst Corona- geaccepteerd","zvkx10","ac8101",null,"TY2V01","Euro's",null,"N","",1]
[null,null,null,null,"zvkx10_cc8102__TY1V01","*='Catastr kostenverzamelst'!$I$120",null,"Geneeskundige GGZ- Meerkosten Corona, toeslagen- kst Corona- incl balans","zvkx10","cc8102",null,"TY1V01","Euro's",null,"N","",1]
[null,null,null,null,"zvkx10_ac8102__TY1V01","*='Catastr kostenverzamelst'!$J$120",null,"Geneeskundige GGZ- Meerkosten Corona, toeslagen- kst Corona- geaccepteerd","zvkx10","ac8102",null,"TY1V01","Euro's",null,"N","",1]
[null,null,null,null,"zvkx10_cc8102__TY2V01","*='Catastr kostenverzamelst'!$K$120",null,"Geneeskundige GGZ- Meerkosten Corona, toeslagen- kst Corona- incl balans","zvkx10","cc8102",null,"TY2V01","Euro's",null,"N","",1]
[null,null,null,null,"zvkx10_ac8102__TY2V01","*='Catastr kostenverzamelst'!$L$120",null,"Geneeskundige GGZ- Meerkosten Corona, toeslagen- kst Corona- geaccepteerd","zvkx10","ac8102",null,"TY2V01","Euro's",null,"N","",1]
[null,null,null,null,"zvkx11_cc670__TY1V01","*='Catastr kostenverzamelst'!$I$123","","Geriatische revalidatiezorg- kst Corona- incl balans","zvkx11","cc670","","TY1V01","Euro's",null,"N","",1]
[null,null,null,null,"zvkx11_ac670__TY1V01","*='Catastr kostenverzamelst'!$J$123","","Geriatische revalidatiezorg- kst Corona- geaccepteerd","zvkx11","ac670","","TY1V01","Euro's",null,"N","",1]
[null,null,null,null,"zvkx11_cc670__TY2V01","*='Catastr kostenverzamelst'!$K$123","","Geriatische revalidatiezorg- kst Corona- incl balans","zvkx11","cc670","","TY2V01","Euro's",null,"N","",1]
[null,null,null,null,"zvkx11_ac670__TY2V01","*='Catastr kostenverzamelst'!$L$123","","Geriatische revalidatiezorg- kst Corona- geaccepteerd","zvkx11","ac670","","TY2V01","Euro's",null,"N","",1]
[null,null,null,null,"zvkx11_cc81111__TY1V01","*='Catastr kostenverzamelst'!$I$125",null,"Geriatische revalidatiezorg- Meerkosten Corona, indirect- kst Corona- incl balans","zvkx11","cc81111",null,"TY1V01","Euro's",null,"N","",1]
[null,null,null,null,"zvkx11_ac81111__TY1V01","*='Catastr kostenverzamelst'!$J$125",null,"Geriatische revalidatiezorg- Meerkosten Corona, indirect- kst Corona- geaccepteerd","zvkx11","ac81111",null,"TY1V01","Euro's",null,"N","",1]
[null,null,null,null,"zvkx11_cc81111__TY2V01","*='Catastr kostenverzamelst'!$K$125",null,"Geriatische revalidatiezorg- Meerkosten Corona, indirect- kst Corona- incl balans","zvkx11","cc81111",null,"TY2V01","Euro's",null,"N","",1]
[null,null,null,null,"zvkx11_ac81111__TY2V01","*='Catastr kostenverzamelst'!$L$125",null,"Geriatische revalidatiezorg- Meerkosten Corona, indirect- kst Corona- geaccepteerd","zvkx11","ac81111",null,"TY2V01","Euro's",null,"N","",1]
[null,null,null,null,"zvkx11_cc81112__TY1V01","*='Catastr kostenverzamelst'!$I$126",null,"Geriatische revalidatiezorg- Meerkosten Corona, toeslagen- kst Corona- incl balans","zvkx11","cc81112",null,"TY1V01","Euro's",null,"N","",1]
[null,null,null,null,"zvkx11_ac81112__TY1V01","*='Catastr kostenverzamelst'!$J$126",null,"Geriatische revalidatiezorg- Meerkosten Corona, toeslagen- kst Corona- geaccepteerd","zvkx11","ac81112",null,"TY1V01","Euro's",null,"N","",1]
[null,null,null,null,"zvkx11_cc81112__TY2V01","*='Catastr kostenverzamelst'!$K$126",null,"Geriatische revalidatiezorg- Meerkosten Corona, toeslagen- kst Corona- incl balans","zvkx11","cc81112",null,"TY2V01","Euro's",null,"N","",1]
[null,null,null,null,"zvkx11_ac81112__TY2V01","*='Catastr kostenverzamelst'!$L$126",null,"Geriatische revalidatiezorg- Meerkosten Corona, toeslagen- kst Corona- geaccepteerd","zvkx11","ac81112",null,"TY2V01","Euro's",null,"N","",1]
[null,null,null,null,"zvkx11_cc671__TY1V01","*='Catastr kostenverzamelst'!$I$127","","Geriatische revalidatiezorg- Eerstelijnsverblijf- kst Corona- incl balans","zvkx11","cc671","","TY1V01","Euro's",null,"N","",1]
[null,null,null,null,"zvkx11_ac671__TY1V01","*='Catastr kostenverzamelst'!$J$127","","Geriatische revalidatiezorg- Eerstelijnsverblijf- kst Corona- geaccepteerd","zvkx11","ac671","","TY1V01","Euro's",null,"N","",1]
[null,null,null,null,"zvkx11_cc671__TY2V01","*='Catastr kostenverzamelst'!$K$127","","Geriatische revalidatiezorg- Eerstelijnsverblijf- kst Corona- incl balans","zvkx11","cc671","","TY2V01","Euro's",null,"N","",1]
[null,null,null,null,"zvkx11_ac671__TY2V01","*='Catastr kostenverzamelst'!$L$127","","Geriatische revalidatiezorg- Eerstelijnsverblijf- kst Corona- geaccepteerd","zvkx11","ac671","","TY2V01","Euro's",null,"N","",1]
[null,null,null,null,"zvkx11_cc81121__TY1V01","*='Catastr kostenverzamelst'!$I$129",null,"Geriatische revalidatiezorg- Meerkosten Corona, indirect- kst Corona- incl balans","zvkx11","cc81121",null,"TY1V01","Euro's",null,"N","",1]
[null,null,null,null,"zvkx11_ac81121__TY1V01","*='Catastr kostenverzamelst'!$J$129",null,"Geriatische revalidatiezorg- Meerkosten Corona, indirect- kst Corona- geaccepteerd","zvkx11","ac81121",null,"TY1V01","Euro's",null,"N","",1]
[null,null,null,null,"zvkx11_cc81121__TY2V01","*='Catastr kostenverzamelst'!$K$129",null,"Geriatische revalidatiezorg- Meerkosten Corona, indirect- kst Corona- incl balans","zvkx11","cc81121",null,"TY2V01","Euro's",null,"N","",1]
[null,null,null,null,"zvkx11_ac81121__TY2V01","*='Catastr kostenverzamelst'!$L$129",null,"Geriatische revalidatiezorg- Meerkosten Corona, indirect- kst Corona- geaccepteerd","zvkx11","ac81121",null,"TY2V01","Euro's",null,"N","",1]
[null,null,null,null,"zvkx11_cc81122__TY1V01","*='Catastr kostenverzamelst'!$I$130",null,"Geriatische revalidatiezorg- Meerkosten Corona, toeslagen- kst Corona- incl balans","zvkx11","cc81122",null,"TY1V01","Euro's",null,"N","",1]
[null,null,null,null,"zvkx11_ac81122__TY1V01","*='Catastr kostenverzamelst'!$J$130",null,"Geriatische revalidatiezorg- Meerkosten Corona, toeslagen- kst Corona- geaccepteerd","zvkx11","ac81122",null,"TY1V01","Euro's",null,"N","",1]
[null,null,null,null,"zvkx11_cc81122__TY2V01","*='Catastr kostenverzamelst'!$K$130",null,"Geriatische revalidatiezorg- Meerkosten Corona, toeslagen- kst Corona- incl balans","zvkx11","cc81122",null,"TY2V01","Euro's",null,"N","",1]
[null,null,null,null,"zvkx11_ac81122__TY2V01","*='Catastr kostenverzamelst'!$L$130",null,"Geriatische revalidatiezorg- Meerkosten Corona, toeslagen- kst Corona- geaccepteerd","zvkx11","ac81122",null,"TY2V01","Euro's",null,"N","",1]
[null,null,null,null,"zvkx11_cc81131__TY1V01","*='Catastr kostenverzamelst'!$I$133",null,"Geriatische revalidatiezorg- Meerkosten Corona, indirect- kst Corona- incl balans","zvkx11","cc81131",null,"TY1V01","Euro's",null,"N","",1]
[null,null,null,null,"zvkx11_ac81131__TY1V01","*='Catastr kostenverzamelst'!$J$133",null,"Geriatische revalidatiezorg- Meerkosten Corona, indirect- kst Corona- geaccepteerd","zvkx11","ac81131",null,"TY1V01","Euro's",null,"N","",1]
[null,null,null,null,"zvkx11_cc81131__TY2V01","*='Catastr kostenverzamelst'!$K$133",null,"Geriatische revalidatiezorg- Meerkosten Corona, indirect- kst Corona- incl balans","zvkx11","cc81131",null,"TY2V01","Euro's",null,"N","",1]
[null,null,null,null,"zvkx11_ac81131__TY2V01","*='Catastr kostenverzamelst'!$L$133",null,"Geriatische revalidatiezorg- Meerkosten Corona, indirect- kst Corona- geaccepteerd","zvkx11","ac81131",null,"TY2V01","Euro's",null,"N","",1]
[null,null,null,null,"zvkx11_cc81132__TY1V01","*='Catastr kostenverzamelst'!$I$134",null,"Geriatische revalidatiezorg- Meerkosten Corona, toeslagen- kst Corona- incl balans","zvkx11","cc81132",null,"TY1V01","Euro's",null,"N","",1]
[null,null,null,null,"zvkx11_ac81132__TY1V01","*='Catastr kostenverzamelst'!$J$134",null,"Geriatische revalidatiezorg- Meerkosten Corona, toeslagen- kst Corona- geaccepteerd","zvkx11","ac81132",null,"TY1V01","Euro's",null,"N","",1]
[null,null,null,null,"zvkx11_cc81132__TY2V01","*='Catastr kostenverzamelst'!$K$134",null,"Geriatische revalidatiezorg- Meerkosten Corona, toeslagen- kst Corona- incl balans","zvkx11","cc81132",null,"TY2V01","Euro's",null,"N","",1]
[null,null,null,null,"zvkx11_ac81132__TY2V01","*='Catastr kostenverzamelst'!$L$134",null,"Geriatische revalidatiezorg- Meerkosten Corona, toeslagen- kst Corona- geaccepteerd","zvkx11","ac81132",null,"TY2V01","Euro's",null,"N","",1]
[null,null,null,null,"zvkx12_cc8121__TY1V01","*='Catastr kostenverzamelst'!$I$139",null,"Kraamzorg- Meerkosten Corona, indirect- kst Corona- incl balans","zvkx12","cc8121",null,"TY1V01","Euro's",null,"N","",1]
[null,null,null,null,"zvkx12_ac8121__TY1V01","*='Catastr kostenverzamelst'!$J$139",null,"Kraamzorg- Meerkosten Corona, indirect- kst Corona- geaccepteerd","zvkx12","ac8121",null,"TY1V01","Euro's",null,"N","",1]
[null,null,null,null,"zvkx12_cc8121__TY2V01","*='Catastr kostenverzamelst'!$K$139",null,"Kraamzorg- Meerkosten Corona, indirect- kst Corona- incl balans","zvkx12","cc8121",null,"TY2V01","Euro's",null,"N","",1]
[null,null,null,null,"zvkx12_ac8121__TY2V01","*='Catastr kostenverzamelst'!$L$139",null,"Kraamzorg- Meerkosten Corona, indirect- kst Corona- geaccepteerd","zvkx12","ac8121",null,"TY2V01","Euro's",null,"N","",1]
[null,null,null,null,"zvkx12_cc8122__TY1V01","*='Catastr kostenverzamelst'!$I$140",null,"Kraamzorg- Meerkosten Corona, toeslagen- kst Corona- incl balans","zvkx12","cc8122",null,"TY1V01","Euro's",null,"N","",1]
[null,null,null,null,"zvkx12_ac8122__TY1V01","*='Catastr kostenverzamelst'!$J$140",null,"Kraamzorg- Meerkosten Corona, toeslagen- kst Corona- geaccepteerd","zvkx12","ac8122",null,"TY1V01","Euro's",null,"N","",1]
[null,null,null,null,"zvkx12_cc8122__TY2V01","*='Catastr kostenverzamelst'!$K$140",null,"Kraamzorg- Meerkosten Corona, toeslagen- kst Corona- incl balans","zvkx12","cc8122",null,"TY2V01","Euro's",null,"N","",1]
[null,null,null,null,"zvkx12_ac8122__TY2V01","*='Catastr kostenverzamelst'!$L$140",null,"Kraamzorg- Meerkosten Corona, toeslagen- kst Corona- geaccepteerd","zvkx12","ac8122",null,"TY2V01","Euro's",null,"N","",1]
[null,null,null,null,"zvkx13_cc8131__TY1V01","*='Catastr kostenverzamelst'!$I$147",null,"Overige zorgkosten- Meerkosten Corona, indirect- kst Corona- incl balans","zvkx13","cc8131",null,"TY1V01","Euro's",null,"N","",1]
[null,null,null,null,"zvkx13_ac8131__TY1V01","*='Catastr kostenverzamelst'!$J$147",null,"Overige zorgkosten- Meerkosten Corona, indirect- kst Corona- geaccepteerd","zvkx13","ac8131",null,"TY1V01","Euro's",null,"N","",1]
[null,null,null,null,"zvkx13_cc8131__TY2V01","*='Catastr kostenverzamelst'!$K$147",null,"Overige zorgkosten- Meerkosten Corona, indirect- kst Corona- incl balans","zvkx13","cc8131",null,"TY2V01","Euro's",null,"N","",1]
[null,null,null,null,"zvkx13_ac8131__TY2V01","*='Catastr kostenverzamelst'!$L$147",null,"Overige zorgkosten- Meerkosten Corona, indirect- kst Corona- geaccepteerd","zvkx13","ac8131",null,"TY2V01","Euro's",null,"N","",1]
[null,null,null,null,"zvkx13_cc8132__TY1V01","*='Catastr kostenverzamelst'!$I$148",null,"Overige zorgkosten- Meerkosten Corona, toeslagen- kst Corona- incl balans","zvkx13","cc8132",null,"TY1V01","Euro's",null,"N","",1]
[null,null,null,null,"zvkx13_ac8132__TY1V01","*='Catastr kostenverzamelst'!$J$148",null,"Overige zorgkosten- Meerkosten Corona, toeslagen- kst Corona- geaccepteerd","zvkx13","ac8132",null,"TY1V01","Euro's",null,"N","",1]
[null,null,null,null,"zvkx13_cc8132__TY2V01","*='Catastr kostenverzamelst'!$K$148",null,"Overige zorgkosten- Meerkosten Corona, toeslagen- kst Corona- incl balans","zvkx13","cc8132",null,"TY2V01","Euro's",null,"N","",1]
[null,null,null,null,"zvkx13_ac8132__TY2V01","*='Catastr kostenverzamelst'!$L$148",null,"Overige zorgkosten- Meerkosten Corona, toeslagen- kst Corona- geaccepteerd","zvkx13","ac8132",null,"TY2V01","Euro's",null,"N","",1]
[null,null,null,null,"zvkx_cc__TY1V01","*='Catastr kostenverzamelst'!I157",""]
[null,null,null,null,"zvkx_ac__TY1V01","*='Catastr kostenverzamelst'!J157",""]
[null,null,null,null,"zvkx_cc__TY2V01","*='Catastr kostenverzamelst'!$K$157",""]
[null,null,null,null,"zvkx_ac__TY2V01","*='Catastr kostenverzamelst'!$L$157",""]
[null,null,null,null,"zvkx01_cc__TY1V01","*='Catastr kostenverzamelst'!I26",""]
[null,null,null,null,"zvkx01_ac__TY1V01","*='Catastr kostenverzamelst'!J26",""]
[null,null,null,null,"zvkx01_cc__TY2V01","*='Catastr kostenverzamelst'!$K$26",""]
[null,null,null,null,"zvkx01_ac__TY2V01","*='Catastr kostenverzamelst'!$L$26",""]
[null,null,null,null,"zvkx02_cc__TY1V01","*='Catastr kostenverzamelst'!I32",""]
[null,null,null,null,"zvkx02_ac__TY1V01","*='Catastr kostenverzamelst'!J32",""]
[null,null,null,null,"zvkx02_cc__TY2V01","*='Catastr kostenverzamelst'!$K$32",""]
[null,null,null,null,"zvkx02_ac__TY2V01","*='Catastr kostenverzamelst'!$L$32",""]
[null,null,null,null,"zvkx03_cc__TY1V01","*='Catastr kostenverzamelst'!I38",""]
[null,null,null,null,"zvkx03_ac__TY1V01","*='Catastr kostenverzamelst'!J38",""]
[null,null,null,null,"zvkx03_cc__TY2V01","*='Catastr kostenverzamelst'!$K$38",""]
[null,null,null,null,"zvkx03_ac__TY2V01","*='Catastr kostenverzamelst'!$L$38",""]
[null,null,null,null,"zvkx04_cc__TY1V01","*='Catastr kostenverzamelst'!I46",""]
[null,null,null,null,"zvkx04_ac__TY1V01","*='Catastr kostenverzamelst'!J46",""]
[null,null,null,null,"zvkx04_cc__TY2V01","*='Catastr kostenverzamelst'!$K$46",""]
[null,null,null,null,"zvkx04_ac__TY2V01","*='Catastr kostenverzamelst'!$L$46",""]
[null,null,null,null,"zvkx05_cc__TY1V01","*='Catastr kostenverzamelst'!I53",""]
[null,null,null,null,"zvkx05_ac__TY1V01","*='Catastr kostenverzamelst'!J53",""]
[null,null,null,null,"zvkx05_cc__TY2V01","*='Catastr kostenverzamelst'!$K$53",""]
[null,null,null,null,"zvkx05_ac__TY2V01","*='Catastr kostenverzamelst'!$L$53",""]
[null,null,null,null,"zvkx06_cc__TY1V01","*='Catastr kostenverzamelst'!I77",""]
[null,null,null,null,"zvkx06_ac__TY1V01","*='Catastr kostenverzamelst'!J77",""]
[null,null,null,null,"zvkx06_cc__TY2V01","*='Catastr kostenverzamelst'!$K$77",""]
[null,null,null,null,"zvkx06_ac__TY2V01","*='Catastr kostenverzamelst'!$L$77",""]
[null,null,null,null,"zvkx07_cc__TY1V01","*='Catastr kostenverzamelst'!I88",""]
[null,null,null,null,"zvkx07_ac__TY1V01","*='Catastr kostenverzamelst'!J88",""]
[null,null,null,null,"zvkx07_cc__TY2V01","*='Catastr kostenverzamelst'!$K$88",""]
[null,null,null,null,"zvkx07_ac__TY2V01","*='Catastr kostenverzamelst'!$L$88",""]
[null,null,null,null,"zvkx08_cc__TY1V01","*='Catastr kostenverzamelst'!I94",""]
[null,null,null,null,"zvkx08_ac__TY1V01","*='Catastr kostenverzamelst'!J94",""]
[null,null,null,null,"zvkx08_cc__TY2V01","*='Catastr kostenverzamelst'!$K$94",""]
[null,null,null,null,"zvkx08_ac__TY2V01","*='Catastr kostenverzamelst'!$L$94",""]
[null,null,null,null,"zvkx09_cc__TY1V01","*='Catastr kostenverzamelst'!I102",""]
[null,null,null,null,"zvkx09_ac__TY1V01","*='Catastr kostenverzamelst'!J102",""]
[null,null,null,null,"zvkx09_cc__TY2V01","*='Catastr kostenverzamelst'!$K$102",""]
[null,null,null,null,"zvkx09_ac__TY2V01","*='Catastr kostenverzamelst'!$L$102",""]
[null,null,null,null,"zvkx10_cc__TY1V01","*='Catastr kostenverzamelst'!I121",""]
[null,null,null,null,"zvkx10_ac__TY1V01","*='Catastr kostenverzamelst'!J121",""]
[null,null,null,null,"zvkx10_cc__TY2V01","*='Catastr kostenverzamelst'!$K$121",""]
[null,null,null,null,"zvkx10_ac__TY2V01","*='Catastr kostenverzamelst'!$L$121",""]
[null,null,null,null,"zvkx11_cc__TY1V01","*='Catastr kostenverzamelst'!I135",""]
[null,null,null,null,"zvkx11_ac__TY1V01","*='Catastr kostenverzamelst'!J135",""]
[null,null,null,null,"zvkx11_cc__TY2V01","*='Catastr kostenverzamelst'!$K$135",""]
[null,null,null,null,"zvkx11_ac__TY2V01","*='Catastr kostenverzamelst'!$L$135",""]
[null,null,null,null,"zvkx12_cc__TY1V01","*='Catastr kostenverzamelst'!I141",""]
[null,null,null,null,"zvkx12_ac__TY1V01","*='Catastr kostenverzamelst'!J141",""]
[null,null,null,null,"zvkx12_cc__TY2V01","*='Catastr kostenverzamelst'!$K$141",""]
[null,null,null,null,"zvkx12_ac__TY2V01","*='Catastr kostenverzamelst'!$L$141",""]
[null,null,null,null,"zvkx13_cc__TY1V01","*='Catastr kostenverzamelst'!I149"]
[null,null,null,null,"zvkx13_ac__TY1V01","*='Catastr kostenverzamelst'!J149"]
[null,null,null,null,"zvkx13_cc__TY2V01","*='Catastr kostenverzamelst'!$K$149"]
[null,null,null,null,"zvkx13_ac__TY2V01","*='Catastr kostenverzamelst'!$L$149"]
[null,null,null,null,"zvkxdnb_cc915__TY1V01","*='Catastr kostenverzamelst'!$I$170","","Verschilposten DNB- Schade tlv het verplicht eigen risico- kst Corona- incl balans","zvkxdnb","cc915","","TY1V01","Euro's",null,"N","",1]
[null,null,null,null,"zvkxdnb_ac915__TY1V01","*='Catastr kostenverzamelst'!$J$170","","Verschilposten DNB- Schade tlv het verplicht eigen risico- kst Corona- geaccepteerd","zvkxdnb","ac915","","TY1V01","Euro's",null,"N","",1]
[null,null,null,null,"zvkxdnb_cc915__TY2V01","*='Catastr kostenverzamelst'!$K$170","","Verschilposten DNB- Schade tlv het verplicht eigen risico- kst Corona- incl balans","zvkxdnb","cc915","","TY2V01","Euro's",null,"N","",1]
[null,null,null,null,"zvkxdnb_ac915__TY2V01","*='Catastr kostenverzamelst'!$L$170","","Verschilposten DNB- Schade tlv het verplicht eigen risico- kst Corona- geaccepteerd","zvkxdnb","ac915","","TY2V01","Euro's",null,"N","",1]
[null,null,null,null,"zvrxsg_c978_dl101_TY0V01","*='Specifieke informatie A'!$K$14","","Kosten naar deelbijdrage- Variabele zorgkosten- incl balans","zvrxsg","c978","dl101","TY0V01"]
[null,null,null,null,"zvrxsg_c978_dl102_TY0V01","*='Specifieke informatie A'!$K$15","","Kosten naar deelbijdrage- Vaste zorgkosten- incl balans","zvrxsg","c978","dl102","TY0V01"]
[null,null,null,null,"zvrxsg_c978_dl152_TY0V01","*='Specifieke informatie A'!$K$16","","Kosten naar deelbijdrage- Geneeskundige GGZ- incl balans","zvrxsg","c978","dl152","TY0V01"]
[null,null,null,null,"zvpxlft_m981_lft01a_m11V01","*='Specifieke informatie A'!$I$59","","Verzekerden risicoklasse- 00 t/m 01- man","zvpxlft","m981","lft01a","m05V01","Verzekerden",null,"N",""]
[null,null,null,null,"zvpxlft_m981_lft01b_m11V01","*='Specifieke informatie A'!$I$60","","Verzekerden risicoklasse- 02 t/m 04- man","zvpxlft","m981","lft01b","m05V01","Verzekerden",null,"N",""]
[null,null,null,null,"zvpxlft_m981_lft02_m11V01","*='Specifieke informatie A'!$I$61","","Verzekerden risicoklasse- 05 t/m 09- man","zvpxlft","m981","lft02","m05V01","Verzekerden",null,"N",""]
[null,null,null,null,"zvpxlft_m981_lft03_m11V01","*='Specifieke informatie A'!$I$62","","Verzekerden risicoklasse- 10 t/m 14- man","zvpxlft","m981","lft03","m05V01","Verzekerden",null,"N",""]
[null,null,null,null,"zvpxlft_m981_lft04_m11V01","*='Specifieke informatie A'!$I$63","","Verzekerden risicoklasse- 15 t/m 19- man","zvpxlft","m981","lft04","m05V01","Verzekerden",null,"N",""]
[null,null,null,null,"zvpxlft_m981_lft05_m11V01","*='Specifieke informatie A'!$I$64","","Verzekerden risicoklasse- 20 t/m 24- man","zvpxlft","m981","lft05","m05V01","Verzekerden",null,"N",""]
[null,null,null,null,"zvpxlft_m981_lft06_m11V01","*='Specifieke informatie A'!$I$65","","Verzekerden risicoklasse- 25 t/m 29- man","zvpxlft","m981","lft06","m05V01","Verzekerden",null,"N",""]
[null,null,null,null,"zvpxlft_m981_lft07_m11V01","*='Specifieke informatie A'!$I$66","","Verzekerden risicoklasse- 30 t/m 34- man","zvpxlft","m981","lft07","m05V01","Verzekerden",null,"N",""]
[null,null,null,null,"zvpxlft_m981_lft08_m11V01","*='Specifieke informatie A'!$I$67","","Verzekerden risicoklasse- 35 t/m 39- man","zvpxlft","m981","lft08","m05V01","Verzekerden",null,"N",""]
[null,null,null,null,"zvpxlft_m981_lft09_m11V01","*='Specifieke informatie A'!$I$68","","Verzekerden risicoklasse- 40 t/m 44- man","zvpxlft","m981","lft09","m05V01","Verzekerden",null,"N",""]
[null,null,null,null,"zvpxlft_m981_lft10_m11V01","*='Specifieke informatie A'!$I$69","","Verzekerden risicoklasse- 45 t/m 49- man","zvpxlft","m981","lft10","m05V01","Verzekerden",null,"N",""]
[null,null,null,null,"zvpxlft_m981_lft11_m11V01","*='Specifieke informatie A'!$I$70","","Verzekerden risicoklasse- 50 t/m 54- man","zvpxlft","m981","lft11","m05V01","Verzekerden",null,"N",""]
[null,null,null,null,"zvpxlft_m981_lft12_m11V01","*='Specifieke informatie A'!$I$71","","Verzekerden risicoklasse- 55 t/m 59- man","zvpxlft","m981","lft12","m05V01","Verzekerden",null,"N",""]
[null,null,null,null,"zvpxlft_m981_lft13_m11V01","*='Specifieke informatie A'!$I$72","","Verzekerden risicoklasse- 60 t/m 64- man","zvpxlft","m981","lft13","m05V01","Verzekerden",null,"N",""]
[null,null,null,null,"zvpxlft_m981_lft14_m11V01","*='Specifieke informatie A'!$I$73","","Verzekerden risicoklasse- 65 t/m 69- man","zvpxlft","m981","lft14","m05V01","Verzekerden",null,"N",""]
[null,null,null,null,"zvpxlft_m981_lft15_m11V01","*='Specifieke informatie A'!$I$74","","Verzekerden risicoklasse- 70 t/m 74- man","zvpxlft","m981","lft15","m05V01","Verzekerden",null,"N",""]
[null,null,null,null,"zvpxlft_m981_lft16_m11V01","*='Specifieke informatie A'!$I$75","","Verzekerden risicoklasse- 75 t/m 79- man","zvpxlft","m981","lft16","m05V01","Verzekerden",null,"N",""]
[null,null,null,null,"zvpxlft_m981_lft17_m11V01","*='Specifieke informatie A'!$I$76","","Verzekerden risicoklasse- 80 t/m 84- man","zvpxlft","m981","lft17","m05V01","Verzekerden",null,"N",""]
[null,null,null,null,"zvpxlft_m981_lft18_m11V01","*='Specifieke informatie A'!$I$77","","Verzekerden risicoklasse- 85 t/m 89- man","zvpxlft","m981","lft18","m05V01","Verzekerden",null,"N",""]
[null,null,null,null,"zvpxlft_m981_lft19_m11V01","*='Specifieke informatie A'!$I$78","","Verzekerden risicoklasse- 90 en ouder- man","zvpxlft","m981","lft19","m05V01","Verzekerden",null,"N",""]
[null,null,null,null,"zvpxlft_v981_lft01a_m11V01","*='Specifieke informatie A'!$J$59","","Verzekerden risicoklasse- 00 t/m 01- vrouw","zvpxlft","v981","lft01a","m05V01","Verzekerden",null,"N",""]
[null,null,null,null,"zvpxlft_v981_lft01b_m11V01","*='Specifieke informatie A'!$J$60","","Verzekerden risicoklasse- 02 t/m 04- vrouw","zvpxlft","v981","lft01b","m05V01","Verzekerden",null,"N",""]
[null,null,null,null,"zvpxlft_v981_lft02_m11V01","*='Specifieke informatie A'!$J$61","","Verzekerden risicoklasse- 05 t/m 09- vrouw","zvpxlft","v981","lft02","m05V01","Verzekerden",null,"N",""]
[null,null,null,null,"zvpxlft_v981_lft03_m11V01","*='Specifieke informatie A'!$J$62","","Verzekerden risicoklasse- 10 t/m 14- vrouw","zvpxlft","v981","lft03","m05V01","Verzekerden",null,"N",""]
[null,null,null,null,"zvpxlft_v981_lft04_m11V01","*='Specifieke informatie A'!$J$63","","Verzekerden risicoklasse- 15 t/m 19- vrouw","zvpxlft","v981","lft04","m05V01","Verzekerden",null,"N",""]
[null,null,null,null,"zvpxlft_v981_lft05_m11V01","*='Specifieke informatie A'!$J$64","","Verzekerden risicoklasse- 20 t/m 24- vrouw","zvpxlft","v981","lft05","m05V01","Verzekerden",null,"N",""]
[null,null,null,null,"zvpxlft_v981_lft06_m11V01","*='Specifieke informatie A'!$J$65","","Verzekerden risicoklasse- 25 t/m 29- vrouw","zvpxlft","v981","lft06","m05V01","Verzekerden",null,"N",""]
[null,null,null,null,"zvpxlft_v981_lft07_m11V01","*='Specifieke informatie A'!$J$66","","Verzekerden risicoklasse- 30 t/m 34- vrouw","zvpxlft","v981","lft07","m05V01","Verzekerden",null,"N",""]
[null,null,null,null,"zvpxlft_v981_lft08_m11V01","*='Specifieke informatie A'!$J$67","","Verzekerden risicoklasse- 35 t/m 39- vrouw","zvpxlft","v981","lft08","m05V01","Verzekerden",null,"N",""]
[null,null,null,null,"zvpxlft_v981_lft09_m11V01","*='Specifieke informatie A'!$J$68","","Verzekerden risicoklasse- 40 t/m 44- vrouw","zvpxlft","v981","lft09","m05V01","Verzekerden",null,"N",""]
[null,null,null,null,"zvpxlft_v981_lft10_m11V01","*='Specifieke informatie A'!$J$69","","Verzekerden risicoklasse- 45 t/m 49- vrouw","zvpxlft","v981","lft10","m05V01","Verzekerden",null,"N",""]
[null,null,null,null,"zvpxlft_v981_lft11_m11V01","*='Specifieke informatie A'!$J$70","","Verzekerden risicoklasse- 50 t/m 54- vrouw","zvpxlft","v981","lft11","m05V01","Verzekerden",null,"N",""]
[null,null,null,null,"zvpxlft_v981_lft12_m11V01","*='Specifieke informatie A'!$J$71","","Verzekerden risicoklasse- 55 t/m 59- vrouw","zvpxlft","v981","lft12","m05V01","Verzekerden",null,"N",""]
[null,null,null,null,"zvpxlft_v981_lft13_m11V01","*='Specifieke informatie A'!$J$72","","Verzekerden risicoklasse- 60 t/m 64- vrouw","zvpxlft","v981","lft13","m05V01","Verzekerden",null,"N",""]
[null,null,null,null,"zvpxlft_v981_lft14_m11V01","*='Specifieke informatie A'!$J$73","","Verzekerden risicoklasse- 65 t/m 69- vrouw","zvpxlft","v981","lft14","m05V01","Verzekerden",null,"N",""]
[null,null,null,null,"zvpxlft_v981_lft15_m11V01","*='Specifieke informatie A'!$J$74","","Verzekerden risicoklasse- 70 t/m 74- vrouw","zvpxlft","v981","lft15","m05V01","Verzekerden",null,"N",""]
[null,null,null,null,"zvpxlft_v981_lft16_m11V01","*='Specifieke informatie A'!$J$75","","Verzekerden risicoklasse- 75 t/m 79- vrouw","zvpxlft","v981","lft16","m05V01","Verzekerden",null,"N",""]
[null,null,null,null,"zvpxlft_v981_lft17_m11V01","*='Specifieke informatie A'!$J$76","","Verzekerden risicoklasse- 80 t/m 84- vrouw","zvpxlft","v981","lft17","m05V01","Verzekerden",null,"N",""]
[null,null,null,null,"zvpxlft_v981_lft18_m11V01","*='Specifieke informatie A'!$J$77","","Verzekerden risicoklasse- 85 t/m 89- vrouw","zvpxlft","v981","lft18","m05V01","Verzekerden",null,"N",""]
[null,null,null,null,"zvpxlft_v981_lft19_m11V01","*='Specifieke informatie A'!$J$78","","Verzekerden risicoklasse- 90 en ouder- vrouw","zvpxlft","v981","lft19","m05V01","Verzekerden",null,"N",""]
[null,null,null,null,"zvpxlft_o981_lft01a_m11V01","*='Specifieke informatie A'!$K$59","","Verzekerden risicoklasse- 00 t/m 01- onbepaald","zvpxlft","v981","lft01a","m05V01","Verzekerden",null,"N",""]
[null,null,null,null,"zvpxlft_o981_lft01b_m11V01","*='Specifieke informatie A'!$K$60","","Verzekerden risicoklasse- 02 t/m 04- onbepaald","zvpxlft","v981","lft01b","m05V01","Verzekerden",null,"N",""]
[null,null,null,null,"zvpxlft_o981_lft02_m11V01","*='Specifieke informatie A'!$K$61","","Verzekerden risicoklasse- 05 t/m 09- onbepaald","zvpxlft","v981","lft02","m05V01","Verzekerden",null,"N",""]
[null,null,null,null,"zvpxlft_o981_lft03_m11V01","*='Specifieke informatie A'!$K$62","","Verzekerden risicoklasse- 10 t/m 14- onbepaald","zvpxlft","v981","lft03","m05V01","Verzekerden",null,"N",""]
[null,null,null,null,"zvpxlft_o981_lft04_m11V01","*='Specifieke informatie A'!$K$63","","Verzekerden risicoklasse- 15 t/m 19- onbepaald","zvpxlft","v981","lft04","m05V01","Verzekerden",null,"N",""]
[null,null,null,null,"zvpxlft_o981_lft05_m11V01","*='Specifieke informatie A'!$K$64","","Verzekerden risicoklasse- 20 t/m 24- onbepaald","zvpxlft","v981","lft05","m05V01","Verzekerden",null,"N",""]
[null,null,null,null,"zvpxlft_o981_lft06_m11V01","*='Specifieke informatie A'!$K$65","","Verzekerden risicoklasse- 25 t/m 29- onbepaald","zvpxlft","v981","lft06","m05V01","Verzekerden",null,"N",""]
[null,null,null,null,"zvpxlft_o981_lft07_m11V01","*='Specifieke informatie A'!$K$66","","Verzekerden risicoklasse- 30 t/m 34- onbepaald","zvpxlft","v981","lft07","m05V01","Verzekerden",null,"N",""]
[null,null,null,null,"zvpxlft_o981_lft08_m11V01","*='Specifieke informatie A'!$K$67","","Verzekerden risicoklasse- 35 t/m 39- onbepaald","zvpxlft","v981","lft08","m05V01","Verzekerden",null,"N",""]
[null,null,null,null,"zvpxlft_o981_lft09_m11V01","*='Specifieke informatie A'!$K$68","","Verzekerden risicoklasse- 40 t/m 44- onbepaald","zvpxlft","v981","lft09","m05V01","Verzekerden",null,"N",""]
[null,null,null,null,"zvpxlft_o981_lft10_m11V01","*='Specifieke informatie A'!$K$69","","Verzekerden risicoklasse- 45 t/m 49- onbepaald","zvpxlft","v981","lft10","m05V01","Verzekerden",null,"N",""]
[null,null,null,null,"zvpxlft_o981_lft11_m11V01","*='Specifieke informatie A'!$K$70","","Verzekerden risicoklasse- 50 t/m 54- onbepaald","zvpxlft","v981","lft11","m05V01","Verzekerden",null,"N",""]
[null,null,null,null,"zvpxlft_o981_lft12_m11V01","*='Specifieke informatie A'!$K$71","","Verzekerden risicoklasse- 55 t/m 59- onbepaald","zvpxlft","v981","lft12","m05V01","Verzekerden",null,"N",""]
[null,null,null,null,"zvpxlft_o981_lft13_m11V01","*='Specifieke informatie A'!$K$72","","Verzekerden risicoklasse- 60 t/m 64- onbepaald","zvpxlft","v981","lft13","m05V01","Verzekerden",null,"N",""]
[null,null,null,null,"zvpxlft_o981_lft14_m11V01","*='Specifieke informatie A'!$K$73","","Verzekerden risicoklasse- 65 t/m 69- onbepaald","zvpxlft","v981","lft14","m05V01","Verzekerden",null,"N",""]
[null,null,null,null,"zvpxlft_o981_lft15_m11V01","*='Specifieke informatie A'!$K$74","","Verzekerden risicoklasse- 70 t/m 74- onbepaald","zvpxlft","v981","lft15","m05V01","Verzekerden",null,"N",""]
[null,null,null,null,"zvpxlft_o981_lft16_m11V01","*='Specifieke informatie A'!$K$75","","Verzekerden risicoklasse- 75 t/m 79- onbepaald","zvpxlft","v981","lft16","m05V01","Verzekerden",null,"N",""]
[null,null,null,null,"zvpxlft_o981_lft17_m11V01","*='Specifieke informatie A'!$K$76","","Verzekerden risicoklasse- 80 t/m 84- onbepaald","zvpxlft","v981","lft17","m05V01","Verzekerden",null,"N",""]
[null,null,null,null,"zvpxlft_o981_lft18_m11V01","*='Specifieke informatie A'!$K$77","","Verzekerden risicoklasse- 85 t/m 89- onbepaald","zvpxlft","v981","lft18","m05V01","Verzekerden",null,"N",""]
[null,null,null,null,"zvpxlft_o981_lft19_m11V01","*='Specifieke informatie A'!$K$78","","Verzekerden risicoklasse- 90 en ouder- onbepaald","zvpxlft","v981","lft19","m05V01","Verzekerden",null,"N",""]
[null,null,null,null,"zvpxprm_s981_nomy_m11V01","*='Specifieke informatie A'!$L$84","","Verzekerden premiekenmerk- met nominale premie ZVW","zvpxprm","s981","nomy","m05V01","Verzekerden",null,"N",""]
[null,null,null,null,"zvpxprm_s981_nomn_m11V01","*='Specifieke informatie A'!$L$85","","Verzekerden premiekenmerk- zonder nominale premie ZVW","zvpxprm","s981","nomn","m05V01","Verzekerden",null,"N",""]
[null,null,null,null,"zvpxlft_m981_lft01a_m12V01","*='Specifieke informatie A'!$I$104","","Verzekerden risicoklasse- 00 t/m 01- man","zvpxlft","m981","lft01a","m06V01","Verzekerden",null,"N",""]
[null,null,null,null,"zvpxlft_m981_lft01b_m12V01","*='Specifieke informatie A'!$I$105","","Verzekerden risicoklasse- 02 t/m 04- man","zvpxlft","m981","lft01b","m06V01","Verzekerden",null,"N",""]
[null,null,null,null,"zvpxlft_m981_lft02_m12V01","*='Specifieke informatie A'!$I$106","","Verzekerden risicoklasse- 05 t/m 09- man","zvpxlft","m981","lft02","m06V01","Verzekerden",null,"N",""]
[null,null,null,null,"zvpxlft_m981_lft03_m12V01","*='Specifieke informatie A'!$I$107","","Verzekerden risicoklasse- 10 t/m 14- man","zvpxlft","m981","lft03","m06V01","Verzekerden",null,"N",""]
[null,null,null,null,"zvpxlft_m981_lft04_m12V01","*='Specifieke informatie A'!$I$108","","Verzekerden risicoklasse- 15 t/m 19- man","zvpxlft","m981","lft04","m06V01","Verzekerden",null,"N",""]
[null,null,null,null,"zvpxlft_m981_lft05_m12V01","*='Specifieke informatie A'!$I$109","","Verzekerden risicoklasse- 20 t/m 24- man","zvpxlft","m981","lft05","m06V01","Verzekerden",null,"N",""]
[null,null,null,null,"zvpxlft_m981_lft06_m12V01","*='Specifieke informatie A'!$I$110","","Verzekerden risicoklasse- 25 t/m 29- man","zvpxlft","m981","lft06","m06V01","Verzekerden",null,"N",""]
[null,null,null,null,"zvpxlft_m981_lft07_m12V01","*='Specifieke informatie A'!$I$111","","Verzekerden risicoklasse- 30 t/m 34- man","zvpxlft","m981","lft07","m06V01","Verzekerden",null,"N",""]
[null,null,null,null,"zvpxlft_m981_lft08_m12V01","*='Specifieke informatie A'!$I$112","","Verzekerden risicoklasse- 35 t/m 39- man","zvpxlft","m981","lft08","m06V01","Verzekerden",null,"N",""]
[null,null,null,null,"zvpxlft_m981_lft09_m12V01","*='Specifieke informatie A'!$I$113","","Verzekerden risicoklasse- 40 t/m 44- man","zvpxlft","m981","lft09","m06V01","Verzekerden",null,"N",""]
[null,null,null,null,"zvpxlft_m981_lft10_m12V01","*='Specifieke informatie A'!$I$114","","Verzekerden risicoklasse- 45 t/m 49- man","zvpxlft","m981","lft10","m06V01","Verzekerden",null,"N",""]
[null,null,null,null,"zvpxlft_m981_lft11_m12V01","*='Specifieke informatie A'!$I$115","","Verzekerden risicoklasse- 50 t/m 54- man","zvpxlft","m981","lft11","m06V01","Verzekerden",null,"N",""]
[null,null,null,null,"zvpxlft_m981_lft12_m12V01","*='Specifieke informatie A'!$I$116","","Verzekerden risicoklasse- 55 t/m 59- man","zvpxlft","m981","lft12","m06V01","Verzekerden",null,"N",""]
[null,null,null,null,"zvpxlft_m981_lft13_m12V01","*='Specifieke informatie A'!$I$117","","Verzekerden risicoklasse- 60 t/m 64- man","zvpxlft","m981","lft13","m06V01","Verzekerden",null,"N",""]
[null,null,null,null,"zvpxlft_m981_lft14_m12V01","*='Specifieke informatie A'!$I$118","","Verzekerden risicoklasse- 65 t/m 69- man","zvpxlft","m981","lft14","m06V01","Verzekerden",null,"N",""]
[null,null,null,null,"zvpxlft_m981_lft15_m12V01","*='Specifieke informatie A'!$I$119","","Verzekerden risicoklasse- 70 t/m 74- man","zvpxlft","m981","lft15","m06V01","Verzekerden",null,"N",""]
[null,null,null,null,"zvpxlft_m981_lft16_m12V01","*='Specifieke informatie A'!$I$120","","Verzekerden risicoklasse- 75 t/m 79- man","zvpxlft","m981","lft16","m06V01","Verzekerden",null,"N",""]
[null,null,null,null,"zvpxlft_m981_lft17_m12V01","*='Specifieke informatie A'!$I$121","","Verzekerden risicoklasse- 80 t/m 84- man","zvpxlft","m981","lft17","m06V01","Verzekerden",null,"N",""]
[null,null,null,null,"zvpxlft_m981_lft18_m12V01","*='Specifieke informatie A'!$I$122","","Verzekerden risicoklasse- 85 t/m 89- man","zvpxlft","m981","lft18","m06V01","Verzekerden",null,"N",""]
[null,null,null,null,"zvpxlft_m981_lft19_m12V01","*='Specifieke informatie A'!$I$123","","Verzekerden risicoklasse- 90 en ouder- man","zvpxlft","m981","lft19","m06V01","Verzekerden",null,"N",""]
[null,null,null,null,"zvpxlft_v981_lft01a_m12V01","*='Specifieke informatie A'!$J$104","","Verzekerden risicoklasse- 00 t/m 01- vrouw","zvpxlft","v981","lft01a","m06V01","Verzekerden",null,"N",""]
[null,null,null,null,"zvpxlft_v981_lft01b_m12V01","*='Specifieke informatie A'!$J$105","","Verzekerden risicoklasse- 02 t/m 04- vrouw","zvpxlft","v981","lft01b","m06V01","Verzekerden",null,"N",""]
[null,null,null,null,"zvpxlft_v981_lft02_m12V01","*='Specifieke informatie A'!$J$106","","Verzekerden risicoklasse- 05 t/m 09- vrouw","zvpxlft","v981","lft02","m06V01","Verzekerden",null,"N",""]
[null,null,null,null,"zvpxlft_v981_lft03_m12V01","*='Specifieke informatie A'!$J$107","","Verzekerden risicoklasse- 10 t/m 14- vrouw","zvpxlft","v981","lft03","m06V01","Verzekerden",null,"N",""]
[null,null,null,null,"zvpxlft_v981_lft04_m12V01","*='Specifieke informatie A'!$J$108","","Verzekerden risicoklasse- 15 t/m 19- vrouw","zvpxlft","v981","lft04","m06V01","Verzekerden",null,"N",""]
[null,null,null,null,"zvpxlft_v981_lft05_m12V01","*='Specifieke informatie A'!$J$109","","Verzekerden risicoklasse- 20 t/m 24- vrouw","zvpxlft","v981","lft05","m06V01","Verzekerden",null,"N",""]
[null,null,null,null,"zvpxlft_v981_lft06_m12V01","*='Specifieke informatie A'!$J$110","","Verzekerden risicoklasse- 25 t/m 29- vrouw","zvpxlft","v981","lft06","m06V01","Verzekerden",null,"N",""]
[null,null,null,null,"zvpxlft_v981_lft07_m12V01","*='Specifieke informatie A'!$J$111","","Verzekerden risicoklasse- 30 t/m 34- vrouw","zvpxlft","v981","lft07","m06V01","Verzekerden",null,"N",""]
[null,null,null,null,"zvpxlft_v981_lft08_m12V01","*='Specifieke informatie A'!$J$112","","Verzekerden risicoklasse- 35 t/m 39- vrouw","zvpxlft","v981","lft08","m06V01","Verzekerden",null,"N",""]
[null,null,null,null,"zvpxlft_v981_lft09_m12V01","*='Specifieke informatie A'!$J$113","","Verzekerden risicoklasse- 40 t/m 44- vrouw","zvpxlft","v981","lft09","m06V01","Verzekerden",null,"N",""]
[null,null,null,null,"zvpxlft_v981_lft10_m12V01","*='Specifieke informatie A'!$J$114","","Verzekerden risicoklasse- 45 t/m 49- vrouw","zvpxlft","v981","lft10","m06V01","Verzekerden",null,"N",""]
[null,null,null,null,"zvpxlft_v981_lft11_m12V01","*='Specifieke informatie A'!$J$115","","Verzekerden risicoklasse- 50 t/m 54- vrouw","zvpxlft","v981","lft11","m06V01","Verzekerden",null,"N",""]
[null,null,null,null,"zvpxlft_v981_lft12_m12V01","*='Specifieke informatie A'!$J$116","","Verzekerden risicoklasse- 55 t/m 59- vrouw","zvpxlft","v981","lft12","m06V01","Verzekerden",null,"N",""]
[null,null,null,null,"zvpxlft_v981_lft13_m12V01","*='Specifieke informatie A'!$J$117","","Verzekerden risicoklasse- 60 t/m 64- vrouw","zvpxlft","v981","lft13","m06V01","Verzekerden",null,"N",""]
[null,null,null,null,"zvpxlft_v981_lft14_m12V01","*='Specifieke informatie A'!$J$118","","Verzekerden risicoklasse- 65 t/m 69- vrouw","zvpxlft","v981","lft14","m06V01","Verzekerden",null,"N",""]
[null,null,null,null,"zvpxlft_v981_lft15_m12V01","*='Specifieke informatie A'!$J$119","","Verzekerden risicoklasse- 70 t/m 74- vrouw","zvpxlft","v981","lft15","m06V01","Verzekerden",null,"N",""]
[null,null,null,null,"zvpxlft_v981_lft16_m12V01","*='Specifieke informatie A'!$J$120","","Verzekerden risicoklasse- 75 t/m 79- vrouw","zvpxlft","v981","lft16","m06V01","Verzekerden",null,"N",""]
[null,null,null,null,"zvpxlft_v981_lft17_m12V01","*='Specifieke informatie A'!$J$121","","Verzekerden risicoklasse- 80 t/m 84- vrouw","zvpxlft","v981","lft17","m06V01","Verzekerden",null,"N",""]
[null,null,null,null,"zvpxlft_v981_lft18_m12V01","*='Specifieke informatie A'!$J$122","","Verzekerden risicoklasse- 85 t/m 89- vrouw","zvpxlft","v981","lft18","m06V01","Verzekerden",null,"N",""]
[null,null,null,null,"zvpxlft_v981_lft19_m12V01","*='Specifieke informatie A'!$J$123","","Verzekerden risicoklasse- 90 en ouder- vrouw","zvpxlft","v981","lft19","m06V01","Verzekerden",null,"N",""]
[null,null,null,null,"zvpxlft_o981_lft01a_m12V01","*='Specifieke informatie A'!$K$104","","Verzekerden risicoklasse- 00 t/m 01- onbepaald","zvpxlft","v981","lft01a","m06V01","Verzekerden",null,"N",""]
[null,null,null,null,"zvpxlft_o981_lft01b_m12V01","*='Specifieke informatie A'!$K$105","","Verzekerden risicoklasse- 02 t/m 04- onbepaald","zvpxlft","v981","lft01b","m06V01","Verzekerden",null,"N",""]
[null,null,null,null,"zvpxlft_o981_lft02_m12V01","*='Specifieke informatie A'!$K$106","","Verzekerden risicoklasse- 05 t/m 09- onbepaald","zvpxlft","v981","lft02","m06V01","Verzekerden",null,"N",""]
[null,null,null,null,"zvpxlft_o981_lft03_m12V01","*='Specifieke informatie A'!$K$107","","Verzekerden risicoklasse- 10 t/m 14- onbepaald","zvpxlft","v981","lft03","m06V01","Verzekerden",null,"N",""]
[null,null,null,null,"zvpxlft_o981_lft04_m12V01","*='Specifieke informatie A'!$K$108","","Verzekerden risicoklasse- 15 t/m 19- onbepaald","zvpxlft","v981","lft04","m06V01","Verzekerden",null,"N",""]
[null,null,null,null,"zvpxlft_o981_lft05_m12V01","*='Specifieke informatie A'!$K$109","","Verzekerden risicoklasse- 20 t/m 24- onbepaald","zvpxlft","v981","lft05","m06V01","Verzekerden",null,"N",""]
[null,null,null,null,"zvpxlft_o981_lft06_m12V01","*='Specifieke informatie A'!$K$110","","Verzekerden risicoklasse- 25 t/m 29- onbepaald","zvpxlft","v981","lft06","m06V01","Verzekerden",null,"N",""]
[null,null,null,null,"zvpxlft_o981_lft07_m12V01","*='Specifieke informatie A'!$K$111","","Verzekerden risicoklasse- 30 t/m 34- onbepaald","zvpxlft","v981","lft07","m06V01","Verzekerden",null,"N",""]
[null,null,null,null,"zvpxlft_o981_lft08_m12V01","*='Specifieke informatie A'!$K$112","","Verzekerden risicoklasse- 35 t/m 39- onbepaald","zvpxlft","v981","lft08","m06V01","Verzekerden",null,"N",""]
[null,null,null,null,"zvpxlft_o981_lft09_m12V01","*='Specifieke informatie A'!$K$113","","Verzekerden risicoklasse- 40 t/m 44- onbepaald","zvpxlft","v981","lft09","m06V01","Verzekerden",null,"N",""]
[null,null,null,null,"zvpxlft_o981_lft10_m12V01","*='Specifieke informatie A'!$K$114","","Verzekerden risicoklasse- 45 t/m 49- onbepaald","zvpxlft","v981","lft10","m06V01","Verzekerden",null,"N",""]
[null,null,null,null,"zvpxlft_o981_lft11_m12V01","*='Specifieke informatie A'!$K$115","","Verzekerden risicoklasse- 50 t/m 54- onbepaald","zvpxlft","v981","lft11","m06V01","Verzekerden",null,"N",""]
[null,null,null,null,"zvpxlft_o981_lft12_m12V01","*='Specifieke informatie A'!$K$116","","Verzekerden risicoklasse- 55 t/m 59- onbepaald","zvpxlft","v981","lft12","m06V01","Verzekerden",null,"N",""]
[null,null,null,null,"zvpxlft_o981_lft13_m12V01","*='Specifieke informatie A'!$K$117","","Verzekerden risicoklasse- 60 t/m 64- onbepaald","zvpxlft","v981","lft13","m06V01","Verzekerden",null,"N",""]
[null,null,null,null,"zvpxlft_o981_lft14_m12V01","*='Specifieke informatie A'!$K$118","","Verzekerden risicoklasse- 65 t/m 69- onbepaald","zvpxlft","v981","lft14","m06V01","Verzekerden",null,"N",""]
[null,null,null,null,"zvpxlft_o981_lft15_m12V01","*='Specifieke informatie A'!$K$119","","Verzekerden risicoklasse- 70 t/m 74- onbepaald","zvpxlft","v981","lft15","m06V01","Verzekerden",null,"N",""]
[null,null,null,null,"zvpxlft_o981_lft16_m12V01","*='Specifieke informatie A'!$K$120","","Verzekerden risicoklasse- 75 t/m 79- onbepaald","zvpxlft","v981","lft16","m06V01","Verzekerden",null,"N",""]
[null,null,null,null,"zvpxlft_o981_lft17_m12V01","*='Specifieke informatie A'!$K$121","","Verzekerden risicoklasse- 80 t/m 84- onbepaald","zvpxlft","v981","lft17","m06V01","Verzekerden",null,"N",""]
[null,null,null,null,"zvpxlft_o981_lft18_m12V01","*='Specifieke informatie A'!$K$122","","Verzekerden risicoklasse- 85 t/m 89- onbepaald","zvpxlft","v981","lft18","m06V01","Verzekerden",null,"N",""]
[null,null,null,null,"zvpxlft_o981_lft19_m12V01","*='Specifieke informatie A'!$K$123","","Verzekerden risicoklasse- 90 en ouder- onbepaald","zvpxlft","v981","lft19","m06V01","Verzekerden",null,"N",""]
[null,null,null,null,"zvpxprm_s981_nomy_m12V01","*='Specifieke informatie A'!$L$129","","Verzekerden premiekenmerk- met nominale premie ZVW","zvpxprm","s981","nomy","m06V01","Verzekerden",null,"N",""]
[null,null,null,null,"zvpxprm_s981_nomn_m12V01","*='Specifieke informatie A'!$L$130","","Verzekerden premiekenmerk- zonder nominale premie ZVW","zvpxprm","s981","nomn","m06V01","Verzekerden",null,"N",""]
[null,null,null,null,"zvpxlft_m981_lft01a_m13V01","*='Specifieke informatie A'!$I$149","","Verzekerden risicoklasse- 00 t/m 01- man","zvpxlft","m981","lft01a","m07V01","Verzekerden",null,"N",""]
[null,null,null,null,"zvpxlft_m981_lft01b_m13V01","*='Specifieke informatie A'!$I$150","","Verzekerden risicoklasse- 02 t/m 04- man","zvpxlft","m981","lft01b","m07V01","Verzekerden",null,"N",""]
[null,null,null,null,"zvpxlft_m981_lft02_m13V01","*='Specifieke informatie A'!$I$151","","Verzekerden risicoklasse- 05 t/m 09- man","zvpxlft","m981","lft02","m07V01","Verzekerden",null,"N",""]
[null,null,null,null,"zvpxlft_m981_lft03_m13V01","*='Specifieke informatie A'!$I$152","","Verzekerden risicoklasse- 10 t/m 14- man","zvpxlft","m981","lft03","m07V01","Verzekerden",null,"N",""]
[null,null,null,null,"zvpxlft_m981_lft04_m13V01","*='Specifieke informatie A'!$I$153","","Verzekerden risicoklasse- 15 t/m 19- man","zvpxlft","m981","lft04","m07V01","Verzekerden",null,"N",""]
[null,null,null,null,"zvpxlft_m981_lft05_m13V01","*='Specifieke informatie A'!$I$154","","Verzekerden risicoklasse- 20 t/m 24- man","zvpxlft","m981","lft05","m07V01","Verzekerden",null,"N",""]
[null,null,null,null,"zvpxlft_m981_lft06_m13V01","*='Specifieke informatie A'!$I$155","","Verzekerden risicoklasse- 25 t/m 29- man","zvpxlft","m981","lft06","m07V01","Verzekerden",null,"N",""]
[null,null,null,null,"zvpxlft_m981_lft07_m13V01","*='Specifieke informatie A'!$I$156","","Verzekerden risicoklasse- 30 t/m 34- man","zvpxlft","m981","lft07","m07V01","Verzekerden",null,"N",""]
[null,null,null,null,"zvpxlft_m981_lft08_m13V01","*='Specifieke informatie A'!$I$157","","Verzekerden risicoklasse- 35 t/m 39- man","zvpxlft","m981","lft08","m07V01","Verzekerden",null,"N",""]
[null,null,null,null,"zvpxlft_m981_lft09_m13V01","*='Specifieke informatie A'!$I$158","","Verzekerden risicoklasse- 40 t/m 44- man","zvpxlft","m981","lft09","m07V01","Verzekerden",null,"N",""]
[null,null,null,null,"zvpxlft_m981_lft10_m13V01","*='Specifieke informatie A'!$I$159","","Verzekerden risicoklasse- 45 t/m 49- man","zvpxlft","m981","lft10","m07V01","Verzekerden",null,"N",""]
[null,null,null,null,"zvpxlft_m981_lft11_m13V01","*='Specifieke informatie A'!$I$160","","Verzekerden risicoklasse- 50 t/m 54- man","zvpxlft","m981","lft11","m07V01","Verzekerden",null,"N",""]
[null,null,null,null,"zvpxlft_m981_lft12_m13V01","*='Specifieke informatie A'!$I$161","","Verzekerden risicoklasse- 55 t/m 59- man","zvpxlft","m981","lft12","m07V01","Verzekerden",null,"N",""]
[null,null,null,null,"zvpxlft_m981_lft13_m13V01","*='Specifieke informatie A'!$I$162","","Verzekerden risicoklasse- 60 t/m 64- man","zvpxlft","m981","lft13","m07V01","Verzekerden",null,"N",""]
[null,null,null,null,"zvpxlft_m981_lft14_m13V01","*='Specifieke informatie A'!$I$163","","Verzekerden risicoklasse- 65 t/m 69- man","zvpxlft","m981","lft14","m07V01","Verzekerden",null,"N",""]
[null,null,null,null,"zvpxlft_m981_lft15_m13V01","*='Specifieke informatie A'!$I$164","","Verzekerden risicoklasse- 70 t/m 74- man","zvpxlft","m981","lft15","m07V01","Verzekerden",null,"N",""]
[null,null,null,null,"zvpxlft_m981_lft16_m13V01","*='Specifieke informatie A'!$I$165","","Verzekerden risicoklasse- 75 t/m 79- man","zvpxlft","m981","lft16","m07V01","Verzekerden",null,"N",""]
[null,null,null,null,"zvpxlft_m981_lft17_m13V01","*='Specifieke informatie A'!$I$166","","Verzekerden risicoklasse- 80 t/m 84- man","zvpxlft","m981","lft17","m07V01","Verzekerden",null,"N",""]
[null,null,null,null,"zvpxlft_m981_lft18_m13V01","*='Specifieke informatie A'!$I$167","","Verzekerden risicoklasse- 85 t/m 89- man","zvpxlft","m981","lft18","m07V01","Verzekerden",null,"N",""]
[null,null,null,null,"zvpxlft_m981_lft19_m13V01","*='Specifieke informatie A'!$I$168","","Verzekerden risicoklasse- 90 en ouder- man","zvpxlft","m981","lft19","m07V01","Verzekerden",null,"N",""]
[null,null,null,null,"zvpxlft_v981_lft01a_m13V01","*='Specifieke informatie A'!$J$149","","Verzekerden risicoklasse- 00 t/m 01- vrouw","zvpxlft","v981","lft01a","m07V01","Verzekerden",null,"N",""]
[null,null,null,null,"zvpxlft_v981_lft01b_m13V01","*='Specifieke informatie A'!$J$150","","Verzekerden risicoklasse- 02 t/m 04- vrouw","zvpxlft","v981","lft01b","m07V01","Verzekerden",null,"N",""]
[null,null,null,null,"zvpxlft_v981_lft02_m13V01","*='Specifieke informatie A'!$J$151","","Verzekerden risicoklasse- 05 t/m 09- vrouw","zvpxlft","v981","lft02","m07V01","Verzekerden",null,"N",""]
[null,null,null,null,"zvpxlft_v981_lft03_m13V01","*='Specifieke informatie A'!$J$152","","Verzekerden risicoklasse- 10 t/m 14- vrouw","zvpxlft","v981","lft03","m07V01","Verzekerden",null,"N",""]
[null,null,null,null,"zvpxlft_v981_lft04_m13V01","*='Specifieke informatie A'!$J$153","","Verzekerden risicoklasse- 15 t/m 19- vrouw","zvpxlft","v981","lft04","m07V01","Verzekerden",null,"N",""]
[null,null,null,null,"zvpxlft_v981_lft05_m13V01","*='Specifieke informatie A'!$J$154","","Verzekerden risicoklasse- 20 t/m 24- vrouw","zvpxlft","v981","lft05","m07V01","Verzekerden",null,"N",""]
[null,null,null,null,"zvpxlft_v981_lft06_m13V01","*='Specifieke informatie A'!$J$155","","Verzekerden risicoklasse- 25 t/m 29- vrouw","zvpxlft","v981","lft06","m07V01","Verzekerden",null,"N",""]
[null,null,null,null,"zvpxlft_v981_lft07_m13V01","*='Specifieke informatie A'!$J$156","","Verzekerden risicoklasse- 30 t/m 34- vrouw","zvpxlft","v981","lft07","m07V01","Verzekerden",null,"N",""]
[null,null,null,null,"zvpxlft_v981_lft08_m13V01","*='Specifieke informatie A'!$J$157","","Verzekerden risicoklasse- 35 t/m 39- vrouw","zvpxlft","v981","lft08","m07V01","Verzekerden",null,"N",""]
[null,null,null,null,"zvpxlft_v981_lft09_m13V01","*='Specifieke informatie A'!$J$158","","Verzekerden risicoklasse- 40 t/m 44- vrouw","zvpxlft","v981","lft09","m07V01","Verzekerden",null,"N",""]
[null,null,null,null,"zvpxlft_v981_lft10_m13V01","*='Specifieke informatie A'!$J$159","","Verzekerden risicoklasse- 45 t/m 49- vrouw","zvpxlft","v981","lft10","m07V01","Verzekerden",null,"N",""]
[null,null,null,null,"zvpxlft_v981_lft11_m13V01","*='Specifieke informatie A'!$J$160","","Verzekerden risicoklasse- 50 t/m 54- vrouw","zvpxlft","v981","lft11","m07V01","Verzekerden",null,"N",""]
[null,null,null,null,"zvpxlft_v981_lft12_m13V01","*='Specifieke informatie A'!$J$161","","Verzekerden risicoklasse- 55 t/m 59- vrouw","zvpxlft","v981","lft12","m07V01","Verzekerden",null,"N",""]
[null,null,null,null,"zvpxlft_v981_lft13_m13V01","*='Specifieke informatie A'!$J$162","","Verzekerden risicoklasse- 60 t/m 64- vrouw","zvpxlft","v981","lft13","m07V01","Verzekerden",null,"N",""]
[null,null,null,null,"zvpxlft_v981_lft14_m13V01","*='Specifieke informatie A'!$J$163","","Verzekerden risicoklasse- 65 t/m 69- vrouw","zvpxlft","v981","lft14","m07V01","Verzekerden",null,"N",""]
[null,null,null,null,"zvpxlft_v981_lft15_m13V01","*='Specifieke informatie A'!$J$164","","Verzekerden risicoklasse- 70 t/m 74- vrouw","zvpxlft","v981","lft15","m07V01","Verzekerden",null,"N",""]
[null,null,null,null,"zvpxlft_v981_lft16_m13V01","*='Specifieke informatie A'!$J$165","","Verzekerden risicoklasse- 75 t/m 79- vrouw","zvpxlft","v981","lft16","m07V01","Verzekerden",null,"N",""]
[null,null,null,null,"zvpxlft_v981_lft17_m13V01","*='Specifieke informatie A'!$J$166","","Verzekerden risicoklasse- 80 t/m 84- vrouw","zvpxlft","v981","lft17","m07V01","Verzekerden",null,"N",""]
[null,null,null,null,"zvpxlft_v981_lft18_m13V01","*='Specifieke informatie A'!$J$167","","Verzekerden risicoklasse- 85 t/m 89- vrouw","zvpxlft","v981","lft18","m07V01","Verzekerden",null,"N",""]
[null,null,null,null,"zvpxlft_v981_lft19_m13V01","*='Specifieke informatie A'!$J$168","","Verzekerden risicoklasse- 90 en ouder- vrouw","zvpxlft","v981","lft19","m07V01","Verzekerden",null,"N",""]
[null,null,null,null,"zvpxlft_o981_lft01a_m13V01","*='Specifieke informatie A'!$K$149","","Verzekerden risicoklasse- 00 t/m 01- onbepaald","zvpxlft","v981","lft01a","m07V01","Verzekerden",null,"N",""]
[null,null,null,null,"zvpxlft_o981_lft01b_m13V01","*='Specifieke informatie A'!$K$150","","Verzekerden risicoklasse- 02 t/m 04- onbepaald","zvpxlft","v981","lft01b","m07V01","Verzekerden",null,"N",""]
[null,null,null,null,"zvpxlft_o981_lft02_m13V01","*='Specifieke informatie A'!$K$151","","Verzekerden risicoklasse- 05 t/m 09- onbepaald","zvpxlft","v981","lft02","m07V01","Verzekerden",null,"N",""]
[null,null,null,null,"zvpxlft_o981_lft03_m13V01","*='Specifieke informatie A'!$K$152","","Verzekerden risicoklasse- 10 t/m 14- onbepaald","zvpxlft","v981","lft03","m07V01","Verzekerden",null,"N",""]
[null,null,null,null,"zvpxlft_o981_lft04_m13V01","*='Specifieke informatie A'!$K$153","","Verzekerden risicoklasse- 15 t/m 19- onbepaald","zvpxlft","v981","lft04","m07V01","Verzekerden",null,"N",""]
[null,null,null,null,"zvpxlft_o981_lft05_m13V01","*='Specifieke informatie A'!$K$154","","Verzekerden risicoklasse- 20 t/m 24- onbepaald","zvpxlft","v981","lft05","m07V01","Verzekerden",null,"N",""]
[null,null,null,null,"zvpxlft_o981_lft06_m13V01","*='Specifieke informatie A'!$K$155","","Verzekerden risicoklasse- 25 t/m 29- onbepaald","zvpxlft","v981","lft06","m07V01","Verzekerden",null,"N",""]
[null,null,null,null,"zvpxlft_o981_lft07_m13V01","*='Specifieke informatie A'!$K$156","","Verzekerden risicoklasse- 30 t/m 34- onbepaald","zvpxlft","v981","lft07","m07V01","Verzekerden",null,"N",""]
[null,null,null,null,"zvpxlft_o981_lft08_m13V01","*='Specifieke informatie A'!$K$157","","Verzekerden risicoklasse- 35 t/m 39- onbepaald","zvpxlft","v981","lft08","m07V01","Verzekerden",null,"N",""]
[null,null,null,null,"zvpxlft_o981_lft09_m13V01","*='Specifieke informatie A'!$K$158","","Verzekerden risicoklasse- 40 t/m 44- onbepaald","zvpxlft","v981","lft09","m07V01","Verzekerden",null,"N",""]
[null,null,null,null,"zvpxlft_o981_lft10_m13V01","*='Specifieke informatie A'!$K$159","","Verzekerden risicoklasse- 45 t/m 49- onbepaald","zvpxlft","v981","lft10","m07V01","Verzekerden",null,"N",""]
[null,null,null,null,"zvpxlft_o981_lft11_m13V01","*='Specifieke informatie A'!$K$160","","Verzekerden risicoklasse- 50 t/m 54- onbepaald","zvpxlft","v981","lft11","m07V01","Verzekerden",null,"N",""]
[null,null,null,null,"zvpxlft_o981_lft12_m13V01","*='Specifieke informatie A'!$K$161","","Verzekerden risicoklasse- 55 t/m 59- onbepaald","zvpxlft","v981","lft12","m07V01","Verzekerden",null,"N",""]
[null,null,null,null,"zvpxlft_o981_lft13_m13V01","*='Specifieke informatie A'!$K$162","","Verzekerden risicoklasse- 60 t/m 64- onbepaald","zvpxlft","v981","lft13","m07V01","Verzekerden",null,"N",""]
[null,null,null,null,"zvpxlft_o981_lft14_m13V01","*='Specifieke informatie A'!$K$163","","Verzekerden risicoklasse- 65 t/m 69- onbepaald","zvpxlft","v981","lft14","m07V01","Verzekerden",null,"N",""]
[null,null,null,null,"zvpxlft_o981_lft15_m13V01","*='Specifieke informatie A'!$K$164","","Verzekerden risicoklasse- 70 t/m 74- onbepaald","zvpxlft","v981","lft15","m07V01","Verzekerden",null,"N",""]
[null,null,null,null,"zvpxlft_o981_lft16_m13V01","*='Specifieke informatie A'!$K$165","","Verzekerden risicoklasse- 75 t/m 79- onbepaald","zvpxlft","v981","lft16","m07V01","Verzekerden",null,"N",""]
[null,null,null,null,"zvpxlft_o981_lft17_m13V01","*='Specifieke informatie A'!$K$166","","Verzekerden risicoklasse- 80 t/m 84- onbepaald","zvpxlft","v981","lft17","m07V01","Verzekerden",null,"N",""]
[null,null,null,null,"zvpxlft_o981_lft18_m13V01","*='Specifieke informatie A'!$K$167","","Verzekerden risicoklasse- 85 t/m 89- onbepaald","zvpxlft","v981","lft18","m07V01","Verzekerden",null,"N",""]
[null,null,null,null,"zvpxlft_o981_lft19_m13V01","*='Specifieke informatie A'!$K$168","","Verzekerden risicoklasse- 90 en ouder- onbepaald","zvpxlft","v981","lft19","m07V01","Verzekerden",null,"N",""]
[null,null,null,null,"zvpxprm_s981_nomy_m13V01","*='Specifieke informatie A'!$L$174","","Verzekerden premiekenmerk- met nominale premie ZVW","zvpxprm","s981","nomy","m07V01","Verzekerden",null,"N",""]
[null,null,null,null,"zvpxprm_s981_nomn_m13V01","*='Specifieke informatie A'!$L$175","","Verzekerden premiekenmerk- zonder nominale premie ZVW","zvpxprm","s981","nomn","m07V01","Verzekerden",null,"N",""]
[null,null,null,null,"zvsx06k_c610_d1l_TY0V01","*='Specifieke informatie C'!$G$15","","C610 Overige kosten ziekenhuiszorg en curatieve zorg- eerstelijnsdiagnostiek eerstelijnszorgaanbieders - huisartslab- incl balans","zvsx06k","c610","d1l","TY0V01"]
[null,null,null,null,"zvsx06k_a610_d1l_TY0V01","*='Specifieke informatie C'!$H$15","","C610 Overige kosten ziekenhuiszorg en curatieve zorg- eerstelijnsdiagnostiek eerstelijnszorgaanbieders - huisartslab- geaccepteerd","zvsx06k","a610","d1l","TY0V01"]
[null,null,null,null,"zvsx06k_c610_d1l_TY1V01","*='Specifieke informatie C'!$I$15","","C610 Overige kosten ziekenhuiszorg en curatieve zorg- eerstelijnsdiagnostiek eerstelijnszorgaanbieders - huisartslab- incl balans","zvsx06k","c610","d1l","TY1V01"]
[null,null,null,null,"zvsx06k_a610_d1l_TY1V01","*='Specifieke informatie C'!$J$15","","C610 Overige kosten ziekenhuiszorg en curatieve zorg- eerstelijnsdiagnostiek eerstelijnszorgaanbieders - huisartslab- geaccepteerd","zvsx06k","a610","d1l","TY1V01"]
[null,null,null,null,"zvsx06k_c610_d1l_TY2V01","*='Specifieke informatie C'!$K$15","","C610 Overige kosten ziekenhuiszorg en curatieve zorg- eerstelijnsdiagnostiek eerstelijnszorgaanbieders - huisartslab- incl balans","zvsx06k","c610","d1l","TY2V01"]
[null,null,null,null,"zvsx06k_a610_d1l_TY2V01","*='Specifieke informatie C'!$L$15","","C610 Overige kosten ziekenhuiszorg en curatieve zorg- eerstelijnsdiagnostiek eerstelijnszorgaanbieders - huisartslab- geaccepteerd","zvsx06k","a610","d1l","TY2V01"]
[null,null,null,null,"zvsx06k_c610_trmb_TY0V01","*='Specifieke informatie C'!$G$16","","C610 Overige kosten ziekenhuiszorg en curatieve zorg- Trombosediensten- incl balans","zvsx06k","c610","trmb","TY0V01"]
[null,null,null,null,"zvsx06k_a610_trmb_TY0V01","*='Specifieke informatie C'!$H$16","","C610 Overige kosten ziekenhuiszorg en curatieve zorg- Trombosediensten- geaccepteerd","zvsx06k","a610","trmb","TY0V01"]
[null,null,null,null,"zvsx06k_c610_trmb_TY1V01","*='Specifieke informatie C'!$I$16","","C610 Overige kosten ziekenhuiszorg en curatieve zorg- Trombosediensten- incl balans","zvsx06k","c610","trmb","TY1V01"]
[null,null,null,null,"zvsx06k_a610_trmb_TY1V01","*='Specifieke informatie C'!$J$16","","C610 Overige kosten ziekenhuiszorg en curatieve zorg- Trombosediensten- geaccepteerd","zvsx06k","a610","trmb","TY1V01"]
[null,null,null,null,"zvsx06k_c610_trmb_TY2V01","*='Specifieke informatie C'!$K$16","","C610 Overige kosten ziekenhuiszorg en curatieve zorg- Trombosediensten- incl balans","zvsx06k","c610","trmb","TY2V01"]
[null,null,null,null,"zvsx06k_a610_trmb_TY2V01","*='Specifieke informatie C'!$L$16","","C610 Overige kosten ziekenhuiszorg en curatieve zorg- Trombosediensten- geaccepteerd","zvsx06k","a610","trmb","TY2V01"]
[null,null,null,null,"zvsx06k_c610_sknt_TY0V01","*='Specifieke informatie C'!$G$17","","C610 Overige kosten ziekenhuiszorg en curatieve zorg- SKION en NTS- incl balans","zvsx06k","c610","sknt","TY0V01"]
[null,null,null,null,"zvsx06k_a610_sknt_TY0V01","*='Specifieke informatie C'!$H$17","","C610 Overige kosten ziekenhuiszorg en curatieve zorg- SKION en NTS- geaccepteerd","zvsx06k","a610","sknt","TY0V01"]
[null,null,null,null,"zvsx06k_c610_sknt_TY1V01","*='Specifieke informatie C'!$I$17","","C610 Overige kosten ziekenhuiszorg en curatieve zorg- SKION en NTS- incl balans","zvsx06k","c610","sknt","TY1V01"]
[null,null,null,null,"zvsx06k_a610_sknt_TY1V01","*='Specifieke informatie C'!$J$17","","C610 Overige kosten ziekenhuiszorg en curatieve zorg- SKION en NTS- geaccepteerd","zvsx06k","a610","sknt","TY1V01"]
[null,null,null,null,"zvsx06k_c610_sknt_TY2V01","*='Specifieke informatie C'!$K$17","","C610 Overige kosten ziekenhuiszorg en curatieve zorg- SKION en NTS- incl balans","zvsx06k","c610","sknt","TY2V01"]
[null,null,null,null,"zvsx06k_a610_sknt_TY2V01","*='Specifieke informatie C'!$L$17","","C610 Overige kosten ziekenhuiszorg en curatieve zorg- SKION en NTS- geaccepteerd","zvsx06k","a610","sknt","TY2V01"]
[null,null,null,null,"zvsx06k_c611_az_TY0V01","*='Specifieke informatie C'!$G$23","","C611 Naar Instelling- Academische ziekenhuizen- incl balans","zvsx06k","c611","az","TY0V01"]
[null,null,null,null,"zvsx06k_a611_az_TY0V01","*='Specifieke informatie C'!$H$23","","C611 Naar Instelling- Academische ziekenhuizen- geaccepteerd","zvsx06k","a611","az","TY0V01"]
[null,null,null,null,"zvsx06k_c611_az_TY1V01","*='Specifieke informatie C'!$I$23","","C611 Naar Instelling- Academische ziekenhuizen- incl balans","zvsx06k","c611","az","TY1V01"]
[null,null,null,null,"zvsx06k_a611_az_TY1V01","*='Specifieke informatie C'!$J$23","","C611 Naar Instelling- Academische ziekenhuizen- geaccepteerd","zvsx06k","a611","az","TY1V01"]
[null,null,null,null,"zvsx06k_c611_az_TY2V01","*='Specifieke informatie C'!$K$23","","C611 Naar Instelling- Academische ziekenhuizen- incl balans","zvsx06k","c611","az","TY2V01"]
[null,null,null,null,"zvsx06k_a611_az_TY2V01","*='Specifieke informatie C'!$L$23","","C611 Naar Instelling- Academische ziekenhuizen- geaccepteerd","zvsx06k","a611","az","TY2V01"]
[null,null,null,null,"zvsx06k_c611_sz_TY0V01","*='Specifieke informatie C'!$G$24","","C611 Naar Instelling- Algemene ziekenhuizen- incl balans","zvsx06k","c611","sz","TY0V01"]
[null,null,null,null,"zvsx06k_a611_sz_TY0V01","*='Specifieke informatie C'!$H$24","","C611 Naar Instelling- Algemene ziekenhuizen- geaccepteerd","zvsx06k","a611","sz","TY0V01"]
[null,null,null,null,"zvsx06k_c611_sz_TY1V01","*='Specifieke informatie C'!$I$24","","C611 Naar Instelling- Algemene ziekenhuizen- incl balans","zvsx06k","c611","sz","TY1V01"]
[null,null,null,null,"zvsx06k_a611_sz_TY1V01","*='Specifieke informatie C'!$J$24","","C611 Naar Instelling- Algemene ziekenhuizen- geaccepteerd","zvsx06k","a611","sz","TY1V01"]
[null,null,null,null,"zvsx06k_c611_sz_TY2V01","*='Specifieke informatie C'!$K$24","","C611 Naar Instelling- Algemene ziekenhuizen- incl balans","zvsx06k","c611","sz","TY2V01"]
[null,null,null,null,"zvsx06k_a611_sz_TY2V01","*='Specifieke informatie C'!$L$24","","C611 Naar Instelling- Algemene ziekenhuizen- geaccepteerd","zvsx06k","a611","sz","TY2V01"]
[null,null,null,null,"zvsx06k_c611_zb_TY0V01","*='Specifieke informatie C'!$G$25","","C611 Naar Instelling- Zelfstandige behandelcentra- incl balans","zvsx06k","c611","zb","TY0V01"]
[null,null,null,null,"zvsx06k_a611_zb_TY0V01","*='Specifieke informatie C'!$H$25","","C611 Naar Instelling- Zelfstandige behandelcentra- geaccepteerd","zvsx06k","a611","zb","TY0V01"]
[null,null,null,null,"zvsx06k_c611_zb_TY1V01","*='Specifieke informatie C'!$I$25","","C611 Naar Instelling- Zelfstandige behandelcentra- incl balans","zvsx06k","c611","zb","TY1V01"]
[null,null,null,null,"zvsx06k_a611_zb_TY1V01","*='Specifieke informatie C'!$J$25","","C611 Naar Instelling- Zelfstandige behandelcentra- geaccepteerd","zvsx06k","a611","zb","TY1V01"]
[null,null,null,null,"zvsx06k_c611_zb_TY2V01","*='Specifieke informatie C'!$K$25","","C611 Naar Instelling- Zelfstandige behandelcentra- incl balans","zvsx06k","c611","zb","TY2V01"]
[null,null,null,null,"zvsx06k_a611_zb_TY2V01","*='Specifieke informatie C'!$L$25","","C611 Naar Instelling- Zelfstandige behandelcentra- geaccepteerd","zvsx06k","a611","zb","TY2V01"]
[null,null,null,null,"zvsx06k_c611_ov_TY0V01","*='Specifieke informatie C'!$G$26","","C611 Naar Instelling- Overige zorgaanbieders- incl balans","zvsx06k","c611","ov","TY0V01"]
[null,null,null,null,"zvsx06k_a611_ov_TY0V01","*='Specifieke informatie C'!$H$26","","C611 Naar Instelling- Overige zorgaanbieders- geaccepteerd","zvsx06k","a611","ov","TY0V01"]
[null,null,null,null,"zvsx06k_c611_ov_TY1V01","*='Specifieke informatie C'!$I$26","","C611 Naar Instelling- Overige zorgaanbieders- incl balans","zvsx06k","c611","ov","TY1V01"]
[null,null,null,null,"zvsx06k_a611_ov_TY1V01","*='Specifieke informatie C'!$J$26","","C611 Naar Instelling- Overige zorgaanbieders- geaccepteerd","zvsx06k","a611","ov","TY1V01"]
[null,null,null,null,"zvsx06k_c611_ov_TY2V01","*='Specifieke informatie C'!$K$26","","C611 Naar Instelling- Overige zorgaanbieders- incl balans","zvsx06k","c611","ov","TY2V01"]
[null,null,null,null,"zvsx06k_a611_ov_TY2V01","*='Specifieke informatie C'!$L$26","","C611 Naar Instelling- Overige zorgaanbieders- geaccepteerd","zvsx06k","a611","ov","TY2V01"]
[null,null,null,null,"zvsx06k_c6121_az_TY0V01","*='Specifieke informatie C'!$G$32","","C612.1 Kosten add-ons dure geneesmiddelen naar instelling- Academische ziekenhuizen- incl balans","zvsx06k","c6121","az","TY0V01"]
[null,null,null,null,"zvsx06k_a6121_az_TY0V01","*='Specifieke informatie C'!$H$32","","C612.1 Kosten add-ons dure geneesmiddelen naar instelling- Academische ziekenhuizen- geaccepteerd","zvsx06k","a6121","az","TY0V01"]
[null,null,null,null,"zvsx06k_c6121_az_TY1V01","*='Specifieke informatie C'!$I$32","","C612.1 Kosten add-ons dure geneesmiddelen naar instelling- Academische ziekenhuizen- incl balans","zvsx06k","c6121","az","TY1V01"]
[null,null,null,null,"zvsx06k_a6121_az_TY1V01","*='Specifieke informatie C'!$J$32","","C612.1 Kosten add-ons dure geneesmiddelen naar instelling- Academische ziekenhuizen- geaccepteerd","zvsx06k","a6121","az","TY1V01"]
[null,null,null,null,"zvsx06k_c6121_az_TY2V01","*='Specifieke informatie C'!$K$32","","C612.1 Kosten add-ons dure geneesmiddelen naar instelling- Academische ziekenhuizen- incl balans","zvsx06k","c6121","az","TY2V01"]
[null,null,null,null,"zvsx06k_a6121_az_TY2V01","*='Specifieke informatie C'!$L$32","","C612.1 Kosten add-ons dure geneesmiddelen naar instelling- Academische ziekenhuizen- geaccepteerd","zvsx06k","a6121","az","TY2V01"]
[null,null,null,null,"zvsx06k_c6121_sz_TY0V01","*='Specifieke informatie C'!$G$33","","C612.1 Kosten add-ons dure geneesmiddelen naar instelling- Algemene ziekenhuizen- incl balans","zvsx06k","c6121","sz","TY0V01"]
[null,null,null,null,"zvsx06k_a6121_sz_TY0V01","*='Specifieke informatie C'!$H$33","","C612.1 Kosten add-ons dure geneesmiddelen naar instelling- Algemene ziekenhuizen- geaccepteerd","zvsx06k","a6121","sz","TY0V01"]
[null,null,null,null,"zvsx06k_c6121_sz_TY1V01","*='Specifieke informatie C'!$I$33","","C612.1 Kosten add-ons dure geneesmiddelen naar instelling- Algemene ziekenhuizen- incl balans","zvsx06k","c6121","sz","TY1V01"]
[null,null,null,null,"zvsx06k_a6121_sz_TY1V01","*='Specifieke informatie C'!$J$33","","C612.1 Kosten add-ons dure geneesmiddelen naar instelling- Algemene ziekenhuizen- geaccepteerd","zvsx06k","a6121","sz","TY1V01"]
[null,null,null,null,"zvsx06k_c6121_sz_TY2V01","*='Specifieke informatie C'!$K$33","","C612.1 Kosten add-ons dure geneesmiddelen naar instelling- Algemene ziekenhuizen- incl balans","zvsx06k","c6121","sz","TY2V01"]
[null,null,null,null,"zvsx06k_a6121_sz_TY2V01","*='Specifieke informatie C'!$L$33","","C612.1 Kosten add-ons dure geneesmiddelen naar instelling- Algemene ziekenhuizen- geaccepteerd","zvsx06k","a6121","sz","TY2V01"]
[null,null,null,null,"zvsx06k_c6121_zb_TY0V01","*='Specifieke informatie C'!$G$34","","C612.1 Kosten add-ons dure geneesmiddelen naar instelling- Zelfstandige behandelcentra- incl balans","zvsx06k","c6121","zb","TY0V01"]
[null,null,null,null,"zvsx06k_a6121_zb_TY0V01","*='Specifieke informatie C'!$H$34","","C612.1 Kosten add-ons dure geneesmiddelen naar instelling- Zelfstandige behandelcentra- geaccepteerd","zvsx06k","a6121","zb","TY0V01"]
[null,null,null,null,"zvsx06k_c6121_zb_TY1V01","*='Specifieke informatie C'!$I$34","","C612.1 Kosten add-ons dure geneesmiddelen naar instelling- Zelfstandige behandelcentra- incl balans","zvsx06k","c6121","zb","TY1V01"]
[null,null,null,null,"zvsx06k_a6121_zb_TY1V01","*='Specifieke informatie C'!$J$34","","C612.1 Kosten add-ons dure geneesmiddelen naar instelling- Zelfstandige behandelcentra- geaccepteerd","zvsx06k","a6121","zb","TY1V01"]
[null,null,null,null,"zvsx06k_c6121_zb_TY2V01","*='Specifieke informatie C'!$K$34","","C612.1 Kosten add-ons dure geneesmiddelen naar instelling- Zelfstandige behandelcentra- incl balans","zvsx06k","c6121","zb","TY2V01"]
[null,null,null,null,"zvsx06k_a6121_zb_TY2V01","*='Specifieke informatie C'!$L$34","","C612.1 Kosten add-ons dure geneesmiddelen naar instelling- Zelfstandige behandelcentra- geaccepteerd","zvsx06k","a6121","zb","TY2V01"]
[null,null,null,null,"zvsx06k_c6121_ov_TY0V01","*='Specifieke informatie C'!$G$35","","C612.1 Kosten add-ons dure geneesmiddelen naar instelling- Overige zorgaanbieders- incl balans","zvsx06k","c6121","ov","TY0V01"]
[null,null,null,null,"zvsx06k_a6121_ov_TY0V01","*='Specifieke informatie C'!$H$35","","C612.1 Kosten add-ons dure geneesmiddelen naar instelling- Overige zorgaanbieders- geaccepteerd","zvsx06k","a6121","ov","TY0V01"]
[null,null,null,null,"zvsx06k_c6121_ov_TY1V01","*='Specifieke informatie C'!$I$35","","C612.1 Kosten add-ons dure geneesmiddelen naar instelling- Overige zorgaanbieders- incl balans","zvsx06k","c6121","ov","TY1V01"]
[null,null,null,null,"zvsx06k_a6121_ov_TY1V01","*='Specifieke informatie C'!$J$35","","C612.1 Kosten add-ons dure geneesmiddelen naar instelling- Overige zorgaanbieders- geaccepteerd","zvsx06k","a6121","ov","TY1V01"]
[null,null,null,null,"zvsx06k_c6121_ov_TY2V01","*='Specifieke informatie C'!$K$35","","C612.1 Kosten add-ons dure geneesmiddelen naar instelling- Overige zorgaanbieders- incl balans","zvsx06k","c6121","ov","TY2V01"]
[null,null,null,null,"zvsx06k_a6121_ov_TY2V01","*='Specifieke informatie C'!$L$35","","C612.1 Kosten add-ons dure geneesmiddelen naar instelling- Overige zorgaanbieders- geaccepteerd","zvsx06k","a6121","ov","TY2V01"]
[null,null,null,null,"zvsx06k_c6122_az_TY0V01","*='Specifieke informatie C'!$G$41","","C612.2 Kosten add-ons IC naar instelling- Academische ziekenhuizen- incl balans","zvsx06k","c6122","az","TY0V01"]
[null,null,null,null,"zvsx06k_a6122_az_TY0V01","*='Specifieke informatie C'!$H$41","","C612.2 Kosten add-ons IC naar instelling- Academische ziekenhuizen- geaccepteerd","zvsx06k","a6122","az","TY0V01"]
[null,null,null,null,"zvsx06k_c6122_az_TY1V01","*='Specifieke informatie C'!$I$41","","C612.2 Kosten add-ons IC naar instelling- Academische ziekenhuizen- incl balans","zvsx06k","c6122","az","TY1V01"]
[null,null,null,null,"zvsx06k_a6122_az_TY1V01","*='Specifieke informatie C'!$J$41","","C612.2 Kosten add-ons IC naar instelling- Academische ziekenhuizen- geaccepteerd","zvsx06k","a6122","az","TY1V01"]
[null,null,null,null,"zvsx06k_c6122_az_TY2V01","*='Specifieke informatie C'!$K$41","","C612.2 Kosten add-ons IC naar instelling- Academische ziekenhuizen- incl balans","zvsx06k","c6122","az","TY2V01"]
[null,null,null,null,"zvsx06k_a6122_az_TY2V01","*='Specifieke informatie C'!$L$41","","C612.2 Kosten add-ons IC naar instelling- Academische ziekenhuizen- geaccepteerd","zvsx06k","a6122","az","TY2V01"]
[null,null,null,null,"zvsx06k_c6122_sz_TY0V01","*='Specifieke informatie C'!$G$42","","C612.2 Kosten add-ons IC naar instelling- Algemene ziekenhuizen- incl balans","zvsx06k","c6122","sz","TY0V01"]
[null,null,null,null,"zvsx06k_a6122_sz_TY0V01","*='Specifieke informatie C'!$H$42","","C612.2 Kosten add-ons IC naar instelling- Algemene ziekenhuizen- geaccepteerd","zvsx06k","a6122","sz","TY0V01"]
[null,null,null,null,"zvsx06k_c6122_sz_TY1V01","*='Specifieke informatie C'!$I$42","","C612.2 Kosten add-ons IC naar instelling- Algemene ziekenhuizen- incl balans","zvsx06k","c6122","sz","TY1V01"]
[null,null,null,null,"zvsx06k_a6122_sz_TY1V01","*='Specifieke informatie C'!$J$42","","C612.2 Kosten add-ons IC naar instelling- Algemene ziekenhuizen- geaccepteerd","zvsx06k","a6122","sz","TY1V01"]
[null,null,null,null,"zvsx06k_c6122_sz_TY2V01","*='Specifieke informatie C'!$K$42","","C612.2 Kosten add-ons IC naar instelling- Algemene ziekenhuizen- incl balans","zvsx06k","c6122","sz","TY2V01"]
[null,null,null,null,"zvsx06k_a6122_sz_TY2V01","*='Specifieke informatie C'!$L$42","","C612.2 Kosten add-ons IC naar instelling- Algemene ziekenhuizen- geaccepteerd","zvsx06k","a6122","sz","TY2V01"]
[null,null,null,null,"zvsx06k_c6122_zb_TY0V01","*='Specifieke informatie C'!$G$43","","C612.2 Kosten add-ons IC naar instelling- Zelfstandige behandelcentra- incl balans","zvsx06k","c6122","zb","TY0V01"]
[null,null,null,null,"zvsx06k_a6122_zb_TY0V01","*='Specifieke informatie C'!$H$43","","C612.2 Kosten add-ons IC naar instelling- Zelfstandige behandelcentra- geaccepteerd","zvsx06k","a6122","zb","TY0V01"]
[null,null,null,null,"zvsx06k_c6122_zb_TY1V01","*='Specifieke informatie C'!$I$43","","C612.2 Kosten add-ons IC naar instelling- Zelfstandige behandelcentra- incl balans","zvsx06k","c6122","zb","TY1V01"]
[null,null,null,null,"zvsx06k_a6122_zb_TY1V01","*='Specifieke informatie C'!$J$43","","C612.2 Kosten add-ons IC naar instelling- Zelfstandige behandelcentra- geaccepteerd","zvsx06k","a6122","zb","TY1V01"]
[null,null,null,null,"zvsx06k_c6122_zb_TY2V01","*='Specifieke informatie C'!$K$43","","C612.2 Kosten add-ons IC naar instelling- Zelfstandige behandelcentra- incl balans","zvsx06k","c6122","zb","TY2V01"]
[null,null,null,null,"zvsx06k_a6122_zb_TY2V01","*='Specifieke informatie C'!$L$43","","C612.2 Kosten add-ons IC naar instelling- Zelfstandige behandelcentra- geaccepteerd","zvsx06k","a6122","zb","TY2V01"]
[null,null,null,null,"zvsx06k_c6122_ov_TY0V01","*='Specifieke informatie C'!$G$44","","C612.2 Kosten add-ons IC naar instelling- Overige zorgaanbieders- incl balans","zvsx06k","c6122","ov","TY0V01"]
[null,null,null,null,"zvsx06k_a6122_ov_TY0V01","*='Specifieke informatie C'!$H$44","","C612.2 Kosten add-ons IC naar instelling- Overige zorgaanbieders- geaccepteerd","zvsx06k","a6122","ov","TY0V01"]
[null,null,null,null,"zvsx06k_c6122_ov_TY1V01","*='Specifieke informatie C'!$I$44","","C612.2 Kosten add-ons IC naar instelling- Overige zorgaanbieders- incl balans","zvsx06k","c6122","ov","TY1V01"]
[null,null,null,null,"zvsx06k_a6122_ov_TY1V01","*='Specifieke informatie C'!$J$44","","C612.2 Kosten add-ons IC naar instelling- Overige zorgaanbieders- geaccepteerd","zvsx06k","a6122","ov","TY1V01"]
[null,null,null,null,"zvsx06k_c6122_ov_TY2V01","*='Specifieke informatie C'!$K$44","","C612.2 Kosten add-ons IC naar instelling- Overige zorgaanbieders- incl balans","zvsx06k","c6122","ov","TY2V01"]
[null,null,null,null,"zvsx06k_a6122_ov_TY2V01","*='Specifieke informatie C'!$L$44","","C612.2 Kosten add-ons IC naar instelling- Overige zorgaanbieders- geaccepteerd","zvsx06k","a6122","ov","TY2V01"]
[null,null,null,null,"zvsx06k_c6131_az_TY0V01","*='Specifieke informatie C'!$G$57","","C613.1 Integrale kosten DBC-zorgproducten gereguleerde segment- Academische ziekenhuizen- incl balans","zvsx06k","c6131","az","TY0V01"]
[null,null,null,null,"zvsx06k_a6131_az_TY0V01","*='Specifieke informatie C'!$H$57","","C613.1 Integrale kosten DBC-zorgproducten gereguleerde segment- Academische ziekenhuizen- geaccepteerd","zvsx06k","a6131","az","TY0V01"]
[null,null,null,null,"zvsx06k_c6131_az_TY1V01","*='Specifieke informatie C'!$I$57","","C613.1 Integrale kosten DBC-zorgproducten gereguleerde segment- Academische ziekenhuizen- incl balans","zvsx06k","c6131","az","TY1V01"]
[null,null,null,null,"zvsx06k_a6131_az_TY1V01","*='Specifieke informatie C'!$J$57","","C613.1 Integrale kosten DBC-zorgproducten gereguleerde segment- Academische ziekenhuizen- geaccepteerd","zvsx06k","a6131","az","TY1V01"]
[null,null,null,null,"zvsx06k_c6131_az_TY2V01","*='Specifieke informatie C'!$K$57","","C613.1 Integrale kosten DBC-zorgproducten gereguleerde segment- Academische ziekenhuizen- incl balans","zvsx06k","c6131","az","TY2V01"]
[null,null,null,null,"zvsx06k_a6131_az_TY2V01","*='Specifieke informatie C'!$L$57","","C613.1 Integrale kosten DBC-zorgproducten gereguleerde segment- Academische ziekenhuizen- geaccepteerd","zvsx06k","a6131","az","TY2V01"]
[null,null,null,null,"zvsx06k_c6131_sz_TY0V01","*='Specifieke informatie C'!$G$58","","C613.1 Integrale kosten DBC-zorgproducten gereguleerde segment- Algemene ziekenhuizen- incl balans","zvsx06k","c6131","sz","TY0V01"]
[null,null,null,null,"zvsx06k_a6131_sz_TY0V01","*='Specifieke informatie C'!$H$58","","C613.1 Integrale kosten DBC-zorgproducten gereguleerde segment- Algemene ziekenhuizen- geaccepteerd","zvsx06k","a6131","sz","TY0V01"]
[null,null,null,null,"zvsx06k_c6131_sz_TY1V01","*='Specifieke informatie C'!$I$58","","C613.1 Integrale kosten DBC-zorgproducten gereguleerde segment- Algemene ziekenhuizen- incl balans","zvsx06k","c6131","sz","TY1V01"]
[null,null,null,null,"zvsx06k_a6131_sz_TY1V01","*='Specifieke informatie C'!$J$58","","C613.1 Integrale kosten DBC-zorgproducten gereguleerde segment- Algemene ziekenhuizen- geaccepteerd","zvsx06k","a6131","sz","TY1V01"]
[null,null,null,null,"zvsx06k_c6131_sz_TY2V01","*='Specifieke informatie C'!$K$58","","C613.1 Integrale kosten DBC-zorgproducten gereguleerde segment- Algemene ziekenhuizen- incl balans","zvsx06k","c6131","sz","TY2V01"]
[null,null,null,null,"zvsx06k_a6131_sz_TY2V01","*='Specifieke informatie C'!$L$58","","C613.1 Integrale kosten DBC-zorgproducten gereguleerde segment- Algemene ziekenhuizen- geaccepteerd","zvsx06k","a6131","sz","TY2V01"]
[null,null,null,null,"zvsx06k_c6131_zb_TY0V01","*='Specifieke informatie C'!$G$59","","C613.1 Integrale kosten DBC-zorgproducten gereguleerde segment- Zelfstandige behandelcentra- incl balans","zvsx06k","c6131","zb","TY0V01"]
[null,null,null,null,"zvsx06k_a6131_zb_TY0V01","*='Specifieke informatie C'!$H$59","","C613.1 Integrale kosten DBC-zorgproducten gereguleerde segment- Zelfstandige behandelcentra- geaccepteerd","zvsx06k","a6131","zb","TY0V01"]
[null,null,null,null,"zvsx06k_c6131_zb_TY1V01","*='Specifieke informatie C'!$I$59","","C613.1 Integrale kosten DBC-zorgproducten gereguleerde segment- Zelfstandige behandelcentra- incl balans","zvsx06k","c6131","zb","TY1V01"]
[null,null,null,null,"zvsx06k_a6131_zb_TY1V01","*='Specifieke informatie C'!$J$59","","C613.1 Integrale kosten DBC-zorgproducten gereguleerde segment- Zelfstandige behandelcentra- geaccepteerd","zvsx06k","a6131","zb","TY1V01"]
[null,null,null,null,"zvsx06k_c6131_zb_TY2V01","*='Specifieke informatie C'!$K$59","","C613.1 Integrale kosten DBC-zorgproducten gereguleerde segment- Zelfstandige behandelcentra- incl balans","zvsx06k","c6131","zb","TY2V01"]
[null,null,null,null,"zvsx06k_a6131_zb_TY2V01","*='Specifieke informatie C'!$L$59","","C613.1 Integrale kosten DBC-zorgproducten gereguleerde segment- Zelfstandige behandelcentra- geaccepteerd","zvsx06k","a6131","zb","TY2V01"]
[null,null,null,null,"zvsx06k_c6131_ov_TY0V01","*='Specifieke informatie C'!$G$60","","C613.1 Integrale kosten DBC-zorgproducten gereguleerde segment- Overige zorgaanbieders- incl balans","zvsx06k","c6131","ov","TY0V01"]
[null,null,null,null,"zvsx06k_a6131_ov_TY0V01","*='Specifieke informatie C'!$H$60","","C613.1 Integrale kosten DBC-zorgproducten gereguleerde segment- Overige zorgaanbieders- geaccepteerd","zvsx06k","a6131","ov","TY0V01"]
[null,null,null,null,"zvsx06k_c6131_ov_TY1V01","*='Specifieke informatie C'!$I$60","","C613.1 Integrale kosten DBC-zorgproducten gereguleerde segment- Overige zorgaanbieders- incl balans","zvsx06k","c6131","ov","TY1V01"]
[null,null,null,null,"zvsx06k_a6131_ov_TY1V01","*='Specifieke informatie C'!$J$60","","C613.1 Integrale kosten DBC-zorgproducten gereguleerde segment- Overige zorgaanbieders- geaccepteerd","zvsx06k","a6131","ov","TY1V01"]
[null,null,null,null,"zvsx06k_c6131_ov_TY2V01","*='Specifieke informatie C'!$K$60","","C613.1 Integrale kosten DBC-zorgproducten gereguleerde segment- Overige zorgaanbieders- incl balans","zvsx06k","c6131","ov","TY2V01"]
[null,null,null,null,"zvsx06k_a6131_ov_TY2V01","*='Specifieke informatie C'!$L$60","","C613.1 Integrale kosten DBC-zorgproducten gereguleerde segment- Overige zorgaanbieders- geaccepteerd","zvsx06k","a6131","ov","TY2V01"]
[null,null,null,null,"zvsx06k_c6151_az_TY0V01","*='Specifieke informatie C'!$G$66","","C615.1 Integrale kosten DBC-zorgproduct vrije segment- Academische ziekenhuizen- incl balans","zvsx06k","c6151","az","TY0V01"]
[null,null,null,null,"zvsx06k_a6151_az_TY0V01","*='Specifieke informatie C'!$H$66","","C615.1 Integrale kosten DBC-zorgproduct vrije segment- Academische ziekenhuizen- geaccepteerd","zvsx06k","a6151","az","TY0V01"]
[null,null,null,null,"zvsx06k_c6151_az_TY1V01","*='Specifieke informatie C'!$I$66","","C615.1 Integrale kosten DBC-zorgproduct vrije segment- Academische ziekenhuizen- incl balans","zvsx06k","c6151","az","TY1V01"]
[null,null,null,null,"zvsx06k_a6151_az_TY1V01","*='Specifieke informatie C'!$J$66","","C615.1 Integrale kosten DBC-zorgproduct vrije segment- Academische ziekenhuizen- geaccepteerd","zvsx06k","a6151","az","TY1V01"]
[null,null,null,null,"zvsx06k_c6151_az_TY2V01","*='Specifieke informatie C'!$K$66","","C615.1 Integrale kosten DBC-zorgproduct vrije segment- Academische ziekenhuizen- incl balans","zvsx06k","c6151","az","TY2V01"]
[null,null,null,null,"zvsx06k_a6151_az_TY2V01","*='Specifieke informatie C'!$L$66","","C615.1 Integrale kosten DBC-zorgproduct vrije segment- Academische ziekenhuizen- geaccepteerd","zvsx06k","a6151","az","TY2V01"]
[null,null,null,null,"zvsx06k_c6151_sz_TY0V01","*='Specifieke informatie C'!$G$67","","C615.1 Integrale kosten DBC-zorgproduct vrije segment- Algemene ziekenhuizen- incl balans","zvsx06k","c6151","sz","TY0V01"]
[null,null,null,null,"zvsx06k_a6151_sz_TY0V01","*='Specifieke informatie C'!$H$67","","C615.1 Integrale kosten DBC-zorgproduct vrije segment- Algemene ziekenhuizen- geaccepteerd","zvsx06k","a6151","sz","TY0V01"]
[null,null,null,null,"zvsx06k_c6151_sz_TY1V01","*='Specifieke informatie C'!$I$67","","C615.1 Integrale kosten DBC-zorgproduct vrije segment- Algemene ziekenhuizen- incl balans","zvsx06k","c6151","sz","TY1V01"]
[null,null,null,null,"zvsx06k_a6151_sz_TY1V01","*='Specifieke informatie C'!$J$67","","C615.1 Integrale kosten DBC-zorgproduct vrije segment- Algemene ziekenhuizen- geaccepteerd","zvsx06k","a6151","sz","TY1V01"]
[null,null,null,null,"zvsx06k_c6151_sz_TY2V01","*='Specifieke informatie C'!$K$67","","C615.1 Integrale kosten DBC-zorgproduct vrije segment- Algemene ziekenhuizen- incl balans","zvsx06k","c6151","sz","TY2V01"]
[null,null,null,null,"zvsx06k_a6151_sz_TY2V01","*='Specifieke informatie C'!$L$67","","C615.1 Integrale kosten DBC-zorgproduct vrije segment- Algemene ziekenhuizen- geaccepteerd","zvsx06k","a6151","sz","TY2V01"]
[null,null,null,null,"zvsx06k_a6151_zb_TY0V01","*='Specifieke informatie C'!$H$68","","C615.1 Integrale kosten DBC-zorgproduct vrije segment- Zelfstandige behandelcentra- geaccepteerd","zvsx06k","a6151","zb","TY0V01"]
[null,null,null,null,"zvsx06k_c6151_zb_TY0V01","*='Specifieke informatie C'!$G$68","","C615.1 Integrale kosten DBC-zorgproduct vrije segment- Zelfstandige behandelcentra- incl balans","zvsx06k","c6151","zb","TY0V01"]
[null,null,null,null,"zvsx06k_c6151_zb_TY1V01","*='Specifieke informatie C'!$I$68","","C615.1 Integrale kosten DBC-zorgproduct vrije segment- Zelfstandige behandelcentra- incl balans","zvsx06k","c6151","zb","TY1V01"]
[null,null,null,null,"zvsx06k_a6151_zb_TY1V01","*='Specifieke informatie C'!$J$68","","C615.1 Integrale kosten DBC-zorgproduct vrije segment- Zelfstandige behandelcentra- geaccepteerd","zvsx06k","a6151","zb","TY1V01"]
[null,null,null,null,"zvsx06k_c6151_zb_TY2V01","*='Specifieke informatie C'!$K$68","","C615.1 Integrale kosten DBC-zorgproduct vrije segment- Zelfstandige behandelcentra- incl balans","zvsx06k","c6151","zb","TY2V01"]
[null,null,null,null,"zvsx06k_a6151_zb_TY2V01","*='Specifieke informatie C'!$L$68","","C615.1 Integrale kosten DBC-zorgproduct vrije segment- Zelfstandige behandelcentra- geaccepteerd","zvsx06k","a6151","zb","TY2V01"]
[null,null,null,null,"zvsx06k_c6151_ov_TY0V01","*='Specifieke informatie C'!$G$69","","C615.1 Integrale kosten DBC-zorgproduct vrije segment- Overige zorgaanbieders- incl balans","zvsx06k","c6151","ov","TY0V01"]
[null,null,null,null,"zvsx06k_a6151_ov_TY0V01","*='Specifieke informatie C'!$H$69","","C615.1 Integrale kosten DBC-zorgproduct vrije segment- Overige zorgaanbieders- geaccepteerd","zvsx06k","a6151","ov","TY0V01"]
[null,null,null,null,"zvsx06k_c6151_ov_TY1V01","*='Specifieke informatie C'!$I$69","","C615.1 Integrale kosten DBC-zorgproduct vrije segment- Overige zorgaanbieders- incl balans","zvsx06k","c6151","ov","TY1V01"]
[null,null,null,null,"zvsx06k_a6151_ov_TY1V01","*='Specifieke informatie C'!$J$69","","C615.1 Integrale kosten DBC-zorgproduct vrije segment- Overige zorgaanbieders- geaccepteerd","zvsx06k","a6151","ov","TY1V01"]
[null,null,null,null,"zvsx06k_c6151_ov_TY2V01","*='Specifieke informatie C'!$K$69","","C615.1 Integrale kosten DBC-zorgproduct vrije segment- Overige zorgaanbieders- incl balans","zvsx06k","c6151","ov","TY2V01"]
[null,null,null,null,"zvsx06k_a6151_ov_TY2V01","*='Specifieke informatie C'!$L$69","","C615.1 Integrale kosten DBC-zorgproduct vrije segment- Overige zorgaanbieders- geaccepteerd","zvsx06k","a6151","ov","TY2V01"]
[null,null,null,null,"zvsx13k_a701_g21_TY0V01","*='Specifieke informatie C'!$L$99","","C701 Overige geneeskundige zorg- Kort- geaccepteerd","zvsx13k","a701","g21","TY0V01"]
[null,null,null,null,"zvsx13k_a701_g22_TY0V01","*='Specifieke informatie C'!$L$100","","C701 Overige geneeskundige zorg- Huidtherapie- geaccepteerd","zvsx13k","a701","g22","TY0V01"]
[null,null,null,null,"zvsx13k_a701_g23_TY0V01","*='Specifieke informatie C'!$L$101","","C701 Overige geneeskundige zorg- Orthoptie- geaccepteerd","zvsx13k","a701","g23","TY0V01"]
[null,null,null,null,"zvsx13k_a701_g24_TY0V01","*='Specifieke informatie C'!$L$102","","C701 Overige geneeskundige zorg- Optometrie- geaccepteerd","zvsx13k","a701","g24","TY0V01"]
[null,null,null,null,"zvsx13k_a701_g25_TY0V01","*='Specifieke informatie C'!$L$103","","C701 Overige geneeskundige zorg- voetzorg bij Diabetes Mellitus type 2- geaccepteerd","zvsx13k","a701","g25","TY0V01"]
[null,null,null,null,"zvsx13k_a701_g26_TY0V01","*='Specifieke informatie C'!$L$104","","C701 Overige geneeskundige zorg- Koemelkallergietest (niet horend bij Multidisciplinaire Zorg)- geaccepteerd","zvsx13k","a701","g26","TY0V01"]
[null,null,null,null,"zvsx13k_a701_g27_TY0V01","*='Specifieke informatie C'!$L$105","","C701 Overige geneeskundige zorg- Regiefunctie complexe wondzorgt- geaccepteerd","zvsx13k","a701","g27","TY0V01"]
[null,null,null,null,"zvsx13k_a702_g01_TY0V01","*='Specifieke informatie C'!$L$110","","C702 Zintuiglijk gehandicapten- visuele beperking- geaccepteerd","zvsx13k","a702","g01","TY0V01"]
[null,null,null,null,"zvsx13k_a702_g02_TY0V01","*='Specifieke informatie C'!$L$111","","C702 Zintuiglijk gehandicapten- auditieve en comunicatieve beperking- geaccepteerd","zvsx13k","a702","g02","TY0V01"]
[null,null,null,null,"zvox01_c97101_o01trf_TY0V01","*=Contractinformatie!$K$12","","Huisartsenzorg en Multidisciplinaire zorg, (code 503,504,505,506,507,515)- Gecontracteerd 503,504,505,506,507,515- incl balans","zvox01","c97101","o01trf","TY0V01"]
[null,null,null,null,"zvox01_c97101_o31trf_TY0V01","*=Contractinformatie!$K$13",null,"Huisartsenzorg en Multidisciplinaire zorg, (code 503,504,505,506,507,515)- Lopende onderhandelingen 503,504,505,506,507,515- incl balans","zvox01","c97101","o31trf","TF1V01"]
[null,null,null,null,"zvox01_c97101_o52trf_TY0V01","*=Contractinformatie!$K$14","","Huisartsenzorg en Multidisciplinaire zorg, (code 503,504,505,506,507,515)- Niet gecontracteerd 503,504,505,506,507,515- incl balans","zvox01","c97101","o52trf","TY0V01"]
[null,null,null,null,"zvox01_c97101_o01mdz_TY0V01","*=Contractinformatie!$K$17","","Huisartsenzorg en Multidisciplinaire zorg, (code 510 en 516)- Gecontracteerd 510,516- incl balans","zvox01","c97101","o01mdz","TY0V01"]
[null,null,null,null,"zvox01_c97101_o31mdz_TY0V01","*=Contractinformatie!$K$18",null,"Huisartsenzorg en Multidisciplinaire zorg, (code 510 en 516)- Lopende onderhandelingen 510,516- incl balans","zvox01","c97101","o31mdz","TF1V01"]
[null,null,null,null,"zvox01_c97101_o52mdz_TY0V01","*=Contractinformatie!$K$19","","Huisartsenzorg en Multidisciplinaire zorg, (code 510 en 516)- Niet gecontracteerd  510,516- incl balans","zvox01","c97101","o52mdz","TY0V01"]
[null,null,null,null,"zvox01_c97101_o01mk_TY0V01","*=Contractinformatie!$K$22",null,"Huisartsenzorg en Multidisciplinaire zorg- Meerkosten (indirect en toeslagen), gecontracteerd en niet gecontracteerd- incl balans","zvox01","c97101","o01mk","TY0V01"]
[null,null,null,null,"zvox03_c97103_o01_TY0V01","*=Contractinformatie!$K$27","","Contractinformatie Verpleging en Verzorging- Gecontracteerd- incl balans","zvox03","c97103","o01","TY0V01"]
[null,null,null,null,"zvox03_c97103_o31_TY0V01","*=Contractinformatie!$K$28",null,"Contractinformatie Verpleging en Verzorging- Lopende onderhandelingen- incl balans","zvox03","c97103","o31","TF1V01"]
[null,null,null,null,"zvox03_c97103_o52_TY0V01","*=Contractinformatie!$K$29","","Contractinformatie Verpleging en Verzorging- Niet gecontracteerd- incl balans","zvox03","c97103","o52","TY0V01"]
[null,null,null,null,"zvox03_c97103_o01mk_TY0V01","*=Contractinformatie!$K$30",null,"Contractinformatie Verpleging en Verzorging- Meerkosten (indirect en toeslagen), gecontracteerd en niet gecontracteerd- incl balans","zvox03","c97101","o01mk","TY0V01"]
[null,null,null,null,"zvox03_c97103_o08_TY0V01","*=Contractinformatie!$K$31",null,"Contractinformatie Verpleging en Verzorging- PGB- incl balans","zvox03","c97103","o08","TY0V01"]
[null,null,null,null,"zvox06_c97106_o02_TY0V01","*=Contractinformatie!$K$36","","Medisch Specialistische Zorg- aanneemsom- incl balans","zvox06","c97106","o02","TY0V01"]
[null,null,null,null,"zvox06_c97106_o03_TY0V01","*=Contractinformatie!$K$37","","Medisch Specialistische Zorg- plafond- incl balans","zvox06","c97106","o03","TY0V01"]
[null,null,null,null,"zvox06_c97106_o04_TY0V01","*=Contractinformatie!$K$38","","Medisch Specialistische Zorg- nacalculatie- incl balans","zvox06","c97106","o04","TY0V01"]
[null,null,null,null,"zvox06_c97106_o05_TY0V01","*=Contractinformatie!$K$39","","Medisch Specialistische Zorg- open einde contract- incl balans","zvox06","c97106","o05","TY0V01"]
[null,null,null,null,"zvox06_c97106_o31_TY0V01","*=Contractinformatie!$K$41",null,"Medisch Specialistische Zorg- Lopende onderhandelingen- incl balans","zvox06","c97106","o31","TF1V01"]
[null,null,null,null,"zvox06_c97106_o52_TY0V01","*=Contractinformatie!$K$42","","Medisch Specialistische Zorg- Niet gecontracteerd- incl balans","zvox06","c97106","o52","TY0V01"]
[null,null,null,null,"zvox06_c97106_o01mk_TY0V01","*=Contractinformatie!$K$43",null,"Medisch Specialistische Zorg- Meerkosten (indirect en toeslagen), gecontracteerd en niet gecontracteerd- incl balans","zvox06","c97106","o01mk","TY0V01"]
[null,null,null,null,"zvox06_c97106_o91_TY0V01","*=Contractinformatie!$K$47",null,"Medisch Specialistische Zorg- Totaal afgesproken maximum omzet plafondcontracten- incl balans","zvox06","c97106","o91","TY0V01"]
[null,null,null,null,"zvox10_c97110_o02_TY0V01","*=Contractinformatie!$K$58","","Geneeskundige GGZ- aanneemsom- incl balans","zvox10","c97110","o02","TY0V01"]
[null,null,null,null,"zvox10_c97110_o03_TY0V01","*=Contractinformatie!$K$59","","Geneeskundige GGZ- plafond- incl balans","zvox10","c97110","o03","TY0V01"]
[null,null,null,null,"zvox10_c97110_o04_TY0V01","*=Contractinformatie!$K$60","","Geneeskundige GGZ- nacalculatie- incl balans","zvox10","c97110","o04","TY0V01"]
[null,null,null,null,"zvox10_c97110_o05_TY0V01","*=Contractinformatie!$K$61","","Geneeskundige GGZ- open einde contract- incl balans","zvox10","c97110","o05","TY0V01"]
[null,null,null,null,"zvox10_c97110_o31_TY0V01","*=Contractinformatie!$K$63",null,"Geneeskundige GGZ- Lopende onderhandelingen- incl balans","zvox10","c97110","o31","TF1V01"]
[null,null,null,null,"zvox10_c97110_o52_TY0V01","*=Contractinformatie!$K$64","","Geneeskundige GGZ- Niet gecontracteerd- incl balans","zvox10","c97110","o52","TY0V01"]
[null,null,null,null,"zvox10_c97110_o01mk_TY0V01","*=Contractinformatie!$K$65",null,"Geneeskundige GGZ- Meerkosten (indirect en toeslagen), gecontracteerd en niet gecontracteerd- incl balans","zvox10","c97110","o01mk","TY0V01"]
[null,null,null,null,"zvox10_c97110_o91_TY0V01","*=Contractinformatie!$K$69",null,"Geneeskundige GGZ- Totaal afgesproken maximum omzet plafondcontracten- incl balans","zvox10","c97110","o91","TY0V01"]
[null,null,null,null,"zvox13_c97113_bo01_TY0V01","*=Contractinformatie!$K$73","","Zintuiglijk gehandicapten- Gecontracteerd- incl balans","zvox13","c97113","bo01","TY0V01"]
[null,null,null,null,"zvox13_c97113_bo31_TY0V01","*=Contractinformatie!$K$74",null,"Zintuiglijk gehandicapten- Lopende onderhandelingen- incl balans","zvox13","c97113","bo31","TF1V01"]
[null,null,null,null,"zvox13_c97113_bo52_TY0V01","*=Contractinformatie!$K$75","","Zintuiglijk gehandicapten- Niet gecontracteerd- incl balans","zvox13","c97113","bo52","TY0V01"]
[null,null,null,null,"zvox13_c97113_o01mk_TY0V01","*=Contractinformatie!$K$76",null,"Zintuiglijk gehandicapten- Meerkosten (indirect en toeslagen), gecontracteerd en niet gecontracteerd- incl balans","zvox13","c97113","o01mk","TY0V01"]
[null,null,null,null,"zvox11_c97111_o01rvl_TY0V01","*=Contractinformatie!$K$82","","Geriatrische Revalidatiezorg 670 en Eerstelijnsverblijf 671,  Geneeskundige Zorg Specifieke Patiëntgroepen (code 672)- Gecontracteerd  670- incl balans","zvox11","c97111","o01rvl","TY0V01"]
[null,null,null,null,"zvox11_c97111_o31rvl_TY0V01","*=Contractinformatie!$K$83",null,"Geriatrische Revalidatiezorg 670 en Eerstelijnsverblijf 671,  Geneeskundige Zorg Specifieke Patiëntgroepen (code 670)- Lopende onderhandelingen 670- incl balans","zvox11","c97111","o31rvl","TF1V01"]
[null,null,null,null,"zvox11_c97111_o52rvl_TY0V01","*=Contractinformatie!$K$84","","Geriatrische Revalidatiezorg 670 en Eerstelijnsverblijf 671,  Geneeskundige Zorg Specifieke Patiëntgroepen (code 672)- Niet gecontracteerd 670- incl balans","zvox11","c97111","o52rvl","TY0V01"]
[null,null,null,null,"zvox11_c97111_o01ln1_TY0V01","*=Contractinformatie!$K$87","","Geriatrische Revalidatiezorg 670 en Eerstelijnsverblijf 671,  Geneeskundige Zorg Specifieke Patiëntgroepen (code 672)- Gecontracteerd 671- incl balans","zvox11","c97111","o01ln1","TY0V01"]
[null,null,null,null,"zvox11_c97111_o31ln1_TY0V01","*=Contractinformatie!$K$88",null,"Geriatrische Revalidatiezorg 670 en Eerstelijnsverblijf 671,  Geneeskundige Zorg Specifieke Patiëntgroepen (code 671)- Lopende onderhandelingen 671- incl balans","zvox11","c97111","o31ln1","TF1V01"]
[null,null,null,null,"zvox11_c97111_o52ln1_TY0V01","*=Contractinformatie!$K$89","","Geriatrische Revalidatiezorg 670 en Eerstelijnsverblijf 671,  Geneeskundige Zorg Specifieke Patiëntgroepen (code 672)- Niet gecontracteerd 671- incl balans","zvox11","c97111","o52ln1","TY0V01"]
[null,null,null,null,"zvox11_c97111_o01gp_TY0V01","*=Contractinformatie!$K$92",null,"Geriatrische Revalidatiezorg 670 en Eerstelijnsverblijf 671,  Geneeskundige Zorg Specifieke Patiëntgroepen (code 672)- Gecontracteerd 672- incl balans","zvox11","c97111","o01gp","TY0V01"]
[null,null,null,null,"zvox11_c97111_o31gp_TY0V01","*=Contractinformatie!$K$93",null,"Geriatrische Revalidatiezorg 670 en Eerstelijnsverblijf 671,  Geneeskundige Zorg Specifieke Patiëntgroepen (code 672)- Lopende onderhandelingen 672- incl balans","zvox11","c97111","o31gp","TF1V01"]
[null,null,null,null,"zvox11_c97111_o52gp_TY0V01","*=Contractinformatie!$K$94",null,"Geriatrische Revalidatiezorg 670 en Eerstelijnsverblijf 671, Geneeskundige Zorg Specifieke Patiëntgroepen (code 672)- Niet gecontracteerd 672- incl balans","zvox11","c97111","o52gp","TY0V01"]
[null,null,null,null,"zvox11_c97111_o52gpmk_TY0V01","*=Contractinformatie!$K$96",null,"Geriatrische Revalidatiezorg 670 en Eerstelijnsverblijf 671, Geneeskundige Zorg Specifieke Patiëntgroepen (code 672)- Meerkosten (toeslagen en lumpsum), gecontracteerd en niet gecontracteerd- incl balans","zvox11","c97111","o52gpmk","TY0V01"]
[null,null,null,null,"zvpxwnb_s982_d2m_m10V01","*=Wanbetalers!$I$12","","Wanbetalers- achterstand 2 of 3 maanden","zvpxwnb","s982","d2m","m04V01","Wanbetalers",null,"N",""]
[null,null,null,null,"zvpxwnb_s982_d2m_m11V01","*=Wanbetalers!$J$12","","Wanbetalers- achterstand 2 of 3 maanden","zvpxwnb","s982","d2m","m05V01","Wanbetalers",null,"N",""]
[null,null,null,null,"zvpxwnb_s982_d2m_m12V01","*=Wanbetalers!$K$12","","Wanbetalers- achterstand 2 of 3 maanden","zvpxwnb","s982","d2m","m06V01","Wanbetalers",null,"N",""]
[null,null,null,null,"zvpxwnb_s982_d4m_m10V01","*=Wanbetalers!$I$13","","Wanbetalers- achterstand 4 of 5 maanden","zvpxwnb","s982","d4m","m04V01","Wanbetalers",null,"N",""]
[null,null,null,null,"zvpxwnb_s982_d4m_m11V01","*=Wanbetalers!$J$13","","Wanbetalers- achterstand 4 of 5 maanden","zvpxwnb","s982","d4m","m05V01","Wanbetalers",null,"N",""]
[null,null,null,null,"zvpxwnb_s982_d4m_m12V01","*=Wanbetalers!$K$13","","Wanbetalers- achterstand 4 of 5 maanden","zvpxwnb","s982","d4m","m06V01","Wanbetalers",null,"N",""]
[null,null,null,null,"zvpxwnb_s982_d6m_m10V01","*=Wanbetalers!$I$14","","Wanbetalers- achterstand 6 of meer maanden","zvpxwnb","s982","d6m","m04V01","Wanbetalers",null,"N",""]
[null,null,null,null,"zvpxwnb_s982_d6m_m11V01","*=Wanbetalers!$J$14","","Wanbetalers- achterstand 6 of meer maanden","zvpxwnb","s982","d6m","m05V01","Wanbetalers",null,"N",""]
[null,null,null,null,"zvpxwnb_s982_d6m_m12V01","*=Wanbetalers!$K$14","","Wanbetalers- achterstand 6 of meer maanden","zvpxwnb","s982","d6m","m06V01","Wanbetalers",null,"N",""]
[null,null,null,null,"zvpxwnb_s982_dm2b_m10V01","*=Wanbetalers!$I$17","","Wanbetalers- tweedemaandsbrieven","zvpxwnb","s982","dm2b","m04V01","Wanbetalers",null,"N",""]
[null,null,null,null,"zvpxwnb_s982_dm2b_m11V01","*=Wanbetalers!$J$17","","Wanbetalers- tweedemaandsbrieven","zvpxwnb","s982","dm2b","m05V01","Wanbetalers",null,"N",""]
[null,null,null,null,"zvpxwnb_s982_dm2b_m12V01","*=Wanbetalers!$K$17","","Wanbetalers- tweedemaandsbrieven","zvpxwnb","s982","dm2b","m06V01","Wanbetalers",null,"N",""]
[null,null,null,null,"zvpxwnb_s982_dm4b_m10V01","*=Wanbetalers!$I$18","","Wanbetalers- vierdemaandsbrieven","zvpxwnb","s982","dm4b","m04V01","Wanbetalers",null,"N",""]
[null,null,null,null,"zvpxwnb_s982_dm4b_m11V01","*=Wanbetalers!$J$18","","Wanbetalers- vierdemaandsbrieven","zvpxwnb","s982","dm4b","m05V01","Wanbetalers",null,"N",""]
[null,null,null,null,"zvpxwnb_s982_dm4b_m12V01","*=Wanbetalers!$K$18","","Wanbetalers- vierdemaandsbrieven","zvpxwnb","s982","dm4b","m06V01","Wanbetalers",null,"N",""]
[null,null,null,null,"zvpxwnb_s982_dr0i_m10V01","*=Wanbetalers!$I$21","","Wanbetalers- interne betalingsregeling","zvpxwnb","s982","dr0i","m04V01","Wanbetalers",null,"N",""]
[null,null,null,null,"zvpxwnb_s982_dr0i_m11V01","*=Wanbetalers!$J$21","","Wanbetalers- interne betalingsregeling","zvpxwnb","s982","dr0i","m05V01","Wanbetalers",null,"N",""]
[null,null,null,null,"zvpxwnb_s982_dr0i_m12V01","*=Wanbetalers!$K$21","","Wanbetalers- interne betalingsregeling","zvpxwnb","s982","dr0i","m06V01","Wanbetalers",null,"N",""]
[null,null,null,null,"zvpxwnb_s982_dr0e_m10V01","*=Wanbetalers!$I$22","","Wanbetalers- externe betalingsregeling","zvpxwnb","s982","dr0e","m04V01","Wanbetalers",null,"N",""]
[null,null,null,null,"zvpxwnb_s982_dr0e_m11V01","*=Wanbetalers!$J$22","","Wanbetalers- externe betalingsregeling","zvpxwnb","s982","dr0e","m05V01","Wanbetalers",null,"N",""]
[null,null,null,null,"zvpxwnb_s982_dr0e_m12V01","*=Wanbetalers!$K$22","","Wanbetalers- externe betalingsregeling","zvpxwnb","s982","dr0e","m06V01","Wanbetalers",null,"N",""]
[null,null,null,null,"zvpxwnb_s982_dr0s_m10V01","*=Wanbetalers!$I$23","","Wanbetalers- stabilisatieovereenkomst","zvpxwnb","s982","dr0s","m04V01","Wanbetalers",null,"N",""]
[null,null,null,null,"zvpxwnb_s982_dr0s_m11V01","*=Wanbetalers!$J$23","","Wanbetalers- stabilisatieovereenkomst","zvpxwnb","s982","dr0s","m05V01","Wanbetalers",null,"N",""]
[null,null,null,null,"zvpxwnb_s982_dr0s_m12V01","*=Wanbetalers!$K$23","","Wanbetalers- stabilisatieovereenkomst","zvpxwnb","s982","dr0s","m06V01","Wanbetalers",null,"N",""]
[null,null,null,null,"zvpxwnb_s982_dr81_m10V01","*=Wanbetalers!$I$26","","Wanbetalers- cak bdr < 250","zvpxwnb","s982","dr81","m04V01","Wanbetalers",null,"N",""]
[null,null,null,null,"zvpxwnb_s982_dr81_m11V01","*=Wanbetalers!$J$26","","Wanbetalers- cak bdr < 250","zvpxwnb","s982","dr81","m05V01","Wanbetalers",null,"N",""]
[null,null,null,null,"zvpxwnb_s982_dr81_m12V01","*=Wanbetalers!$K$26","","Wanbetalers- cak bdr < 250","zvpxwnb","s982","dr81","m06V01","Wanbetalers",null,"N",""]
[null,null,null,null,"zvpxwnb_s982_dr82_m10V01","*=Wanbetalers!$I$27","","Wanbetalers- cak 250 < bdr < 750","zvpxwnb","s982","dr82","m04V01","Wanbetalers",null,"N",""]
[null,null,null,null,"zvpxwnb_s982_dr82_m11V01","*=Wanbetalers!$J$27","","Wanbetalers- cak 250 < bdr < 750","zvpxwnb","s982","dr82","m05V01","Wanbetalers",null,"N",""]
[null,null,null,null,"zvpxwnb_s982_dr82_m12V01","*=Wanbetalers!$K$27","","Wanbetalers- cak 250 < bdr < 750","zvpxwnb","s982","dr82","m06V01","Wanbetalers",null,"N",""]
[null,null,null,null,"zvpxwnb_s982_dr83_m10V01","*=Wanbetalers!$I$28","","Wanbetalers- cak 750 < bdr","zvpxwnb","s982","dr83","m04V01","Wanbetalers",null,"N",""]
[null,null,null,null,"zvpxwnb_s982_dr83_m11V01","*=Wanbetalers!$J$28","","Wanbetalers- cak 750 < bdr","zvpxwnb","s982","dr83","m05V01","Wanbetalers",null,"N",""]
[null,null,null,null,"zvpxwnb_s982_dr83_m12V01","*=Wanbetalers!$K$28","","Wanbetalers- cak 750 < bdr","zvpxwnb","s982","dr83","m06V01","Wanbetalers",null,"N",""]